Workbook

Sheet Sheet1
A3: 2015/16 National Tariff Payment System:
A4: A consultation notice
A6: Annex 5k: Best practice tariff (BPT) model
A13: 26 November 2014
A15: Monitor publication code: IRCP 14/14
A17: NHS England Publications Gateway Reference 02457
A18: NHS England Document Classification: Official
A20: The complete document set is hosted at:
A21: https://www.gov.uk/government/consultations/national-tariff-payment-system-201516-a-consultation-notice

Sheet Disclaimer
B3: 2015-16 BPT Model
B5: Produced by: Monitor

Sheet Navigation
B2: Steps | C2: Worksheet / Intermediary steps | D2: Overview | E2: Data Source
B3: 1 >> s118 Prices | C3: s118 BPT | D3: This worksheet has the prices for BPT
B4: 2 >> SQL codes | C4: BPT SQL code | D4: This worksheet shows the SQL codes used in the model | E4: Monitor SQL
B5: 3 >> SQL inputs | C5: 00_APC_Raw_Activity | D5: This worksheet has the APC SQL model activities. | E5: Monitor SQL
C6: 01_APC_Raw_UC | D6: This worksheet has the APC SQL model prices. | E6: Monitor SQL
C7: 03_OPROC_RAW | D7: This worksheet has the OPROC SQL model prices and activities. | E7: Monitor SQL
C8: 04_HES_Activity_RAW | D8: This worksheet has the SQL model HES activities. | E8: Monitor SQL
C9: 04.1_HES_POD_Split | D9: This worksheet has the SQL model HES activities. | E9: Monitor SQL
C10: 05_Post_Spell_Conversion_RAW | D10: This worksheet has the HES SQL model activities following spell conversion. | E10: Monitor SQL
C11: 06_Flagged_Activity_RAW | D11: This worksheet has the flagged activities. | E11: Monitor SQL
C12: 06_RENAL_RAW | D12: This worksheet has the Renal SQL model output | E12: Monitor SQL
C13: HES_Spell_Activities | D13: From APC SQL model - APC_02Process | E13: Monitor SQL
B14: 4 >> Non SQL inputs | C14: Matrix activity | D14: This sheet has the mapping for activity movements between RC 2010/11 and 2011/12 | E14: Monitor SQL
C15: NSRC OPROC | D15: National Schedule of Reference Costs - Year 2011-12 - NHS trusts and NHS foundation trusts for OPROC | E15: OPROC sheet in: https://www.gov.uk/government/uploads/system/uploads/attachment_data/file/213063/NSRC01-2011-12.xls
C16: NSRC CLFUSFF | D16: National Schedule of Reference Costs - Year 2011-12 - NHS trusts and NHS foundation trusts for OPATT - follow up attendances | E16: CLFUSFF sheet in: https://www.gov.uk/government/uploads/system/uploads/attachment_data/file/213063/NSRC01-2011-12.xls
C17: NSRC CLFASFF | D17: National Schedule of Reference Costs - Year 2011-12 - NHS trusts and NHS foundation trusts for OPATT - first attendances | E17: CLFASFF sheet in: https://www.gov.uk/government/uploads/system/uploads/attachment_data/file/213063/NSRC01-2011-12.xls
C18: Final APC Prices | D18: This worksheet has the final APC Prices | E18: Monitor
C19: Final OPROC Prices | D19: This worksheet has the final OPROC Prices | E19: Monitor
C20: Final OPATT Prices | D20: This worksheet has the final OPATT Prices | E20: Monitor
C21: 201415_NonMandatory | D21: This worksheet has the published Non-Mandatory 2014/15 Tariff | E21: Monitor website: http://www.monitor.gov.uk/NT
C22: 201415_BPTs | D22: This worksheet has the published BPT 2014/15 Tariff | E22: Monitor website: http://www.monitor.gov.uk/NT
C23: 1415_APC | D23: This worksheet has the published APC 2014/15 Tariff | E23: Monitor website: http://www.monitor.gov.uk/NT
C24: BPT INPUT FROM APC | D24: This worksheet has the APC prices for BPT calculation | E24: Monitor
C25: Price Adjustments | D25: A variety of factors to adjust the prices. Includes inflation, efficiency, CNST and quantum adjustment. | E25: Monitor
C26: Expert & Final Monitor comments | D26: This worksheet has all the 2015/16 manual adjustments | E26: Mixed (Monitor & External)
B27: 5 >> Processing | C27: HRG mapping | D27: This sheet automates the activity Matrix
C28: Prices Summary I | D28: This worksheet tabulates APC and OPROC prices
C29: APC Prices I | D29: This worksheet tabulates APC and OPROC prices
C30: 00b_1112 HES Spells | D30: This worksheet tabulates Flagged Activity
C31: 00c_Tariff Post Spell | D31: This worksheet tabulates HES Spells
C32: 00_Other | D32: This worksheet calculates the following: Diabetic ketoacidosis and hypoglycaemia Early inflammatory arthritis Endoscopy procedures Major trauma Paediatric diabetes year of care Paediatric epilepsy Parkinson's disease Heart Failure
C33: 01_FHF | D33: This worksheet calculates Fragility Hip Fracture tariffs
C34: 02_Stroke | D34: This worksheet calculates Stroke tariffs
C35: 03_Chole | D35: This worksheet calculates Cholecysectomy tariffs
C36: 04_Cataracts | D36: This worksheet calculates Cataracts tariffs
C37: 05_Renal | D37: This worksheet calculates Renal tariffs
C38: 06_Hips&Knees | D38: This worksheet calculates Hips&Knees tariffs
C39: 07_IR | D39: This worksheet calculates IR tariffs
C40: 08_DayCase | D40: This worksheet calculates Day Case tariffs
C41: 09_TIA | D41: This worksheet calculates TIA tariffs
C42: 10.1_Outpatients | D42: This worksheet calculates Outpatient tariffs (part 1)
C43: 10.2_Outpatients | D43: This worksheet calculates Outpatient tariffs (part 2)
C44: 11_Pleural_Effusion | D44: This worksheet calculates Pleural Effusion tariffs
C45: 12_SameDay_EMCare | D45: This worksheet calculates Same Day Emergency Care tariffs
B46: 6 >> Output | C46: Prices | D46: Shows the final prices and step by step changes. Also shows model prices or rollover prices.
C47: Linked Sheet | D47: Shows the final prices
C48: Output for APC & OPROC | D48: Change to APC & OPROC tariffs to feed back into the APC and OPROC models
C49: Output for OPATT | D49: Change to OPATT tariffs to feed back into the OPATT model

Sheet s118 BPT
A1: 2015-16 BPT
A3: 1 | B3: Acute stroke care
A4: 2 | B4: Adult renal dialysis
A5: 3 | B5: Daycases
A6: 4 | B6: Diabetic ketoacidosis and hypoglycaemia
A7: 5 | B7: Early inflammatory arthritis
A8: 6 | B8: Endoscopy procedures
A9: 7 | B9: Fragility hip fracture
A10: 8 | B10: Interventional radiology
A11: 9 | B11: Major trauma
A12: 10 | B12: Outpatient procedures
A13: 11 | B13: Paediatric diabetes year of care
A14: 12 | B14: Paediatric epilepsy
A15: 13 | B15: Parkinson's disease
A16: 14 | B16: Pleural effusion
A17: 15 | B17: Primary total hip and knee replacements
A18: 16 | B18: Same day emergency care
A19: 17 | B19: Transient ischaemic attack
A20: 18 | B20: Heart Failure
A22: 1 | B22: Acute stroke care
A24: The BPT is made up of four components: a base tariff and three conditional payments. The base tariff is payable to all activity irrespective of whether the characteristics of best practice were met. The three conditional payments are conditional on meeting best practice characteristics described in the guidance.
A25: The base tariff and the additional payment apply at the sub-HRG level with the use of BPT flag 05 to capture the relevant activity within the associated HRGs.
A26: For each of the HRGs there will be a conventional tariff applicable to the HRG. The conventional tariff however is to reimburse the costs of the activity unrelated to the BPT within the same HRG. The BPT is the mandatory tariff for the activity identified by the flag and is therefore not optional.
A27: The alteplase additional payment is only for payable spells with core HRG AA22A and AA22B and unbundled HRG XD07Z.
A28: Short stay emergency adjustment does not apply. Long stay payments and specialist top-ups apply where appropriate.
A29: SUS PbR will apply the base tariff to spells with a BPT flag 05 in the HRGs below. SUS PbR will only apply the additional payment for alteplase and not those for the other two characteristics of best practice. See guidance.
B31: Best practice tariff additional payments | C31: Additional payments (£) | J31: Calculation Method
B32: Rapid brain imaging | C32: ='02_Stroke'!C19 -> 399 | J32: PbR Methodology
B33: Direct admission and 90% of spell spent in an acute stroke unit | C33: ='02_Stroke'!C20 -> 1026 | J33: PbR Methodology
B34: Alteplase | C34: ='02_Stroke'!C21 -> 828 | J34: PbR Methodology
A36: HRG code | B36: HRG name | C36: Base tariff (£) | D36: Best practice tariff (£) (excl. alteplase) | E36: BPT flag (see BPT Flag sheet)
A37: AA22A | B37: Non-Transient Stroke or Cerebrovascular Accident, Nervous System Infections or Encephalopathy, with CC | C37: ='02_Stroke'!AS29 -> 2619.854537 | D37: ='02_Stroke'!AQ29 -> 4044.854537 | E37: BP05 | J37: =VLOOKUP(A37,'02_Stroke'!$AB$29:$AD$32,3,FALSE) -> PbR Methodology
A38: AA22B | B38: Non-Transient Stroke or Cerebrovascular Accident, Nervous System Infections or Encephalopathy, without CC | C38: ='02_Stroke'!AS30 -> 1112.360139 | D38: ='02_Stroke'!AQ30 -> 2537.360139 | J38: =VLOOKUP(A38,'02_Stroke'!$AB$29:$AD$32,3,FALSE) -> PbR Methodology
A39: AA23A | B39: Haemorrhagic Cerebrovascular Disorders with CC | C39: ='02_Stroke'!AS31 -> 2825.781968 | D39: ='02_Stroke'!AQ31 -> 4250.781968 | J39: =VLOOKUP(A39,'02_Stroke'!$AB$29:$AD$32,3,FALSE) -> PbR Methodology
A40: AA23B | B40: Haemorrhagic Cerebrovascular Disorders without CC | C40: ='02_Stroke'!AS32 -> 982.1154396 | D40: ='02_Stroke'!AQ32 -> 2407.11544 | J40: =VLOOKUP(A40,'02_Stroke'!$AB$29:$AD$32,3,FALSE) -> PbR Methodology
A43: 2 | B43: Adult renal dialysis
A45: 2a | B45: Haemodialysis
A47: The tariff prices apply at the HRG level.
A48: The BPTs are set to encourage the adoption of clinical best practice with respect to vascular access (see PbR guidance for further info).
A49: Please note that the mandatory tariffs for Peritoneal Dialysis are not classed as BPTs, however they are included in this sheet for ease of reference.
A50: The HRGs are generated by data items from the National Renal Dataset, listed in the guidance. Organisations need to establish local reporting processes to support payment of the tariffs.
A52: HRG code | B52: HRG name | C52: Best practice tariff (£)
A53: Hospital | C53: (per session) | J53: Calculation Method
A54: LD01A | B54: Hospital Haemodialysis or Filtration, with Access via Haemodialysis Catheter, 19 years and over | C54: ='05_Renal'!AN34 -> 117 | J54: =VLOOKUP(A54,'05_Renal'!$Y$34:$AA$47,3,FALSE) -> Rollover
A55: LD02A | B55: Hospital Haemodialysis or Filtration, with Access via Arteriovenous Fistula or Graft, 19 years and over | C55: ='05_Renal'!AN35 -> 147 | J55: =VLOOKUP(A55,'05_Renal'!$Y$34:$AA$47,3,FALSE) -> Rollover
A56: LD03A | B56: Hospital Haemodialysis or Filtration, with Access via Haemodialysis Catheter, with Blood-borne Virus, 19 years and over | C56: ='05_Renal'!AN36 -> 140 | J56: =VLOOKUP(A56,'05_Renal'!$Y$34:$AA$47,3,FALSE) -> Rollover
A57: LD04A | B57: Hospital Haemodialysis or Filtration, with Access via Arteriovenous Fistula or Graft, with Blood-borne Virus, 19 years and over | C57: ='05_Renal'!AN37 -> 175 | J57: =VLOOKUP(A57,'05_Renal'!$Y$34:$AA$47,3,FALSE) -> Rollover
A58: Satellite | C58: (per session)
A59: LD05A | B59: Satellite Haemodialysis or Filtration, with Access via Haemodialysis Catheter, 19 years and over | C59: ='05_Renal'!AN38 -> 117 | J59: =VLOOKUP(A59,'05_Renal'!$Y$34:$AA$47,3,FALSE) -> Rollover
A60: LD06A | B60: Satellite Haemodialysis or Filtration, with Access via Arteriovenous Fistula or Graft, 19 years and over | C60: ='05_Renal'!AN39 -> 147 | J60: =VLOOKUP(A60,'05_Renal'!$Y$34:$AA$47,3,FALSE) -> Rollover
A61: LD07A | B61: Satellite Haemodialysis or Filtration, with Access via Haemodialysis Catheter, with Blood-borne Virus, 19 years and over | C61: ='05_Renal'!AN40 -> 140 | J61: =VLOOKUP(A61,'05_Renal'!$Y$34:$AA$47,3,FALSE) -> Rollover
A62: LD08A | B62: Satellite Haemodialysis or Filtration, with Access via Arteriovenous Fistula or Graft, with Blood-borne Virus, 19 years and over | C62: ='05_Renal'!AN41 -> 175 | J62: =VLOOKUP(A62,'05_Renal'!$Y$34:$AA$47,3,FALSE) -> Rollover
A63: Home | C63: (per week)
A64: LD09A | B64: Home Haemodialysis or Filtration, with Access via Haemodialysis Catheter, 19 years and over | C64: ='05_Renal'!AN42 -> 440 | J64: =VLOOKUP(A64,'05_Renal'!$Y$34:$AA$47,3,FALSE) -> Rollover
A65: LD10A | B65: Home Haemodialysis or Filtration, with Access via Arteriovenous Fistula or Graft, 19 years and over | C65: ='05_Renal'!AN43 -> 440 | J65: =VLOOKUP(A65,'05_Renal'!$Y$34:$AA$47,3,FALSE) -> Rollover
A67: 2b | B67: Peritoneal dialysis
A69: HRG code | B69: HRG name | C69: Best practice tariff (£) (per day)
A70: LD11A | B70: Continuous Ambulatory Peritoneal Dialysis, 19 years and over | C70: ='05_Renal'!AN44 -> 44 | J70: =VLOOKUP(A70,'05_Renal'!$Y$34:$AA$47,3,FALSE) -> Rollover
A71: LD12A | B71: Automated Peritoneal Dialysis, 19 years and over | C71: ='05_Renal'!AN45 -> 50 | J71: =VLOOKUP(A71,'05_Renal'!$Y$34:$AA$47,3,FALSE) -> Rollover
A72: LD13A | B72: Assisted Automated Peritoneal Dialysis, 19 years and over | C72: ='05_Renal'!AN46 -> 82 | J72: =VLOOKUP(A72,'05_Renal'!$Y$34:$AA$47,3,FALSE) -> Rollover
A73: LD13B | B73: Assisted Automated Peritoneal Dialysis, 18 years and under | C73: ='05_Renal'!AN47 -> 82 | J73: =VLOOKUP(A73,'05_Renal'!$Y$34:$AA$47,3,FALSE) -> Rollover
A76: 3 | B76: Day cases
A78: The BPT for each procedure is made up of a pair of prices: one applied to day case admissions, the other to ordinary elective admissions.
A79: For some procedures the BPT will apply to the HRG and for others it will apply at the sub-HRG level with the use of a BPT flag to capture the relevant activity within the associated HRGs.
A80: Where the BPT applies at the sub-HRG level, with the use of a BPT flag, there will be a conventional tariff applicable to the HRG. The conventional tariff however is to reimburse the costs of the activity unrelated to the BPT within the same HRG. The BPT is the mandatory tariff for the activity identified by the flag and is therefore not optional.
A81: Elective long stay payments and specialist top-ups apply where appropriate.
A82: SUS PbR will automate payment by: (a) generating the relevant flag, where required (b) applying relevant prices either to the BPT flag within relevant HRGs or at the HRG as appropriate.
G83: BPT applies to:
A84: HRG code | B84: HRG name | C84: Surgical sub speciality | D84: Procedure | E84: Best practice day case tariff (£) | F84: Ordinary elective tariff (£) | G84: HRG or sub-HRG level | H84: BPT Flag (see BPT Flag sheet) | J84: Calculation Method
A85: JA20B | B85: Unilateral Major Breast Procedures with Intermediate CC | C85: Breast Surgery | D85: Excision* | E85: ='08_DayCase'!BE215 -> 1761 | F85: ='08_DayCase'!BG215 -> 1461 | G85: sub-HRG | H85: BP29 | J85: =VLOOKUP($A85,'08_DayCase'!$AP$215:$BG$217,3,FALSE) -> PbR Methodology
A86: JA20C | B86: Unilateral Major Breast Procedures without CC | E86: ='08_DayCase'!BE216 -> 1709 | F86: ='08_DayCase'!BG216 -> 1409 | J86: =VLOOKUP($A86,'08_DayCase'!$AP$215:$BG$217,3,FALSE) -> PbR Methodology
A87: JA24C | B87: Unilateral Intermediate Breast Procedures without CC | E87: ='08_DayCase'!BE217 -> 1165.828392 | F87: ='08_DayCase'!BG217 -> 865.8283922 | J87: =VLOOKUP($A87,'08_DayCase'!$AP$215:$BG$217,3,FALSE) -> PbR Methodology
A88: JA20B | B88: Unilateral Major Breast Procedures with Intermediate CC | D88: Mastectomy | E88: ='08_DayCase'!BE238 -> 2052.438165 | F88: ='08_DayCase'!BG238 -> 1752.438165 | G88: sub-HRG | H88: BP28 | J88: =VLOOKUP($A88,'08_DayCase'!$AP$238:$BG$240,3,FALSE) -> PbR Methodology
A89: JA20C | B89: Unilateral Major Breast Procedures without CC | E89: ='08_DayCase'!BE239 -> 1862.968387 | F89: ='08_DayCase'!BG239 -> 1562.968387 | J89: =VLOOKUP($A89,'08_DayCase'!$AP$238:$BG$240,3,FALSE) -> PbR Methodology
A90: JA26Z | B90: Major Breast Procedures with Lymph Node Surgery | E90: ='08_DayCase'!BE240 -> 2762.269915 | F90: ='08_DayCase'!BG240 -> 2462.269915 | J90: =VLOOKUP($A90,'08_DayCase'!$AP$238:$BG$240,3,FALSE) -> PbR Methodology
A91: JA24B | B91: Unilateral Intermediate Breast Procedures with Intermediate CC | D91: Sentinel lymph node biopsy | E91: ='08_DayCase'!BE261 -> 1187 | F91: ='08_DayCase'!BG261 -> 887 | G91: sub-HRG | H91: BP31 | J91: =VLOOKUP($A91,'08_DayCase'!$AP$261:$BG$262,3,FALSE) -> PbR Methodology
A92: JA24C | B92: Unilateral Intermediate Breast Procedures without CC | E92: ='08_DayCase'!BE262 -> 1099 | F92: ='08_DayCase'!BG262 -> 799 | J92: =VLOOKUP($A92,'08_DayCase'!$AP$261:$BG$262,3,FALSE) -> PbR Methodology
A93: JA20B | B93: Unilateral Major Breast Procedures with Intermediate CC | D93: Axillary clearance | E93: ='08_DayCase'!BE282 -> 1982 | F93: ='08_DayCase'!BG282 -> 1682 | G93: sub-HRG | H93: BP32 | J93: =VLOOKUP($A93,'08_DayCase'!$AP$282:$BG$283,3,FALSE) -> PbR Methodology
A94: JA20C | B94: Unilateral Major Breast Procedures without CC | E94: ='08_DayCase'!BE283 -> 1820 | F94: ='08_DayCase'!BG283 -> 1520 | J94: =VLOOKUP($A94,'08_DayCase'!$AP$282:$BG$283,3,FALSE) -> PbR Methodology
A95: LB51Z | B95: Vaginal Tape Operations for Urinary Incontinence | C95: Gynaecology | D95: Operations to manage female incontinence | E95: =VLOOKUP($A95,'08_DayCase'!$AP:$BG,16,FALSE) -> 1092.061263 | F95: =VLOOKUP($A95,'08_DayCase'!$AP:$BG,18,FALSE) -> 892.0612628 | G95: HRG | H95: n/a | J95: =VLOOKUP(A95,'08_DayCase'!$AP:$AR,3,FALSE) -> PbR Methodology
A96: LB25B | B96: Transurethral Prostate Resection Procedures with Intermediate CC | C96: Urology | D96: Endoscopic resection of prostate (TUR) | E96: ='08_DayCase'!BE77 -> 1875.064872 | F96: ='08_DayCase'!BG77 -> 1675.064872 | G96: HRG | H96: n/a | J96: =VLOOKUP(A96,'08_DayCase'!$AP:$AR,3,FALSE) -> PbR Methodology
A97: LB25C | B97: Transurethral Prostate Resection Procedures without CC | E97: ='08_DayCase'!BE78 -> 1790.462497 | F97: ='08_DayCase'!BG78 -> 1590.462497 | J97: =VLOOKUP(A97,'08_DayCase'!$AP:$AR,3,FALSE) -> PbR Methodology
A98: LB25C | B98: Transurethral Prostate Resection Procedures without CC | D98: Resection of prostate by laser | E98: =E97 -> 1790.462497 | F98: 1590.462497 | G98: HRG | H98: n/a | J98: =VLOOKUP(A98,'08_DayCase'!$AP:$AR,3,FALSE) -> PbR Methodology
A99: FZ18B | B99: Inguinal, Umbilical or Femoral Hernia Procedures, 19 years and over with Intermediate CC | C99: General Surgery | D99: Repair of a range of hernias | E99: =VLOOKUP($A99,'08_DayCase'!$AP:$BG,16,FALSE) -> 1230 | F99: =VLOOKUP($A99,'08_DayCase'!$AP:$BG,18,FALSE) -> 930 | G99: HRG | H99: n/a | J99: =VLOOKUP(A99,'08_DayCase'!$AP:$AR,3,FALSE) -> PbR Methodology
A100: FZ18C | B100: Inguinal, Umbilical or Femoral Hernia Procedures, 19 years and over without CC | E100: =VLOOKUP($A100,'08_DayCase'!$AP:$BG,16,FALSE) -> 1209 | F100: =VLOOKUP($A100,'08_DayCase'!$AP:$BG,18,FALSE) -> 909 | J100: =VLOOKUP(A100,'08_DayCase'!$AP:$AR,3,FALSE) -> PbR Methodology
A101: GA10D | B101: Laparoscopic Cholecystectomy, 19 years and over, with length of stay 1 day or more, without CC | D101: Cholecystectomy (gall bladder removal) | E101: ='03_Chole'!$AR$27 -> - | F101: ='03_Chole'!$AT$27 -> 1365.279678 | G101: HRG | H101: n/a | J101: =VLOOKUP(A101,'03_Chole'!$AC$26:$AE$27,3,FALSE) -> PbR Methodology
A102: GA10E | B102: Laparoscopic Cholecystectomy, 19 years and over, with length of stay 0 days, without CC | E102: ='03_Chole'!$AR$26 -> 1690.279678 | F102: ='03_Chole'!$AT$26 -> 1365.279678 | J102: =VLOOKUP(A102,'03_Chole'!$AC$26:$AE$27,3,FALSE) -> PbR Methodology
A103: HB62C | B103: Intermediate Shoulder and Upper Arm Procedures for Non-Trauma, without CC | C103: Orthopaedic Surgery | D103: Therapeutic arthroscopy of shoulder | E103: =VLOOKUP($A103,'08_DayCase'!$AP:$BG,16,FALSE) -> 2343.759449 | F103: =VLOOKUP($A103,'08_DayCase'!$AP:$BG,18,FALSE) -> 2146.759449 | G103: sub-HRG | H103: BP15 | J103: =VLOOKUP(A103,'08_DayCase'!$AP:$AR,3,FALSE) -> Rollover
A104: HB34E | B104: Minor Foot Procedures for Non-Trauma, Category 2, 19 years and over, without CC | D104: Bunion operations with or without internal fixation and soft tissue correction | E104: =VLOOKUP($A104,'08_DayCase'!$AP:$BG,16,FALSE) -> 1093.754409 | F104: =VLOOKUP($A104,'08_DayCase'!$AP:$BG,18,FALSE) -> 896.7544095 | G104: sub-HRG | H104: BP16 | J104: =VLOOKUP(A104,'08_DayCase'!$AP:$AR,3,FALSE) -> Rollover
A105: HB35B | B105: Minor Foot Procedures for Non-Trauma, Category 1, with CC | E105: =VLOOKUP($A105,'08_DayCase'!$AP:$BG,16,FALSE) -> 1114.770576 | F105: =VLOOKUP($A105,'08_DayCase'!$AP:$BG,18,FALSE) -> 917.7705761 | J105: =VLOOKUP(A105,'08_DayCase'!$AP:$AR,3,FALSE) -> Rollover
A106: HB35C | B106: Minor Foot Procedures for Non-Trauma, Category 1, without CC | E106: =VLOOKUP($A106,'08_DayCase'!$AP:$BG,16,FALSE) -> 752.0132657 | F106: =VLOOKUP($A106,'08_DayCase'!$AP:$BG,18,FALSE) -> 555.0132657 | J106: =VLOOKUP(A106,'08_DayCase'!$AP:$AR,3,FALSE) -> Rollover
A107: HB53Z | B107: Intermediate Hand Procedures for Non-Trauma, Category 2 | D107: Dupuytren's fasciectomy | E107: =VLOOKUP($A107,'08_DayCase'!$AP:$BG,16,FALSE) -> 2239.592362 | F107: =VLOOKUP($A107,'08_DayCase'!$AP:$BG,18,FALSE) -> 2042.592362 | G107: sub-HRG | H107: BP17 | J107: =VLOOKUP(A107,'08_DayCase'!$AP:$AR,3,FALSE) -> Rollover
A108: CZ05T | B108: Tonsillectomy, 18 years and under without CC | C108: Ear, nose and throat (ENT) | D108: Tonsillectomy | E108: =VLOOKUP($A108,'08_DayCase'!$AP:$BG,16,FALSE) -> 1063.769232 | F108: =VLOOKUP($A108,'08_DayCase'!$AP:$BG,18,FALSE) -> 763.7692318 | G108: sub-HRG | H108: BP33 | J108: =VLOOKUP(A108,'08_DayCase'!$AP:$AR,3,FALSE) -> PbR Methodology
A109: CZ05V | B109: Tonsillectomy, 19 years and over with CC | E109: =VLOOKUP($A109,'08_DayCase'!$AP:$BG,16,FALSE) -> 1045 | F109: =VLOOKUP($A109,'08_DayCase'!$AP:$BG,18,FALSE) -> 745 | J109: =VLOOKUP(A109,'08_DayCase'!$AP:$AR,3,FALSE) -> PbR Methodology
A110: CZ05Y | B110: Tonsillectomy, 19 years and over without CC | E110: =VLOOKUP($A110,'08_DayCase'!$AP:$BG,16,FALSE) -> 1019 | F110: =VLOOKUP($A110,'08_DayCase'!$AP:$BG,18,FALSE) -> 719 | J110: =VLOOKUP(A110,'08_DayCase'!$AP:$AR,3,FALSE) -> PbR Methodology
A111: CZ13V | B111: Intermediate Nose Procedures, 19 years and over with CC | D111: Septoplasty | E111: =VLOOKUP($A111,'08_DayCase'!$AP:$BG,16,FALSE) -> 1164.359963 | F111: =VLOOKUP($A111,'08_DayCase'!$AP:$BG,18,FALSE) -> 964.3599625 | G111: sub-HRG | H111: BP34 | J111: =VLOOKUP(A111,'08_DayCase'!$AP:$AR,3,FALSE) -> PbR Methodology
A112: CZ13Y | B112: Intermediate Nose Procedures, 19 years and over without CC | E112: =VLOOKUP($A112,'08_DayCase'!$AP:$BG,16,FALSE) -> 1114.509689 | F112: =VLOOKUP($A112,'08_DayCase'!$AP:$BG,18,FALSE) -> 914.5096889 | J112: =VLOOKUP(A112,'08_DayCase'!$AP:$AR,3,FALSE) -> PbR Methodology
A113: CZ10U | B113: Major Ear Procedures, 18 years and under | D113: Tympanoplasty** | E113: =VLOOKUP($A113,'08_DayCase'!$AP:$BG,16,FALSE) -> 1891 | F113: =VLOOKUP($A113,'08_DayCase'!$AP:$BG,18,FALSE) -> 1591 | G113: HRG | H113: n/a | J113: =VLOOKUP(A113,'08_DayCase'!$AP:$AR,3,FALSE) -> PbR Methodology
A114: CZ10V | B114: Major Ear Procedures, 19 years and over with CC | E114: =VLOOKUP($A114,'08_DayCase'!$AP:$BG,16,FALSE) -> 1933 | F114: =VLOOKUP($A114,'08_DayCase'!$AP:$BG,18,FALSE) -> 1633 | J114: =VLOOKUP(A114,'08_DayCase'!$AP:$AR,3,FALSE) -> PbR Methodology
A115: CZ10Y | B115: Major Ear Procedures, 19 years and over without CC | E115: =VLOOKUP($A115,'08_DayCase'!$AP:$BG,16,FALSE) -> 1909 | F115: =VLOOKUP($A115,'08_DayCase'!$AP:$BG,18,FALSE) -> 1609 | J115: =VLOOKUP(A115,'08_DayCase'!$AP:$AR,3,FALSE) -> PbR Methodology
A117: - A price is listed for GA10E for an ordinary elective admission even though the HRG has a zero length of stay because a day case has to be planned as such.
A118: * Excision of breast includes quadrantectomy, partial excision, any other excision.
A119: ** Tympanoplasty includes myringoplasty, mastoidectomy, ossiculoplasty and stapedectomy.
A120: *** These HRGs are now considered within scope of the BPT as a result of the move to the 2011/12 Reference Cost design. There has not been sufficient time to calculate draft prices for this engagement, but we intend to propose prices as part of the statutory consultation notice.
A122: 4 | B122: Diabetic ketoacidosis and hypoglycaemia
A124: The BPT will apply at the sub-HRG level to emergency admissions.
A125: SUS PbR will automate payment of the base tariff to activity eligible for the BPT, with a top-up for best practice to be paid locally subject to the relevant criteria being met.
A126: Activity outside of the scope of the BPT will be paid the conventional tariff in the main tariff spreadsheet. The conventional tariff price for this activity is in line with the tariff for best practice.
A128: HRG code | B128: HRG name | C128: Base tariff (£) | D128: Best practice tariff (£) | E128: HRG or sub-HRG level | F128: BPT Flag (see BPT Flag sheet) | J128: Calculation Method
A129: KB01A | B129: Diabetes with Hypoglycaemic Disorders, 70 years and over | C129: ='00_Other'!BF29 -> 1753 | D129: ='00_Other'!BD29 -> 2062 | E129: sub-HRG | F129: BP52 | J129: =VLOOKUP(A129,'00_Other'!$AK$29:$AM$36,3,FALSE) -> PbR Methodology
A130: KB01B | B130: Diabetes with Hypoglycaemic Disorders, 69 years and under | C130: ='00_Other'!BF30 -> 1132 | D130: ='00_Other'!BD30 -> 1332 | J130: =VLOOKUP(A130,'00_Other'!$AK$29:$AM$36,3,FALSE) -> PbR Methodology
A131: KB02A | B131: Diabetes with Hyperglycaemic Disorders, 70 years and over with Major CC | C131: ='00_Other'!BF31 -> 2581 | D131: ='00_Other'!BD31 -> 3036 | J131: =VLOOKUP(A131,'00_Other'!$AK$29:$AM$36,3,FALSE) -> PbR Methodology
A132: KB02B | B132: Diabetes with Hyperglycaemic Disorders, 70 years and over with Intermediate CC | C132: ='00_Other'!BF32 -> 1583 | D132: ='00_Other'!BD32 -> 1862 | J132: =VLOOKUP(A132,'00_Other'!$AK$29:$AM$36,3,FALSE) -> PbR Methodology
A133: KB02C | B133: Diabetes with Hyperglycaemic Disorders, 70 years and over without CC | C133: ='00_Other'!BF33 -> 1129 | D133: ='00_Other'!BD33 -> 1329 | J133: =VLOOKUP(A133,'00_Other'!$AK$29:$AM$36,3,FALSE) -> PbR Methodology
A134: KB02D | B134: Diabetes with Hyperglycaemic Disorders, 69 years and under with Major CC | C134: ='00_Other'!BF34 -> 1885 | D134: ='00_Other'!BD34 -> 2217 | J134: =VLOOKUP(A134,'00_Other'!$AK$29:$AM$36,3,FALSE) -> PbR Methodology
A135: KB02E | B135: Diabetes with Hyperglycaemic Disorders, 69 years and under with Intermediate CC | C135: ='00_Other'!BF35 -> 1016 | D135: ='00_Other'!BD35 -> 1196 | J135: =VLOOKUP(A135,'00_Other'!$AK$29:$AM$36,3,FALSE) -> PbR Methodology
A136: KB02F | B136: Diabetes with Hyperglycaemic Disorders, 69 years and under without CC | C136: ='00_Other'!BF36 -> 665 | D136: ='00_Other'!BD36 -> 783 | J136: =VLOOKUP(A136,'00_Other'!$AK$29:$AM$36,3,FALSE) -> PbR Methodology
A139: 5 | B139: Early inflammatory arthritis
A141: Each of the BPT prices is an annual payment, applicable to all newly referred patients who are seen in adult rheumatology services.
A142: There is no discrete treatment function code for early inflammatory arthritis, therefore activity deemed eligible for the BPT should be excluded from the rheumatology TFC and paid for locally.
A144: Code | B144: HRG name | C144: Best practice tariff (£) | J144: Calculation Method
A145: n/a | B145: Diagnosis and discharge | C145: ='00_Other'!BD45 -> 292 | J145: =VLOOKUP(B145,'00_Other'!$AL$45:$AM$47,2,FALSE) -> Rollover
A146: n/a | B146: DMARDS Therapy | C146: ='00_Other'!BD46 -> 925 | J146: =VLOOKUP(B146,'00_Other'!$AL$45:$AM$47,2,FALSE) -> Rollover
A147: n/a | B147: Biological Therapy * | C147: ='00_Other'!BD47 -> 950 | J147: =VLOOKUP(B147,'00_Other'!$AL$45:$AM$47,2,FALSE) -> Rollover
A149: * Excludes costs of biological drugs
A152: 6 | B152: Endoscopy procedures
A154: The BPT will apply at the HRG level to all daycase and elective activity.
A155: SUS PbR will automate payment of the best practice tariff to all activity eligible for the BPT. Where the criteria is not met then commissioners should recover monies to reduce the payment down to the non best practice tariff payment.
A157: HRG code | B157: HRG name | C157: Level 1 Best practice tariff (£) | D157: Level 2 Intermediate Best practice tariff (£) | E157: Level 3 Non-best practice tariff (£) | F157: HRG or sub-HRG level | G157: BPT Flag (see BPT Flag sheet) | J157: Calculation Method
A158: FZ24C | B158: Major Therapeutic Endoscopic Upper or Lower GI Tract Procedures, 19 years and over without CC | C158: ='00_Other'!BJ58 -> 571 | D158: ='00_Other'!BH58 -> 557 | E158: ='00_Other'!BF58 -> 543 | F158: HRG | G158: n/a | J158: =VLOOKUP(A158,'00_Other'!$AK$58:$AM$76,3,FALSE) -> PbR Methodology
A159: FZ51Z | B159: Diagnostic Colonoscopy, 19 years and over | C159: ='00_Other'!BJ63 -> 433 | D159: ='00_Other'!BH63 -> 422 | E159: ='00_Other'!BF63 -> 412 | J159: =VLOOKUP(A159,'00_Other'!$AK$58:$AM$76,3,FALSE) -> PbR Methodology
A160: FZ52Z | B160: Diagnostic Colonoscopy with Biopsy, 19 years and over | C160: ='00_Other'!BJ64 -> 465 | D160: ='00_Other'!BH64 -> 453 | E160: ='00_Other'!BF64 -> 441 | J160: =VLOOKUP(A160,'00_Other'!$AK$58:$AM$76,3,FALSE) -> PbR Methodology
A161: FZ53Z | B161: Therapeutic Colonoscopy, 19 years and over | C161: ='00_Other'!BJ65 -> 469 | D161: ='00_Other'!BH65 -> 458 | E161: ='00_Other'!BF65 -> 446 | J161: =VLOOKUP(A161,'00_Other'!$AK$58:$AM$76,3,FALSE) -> PbR Methodology
A162: FZ54Z | B162: Diagnostic Flexible Sigmoidoscopy, 19 years and over | C162: ='00_Other'!BJ66 -> 337 | D162: ='00_Other'!BH66 -> 328 | E162: ='00_Other'!BF66 -> 320 | J162: =VLOOKUP(A162,'00_Other'!$AK$58:$AM$76,3,FALSE) -> PbR Methodology
A163: FZ55Z | B163: Diagnostic Flexible Sigmoidoscopy with Biopsy, 19 years and over | C163: ='00_Other'!BJ67 -> 384 | D163: ='00_Other'!BH67 -> 374 | E163: ='00_Other'!BF67 -> 365 | J163: =VLOOKUP(A163,'00_Other'!$AK$58:$AM$76,3,FALSE) -> PbR Methodology
A164: FZ56Z | B164: Therapeutic Flexible Sigmoidoscopy, 19 years and over | C164: ='00_Other'!BJ68 -> 423 | D164: ='00_Other'!BH68 -> 413 | E164: ='00_Other'!BF68 -> 402 | J164: =VLOOKUP(A164,'00_Other'!$AK$58:$AM$76,3,FALSE) -> PbR Methodology
A165: FZ60Z | B165: Diagnostic Endoscopic Upper GI Tract Procedures, 19 years and over | C165: ='00_Other'!BJ69 -> 350 | D165: ='00_Other'!BH69 -> 342 | E165: ='00_Other'!BF69 -> 333 | J165: =VLOOKUP(A165,'00_Other'!$AK$58:$AM$76,3,FALSE) -> PbR Methodology
A166: FZ61Z | B166: Diagnostic Endoscopic Upper GI Tract Procedures with Biopsy, 19 years and over | C166: ='00_Other'!BJ70 -> 368 | D166: ='00_Other'!BH70 -> 359 | E166: ='00_Other'!BF70 -> 349 | J166: =VLOOKUP(A166,'00_Other'!$AK$58:$AM$76,3,FALSE) -> PbR Methodology
A167: FZ63Z | B167: Combined Upper and Lower GI Tract Diagnostic Endoscopic Procedures | C167: ='00_Other'!BJ71 -> 503 | D167: ='00_Other'!BH71 -> 490 | E167: ='00_Other'!BF71 -> 478 | J167: =VLOOKUP(A167,'00_Other'!$AK$58:$AM$76,3,FALSE) -> PbR Methodology
A168: FZ65Z | B168: Combined Upper and Lower GI Tract Therapeutic Endoscopic Procedures | C168: ='00_Other'!BJ73 -> 524 | D168: ='00_Other'!BH73 -> 511 | E168: ='00_Other'!BF73 -> 498 | J168: =VLOOKUP(A168,'00_Other'!$AK$58:$AM$76,3,FALSE) -> PbR Methodology
A169: FZ64A | B169: Combined Upper and Lower GI Tract Diagnostic Endoscopic Procedures with Biopsy, 19 years and over | C169: ='00_Other'!BJ74 -> 498 | D169: ='00_Other'!BH74 -> 486 | E169: ='00_Other'!BF74 -> 473 | J169: =VLOOKUP(A169,'00_Other'!$AK$58:$AM$76,3,FALSE) -> PbR Methodology
A170: FZ70Z | B170: Therapeutic Endoscopic Upper GI Tract Procedures, 19 years and over | C170: ='00_Other'!BJ75 -> 441 | D170: ='00_Other'!BH75 -> 430 | E170: ='00_Other'!BF75 -> 419 | J170: =VLOOKUP(A170,'00_Other'!$AK$58:$AM$76,3,FALSE) -> PbR Methodology
A171: FZ88A | B171: Insertion of Gastrostomy Tube, 19 years and over | C171: ='00_Other'!BJ76 -> 878 | D171: ='00_Other'!BH76 -> 856 | E171: ='00_Other'!BF76 -> 834 | J171: =VLOOKUP(A171,'00_Other'!$AK$58:$AM$76,3,FALSE) -> PbR Methodology
A174: 7 | B174: Fragility hip fracture
A176: The BPT is made up of two components: a base tariff and a conditional payment. The base tariff is payable to all activity irrespective of whether the characteristics of best practice were met. The conditional payment is payable if all seven characteristics are achieved (see guidance).
A177: The base tariff and the additional payment apply at the sub-HRG level with the use of BPT flag 01 to capture the relevant activity within the associated HRGs.
A178: For each of the HRGs there will be a conventional tariff applicable to the HRG. The conventional tariff however is to reimburse the costs of the activity unrelated to the BPT within the same HRG. The BPT is the mandatory tariff for the activity identified by the flag and is therefore not optional.
A179: Short stay emergency adjustment does not apply. Long stay payments and specialist top-ups do apply where appropriate.
A180: SUS PbR will apply the base tariff to spells with a BPT flag 01 in the HRGs below but it will not apply the additional payment. See guidance.
B182: Best practice tariff additional payment | C182: Additional payment (£) | J182: Calculation Method
B183: Compliance with all 7 best practice criteria | C183: ='201415_BPTs'!C184 -> 1335 | J183: ='01_FHF'!$AF$22 -> Rollover
A185: HRG code | B185: HRG name | C185: Base tariff (£) | D185: Best practice tariff (£) | E185: BPT Flag (see BPT Flag sheet)
A186: HA11A | B186: Major Hip Procedures for Trauma, Category 2, with Major CC | C186: ='01_FHF'!AU22 -> 6902.016606 | D186: ='01_FHF'!AS22 -> 8237.016606 | E186: BP01 | J186: =VLOOKUP(A186,'01_FHF'!$AD$22:$AF$40,3,FALSE) -> Rollover
A187: HA11B | B187: Major Hip Procedures for Trauma, Category 2, with Intermediate CC | C187: ='01_FHF'!AU23 -> 6146.980306 | D187: ='01_FHF'!AS23 -> 7481.980306 | J187: =VLOOKUP(A187,'01_FHF'!$AD$22:$AF$40,3,FALSE) -> Rollover
A188: HA11C | B188: Major Hip Procedures for Trauma, Category 2, without CC | C188: ='01_FHF'!AU24 -> 5022.632774 | D188: ='01_FHF'!AS24 -> 6357.632774 | J188: =VLOOKUP(A188,'01_FHF'!$AD$22:$AF$40,3,FALSE) -> Rollover
A189: HA12B | B189: Major Hip Procedures for Trauma, Category 1, with CC | C189: ='01_FHF'!AU25 -> 6683.165505 | D189: ='01_FHF'!AS25 -> 8018.165505 | J189: =VLOOKUP(A189,'01_FHF'!$AD$22:$AF$40,3,FALSE) -> Rollover
A190: HA12C | B190: Major Hip Procedures for Trauma, Category 1, without CC | C190: ='01_FHF'!AU26 -> 4775.513405 | D190: ='01_FHF'!AS26 -> 6110.513405 | J190: =VLOOKUP(A190,'01_FHF'!$AD$22:$AF$40,3,FALSE) -> Rollover
A191: HA13A | B191: Intermediate Hip Procedures for Trauma, with Major CC | C191: ='01_FHF'!AU27 -> 5409.269719 | D191: ='01_FHF'!AS27 -> 6744.269719 | J191: =VLOOKUP(A191,'01_FHF'!$AD$22:$AF$40,3,FALSE) -> Rollover
A192: HA13B | B192: Intermediate Hip Procedures for Trauma, with Intermediate CC | C192: ='01_FHF'!AU28 -> 4148.140248 | D192: ='01_FHF'!AS28 -> 5483.140248 | J192: =VLOOKUP(A192,'01_FHF'!$AD$22:$AF$40,3,FALSE) -> Rollover
A193: HA13C | B193: Intermediate Hip Procedures for Trauma, without CC | C193: ='01_FHF'!AU29 -> 4147.228369 | D193: ='01_FHF'!AS29 -> 5482.228369 | J193: =VLOOKUP(A193,'01_FHF'!$AD$22:$AF$40,3,FALSE) -> Rollover
A194: HA14A | B194: Minor Hip Procedures for Trauma, with Major CC | C194: ='01_FHF'!AU30 -> 1515.543876 | D194: ='01_FHF'!AS30 -> 2850.543876 | J194: =VLOOKUP(A194,'01_FHF'!$AD$22:$AF$40,3,FALSE) -> Rollover
A195: HA14B | B195: Minor Hip Procedures for Trauma, with Intermediate CC | C195: ='01_FHF'!AU31 -> 959.2973272 | D195: ='01_FHF'!AS31 -> 2294.297327 | J195: =VLOOKUP(A195,'01_FHF'!$AD$22:$AF$40,3,FALSE) -> Rollover
A196: HA14C | B196: Minor Hip Procedures for Trauma, without CC | C196: ='01_FHF'!AU32 -> 390.2844639 | D196: ='01_FHF'!AS32 -> 1725.284464 | J196: =VLOOKUP(A196,'01_FHF'!$AD$22:$AF$40,3,FALSE) -> Rollover
A197: VA11A | B197: Multiple Trauma Diagnoses score <=23, with Interventions score 1-8 | C197: ='01_FHF'!AU33 -> 554.956084 | D197: ='01_FHF'!AS33 -> 1889.956084 | J197: =VLOOKUP(A197,'01_FHF'!$AD$22:$AF$40,3,FALSE) -> PbR Methodology
A198: VA11B | B198: Multiple Trauma Diagnoses score 24-32, with Interventions score 1-8 | C198: ='01_FHF'!AU34 -> 1169.43716 | D198: ='01_FHF'!AS34 -> 2504.43716 | J198: =VLOOKUP(A198,'01_FHF'!$AD$22:$AF$40,3,FALSE) -> PbR Methodology
A199: VA11C | B199: Multiple Trauma Diagnoses score 33-50, with Interventions score 1-8 | C199: ='01_FHF'!AU35 -> 2620.015439 | D199: ='01_FHF'!AS35 -> 3955.015439 | J199: =VLOOKUP(A199,'01_FHF'!$AD$22:$AF$40,3,FALSE) -> PbR Methodology
A200: VA11D | B200: Multiple Trauma Diagnoses score >=51, with Interventions score 1-8 | C200: ='01_FHF'!AU36 -> 5775.755811 | D200: ='01_FHF'!AS36 -> 7110.755811 | J200: =VLOOKUP(A200,'01_FHF'!$AD$22:$AF$40,3,FALSE) -> PbR Methodology
A201: VA12A | B201: Multiple Trauma Diagnoses score <=23, with Interventions score 9-18 | C201: ='01_FHF'!AU37 -> 2462.503152 | D201: ='01_FHF'!AS37 -> 3797.503152 | J201: =VLOOKUP(A201,'01_FHF'!$AD$22:$AF$40,3,FALSE) -> PbR Methodology
A202: VA12B | B202: Multiple Trauma Diagnoses score 24-32, with Interventions score 9-18 | C202: ='01_FHF'!AU38 -> 3960.701425 | D202: ='01_FHF'!AS38 -> 5295.701425 | J202: =VLOOKUP(A202,'01_FHF'!$AD$22:$AF$40,3,FALSE) -> PbR Methodology
A203: VA12C | B203: Multiple Trauma Diagnoses score 33-50, with Interventions score 9-18 | C203: ='01_FHF'!AU39 -> 5291.313949 | D203: ='01_FHF'!AS39 -> 6626.313949 | J203: =VLOOKUP(A203,'01_FHF'!$AD$22:$AF$40,3,FALSE) -> PbR Methodology
A204: VA12D | B204: Multiple Trauma Diagnoses score >=51, with Interventions score 9-18 | C204: ='01_FHF'!AU40 -> 8349.067026 | D204: ='01_FHF'!AS40 -> 9684.067026 | J204: =VLOOKUP(A204,'01_FHF'!$AD$22:$AF$40,3,FALSE) -> PbR Methodology
A207: 8 | B207: Interventional radiology
A209: For abdominal EVAR and UFE, the BPT applies at the HRG level. For the other five procedures, the BPT applies at the sub-HRG level with the use of a BPT flag to capture the relevant activity within the associated HRGs.
A210: All IR BPTs apply only to elective (ordinary and daycase) admissions.
A211: Where the BPT applies at the sub-HRG level, with the use of a BPT flag, there will be a conventional tariff applicable to the HRG. The conventional tariff however is to reimburse the costs of the activity unrelated to the BPT within the same HRG. The BPT is the mandatory tariff for the activity identified by the flag and is therefore not optional.
A212: Elective long stay payments and specialist top-ups apply where appropriate.
A213: SUS PbR will automate payment by: (a) generating the relevant flag, where required (b) applying relevant prices either to the BPT flag within relevant HRGs or at the HRG as appropriate.
E214: BPT applies to:
A215: HRG code | B215: HRG name | C215: BPT name | D215: Best practice tariff (£) | E215: HRG or sub-HRG level | F215: BPT Flag (see BPT Flag sheet) | J215: Calculation Method
A216: RC12A | B216: Infrarenal or Aorto-Uni-Iliac Endovascular Stent Graft for Non-Ruptured Abdominal Aortic Aneurysm, One Branched Stent Graft | C216: Abdominal EVAR | D216: ='07_IR'!AH15 -> 6007 | E216: HRG | F216: n/a | J216: =VLOOKUP(A216,'07_IR'!$S:$U,3,FALSE) -> Rollover
A217: RC12B | B217: Infrarenal or Aorto-Uni-Iliac Endovascular Stent Graft for Non-Ruptured Abdominal Aortic Aneurysm, One Fenestrated Stent Graft | D217: ='07_IR'!AH16 -> 6007 | J217: =VLOOKUP(A217,'07_IR'!$S:$U,3,FALSE) -> Rollover
A218: RC12C | B218: Infrarenal or Aorto-Uni-Iliac Endovascular Stent Graft for Non-Ruptured Abdominal Aortic Aneurysm, One Stent Graft | D218: ='07_IR'!AH17 -> 6007 | J218: =VLOOKUP(A218,'07_IR'!$S:$U,3,FALSE) -> Rollover
A219: RC12D | B219: Infrarenal or Aorto-Uni-Iliac Endovascular Stent Graft for Non-Ruptured Abdominal Aortic Aneurysm, Two Stent Grafts | D219: ='07_IR'!AH18 -> 6007 | J219: =VLOOKUP(A219,'07_IR'!$S:$U,3,FALSE) -> Rollover
A220: RC12E | B220: Infrarenal or Aorto-Uni-Iliac Endovascular Stent Graft for Non-Ruptured Abdominal Aortic Aneurysm, Three or more Stent Grafts | D220: ='07_IR'!AH19 -> 6007 | J220: =VLOOKUP(A220,'07_IR'!$S:$U,3,FALSE) -> Rollover
A221: RC13A | B221: Other Endovascular Stent Graft for Non-Ruptured Abdominal Aortic Aneurysm, One Branched Stent Graft | D221: ='07_IR'!AH20 -> 6007 | J221: =VLOOKUP(A221,'07_IR'!$S:$U,3,FALSE) -> Rollover
A222: RC13B | B222: Other Endovascular Stent Graft for Non-Ruptured Abdominal Aortic Aneurysm, One Fenestrated Stent Graft | D222: ='07_IR'!AH21 -> 6007 | J222: =VLOOKUP(A222,'07_IR'!$S:$U,3,FALSE) -> Rollover
A223: RC13C | B223: Other Endovascular Stent Graft for Non-Ruptured Abdominal Aortic Aneurysm, One Stent Graft | D223: ='07_IR'!AH22 -> 6007 | J223: =VLOOKUP(A223,'07_IR'!$S:$U,3,FALSE) -> Rollover
A224: RC13D | B224: Other Endovascular Stent Graft for Non-Ruptured Abdominal Aortic Aneurysm, Two Stent Grafts | D224: ='07_IR'!AH23 -> 6007 | J224: =VLOOKUP(A224,'07_IR'!$S:$U,3,FALSE) -> Rollover
A225: RC13E | B225: Other Endovascular Stent Graft for Non-Ruptured Abdominal Aortic Aneurysm, Three or more Stent Grafts | D225: ='07_IR'!AH24 -> 6007 | J225: =VLOOKUP(A225,'07_IR'!$S:$U,3,FALSE) -> Rollover
A226: RC41Z | B226: Uterine Fibroid Embolisation | C226: UFE | D226: ='07_IR'!AH25 -> 2450 | E226: HRG | F226: n/a | J226: =VLOOKUP(A226,'07_IR'!$S:$U,3,FALSE) -> Rollover
A227: QZ01A | B227: Aortic or Abdominal Surgery, with CC | C227: Thoracic EVAR | D227: ='07_IR'!AH26 -> 7011.476751 | E227: sub-HRG | F227: BP23 | J227: =VLOOKUP(A227,'07_IR'!$S:$U,3,FALSE) -> Rollover
A228: QZ01B | B228: Aortic or Abdominal Surgery, without CC | D228: ='07_IR'!AH27 -> 5270.290243 | J228: =VLOOKUP(A228,'07_IR'!$S:$U,3,FALSE) -> Rollover
A229: QZ15B | B229: Therapeutic Endovascular Procedures with Intermediate CC | C229: Angioplasty and stenting of SFA or iliac artery for PAD | D229: ='07_IR'!AH28 -> 1729 | E229: sub-HRG | F229: BP24 | J229: =VLOOKUP(A229,'07_IR'!$S:$U,3,FALSE) -> Rollover
A230: QZ15C | B230: Therapeutic Endovascular Procedures without CC | D230: ='07_IR'!AH29 -> 1337 | J230: =VLOOKUP(A230,'07_IR'!$S:$U,3,FALSE) -> Rollover
A231: RC14Z | B231: Major Vascular Interventional Radiology Procedures | C231: Angioplasty or stenting for diabetic foot disease | D231: ='07_IR'!AH30 -> 1871 | E231: HRG | F231: n/a | J231: =VLOOKUP(A231,'07_IR'!$S:$U,3,FALSE) -> Rollover
A232: QZ15B | B232: Therapeutic Endovascular Procedures with Intermediate CC | D232: ='07_IR'!AH31 -> 1954 | E232: sub-HRG | F232: BP25 | J232: =VLOOKUP(A232,'07_IR'!$S:$U,3,FALSE) -> Rollover
A233: QZ15C | B233: Therapeutic Endovascular Procedures without CC | D233: ='07_IR'!AH32 -> 1562 | J233: =VLOOKUP(A233,'07_IR'!$S:$U,3,FALSE) -> Rollover
A234: RC31Z | B234: Major Hepatobiliary Interventional Radiology Procedures | C234: TIPS | D234: ='07_IR'!AH33 -> 5558 | E234: sub-HRG | F234: BP26 | J234: =VLOOKUP(A234,'07_IR'!$S:$U,3,FALSE) -> Rollover
A235: JA24A | B235: Unilateral Intermediate Breast Procedures with Major CC | C235: Vacuum assisted percutaneous excision of benign breast lesions | D235: ='07_IR'!AH34 -> 1037 | E235: sub-HRG | F235: BP27 | J235: Rollover
A236: JA24B | B236: Unilateral Intermediate Breast Procedures with Intermediate CC | D236: ='07_IR'!AH35 -> 1037 | J236: Rollover
... 117 more rows

Sheet BPT SQL Code
A1: Home
B5: SQL for Renal 2015/16 Draft 12 | T5: SQL for post spell conversion raw | AD5: SQL for 06_Flagged_Activity_RAW | AK5: SQL for 06_Flagged_Activity_RAW
AD9: SELECT ky.RC_SpellHRG_Rev as RC1516_SpellHRG_Rev | AK9: SELECT RC_SpellHRG_Rev + ADM_SPLIT + bp.spellflag LU,
B10: --Renal TSQL for 2013/14 | T10: drop table #999 | AD10: isnull(bp.spellflag,'') as LP1516_BPT | AL10: rtrim(ky.RC_SpellHRG_Rev) as RC1516_SpellHRG_Rev,
B11: --DROP TABLE #Filter_for_Scope | AD11: ky.adm_split | AK11: isnull(bp.spellflag,'') as LP1516_BPT,
B12: --DROP TABLE #Remove_MFF | T12: SELECT | AD12: count(RC_SpellHRG_Rev) as Spell_flag_Cnt | AK12: ky.adm_split,
B13: --DROP TABLE #National_Average | T13: in_09c.[SPELL HRG], | AD13: FROM Pbr_Repository.[1516_4_C_D6].Stage_HES_KeyFields ky | AK13: count(RC_SpellHRG_Rev) as Spell_flag_Cnt
B14: --DROP TABLE #Clean_Data | T14: in_09c.ADM, | AD14: LEFT OUTER JOIN (SELECT apc.hes_epikey, f.spellflag | AK14: FROM
B15: --DROP TABLE #National_Data_Clean | T15: Sum(in_09c.[FCE ACTIVITY]) AS [FCE ACT], | AD15: FROM PbR1516_4_C_D3_New.dbo.HES_APC_Episode apc | AL15: Pbr_Repository.[1516_4_C_D6].Stage_HES_KeyFields ky
B16: --DROP TABLE #MFF_IMPACT | T16: Sum([FCE ACTIVITY]*[UC exc EBD]) AS [SPELL INLIER], | AD16: INNER JOIN PbR1516_4_C_D3_New.dbo.E1516_flag_rel f | AK16: INNER JOIN
B17: --DROP TABLE #MFF_RESCALE | T17: Sum( | AD17: ON f.PBR_Spell_ID = apc.PBR_Spell_ID | AL17: ( | AM17: SELECT
B18: --DROP TABLE #NATIONAL_TARIFF_D_I | T18: CASE WHEN [ADM] != 'DC' AND [FCE_trim] < [EPI_LoS] | AD18: AND LEFT(spellflag, 2) = 'BP') bp | AN18: epikey,
B19: -- Filter Non_Acute Table | T19: THEN ([EPI_LOS]-[FCE_trim])*[FCE ACTIVITY]*[EBD_UC] ELSE 0 END) as [HES FCE EBD] | AD19: ON ky.epikey = bp.hes_epikey | AN19: apc.PBR_Spell_ID,
B20: CREATE TABLE #Filter_for_Scope ([ORGCode] Varchar(100), [DEPARTMENT] varchar(100), [Service] varchar(100), [CURRENCY] varchar (100), | T20: into #999 | AD20: WHERE isnull(bp.spellflag '') <> '' | AN20: f.spellflag
J21: [UC] float, [ACTIVITY] float, [TOTAL_COST] float) | T21: FROM | AD21: GROUP BY | AM21: FROM
T22: [PbR1516_TED_21].[input].[TrimpointsRC_HRGs] AS in_10 | AD22: ky.RC_SpellHRG_Rev | AN22: Pbr_Repository.[1516_4_C_D6].Stage_HES_KeyFields apc
T23: INNER JOIN ([PbR1516_TED_21].[input].[HES_FCE_Spell_Map_LoS] as in_09c | AD23: bp.spellflag | AM23: INNER JOIN
B24: INSERT INTO #Filter_for_Scope | T24: LEFT JOIN [PbR1516_TED_21].[Stage].[APC_FCE_UC_incEBD] as out_03 | AD24: ky.adm_split | AN24: Pbr_Repository.HES_C.HES1112_E1516_flag_rel f
B25: SELECT FK_ORGS_PROV_ID, DEPARTMENT, [SERVICE], CURRENCY, UNIT_COST as UC, ACTIVITY_P1, (UNIT_COST * ACTIVITY_P1) as 'TOTAL_COST' | T25: ON (in_09c.[FCE HRG] = out_03.HRG) | AD25: order by 1,2,3 | AO25: ON f.PBR_Spell_ID = apc.PBR_Spell_ID
B26: FROM [PbR1516_TED_21].input.RefCostNonAcute rcna | T26: AND (in_09c.ADM = out_03.ADMISSION)) | AO26: AND LEFT(f.spellflag, 2) = 'BP'
B27: WHERE | T27: ON in_10.HRG = in_09c.[FCE HRG] | AM27: WHERE
B28: (rcna.[FK_ORGS_PROV_ID] not like 'RHW' AND rcna.[FK_ORGS_PROV_ID] not like 'RBD') | T28: GROUP BY | AN28: apc.SpellFlag = 1
B29: AND | T29: in_09c.[SPELL HRG], | AM29: ) bp
B30: rcna.[DEPARTMENT] = 'Renal' | T30: in_09c.ADM | AN30: ON ky.epikey = bp.epikey
B31: AND | T31: HAVING | AK31: --WHERE isnull(bp.spellflag = '') <> ''
B32: rcna.[SUPPLIER_TYPE] like 'own' | T32: (((in_09c.[SPELL HRG]) Is Not Null) | AK32: GROUP BY
T33: AND ((in_09c.ADM)<>'UX')) | AK33: rtrim(ky.RC_SpellHRG_Rev),
B34: --SELECT * FROM #Filter_for_Scope | T34: ORDER BY | AK34: bp.spellflag,
B35: ------******* | T35: in_09c.[SPELL HRG], | AK35: ky.adm_split
B36: CREATE TABLE #Remove_MFF ([ORGCode] Varchar(100), [DEPARTMENT] varchar(100), [Service] varchar(100), [CURRENCY] varchar (100), | T36: in_09c.ADM; | AK36: order by 1,2,3
H37: [UC] float, [ACTIVITY] float, [TOTAL_COST] float, [UC (Target MFF)] float,
H38: [TC (Target MFF)] float, [TC (Payment MFF)] float)
T39: Select * From #999
B40: INSERT INTO #Remove_MFF
B41: SELECT #Filter_for_Scope.*, [UC]/ p.[Target MFF], [TOTAL_COST] / p.[Target MFF], [TOTAL_COST] / p.[Capped MFF 2012/13]
B42: FROM #Filter_for_Scope INNER JOIN [PbR1516_TED_21].input.ProviderTable p ON
D43: #Filter_for_Scope.ORGCode = p.[RC Code]
B44: --SELECT * FROM #Remove_MFF
B45: CREATE TABLE #National_Average ([DEPARTMENT] varchar(100), [Service] varchar(100), [CURRENCY] varchar (100),
J46: [NA] float)
B47: INSERT INTO #National_Average
B48: SELECT DEPARTMENT, [Service], CURRENCY, Sum([UC (Target MFF)]*[ACTIVITY])/Sum([ACTIVITY]) AS NA
B49: FROM #Remove_MFF
B50: GROUP BY DEPARTMENT, [Service], CURRENCY
B51: --SELECT * FROM #National_Average
B53: --- Clean Data > ( NA * 20 < org or NA/20 > org)
C54: CREATE TABLE #Clean_Data ([ORGCode] Varchar(100), [DEPARTMENT] varchar(100), [Service] varchar(100), [CURRENCY] varchar (100),
H55: [UC] float, [ACTIVITY] float, [TOTAL_COST] float, [UC (Target MFF)] float,
H56: [TC (Target MFF)] float, [TC (Payment MFF)] float,[NA] float, [anomaly] int)
C57: Insert INTO #Clean_Data
C58: SELECT
D59: #Remove_MFF.* ,
D60: [#National_Average].NA,
D61: [anomaly] = CASE WHEN [UC (Target MFF)]/[NA]<0.05 OR [UC (Target MFF)]/[NA]>20
D62: THEN 1 ELSE 0 END
C63: FROM #Remove_MFF INNER JOIN #National_Average ON
D64: #Remove_MFF.CURRENCY = #National_Average.CURRENCY AND
D65: #Remove_MFF.DEPARTMENT = #National_Average.DEPARTMENT AND
D66: #Remove_MFF.[Service] = #National_Average.[Service]
C67: WHERE
D68: (CASE WHEN [UC (Target MFF)]/[NA]<0.05 OR [UC (Target MFF)]/[NA]>20
D69: THEN 1 ELSE 0 END) = 0
B70: --select * from #Clean_Data
B71: -- Recreate National Average
B73: CREATE TABLE #NATIONAL_DATA_CLEAN ([DEPARTMENT] varchar(100), [CURRENCY] varchar (100),
J74: [TOTAL_ACTIVITY] float, [TOTAL_COST] float, [HRG UC (Target MFF)] float)
B75: Insert INTO #NATIONAL_DATA_CLEAN
B76: SELECT
D77: DEPARTMENT,
B78: CURRENCY,
B79: SUM([ACTIVITY]) as 'Total Activity', Sum([UC (Target MFF)]*[ACTIVITY]) as 'TOTAL COST',
B80: Sum([UC (Target MFF)]*[ACTIVITY])/Sum([ACTIVITY]) AS '[HRG UC (Target MFF)]'
C81: FROM #Clean_Data
B82: GROUP BY
D83: DEPARTMENT,
D84: CURRENCY
B85: --SELECT * FROM #NATIONAL_DATA_CLEAN
B87: -- National Average MFF adjustment
C89: CREATE TABLE #MFF_IMPACT ([INC MFF] float, [EXEC MFF] float, [NA MFF ADJ] float)
B91: INSERT INTO #MFF_IMPACT
C92: SELECT SUM ([TOTAL_COST]) as 'INC MFF', SUM ([TC (Target MFF)]) as 'EXEC MFF', SUM ([TOTAL_COST]) / SUM ([TC (Target MFF)]) as 'NA MFF ADJ'
B93: FROM #Remove_MFF
B94: --SELECT * FROM #MFF_IMPACT
B95: c
C96: CREATE TABLE #MFF_RESCALE ([EXEC MFF] float, ['EXEC MFF CAPPED] float, [MFF RESCALE] float)
B100: INSERT INTO #MFF_RESCALE
C101: SELECT SUM ([TC (Target MFF)]) as 'EXEC MFF', SUM ([TC (Payment MFF)]) as 'EXEC MFF CAPPED',
D102: SUM ([TC (Payment MFF)]) / SUM ([TC (Target MFF)]) as 'MFF RESCALE'
B103: FROM #Remove_MFF
B105: --SELECT * FROM #MFF_RESCALE
B107: CREATE TABLE #NATIONAL_TARIFF_D_I ([DEPARTMENT] varchar(100), [CURRENCY] varchar (100),
J108: [TOTAL_ACTIVITY] float, [TOTAL_COST] float, [0910 UC] float,
J109: [Tariff] float)
B110: INSERT INTO #NATIONAL_TARIFF_D_I
C111: SELECT nt.DEPARTMENT, nt.CURRENCY, nt.TOTAL_ACTIVITY, nt.TOTAL_COST,
F112: ROUND(nt.[HRG UC (Target MFF)],2) as '0910 UC',
F113: ROUND([HRG UC (Target MFF)] * [MFF RESCALE] ,0) as 'TARIFF'
C114: FROM #MFF_RESCALE, [PbR1516_TED_21].[input].[Uplift], #NATIONAL_DATA_CLEAN nt
C115: WHERE
C116: nt.CURRENCY like '%A'
C117: ORDER BY DEPARTMENT, CURRENCY
C118: SELECT * FROM #NATIONAL_TARIFF_D_I ORDER BY DEPARTMENT, CURRENCY

Sheet 00_APC_Raw_Activity
A1: Home
B2: FROM [PbR1516_TED_35].[stage].[APC_Unit_Costs]
B10: SPELL HRG | C10: EL ACT | D10: NE ACT | E10: EL TC | F10: NE TC | G10: EL UC | H10: NE UC
B11: AA02A | C11: 21 | D11: 1895 | E11: 166806.6546 | F11: 13891419.38 | G11: 7943.174027 | H11: 7330.564319
B12: AA02B | C12: 3 | D12: 242 | E12: 15902.68671 | F12: 1346142.237 | G12: 5300.895572 | H12: 5562.571228
B13: AA03A | C13: 76 | D13: 1710 | E13: 639977.5185 | F13: 10940244.64 | G13: 8420.756822 | H13: 6397.803881
B14: AA03B | C14: 36 | D14: 178 | E14: 188020.6149 | F14: 885085.8105 | G14: 5222.794859 | H14: 4972.392194
B15: AA04A | C15: 28 | D15: 298 | E15: 299732.2574 | F15: 4305927.9 | G15: 10704.72348 | H15: 14449.42248
B16: AA04B | C16: 4 | D16: 37 | E16: 19600.86342 | F16: 398515.2612 | G16: 4900.215855 | H16: 10770.68274
B17: AA05A | C17: 270 | D17: 407 | E17: 1788890.54 | F17: 5281068.991 | G17: 6625.520518 | H17: 12975.59949
B18: AA05B | C18: 257 | D18: 40 | E18: 1102897.136 | F18: 372073.8494 | G18: 4291.428545 | H18: 9301.846234
B19: AA06A | C19: 2333 | D19: 1105 | E19: 18480322.68 | F19: 12696897.42 | G19: 7921.269899 | H19: 11490.4049
B20: AA06B | C20: 1175 | D20: 229 | E20: 5925132.433 | F20: 2054125.489 | G20: 5042.665901 | H20: 8969.980303
B21: AA07A | C21: 410 | D21: 325 | E21: 3100310.382 | F21: 2989449.758 | G21: 7561.732638 | H21: 9198.306949
B22: AA07B | C22: 293 | D22: 81 | E22: 1400960.829 | F22: 556175.379 | G22: 4781.436276 | H22: 6866.362704
B23: AA08A | C23: 462 | D23: 23 | E23: 3287299.807 | F23: 166503.4234 | G23: 7115.367548 | H23: 7239.279279
B24: AA08B | C24: 240 | D24: 2 | E24: 1951119.649 | F24: 11103.11393 | G24: 8129.665202 | H24: 5551.556963
B25: AA09A | C25: 890 | D25: 361 | E25: 2377074.119 | F25: 3744928.495 | G25: 2670.869797 | H25: 10373.76314
B26: AA09B | C26: 987 | D26: 66 | E26: 720712.0387 | F26: 492903.3092 | G26: 730.2046998 | H26: 7468.231957
B27: AA10A | C27: 22 | D27: 95 | E27: 162667.5633 | F27: 1374793.878 | G27: 7393.980152 | H27: 14471.5145
B28: AA10B | C28: 2 | D28: 10 | E28: 9774.048023 | F28: 66850.51844 | G28: 4887.024011 | H28: 6685.051844
B29: AA11A | C29: 25 | D29: 512 | E29: 260822.0411 | F29: 6721900.755 | G29: 10432.88164 | H29: 13128.71241
B30: AA11B | C30: 4 | D30: 45 | E30: 12032.58984 | F30: 406740.0233 | G30: 3008.147461 | H30: 9038.667184
B31: AA12A | C31: 1644 | D31: 1112 | E31: 10866758.86 | F31: 9823405.541 | G31: 6609.950643 | H31: 8833.997789
B32: AA12B | C32: 507 | D32: 258 | E32: 3120078.438 | F32: 2037422.621 | G32: 6154.000863 | H32: 7896.986903
B33: AA13A | C33: 523 | D33: 473 | E33: 2863555.594 | F33: 3621598.514 | G33: 5475.249701 | H33: 7656.656477
B34: AA13B | C34: 147 | D34: 156 | E34: 725984.3532 | F34: 898457.2804 | G34: 4938.66907 | H34: 5759.341541
B35: AA14A | C35: 286 | D35: 34 | E35: 868738.1239 | F35: 130730.9164 | G35: 3037.545888 | H35: 3845.026954
B36: AA14B | C36: 125 | D36: 2 | E36: 379639.4277 | F36: 10579.3276 | G36: 3037.115422 | H36: 5289.663802
B37: AA15A | C37: 370 | D37: 273 | E37: 1982647.859 | F37: 2722360.904 | G37: 5358.507727 | H37: 9972.017963
B38: AA15B | C38: 199 | D38: 57 | E38: 829244.8854 | F38: 440765.1092 | G38: 4167.059726 | H38: 7732.721215
B39: AA16A | C39: 14 | D39: 216 | E39: 97628.72232 | F39: 1852687.663 | G39: 6973.480166 | H39: 8577.2577
B40: AA16B | C40: 10 | D40: 32 | E40: 27535.54065 | F40: 234395.9694 | G40: 2753.554065 | H40: 7324.874044
B41: AA17A | C41: 48 | D41: 553 | E41: 381963.3028 | F41: 4758300.286 | G41: 7957.568809 | H41: 8604.521313
B42: AA17B | C42: 20 | D42: 50 | E42: 168538.6622 | F42: 280946.2634 | G42: 8426.933111 | H42: 5618.925269
B43: AA18A | C43: 441 | D43: 442 | E43: 2038493.087 | F43: 2959986.802 | G43: 4622.433305 | H43: 6696.802719
B44: AA18B | C44: 183 | D44: 107 | E44: 807444.4193 | F44: 640273.644 | G44: 4412.264586 | H44: 5983.865832
B45: AA19A | C45: 1057 | D45: 901 | E45: 2416226.216 | F45: 4514316.66 | G45: 2285.928303 | H45: 5010.340356
B46: AA19B | C46: 647 | D46: 206 | E46: 1157305.314 | F46: 737179.287 | G46: 1788.725369 | H46: 3578.540228
B47: AA20A | C47: 587 | D47: 85 | E47: 1130298.257 | F47: 313031.3529 | G47: 1925.550694 | H47: 3682.721799
B48: AA20B | C48: 462 | D48: 23 | E48: 658076.4448 | F48: 36840.04524 | G48: 1424.407889 | H48: 1601.741098
B49: AA21A | C49: 3950 | D49: 828 | E49: 6589523.135 | F49: 5205267.379 | G49: 1668.233705 | H49: 6286.554806
B50: AA21B | C50: 2679 | D50: 146 | E50: 2469730.048 | F50: 680918.4336 | G50: 921.8850498 | H50: 4663.824888
B51: AA22A | C51: 2391 | D51: 77013 | E51: 9074072.403 | F51: 293960501.1 | G51: 3795.095108 | H51: 3817.024413
B52: AA22B | C52: 829 | D52: 4378 | E52: 623105.8002 | F52: 8641368.345 | G52: 751.6354647 | H52: 1973.816433
B53: AA23A | C53: 531 | D53: 16811 | E53: 4203953.359 | F53: 63756977.5 | G53: 7917.04964 | H53: 3792.574951
B54: AA23B | C54: 70 | D54: 1470 | E54: 270559.0421 | F54: 2217831.649 | G54: 3865.129173 | H54: 1508.729013
B55: AA24A | C55: 2255 | D55: 9574 | E55: 2384231.867 | F55: 30842908.01 | G55: 1057.309032 | H55: 3221.527889
B56: AA24B | C56: 1636 | D56: 995 | E56: 1176763.124 | F56: 1671662.842 | G56: 719.2928628 | H56: 1680.063158
B57: AA25A | C57: 5488 | D57: 28435 | E57: 7799532.374 | F57: 60588039.04 | G57: 1421.19759 | H57: 2130.755725
B58: AA25B | C58: 4647 | D58: 2774 | E58: 2554706.563 | F58: 2983761.108 | G58: 549.7539408 | H58: 1075.616838
B59: AA26A | C59: 11595 | D59: 88746 | E59: 11050057.98 | F59: 119220574.3 | G59: 953.0019816 | H59: 1343.390962
B60: AA26B | C60: 11503 | D60: 15639 | E60: 7586932.205 | F60: 10395966.61 | G60: 659.5611758 | H60: 664.7462506
B61: AA27A | C61: 37 | D61: 2473 | E61: 130114.5477 | F61: 10780146.57 | G61: 3516.609397 | H61: 4359.137312
B62: AA27B | C62: 30 | D62: 84 | E62: 13054.22905 | F62: 83551.58345 | G62: 435.1409684 | H62: 994.6617078
B63: AA28A | C63: 754 | D63: 914 | E63: 1859921.933 | F63: 4400702.049 | G63: 2466.739965 | H63: 4814.772483
B64: AA28B | C64: 323 | D64: 90 | E64: 555766.5054 | F64: 229463.9645 | G64: 1720.639336 | H64: 2549.599605
B65: AA29A | C65: 647 | D65: 20953 | E65: 325202.1348 | F65: 20511901.93 | G65: 502.6308112 | H65: 978.9482139
B66: AA29B | C66: 61 | D66: 1701 | E66: 29148.03609 | F66: 966227.7284 | G66: 477.8366573 | H66: 568.0351137
B67: AA30A | C67: 5051 | D67: 2609 | E67: 2806104.975 | F67: 8526345.542 | G67: 555.5543407 | H67: 3268.051185
B68: AA30B | C68: 23807 | D68: 1040 | E68: 9021027.232 | F68: 1582977.533 | G68: 378.9233096 | H68: 1522.093782
B69: AA31A | C69: 1263 | D69: 42796 | E69: 1074303.563 | F69: 32773889.46 | G69: 850.5966451 | H69: 765.8166526
B70: AA31B | C70: 1093 | D70: 14634 | E70: 481902.7375 | F70: 8182936.475 | G70: 440.8991194 | H70: 559.1729175
B71: AA32Z | C71: 344 | D71: 4 | E71: 149408.3207 | F71: 1564.509226 | G71: 434.3265136 | H71: 391.1273065
B72: AA33C | C72: 1788 | D72: 370 | E72: 1231603.695 | F72: 456917.7477 | G72: 688.8163841 | H72: 1234.912832
B73: AA33D | C73: 1070 | D73: 467 | E73: 898197.4502 | F73: 634907.2625 | G73: 839.4368693 | H73: 1359.544459
B74: AA34C | C74: 6104 | D74: 673 | E74: 55906.48665 | F74: 417406.236 | G74: 9.158991915 | H74: 620.2172897
B75: AA34D | C75: 2743 | D75: 505 | E75: 21618.95586 | F75: 113598.4109 | G75: 7.881500496 | H75: 224.9473482
B76: AB02Z | C76: 831 | D76: 2 | E76: 638095.9458 | F76: 3134.6227 | G76: 767.8651574 | H76: 1567.31135
B77: AB03Z | C77: 14981 | D77: 114 | E77: 11436743.7 | F77: 498854.9075 | G77: 763.4165741 | H77: 4375.920241
B78: AB04Z | C78: 87110 | D78: 1482 | E78: 57102041.66 | F78: 3763720.25 | G78: 655.5164925 | H78: 2539.622301
B79: AB05Z | C79: 22079 | D79: 581 | E79: 11481658.3 | F79: 1912942.793 | G79: 520.0261923 | H79: 3292.500503
B80: AB06Z | C80: 19479 | D80: 194 | E80: 11484559.33 | F80: 681855.3012 | G80: 589.5867001 | H80: 3514.718047
B81: AB07Z | C81: 1787 | D81: 19 | E81: 7291470.614 | F81: 88505.90666 | G81: 4080.285738 | H81: 4658.205614
B82: AB08Z | C82: 16170 | D82: 74 | E82: 11437882.65 | F82: 230199.5666 | G82: 707.3520502 | H82: 3110.804955
B83: AB09Z | C83: 5129 | D83: 81 | E83: 3067845.126 | F83: 195304.0324 | G83: 598.1370883 | H83: 2411.160893
B84: AB10Z | C84: 388 | D84: 16 | E84: 156778.1605 | F84: 35540.05138 | G84: 404.067424 | H84: 2221.253211
B85: AB11Z | C85: 2537 | D85: 1 | E85: 187029.5253 | F85: 6745.387066 | G85: 73.72074312 | H85: 6745.387066
B86: BZ01Z | C86: 8194 | D86: 68 | E86: 8743012.047 | F86: 144210.6429 | G86: 1067.001714 | H86: 2120.744748
B87: BZ02Z | C87: 279506 | D87: 284 | E87: 222111347 | F87: 820857.2986 | G87: 794.6568122 | H87: 2890.342601
B88: BZ03Z | C88: 4245 | D88: 119 | E88: 4278725.528 | F88: 161966.6423 | G88: 1007.944765 | H88: 1361.064221
B89: BZ04Z | C89: 11514 | D89: 364 | E89: 3620066.784 | F89: 175908.3558 | G89: 314.4056613 | H89: 483.2647137
B90: BZ05Z | C90: 2485 | D90: 41 | E90: 3344718.266 | F90: 360032.2496 | G90: 1345.963085 | H90: 8781.27438
B91: BZ06A | C91: 17006 | D91: 212 | E91: 15879282.42 | F91: 278319.557 | G91: 933.745879 | H91: 1312.828099
B92: BZ06B | C92: 954 | D92: 41 | E92: 1007212.573 | F92: 63095.3385 | G92: 1055.778379 | H92: 1538.910695
B93: BZ07A | C93: 43712 | D93: 1599 | E93: 28345417.2 | F93: 1520147.766 | G93: 648.4584827 | H93: 950.686533
B94: BZ07B | C94: 3702 | D94: 954 | E94: 3013983.229 | F94: 972172.9836 | G94: 814.1499807 | H94: 1019.049249
B95: BZ08A | C95: 2131 | D95: 352 | E95: 4635011.292 | F95: 1189021.546 | G95: 2175.040494 | H95: 3377.902121
B96: BZ08B | C96: 265 | D96: 131 | E96: 538222.6499 | F96: 452903.7047 | G96: 2031.028868 | H96: 3457.280189
B97: BZ09A | C97: 5940 | D97: 182 | E97: 8910852.727 | F97: 546368.7041 | G97: 1500.143557 | H97: 3002.025847
B98: BZ09B | C98: 289 | D98: 29 | E98: 451892.7498 | F98: 73086.40612 | G98: 1563.642733 | H98: 2520.220901
B99: BZ10A | C99: 7372 | D99: 118 | E99: 4782163.307 | F99: 151517.4356 | G99: 648.6927981 | H99: 1284.046064
B100: BZ10B | C100: 1967 | D100: 43 | E100: 1642851.432 | F100: 56556.80005 | G100: 835.2066251 | H100: 1315.27442
B101: BZ11Z | C101: 934 | D101: 32 | E101: 2013606.251 | F101: 118979.485 | G101: 2155.895344 | H101: 3718.108906
B102: BZ12Z | C102: 2892 | D102: 437 | E102: 4717298.824 | F102: 1171108.341 | G102: 1631.154504 | H102: 2679.881788
B103: BZ13Z | C103: 3621 | D103: 739 | E103: 3307437.941 | F103: 1673943.024 | G103: 913.404568 | H103: 2265.146175
B104: BZ14A | C104: 1020 | D104: 1 | E104: 1361362.031 | F104: 925.4167359 | G104: 1334.668658 | H104: 925.4167359
B105: BZ14B | C105: 312 | D105: 1 | E105: 366679.0429 | F105: 2538.234451 | G105: 1175.253343 | H105: 2538.234451
B106: BZ15A | C106: 2746 | D106: 13 | E106: 3282003.876 | F106: 18046.30141 | G106: 1195.194419 | H106: 1388.177031
B107: BZ15B | C107: 4872 | D107: 4 | E107: 5959174.818 | F107: 4634.563948 | G107: 1223.147541 | H107: 1158.640987
B108: BZ16A | C108: 1342 | D108: 2 | E108: 1544796.441 | F108: 1975.47104 | G108: 1151.115083 | H108: 987.7355199
B109: BZ16B | C109: 1462 | D109: 2 | E109: 1634314.141 | F109: 1884.714012 | G109: 1117.861929 | H109: 942.357006
B110: BZ17Z | C110: 1918 | D110: 52 | E110: 2761368.221 | F110: 80952.00738 | G110: 1439.712315 | H110: 1556.769373
B111: BZ18Z | C111: 8546 | D111: 366 | E111: 8919621.203 | F111: 601774.1451 | G111: 1043.71884 | H111: 1644.191653
B112: BZ19Z | C112: 6014 | D112: 508 | E112: 2969290.041 | F112: 555098.0942 | G112: 493.7296376 | H112: 1092.712784
B113: BZ20Z | C113: 3738 | D113: 298 | E113: 7273201.799 | F113: 720142.6786 | G113: 1945.74687 | H113: 2416.58617
B114: BZ21Z | C114: 12530 | D114: 3244 | E114: 19155706.24 | F114: 5542248.748 | G114: 1528.78741 | H114: 1708.46139
B115: BZ22Z | C115: 4987 | D115: 1101 | E115: 6305736.123 | F115: 2306293.134 | G115: 1264.434755 | H115: 2094.725826
B116: BZ23Z | C116: 88418 | D116: 1691 | E116: 33952469.12 | F116: 1494421.86 | G116: 383.999515 | H116: 883.750361
B117: BZ24A | C117: 482 | D117: 5969 | E117: 1408334.932 | F117: 13412321.55 | G117: 2921.856706 | H117: 2246.996407
B118: BZ24C | C118: 7888 | D118: 9108 | E118: 2704029.833 | F118: 3964212.042 | G118: 342.8029707 | H118: 435.2450639
B119: CZ01S | C119: 154 | D119: 199 | E119: 137558.8036 | F119: 566304.8628 | G119: 893.2389843 | H119: 2845.753079
B120: CZ01T | C120: 464 | D120: 1740 | E120: 329849.1188 | F120: 1495995.396 | G120: 710.8817215 | H120: 859.7674689
B121: CZ01V | C121: 1528 | D121: 2473 | E121: 1087764.783 | F121: 4378021.354 | G121: 711.8879467 | H121: 1770.328085
B122: CZ01Y | C122: 2274 | D122: 1620 | E122: 1238550.301 | F122: 1210975.006 | G122: 544.6571246 | H122: 747.5154361
B123: CZ02S | C123: 774 | D123: 275 | E123: 1139457.457 | F123: 941960.9838 | G123: 1472.167257 | H123: 3425.312668
B124: CZ02T | C124: 2570 | D124: 724 | E124: 2829865.845 | F124: 956361.2084 | G124: 1101.115115 | H124: 1320.940896
B125: CZ02W | C125: 279 | D125: 374 | E125: 449797.3829 | F125: 2007585.211 | G125: 1612.177 | H125: 5367.874897
B126: CZ02X | C126: 10872 | D126: 1140 | E126: 11868260.38 | F126: 2116444.161 | G126: 1091.635428 | H126: 1856.529966
B127: CZ02Y | C127: 10332 | D127: 944 | E127: 9750844.62 | F127: 1127031.388 | G127: 943.7518989 | H127: 1193.889182
B128: CZ03U | C128: 2031 | D128: 122 | E128: 5981996.912 | F128: 385117.9866 | G128: 2945.345599 | H128: 3156.704808
B129: CZ03V | C129: 6171 | D129: 418 | E129: 17164796.44 | F129: 2258285.327 | G129: 2781.525918 | H129: 5402.596476
B130: CZ03Y | C130: 5596 | D130: 203 | E130: 11922732.82 | F130: 520665.0117 | G130: 2130.581276 | H130: 2564.852275
B131: CZ04O | C131: 295 | D131: 57 | E131: 5891341.282 | F131: 1331973.494 | G131: 19970.64841 | H131: 23367.95604
B132: CZ04P | C132: 716 | D132: 62 | E132: 8145708.807 | F132: 1121120.36 | G132: 11376.68828 | H132: 18082.58645
B133: CZ04Q | C133: 253 | D133: 13 | E133: 1879142.449 | F133: 106875.3358 | G133: 7427.440511 | H133: 8221.179678
B134: CZ05S | C134: 6519 | D134: 283 | E134: 9359063.755 | F134: 615772.6786 | G134: 1435.659419 | H134: 2175.875189
B135: CZ05T | C135: 32212 | D135: 782 | E135: 39284420.37 | F135: 896544.215 | G135: 1219.558561 | H135: 1146.475978
B136: CZ05V | C136: 5107 | D136: 1586 | E136: 6689305.619 | F136: 1660551.822 | G136: 1309.830746 | H136: 1047.006193
B137: CZ05Y | C137: 10199 | D137: 2556 | E137: 12396195.21 | F137: 2271952.648 | G137: 1215.432416 | H137: 888.8703632
B138: CZ07O | C138: 148 | D138: 3271 | E138: 1444015.413 | F138: 28747069.59 | G138: 9756.860896 | H138: 8788.465177
B139: CZ07P | C139: 312 | D139: 870 | E139: 1118895.932 | F139: 4626366.855 | G139: 3586.204909 | H139: 5317.663052
B140: CZ07Q | C140: 105 | D140: 111 | E140: 338637.3843 | F140: 398993.1052 | G140: 3225.117945 | H140: 3594.53248
B141: CZ08S | C141: 1767 | D141: 218 | E141: 1651225.896 | F141: 399277.8177 | G141: 934.4798508 | H141: 1831.549623
B142: CZ08T | C142: 24239 | D142: 1146 | E142: 19111423.88 | F142: 1077796.048 | G142: 788.4576047 | H142: 940.4852077
B143: CZ08V | C143: 8419 | D143: 1329 | E143: 6335393.393 | F143: 2582216.91 | G143: 752.5113901 | H143: 1942.977359
B144: CZ08Y | C144: 12943 | D144: 1109 | E144: 9195440.675 | F144: 891007.2373 | G144: 710.4566697 | H144: 803.4330363
B145: CZ09U | C145: 2586 | D145: 32 | E145: 4248097.691 | F145: 35624.55682 | G145: 1642.729192 | H145: 1113.267401
B146: CZ09V | C146: 1027 | D146: 52 | E146: 1188226.452 | F146: 106896.8019 | G146: 1156.987782 | H146: 2055.70773
B147: CZ09Y | C147: 1250 | D147: 40 | E147: 1448383.873 | F147: 42790.99907 | G147: 1158.707098 | H147: 1069.774977
B148: CZ10U | C148: 4150 | D148: 128 | E148: 9468058.271 | F148: 549264.9191 | G148: 2281.459824 | H148: 4291.132181
B149: CZ10V | C149: 4503 | D149: 106 | E149: 10802856.38 | F149: 664533.2932 | G149: 2399.035395 | H149: 6269.182011
B150: CZ10Y | C150: 7368 | D150: 48 | E150: 16721086.65 | F150: 133542.5206 | G150: 2269.420013 | H150: 2782.135845
B151: CZ11Z | C151: 105 | D151: 5 | E151: 316591.4446 | F151: 19906.88712 | G151: 3015.156615 | H151: 3981.377424
B152: CZ12U | C152: 6366 | D152: 1820 | E152: 4666315.342 | F152: 1514637.595 | G152: 733.0058658 | H152: 832.2184585
B153: CZ12V | C153: 9291 | D153: 8636 | E153: 7195744.778 | F153: 9498190.506 | G153: 774.4854998 | H153: 1099.836789
B154: CZ12Y | C154: 16292 | D154: 2382 | E154: 10759817.7 | F154: 1965216.627 | G154: 660.4356552 | H154: 825.027971
B155: CZ13U | C155: 1755 | D155: 215 | E155: 2253263.025 | F155: 339117.2756 | G155: 1283.910556 | H155: 1577.289654
B156: CZ13V | C156: 7654 | D156: 3318 | E156: 10219940.6 | F156: 4100809.941 | G156: 1335.241782 | H156: 1235.928252
B157: CZ13Y | C157: 14653 | D157: 849 | E157: 18731698.2 | F157: 874276.5167 | G157: 1278.352433 | H157: 1029.772104
B158: CZ14U | C158: 1217 | D158: 50 | E158: 2340077.75 | F158: 216403.23 | G158: 1922.824774 | H158: 4328.064599
B159: CZ14V | C159: 6249 | D159: 620 | E159: 10485972.36 | F159: 1390442.065 | G159: 1678.024062 | H159: 2242.648493
B160: CZ14Y | C160: 10520 | D160: 186 | E160: 16873551.26 | F160: 340213.0953 | G160: 1603.94974 | H160: 1829.102663
B161: CZ15N | C161: 971 | D161: 334 | E161: 1876120.555 | F161: 1413943.89 | G161: 1932.152992 | H161: 4233.364942
B162: CZ15Q | C162: 1092 | D162: 153 | E162: 1869064.177 | F162: 522597.3289 | G162: 1711.597232 | H162: 3415.668817
B163: CZ16N | C163: 1228 | D163: 373 | E163: 1769851.744 | F163: 673156.6725 | G163: 1441.247349 | H163: 1804.709578
B164: CZ16Q | C164: 2315 | D164: 475 | E164: 2907865.244 | F164: 792806.47 | G164: 1256.097297 | H164: 1669.066253
B165: CZ17U | C165: 933 | D165: 870 | E165: 1498383.819 | F165: 2165347.457 | G165: 1605.984801 | H165: 2488.905123
B166: CZ17V | C166: 4370 | D166: 3150 | E166: 10586993.69 | F166: 9331351.187 | G166: 2422.653018 | H166: 2962.33371
B167: CZ17Y | C167: 4624 | D167: 2716 | E167: 7117333.723 | F167: 6288286.548 | G167: 1539.215771 | H167: 2315.27487
B168: CZ18R | C168: 2618 | D168: 56 | E168: 10564509.48 | F168: 223844.6985 | G168: 4035.335935 | H168: 3997.226759
B169: CZ18U | C169: 730 | D169: 10 | E169: 2741757.121 | F169: 34275.97062 | G169: 3755.831673 | H169: 3427.597062
B170: CZ19Z | C170: 281 | D170: 19 | E170: 1970407.227 | F170: 130892.7283 | G170: 7012.125363 | H170: 6889.090965
B171: CZ20Z | C171: 16 | D171: NULL | E171: 302967.4224 | F171: NULL | G171: 18935.4639 | H171: NULL
B172: CZ21V | C172: 1190 | D172: 44220 | E172: 1249642.831 | F172: 25552474.02 | G172: 1050.120026 | H172: 577.8488019
B173: CZ21Y | C173: 2179 | D173: 12726 | E173: 1503000.712 | F173: 6184607.551 | G173: 689.7662744 | H173: 485.9820486
B174: CZ22W | C174: 112 | D174: 3958 | E174: 233039.7969 | F174: 6089683.83 | G174: 2080.712472 | H174: 1538.576006
B175: CZ22X | C175: 540 | D175: 16886 | E175: 729009.13 | F175: 13130427.43 | G175: 1350.016907 | H175: 777.5925284
B176: CZ22Y | C176: 464 | D176: 14193 | E176: 367112.8622 | F176: 9702414.418 | G176: 791.1915133 | H176: 683.6056097
B177: CZ23W | C177: 193 | D177: 2098 | E177: 584778.6692 | F177: 4491965.246 | G177: 3029.941291 | H177: 2141.070184
B178: CZ23X | C178: 1040 | D178: 7607 | E178: 1410355.39 | F178: 7077308.223 | G178: 1356.110952 | H178: 930.3678484
B179: CZ23Y | C179: 555 | D179: 3870 | E179: 572345.3984 | F179: 2486571.288 | G179: 1031.25297 | H179: 642.5248806
B180: CZ24O | C180: 433 | D180: 1098 | E180: 2384435.475 | F180: 5501652.44 | G180: 5506.779388 | H180: 5010.612423
B181: CZ24P | C181: 3004 | D181: 1105 | E181: 5319977.323 | F181: 2858208.349 | G181: 1770.964488 | H181: 2586.613891
B182: CZ24Q | C182: 806 | D182: 174 | E182: 1298166.755 | F182: 310684.9555 | G182: 1610.628728 | H182: 1785.545721
B183: CZ25N | C183: 352 | D183: 3 | E183: 7245723.787 | F183: 54391.06281 | G183: 20584.44258 | H183: 18130.35427
B184: CZ25Q | C184: 700 | D184: NULL | E184: 14384596.92 | F184: NULL | G184: 20549.42416 | H184: NULL
B185: CZ27Z | C185: 1223 | D185: NULL | E185: 3217401.995 | F185: NULL | G185: 2630.745703 | H185: NULL
B186: CZ28Z | C186: 123 | D186: 5 | E186: 310467.0108 | F186: 14816.81247 | G186: 2524.122039 | H186: 2963.362493
B187: CZ30U | C187: 5245 | D187: 201 | E187: 2540963.716 | F187: 182447.7411 | G187: 484.454474 | H187: 907.7002043
B188: CZ30Y | C188: 12173 | D188: 315 | E188: 4489618.62 | F188: 275286.5539 | G188: 368.8177622 | H188: 873.925568
B189: CZ31U | C189: 217 | D189: 3 | E189: 122632.2833 | F189: 2414.787029 | G189: 565.1257297 | H189: 804.9290097
B190: CZ31Y | C190: 8923 | D190: 82 | E190: 3556613.634 | F190: 54607.83086 | G190: 398.5894468 | H190: 665.9491568
B191: CZ32U | C191: 2208 | D191: 21 | E191: 2214816.226 | F191: 14001.30725 | G191: 1003.087059 | H191: 666.7289167
B192: CZ32Y | C192: 371 | D192: 16 | E192: 325150.219 | F192: 9175.931841 | G192: 876.4156847 | H192: 573.4957401
B193: CZ33U | C193: 2734 | D193: 11 | E193: 1629108.047 | F193: 8469.857007 | G193: 595.8698049 | H193: 769.9870007
B194: CZ33Y | C194: 3681 | D194: 6 | E194: 1676120.037 | F194: 6691.566425 | G194: 455.3436666 | H194: 1115.261071
B195: CZ34U | C195: 7602 | D195: 1221 | E195: 4638630.856 | F195: 1277085.599 | G195: 610.1855901 | H195: 1045.934152
B196: CZ34Y | C196: 5651 | D196: 1693 | E196: 3309975.509 | F196: 1979028.688 | G196: 585.7327037 | H196: 1168.947837
B197: CZ35U | C197: 21 | D197: 4 | E197: 14925.48535 | F197: 984.9175545 | G197: 710.7373977 | H197: 246.2293886
B198: CZ35Y | C198: 4 | D198: NULL | E198: 6565.861761 | F198: NULL | G198: 1641.46544 | H198: NULL
B199: CZ36U | C199: 1914 | D199: 25 | E199: 1383556.364 | F199: 23514.41869 | G199: 722.8612141 | H199: 940.5767475
B200: CZ36Y | C200: 20816 | D200: 114 | E200: 12439908.04 | F200: 88155.79003 | G200: 597.6127999 | H200: 773.2964038
B201: CZ37U | C201: 11794 | D201: 225 | E201: 9831755.053 | F201: 242345.6065 | G201: 833.6234571 | H201: 1077.091585
B202: CZ37Y | C202: 29793 | D202: 486 | E202: 15710125.21 | F202: 566388.207 | G202: 527.3092742 | H202: 1165.407833
B203: CZ38U | C203: 46 | D203: 5 | E203: 42918.84039 | F203: 6905.064181 | G203: 933.0182694 | H203: 1381.012836
B204: CZ38Y | C204: 234 | D204: 5 | E204: 138312.6015 | F204: 11959.72983 | G204: 591.0794935 | H204: 2391.945967
B205: CZ39U | C205: 320 | D205: 68 | E205: 304263.443 | F205: 72339.17273 | G205: 950.8232595 | H205: 1063.811364
B206: CZ39Y | C206: 3150 | D206: 169 | E206: 2705275.953 | F206: 169322.6035 | G206: 858.8177627 | H206: 1001.908897
B207: CZ40U | C207: 5278 | D207: 11 | E207: 4937399.539 | F207: 14262.76335 | G207: 935.467893 | H207: 1296.61485
... 1130 more rows

Sheet 01_APC_Raw_UC
A1: Home
B2: FROM [PbR1516_TED_35].[stage].[APC_Tariff]
B10: Spell HRG | C10: HRG Name | D10: EL Tariff | E10: EL Trim | F10: NE Tariff | G10: NE Trim | H10: Longstay Payment | I10: SSEM Eligible | J10: SSEM Tariff | K10: SSNDS Eligible
B11: AA02A | C11: Intracranial Procedures for Trauma with Diagnosis of Intracranial Injury with CC | D11: 7781 | E11: 37 | F11: 7151 | G11: 45 | H11: 227 | I11: No | J11: 0 | K11: Yes
B12: AA02B | C12: Intracranial Procedures for Trauma with Diagnosis of Intracranial Injury without CC | D12: 5193 | E12: 15 | F12: 5426 | G12: 21 | H12: 227 | I12: No | J12: 0 | K12: Yes
B13: AA03A | C13: Intracranial Procedures for Trauma with Diagnosis of Head Injury or Skull Fracture, with CC | D13: 8249 | E13: 26 | F13: 6241 | G13: 28 | H13: 227 | I13: No | J13: 0 | K13: Yes
B14: AA03B | C14: Intracranial Procedures for Trauma with Diagnosis of Head Injury or Skull Fracture, without CC | D14: 5116 | E14: 10 | F14: 4850 | G14: 16 | H14: 227 | I14: No | J14: 0 | K14: Yes
B15: AA04A | C15: Major Intracranial Procedures Except Trauma with Non-Transient Stroke or Cerebrovascular Accident, Nervous System Infections or Encephalopathy, with CC | D15: 10486 | E15: 50 | F15: 14095 | G15: 87 | H15: 227 | I15: No | J15: 0 | K15: Yes
B16: AA04B | C16: Major Intracranial Procedures Except Trauma with Non-Transient Stroke or Cerebrovascular Accident, Nervous System Infections or Encephalopathy, without CC | D16: 4800 | E16: 13 | F16: 10506 | G16: 61 | H16: 227 | I16: No | J16: 0 | K16: Yes
B17: AA05A | C17: Major Intracranial Procedures Except Trauma with Haemorrhagic Cerebrovascular Disorders with CC | D17: 6490 | E17: 20 | F17: 12657 | G17: 62 | H17: 227 | I17: No | J17: 0 | K17: Yes
B18: AA05B | C18: Major Intracranial Procedures Except Trauma with Haemorrhagic Cerebrovascular Disorders without CC | D18: 4204 | E18: 4 | F18: 9073 | G18: 34 | H18: 227 | I18: No | J18: 0 | K18: Yes
B19: AA06A | C19: Major Intracranial Procedures Except Trauma with Brain Tumours or Cerebral Cysts, with CC | D19: 7759 | E19: 18 | F19: 11208 | G19: 42 | H19: 227 | I19: No | J19: 0 | K19: Yes
B20: AA06B | C20: Major Intracranial Procedures Except Trauma with Brain Tumours or Cerebral Cysts, without CC | D20: 4940 | E20: 14 | F20: 8750 | G20: 24 | H20: 227 | I20: No | J20: 0 | K20: Yes
B21: AA07A | C21: Major Intracranial Procedures Except Trauma with Cerebral Degenerations or Miscellaneous Disorders of Nervous System, with CC | D21: 7407 | E21: 15 | F21: 8972 | G21: 34 | H21: 227 | I21: No | J21: 0 | K21: Yes
B22: AA07B | C22: Major Intracranial Procedures Except Trauma with Cerebral Degenerations or Miscellaneous Disorders of Nervous System, without CC | D22: 4684 | E22: 10 | F22: 6698 | G22: 22 | H22: 227 | I22: No | J22: 0 | K22: Yes
B23: AA08A | C23: Major Intracranial Procedures Except Trauma with Muscular, Balance, Cranial or Peripheral Nerve Disorders or Epilepsy, with CC | D23: 6970 | E23: 12 | F23: 7061 | G23: 39 | H23: 227 | I23: No | J23: 0 | K23: Yes
B24: AA08B | C24: Major Intracranial Procedures Except Trauma with Muscular, Balance, Cranial or Peripheral Nerve Disorders or Epilepsy, without CC | D24: 7963 | E24: 11 | F24: 5415 | G24: 17 | H24: 227 | I24: No | J24: 0 | K24: Yes
B25: AA09A | C25: Major Intracranial Procedures Except Trauma with Other Diagnoses with CC | D25: 2616 | E25: 8 | F25: 10119 | G25: 54 | H25: 227 | I25: No | J25: 0 | K25: Yes
B26: AA09B | C26: Major Intracranial Procedures Except Trauma with Other Diagnoses without CC | D26: 715 | E26: 1 | F26: 7285 | G26: 34 | H26: 227 | I26: No | J26: 0 | K26: Yes
B27: AA10A | C27: Intermediate Intracranial Procedures Except Trauma with Non-Transient Stroke or Cerebrovascular Accident, Nervous System Infections or Encephalopathy, with CC | D27: 7243 | E27: 32 | F27: 14116 | G27: 86 | H27: 227 | I27: No | J27: 0 | K27: Yes
B28: AA10B | C28: Intermediate Intracranial Procedures Except Trauma with Non-Transient Stroke or Cerebrovascular Accident, Nervous System Infections or Encephalopathy, without CC | D28: 4787 | E28: 19 | F28: 6521 | G28: 34 | H28: 227 | I28: No | J28: 0 | K28: Yes
B29: AA11A | C29: Intermediate Intracranial Procedures Except Trauma with Haemorrhagic Cerebrovascular Disorders with CC | D29: 10220 | E29: 47 | F29: 12806 | G29: 79 | H29: 227 | I29: No | J29: 0 | K29: Yes
B30: AA11B | C30: Intermediate Intracranial Procedures Except Trauma with Haemorrhagic Cerebrovascular Disorders without CC | D30: 2947 | E30: 188 | F30: 8817 | G30: 53 | H30: 227 | I30: No | J30: 0 | K30: Yes
B31: AA12A | C31: Intermediate Intracranial Procedures Except Trauma with Brain Tumours or Cerebral Cysts, with CC | D31: 6475 | E31: 13 | F31: 8617 | G31: 30 | H31: 227 | I31: No | J31: 0 | K31: Yes
B32: AA12B | C32: Intermediate Intracranial Procedures Except Trauma with Brain Tumours or Cerebral Cysts, without CC | D32: 6028 | E32: 11 | F32: 7703 | G32: 20 | H32: 227 | I32: No | J32: 0 | K32: Yes
B33: AA13A | C33: Intermediate Intracranial Procedures Except Trauma with Cerebral Degenerations or Miscellaneous Disorders of Nervous System with CC | D33: 5363 | E33: 13 | F33: 7469 | G33: 35 | H33: 227 | I33: No | J33: 0 | K33: Yes
B34: AA13B | C34: Intermediate Intracranial Procedures Except Trauma with Cerebral Degenerations or Miscellaneous Disorders of Nervous System without CC | D34: 4838 | E34: 10 | F34: 5618 | G34: 21 | H34: 227 | I34: No | J34: 0 | K34: Yes
B35: AA14A | C35: Intermediate Intracranial Procedures Except Trauma with Muscular, Balance, Cranial or Peripheral Nerve Disorders or Epilepsy, with CC | D35: 2975 | E35: 5 | F35: 3751 | G35: 23 | H35: 227 | I35: No | J35: 0 | K35: Yes
B36: AA14B | C36: Intermediate Intracranial Procedures Except Trauma with Muscular, Balance, Cranial or Peripheral Nerve Disorders or Epilepsy, without CC | D36: 2975 | E36: 8 | F36: 5160 | G36: 19 | H36: 227 | I36: No | J36: 0 | K36: Yes
B37: AA15A | C37: Intermediate Intracranial Procedures Except Trauma with Other Diagnoses with CC | D37: 5249 | E37: 16 | F37: 9727 | G37: 56 | H37: 227 | I37: No | J37: 0 | K37: Yes
B38: AA15B | C38: Intermediate Intracranial Procedures Except Trauma with Other Diagnoses without CC | D38: 4082 | E38: 11 | F38: 7543 | G38: 40 | H38: 227 | I38: No | J38: 0 | K38: Yes
B39: AA16A | C39: Minor Intracranial Procedures Except Trauma with Non-Transient Stroke or Cerebrovascular Accident, Nervous System Infections or Encephalopathy, with CC | D39: 6831 | E39: 24 | F39: 8367 | G39: 54 | H39: 227 | I39: No | J39: 0 | K39: Yes
B40: AA16B | C40: Minor Intracranial Procedures Except Trauma with Non-Transient Stroke or Cerebrovascular Accident, Nervous System Infections or Encephalopathy, without CC | D40: 2697 | E40: 6 | F40: 7145 | G40: 38 | H40: 227 | I40: No | J40: 0 | K40: Yes
B41: AA17A | C41: Minor Intracranial Procedures Except Trauma with Haemorrhagic Cerebrovascular Disorders with CC | D41: 7795 | E41: 19 | F41: 8393 | G41: 60 | H41: 227 | I41: No | J41: 0 | K41: Yes
B42: AA17B | C42: Minor Intracranial Procedures Except Trauma with Haemorrhagic Cerebrovascular Disorders without CC | D42: 8255 | E42: 8 | F42: 5481 | G42: 33 | H42: 227 | I42: No | J42: 0 | K42: Yes
B43: AA18A | C43: Minor Intracranial Procedures Except Trauma with Brain Tumours or Cerebral Cysts, with CC | D43: 4528 | E43: 11 | F43: 6532 | G43: 29 | H43: 227 | I43: No | J43: 0 | K43: Yes
B44: AA18B | C44: Minor Intracranial Procedures Except Trauma with Brain Tumours or Cerebral Cysts, without CC | D44: 4322 | E44: 9 | F44: 5837 | G44: 21 | H44: 227 | I44: No | J44: 0 | K44: Yes
B45: AA19A | C45: Minor Intracranial Procedures Except Trauma with Cerebral Degenerations or Miscellaneous Disorders of Nervous System, with CC | D45: 2239 | E45: 8 | F45: 4887 | G45: 20 | H45: 227 | I45: No | J45: 0 | K45: Yes
B46: AA19B | C46: Minor Intracranial Procedures Except Trauma with Cerebral Degenerations or Miscellaneous Disorders of Nervous System, without CC | D46: 1752 | E46: 3 | F46: 3491 | G46: 11 | H46: 227 | I46: No | J46: 0 | K46: Yes
B47: AA20A | C47: Minor Intracranial Procedures Except Trauma with Muscular, Balance, Cranial or Peripheral Nerve Disorders or Epilepsy, with CC | D47: 1886 | E47: 3 | F47: 3592 | G47: 19 | H47: 227 | I47: No | J47: 0 | K47: Yes
B48: AA20B | C48: Minor Intracranial Procedures Except Trauma with Muscular, Balance, Cranial or Peripheral Nerve Disorders or Epilepsy, without CC | D48: 1395 | E48: 3 | F48: 1562 | G48: 10 | H48: 227 | I48: No | J48: 0 | K48: Yes
B49: AA21A | C49: Minor Intracranial Procedures Except Trauma with Other Diagnoses with CC | D49: 1634 | E49: 5 | F49: 6132 | G49: 36 | H49: 227 | I49: No | J49: 0 | K49: Yes
B50: AA21B | C50: Minor Intracranial Procedures Except Trauma with Other Diagnoses without CC | D50: 903 | E50: 1 | F50: 4549 | G50: 21 | H50: 227 | I50: No | J50: 0 | K50: Yes
B51: AA22A | C51: Non-Transient Stroke or Cerebrovascular Accident, Nervous System Infections or Encephalopathy, with CC | D51: 3717 | E51: 63 | F51: 4149 | G51: 41 | H51: 227 | I51: Yes | J51: 1245 | K51: Yes
B52: AA22B | C52: Non-Transient Stroke or Cerebrovascular Accident, Nervous System Infections or Encephalopathy, without CC | D52: 736 | E52: 1 | F52: 2436 | G52: 16 | H52: 227 | I52: Yes | J52: 731 | K52: Yes
B53: AA23A | C53: Haemorrhagic Cerebrovascular Disorders with CC | D53: 7755 | E53: 117 | F53: 4383 | G53: 45 | H53: 227 | I53: Yes | J53: 1315 | K53: Yes
B54: AA23B | C54: Haemorrhagic Cerebrovascular Disorders without CC | D54: 3786 | E54: 44 | F54: 2288 | G54: 13 | H54: 227 | I54: Yes | J54: 686 | K54: Yes
B55: AA24A | C55: Brain Tumours or Cerebral Cysts, with CC | D55: 1036 | E55: 5 | F55: 3558 | G55: 32 | H55: 227 | I55: Yes | J55: 1068 | K55: Yes
B56: AA24B | C56: Brain Tumours or Cerebral Cysts, without CC | D56: 705 | E56: 1 | F56: 2243 | G56: 14 | H56: 227 | I56: Yes | J56: 673 | K56: Yes
B57: AA25A | C57: Cerebral Degenerations or Miscellaneous Disorders of Nervous System, with CC | D57: 1392 | E57: 5 | F57: 2820 | G57: 24 | H57: 227 | I57: Yes | J57: 846 | K57: Yes
B58: AA25B | C58: Cerebral Degenerations or Miscellaneous Disorders of Nervous System, without CC | D58: 539 | E58: 1 | F58: 1662 | G58: 8 | H58: 227 | I58: Yes | J58: 665 | K58: Yes
B59: AA26A | C59: Muscular, Balance, Cranial or Peripheral Nerve Disorders, Epilepsy or Head Injury, with CC | D59: 934 | E59: 1 | F59: 1310 | G59: 13 | H59: 227 | I59: No | J59: 0 | K59: Yes
B60: AA26B | C60: Muscular, Balance, Cranial or Peripheral Nerve Disorders, Epilepsy or Head Injury, without CC | D60: 646 | E60: 1 | F60: 648 | G60: 3 | H60: 227 | I60: No | J60: 0 | K60: Yes
B61: AA27A | C61: Medical Care of Patients with Alzheimer's Disease with CC | D61: 3445 | E61: 84 | F61: 5060 | G61: 55 | H61: 227 | I61: Yes | J61: 1518 | K61: Yes
B62: AA27B | C62: Medical Care of Patients with Alzheimer's Disease without CC | D62: 426 | E62: 1 | F62: 1791 | G62: 9 | H62: 227 | I62: Yes | J62: 537 | K62: Yes
B63: AA28A | C63: Motor Neuron Disease with CC | D63: 2416 | E63: 18 | F63: 5141 | G63: 51 | H63: 227 | I63: Yes | J63: 1542 | K63: Yes
B64: AA28B | C64: Motor Neuron Disease without CC | D64: 1685 | E64: 10 | F64: 3029 | G64: 19 | H64: 227 | I64: Yes | J64: 909 | K64: Yes
B65: AA29A | C65: Transient Ischaemic Attack with CC | D65: 492 | E65: 1 | F65: 1448 | G65: 6 | H65: 227 | I65: Yes | J65: 579 | K65: Yes
B66: AA29B | C66: Transient Ischaemic Attack without CC | D66: 468 | E66: 1 | F66: 554 | G66: 3 | H66: 227 | I66: No | J66: 0 | K66: Yes
B67: AA30A | C67: Medical Care of Patients with Multiple Sclerosis with CC | D67: 544 | E67: 1 | F67: 3656 | G67: 37 | H67: 227 | I67: Yes | J67: 1097 | K67: Yes
B68: AA30B | C68: Medical Care of Patients with Multiple Sclerosis without CC | D68: 371 | E68: 1 | F68: 2166 | G68: 13 | H68: 227 | I68: Yes | J68: 866 | K68: Yes
B69: AA31A | C69: Headache, Migraine or Cerebrospinal Fluid Leak, with CC | D69: 833 | E69: 5 | F69: 747 | G69: 5 | H69: 227 | I69: No | J69: 0 | K69: Yes
B70: AA31B | C70: Headache, Migraine or Cerebrospinal Fluid Leak, without CC | D70: 432 | E70: 1 | F70: 545 | G70: 3 | H70: 227 | I70: No | J70: 0 | K70: Yes
B71: AA32Z | C71: Neuropsychology Tests with length of stay 2 days or less | D71: 425 | E71: 1 | F71: 382 | G71: 2 | H71: 227 | I71: No | J71: 0 | K71: Yes
B72: AA33C | C72: Conventional EEG, EMG or Nerve Conduction Studies with length of stay 2 days or less, 19 years and over | D72: 675 | E72: 1 | F72: 1205 | G72: 4 | H72: 227 | I72: No | J72: 0 | K72: Yes
B73: AA33D | C73: Conventional EEG, EMG or Nerve Conduction Studies with length of stay 2 days or less, 18 years and under | D73: 822 | E73: 1 | F73: 1326 | G73: 4 | H73: 227 | I73: No | J73: 0 | K73: Yes
B74: AA34C | C74: Neurophysiological operations 19 years and over | D74: 9 | E74: 4 | F74: 605 | G74: 36 | H74: 227 | I74: No | J74: 0 | K74: Yes
B75: AA34D | C75: Neurophysiological operations 18 years and under | D75: 8 | E75: 4 | F75: 219 | G75: 21 | H75: 227 | I75: No | J75: 0 | K75: Yes
B76: AB02Z | C76: Complex Major Pain Procedures | D76: 752 | E76: 1 | F76: 1529 | G76: 52 | H76: 227 | I76: No | J76: 0 | K76: Yes
B77: AB03Z | C77: Complex Pain Procedures | D77: 748 | E77: 1 | F77: 4268 | G77: 45 | H77: 227 | I77: No | J77: 0 | K77: Yes
B78: AB04Z | C78: Major Pain Procedures | D78: 642 | E78: 1 | F78: 2477 | G78: 21 | H78: 227 | I78: No | J78: 0 | K78: Yes
B79: AB05Z | C79: Intermediate Pain Procedures | D79: 509 | E79: 1 | F79: 3212 | G79: 32 | H79: 227 | I79: No | J79: 0 | K79: Yes
B80: AB06Z | C80: Minor Pain Procedures | D80: 578 | E80: 1 | F80: 3428 | G80: 39 | H80: 227 | I80: No | J80: 0 | K80: Yes
B81: AB07Z | C81: Insertion of Neurostimulator or Intrathecal Drug Delivery Device | D81: 3997 | E81: 3 | F81: 4544 | G81: 37 | H81: 227 | I81: No | J81: 0 | K81: Yes
B82: AB08Z | C82: Pain Radiofrequency Treatments | D82: 693 | E82: 1 | F82: 3034 | G82: 27 | H82: 227 | I82: No | J82: 0 | K82: Yes
B83: AB09Z | C83: Other Specified Pain Procedures | D83: 586 | E83: 1 | F83: 2352 | G83: 23 | H83: 227 | I83: No | J83: 0 | K83: Yes
B84: AB10Z | C84: Unspecified Pain Procedures | D84: 396 | E84: 1 | F84: 2167 | G84: 44 | H84: 227 | I84: No | J84: 0 | K84: Yes
B85: AB11Z | C85: Cognitive Behavioural Therapy | D85: 72 | E85: 1 | F85: 6580 | G85: 14 | H85: 227 | I85: No | J85: 0 | K85: Yes
B86: BZ01Z | C86: Enhanced Cataract Surgery | D86: 1045 | E86: 1 | F86: 2069 | G86: 12 | H86: 266 | I86: No | J86: 0 | K86: Yes
B87: BZ02Z | C87: Phacoemulsification Cataract Extraction and Lens Implant | D87: 778 | E87: 1 | F87: 2819 | G87: 35 | H87: 266 | I87: No | J87: 0 | K87: Yes
B88: BZ03Z | C88: Non-Phacoemulsification Cataract Surgery | D88: 987 | E88: 1 | F88: 1328 | G88: 5 | H88: 266 | I88: No | J88: 0 | K88: Yes
B89: BZ04Z | C89: Lens Capsulotomy | D89: 308 | E89: 1 | F89: 471 | G89: 1 | H89: 266 | I89: No | J89: 0 | K89: Yes
B90: BZ05Z | C90: Major Oculoplastics Procedures | D90: 1318 | E90: 1 | F90: 8566 | G90: 50 | H90: 266 | I90: No | J90: 0 | K90: Yes
B91: BZ06A | C91: Intermediate Oculoplastics Procedures, 19 years and over | D91: 915 | E91: 1 | F91: 1281 | G91: 5 | H91: 266 | I91: No | J91: 0 | K91: Yes
B92: BZ06B | C92: Intermediate Oculoplastics Procedures, 18 years and under | D92: 1034 | E92: 1 | F92: 1501 | G92: 8 | H92: 266 | I92: No | J92: 0 | K92: Yes
B93: BZ07A | C93: Minor Oculoplastics Procedures, 19 years and over | D93: 635 | E93: 1 | F93: 927 | G93: 3 | H93: 266 | I93: No | J93: 0 | K93: Yes
B94: BZ07B | C94: Minor Oculoplastics Procedures, 18 years and under | D94: 798 | E94: 1 | F94: 994 | G94: 3 | H94: 266 | I94: No | J94: 0 | K94: Yes
B95: BZ08A | C95: Major Orbits or Lacrimal Procedures, 19 years and over | D95: 2131 | E95: 3 | F95: 3295 | G95: 14 | H95: 266 | I95: No | J95: 0 | K95: Yes
B96: BZ08B | C96: Major Orbits or Lacrimal Procedures, 18 years and under | D96: 1989 | E96: 3 | F96: 3372 | G96: 10 | H96: 266 | I96: No | J96: 0 | K96: Yes
B97: BZ09A | C97: Intermediate Orbits or Lacrimal Procedures, 19 years and over | D97: 1469 | E97: 3 | F97: 2928 | G97: 16 | H97: 266 | I97: No | J97: 0 | K97: Yes
B98: BZ09B | C98: Intermediate Orbits or Lacrimal Procedures, 18 years and under | D98: 1532 | E98: 1 | F98: 2458 | G98: 5 | H98: 266 | I98: No | J98: 0 | K98: Yes
B99: BZ10A | C99: Minor Orbits or Lacrimal Procedures, 19 years and over | D99: 635 | E99: 1 | F99: 1253 | G99: 5 | H99: 266 | I99: No | J99: 0 | K99: Yes
B100: BZ10B | C100: Minor Orbits or Lacrimal Procedures, 18 years and under | D100: 818 | E100: 1 | F100: 1283 | G100: 8 | H100: 266 | I100: No | J100: 0 | K100: Yes
B101: BZ11Z | C101: Major Cornea or Sclera Procedures | D101: 2112 | E101: 3 | F101: 3627 | G101: 20 | H101: 266 | I101: No | J101: 0 | K101: Yes
B102: BZ12Z | C102: Intermediate Cornea or Sclera Procedures | D102: 1598 | E102: 3 | F102: 2614 | G102: 14 | H102: 266 | I102: No | J102: 0 | K102: Yes
B103: BZ13Z | C103: Minor Cornea or Sclera Procedures | D103: 895 | E103: 1 | F103: 2210 | G103: 13 | H103: 266 | I103: No | J103: 0 | K103: Yes
B104: BZ14A | C104: Major Ocular Motility Procedures, 19 years and over | D104: 1307 | E104: 1 | F104: 903 | G104: 1 | H104: 266 | I104: No | J104: 0 | K104: Yes
B105: BZ14B | C105: Major Ocular Motility Procedures, 18 years and under | D105: 1151 | E105: 1 | F105: 2476 | G105: 1 | H105: 266 | I105: No | J105: 0 | K105: Yes
B106: BZ15A | C106: Intermediate Ocular Motility Procedures, 19 years and over | D106: 1171 | E106: 1 | F106: 1354 | G106: 11 | H106: 266 | I106: No | J106: 0 | K106: Yes
B107: BZ15B | C107: Intermediate Ocular Motility Procedures, 18 years and under | D107: 1198 | E107: 1 | F107: 1130 | G107: 1 | H107: 266 | I107: No | J107: 0 | K107: Yes
B108: BZ16A | C108: Minor Ocular Motility Procedures, 19 years and over | D108: 1128 | E108: 1 | F108: 963 | G108: 1 | H108: 266 | I108: No | J108: 0 | K108: Yes
B109: BZ16B | C109: Minor Ocular Motility Procedures, 18 years and under | D109: 1095 | E109: 1 | F109: 919 | G109: 1 | H109: 266 | I109: No | J109: 0 | K109: Yes
B110: BZ17Z | C110: Major Glaucoma Procedures | D110: 1410 | E110: 1 | F110: 1519 | G110: 8 | H110: 266 | I110: No | J110: 0 | K110: Yes
B111: BZ18Z | C111: Intermediate Glaucoma Procedures | D111: 1022 | E111: 1 | F111: 1604 | G111: 8 | H111: 266 | I111: No | J111: 0 | K111: Yes
B112: BZ19Z | C112: Minor Glaucoma Procedures | D112: 484 | E112: 1 | F112: 1066 | G112: 5 | H112: 266 | I112: No | J112: 0 | K112: Yes
B113: BZ20Z | C113: Complex Vitreous Retinal Procedures | D113: 1906 | E113: 3 | F113: 2357 | G113: 5 | H113: 266 | I113: No | J113: 0 | K113: Yes
B114: BZ21Z | C114: Major Vitreous Retinal Procedures | D114: 1498 | E114: 1 | F114: 1666 | G114: 3 | H114: 266 | I114: No | J114: 0 | K114: Yes
B115: BZ22Z | C115: Intermediate Vitreous Retinal Procedures | D115: 1239 | E115: 1 | F115: 2043 | G115: 5 | H115: 266 | I115: No | J115: 0 | K115: Yes
B116: BZ23Z | C116: Minor Vitreous Retinal Procedures | D116: 376 | E116: 1 | F116: 862 | G116: 1 | H116: 266 | I116: No | J116: 0 | K116: Yes
B117: BZ24A | C117: Non-Surgical Ophthalmology with length of stay 2 days or more | D117: 2862 | E117: 12 | F117: 2192 | G117: 17 | H117: 266 | I117: No | J117: 0 | K117: Yes
B118: BZ24C | C118: Non-Surgical Ophthalmology with length of stay 1 day or less | D118: 336 | E118: 1 | F118: 425 | G118: 3 | H118: 266 | I118: No | J118: 0 | K118: Yes
B119: CZ01S | C119: Minor Mouth or Throat Procedures, 18 years and under with CC | D119: 875 | E119: 1 | F119: 2776 | G119: 8 | H119: 254 | I119: No | J119: 0 | K119: Yes
B120: CZ01T | C120: Minor Mouth or Throat Procedures, 18 years and under without CC | D120: 696 | E120: 1 | F120: 839 | G120: 3 | H120: 254 | I120: No | J120: 0 | K120: Yes
B121: CZ01V | C121: Minor Mouth or Throat Procedures, 19 years and over with CC | D121: 697 | E121: 1 | F121: 1727 | G121: 11 | H121: 254 | I121: No | J121: 0 | K121: Yes
B122: CZ01Y | C122: Minor Mouth or Throat Procedures, 19 years and over without CC | D122: 534 | E122: 1 | F122: 729 | G122: 3 | H122: 254 | I122: No | J122: 0 | K122: Yes
B123: CZ02S | C123: Intermediate Mouth or Throat Procedures, 18 years and under with CC | D123: 1442 | E123: 3 | F123: 3341 | G123: 20 | H123: 254 | I123: No | J123: 0 | K123: Yes
B124: CZ02T | C124: Intermediate Mouth or Throat Procedures, 18 years and under without CC | D124: 1079 | E124: 1 | F124: 1288 | G124: 5 | H124: 254 | I124: No | J124: 0 | K124: Yes
B125: CZ02W | C125: Intermediate Mouth or Throat Procedures, 19 years and over with Major CC | D125: 1579 | E125: 3 | F125: 5236 | G125: 47 | H125: 254 | I125: No | J125: 0 | K125: Yes
B126: CZ02X | C126: Intermediate Mouth or Throat Procedures, 19 years and over with Intermediate CC | D126: 1069 | E126: 3 | F126: 1811 | G126: 9 | H126: 254 | I126: No | J126: 0 | K126: Yes
B127: CZ02Y | C127: Intermediate Mouth or Throat Procedures, 19 years and over without CC | D127: 924 | E127: 1 | F127: 1165 | G127: 5 | H127: 254 | I127: No | J127: 0 | K127: Yes
B128: CZ03U | C128: Major Mouth or Throat Procedures, 18 years and under | D128: 2885 | E128: 4 | F128: 3079 | G128: 12 | H128: 254 | I128: No | J128: 0 | K128: Yes
B129: CZ03V | C129: Major Mouth or Throat Procedures, 19 years and over with CC | D129: 2725 | E129: 5 | F129: 5270 | G129: 31 | H129: 254 | I129: No | J129: 0 | K129: Yes
B130: CZ03Y | C130: Major Mouth or Throat Procedures, 19 years and over without CC | D130: 2087 | E130: 3 | F130: 2502 | G130: 10 | H130: 254 | I130: No | J130: 0 | K130: Yes
B131: CZ04O | C131: Complex Major Mouth or Throat Procedures, with Major CC | D131: 19562 | E131: 67 | F131: 22794 | G131: 110 | H131: 254 | I131: No | J131: 0 | K131: Yes
B132: CZ04P | C132: Complex Major Mouth or Throat Procedures, with Intermediate CC | D132: 11144 | E132: 42 | F132: 17638 | G132: 86 | H132: 254 | I132: No | J132: 0 | K132: Yes
B133: CZ04Q | C133: Complex Major Mouth or Throat Procedures, without CC | D133: 7276 | E133: 35 | F133: 8019 | G133: 60 | H133: 254 | I133: No | J133: 0 | K133: Yes
B134: CZ05S | C134: Tonsillectomy, 18 years and under with CC | D134: 1406 | E134: 3 | F134: 2122 | G134: 6 | H134: 254 | I134: No | J134: 0 | K134: Yes
B135: CZ05T | C135: Tonsillectomy, 18 years and under without CC | D135: 1195 | E135: 3 | F135: 1118 | G135: 4 | H135: 254 | I135: No | J135: 0 | K135: Yes
B136: CZ05V | C136: Tonsillectomy, 19 years and over with CC | D136: 1283 | E136: 3 | F136: 1021 | G136: 4 | H136: 254 | I136: No | J136: 0 | K136: Yes
B137: CZ05Y | C137: Tonsillectomy, 19 years and over without CC | D137: 1191 | E137: 3 | F137: 867 | G137: 4 | H137: 254 | I137: No | J137: 0 | K137: Yes
B138: CZ07O | C138: Exteriorisation of Trachea with Major CC | D138: 9557 | E138: 104 | F138: 8573 | G138: 99 | H138: 254 | I138: No | J138: 0 | K138: Yes
B139: CZ07P | C139: Exteriorisation of Trachea with Intermediate CC | D139: 3513 | E139: 21 | F139: 5187 | G139: 60 | H139: 254 | I139: No | J139: 0 | K139: Yes
B140: CZ07Q | C140: Exteriorisation of Trachea without CC | D140: 3159 | E140: 11 | F140: 3506 | G140: 35 | H140: 254 | I140: No | J140: 0 | K140: Yes
B141: CZ08S | C141: Minor Ear Procedures, 18 years and under with CC | D141: 915 | E141: 1 | F141: 1787 | G141: 11 | H141: 254 | I141: No | J141: 0 | K141: Yes
B142: CZ08T | C142: Minor Ear Procedures, 18 years and under without CC | D142: 772 | E142: 1 | F142: 917 | G142: 5 | H142: 254 | I142: No | J142: 0 | K142: Yes
B143: CZ08V | C143: Minor Ear Procedures, 19 years and over with CC | D143: 737 | E143: 1 | F143: 1895 | G143: 16 | H143: 254 | I143: No | J143: 0 | K143: Yes
B144: CZ08Y | C144: Minor Ear Procedures, 19 years and over without CC | D144: 696 | E144: 1 | F144: 784 | G144: 5 | H144: 254 | I144: No | J144: 0 | K144: Yes
B145: CZ09U | C145: Intermediate Ear Procedures, 18 years and under | D145: 1609 | E145: 1 | F145: 1086 | G145: 8 | H145: 254 | I145: No | J145: 0 | K145: Yes
B146: CZ09V | C146: Intermediate Ear Procedures, 19 years and over with CC | D146: 1133 | E146: 1 | F146: 2005 | G146: 16 | H146: 254 | I146: No | J146: 0 | K146: Yes
B147: CZ09Y | C147: Intermediate Ear Procedures, 19 years and over without CC | D147: 1135 | E147: 1 | F147: 1043 | G147: 5 | H147: 254 | I147: No | J147: 0 | K147: Yes
B148: CZ10U | C148: Major Ear Procedures, 18 years and under | D148: 2235 | E148: 3 | F148: 4186 | G148: 13 | H148: 254 | I148: No | J148: 0 | K148: Yes
B149: CZ10V | C149: Major Ear Procedures, 19 years and over with CC | D149: 2350 | E149: 3 | F149: 6115 | G149: 39 | H149: 254 | I149: No | J149: 0 | K149: Yes
B150: CZ10Y | C150: Major Ear Procedures, 19 years and over without CC | D150: 2223 | E150: 3 | F150: 2714 | G150: 15 | H150: 254 | I150: No | J150: 0 | K150: Yes
B151: CZ11Z | C151: Complex Major Ear Procedures | D151: 2954 | E151: 5 | F151: 3884 | G151: 25 | H151: 254 | I151: No | J151: 0 | K151: Yes
B152: CZ12U | C152: Minor Nose Procedures, 18 years and under | D152: 718 | E152: 1 | F152: 812 | G152: 3 | H152: 254 | I152: No | J152: 0 | K152: Yes
B153: CZ12V | C153: Minor Nose Procedures, 19 years and over with CC | D153: 759 | E153: 1 | F153: 1073 | G153: 6 | H153: 254 | I153: No | J153: 0 | K153: Yes
B154: CZ12Y | C154: Minor Nose Procedures, 19 years and over without CC | D154: 647 | E154: 1 | F154: 805 | G154: 5 | H154: 254 | I154: No | J154: 0 | K154: Yes
B155: CZ13U | C155: Intermediate Nose Procedures, 18 years and under | D155: 1258 | E155: 3 | F155: 1539 | G155: 8 | H155: 254 | I155: No | J155: 0 | K155: Yes
B156: CZ13V | C156: Intermediate Nose Procedures, 19 years and over with CC | D156: 1308 | E156: 3 | F156: 1206 | G156: 6 | H156: 254 | I156: No | J156: 0 | K156: Yes
B157: CZ13Y | C157: Intermediate Nose Procedures, 19 years and over without CC | D157: 1252 | E157: 3 | F157: 1004 | G157: 4 | H157: 254 | I157: No | J157: 0 | K157: Yes
B158: CZ14U | C158: Major Nose Procedures, 18 years and under | D158: 1884 | E158: 3 | F158: 4222 | G158: 17 | H158: 254 | I158: No | J158: 0 | K158: Yes
B159: CZ14V | C159: Major Nose Procedures, 19 years and over with CC | D159: 1644 | E159: 3 | F159: 2188 | G159: 11 | H159: 254 | I159: No | J159: 0 | K159: Yes
B160: CZ14Y | C160: Major Nose Procedures, 19 years and over without CC | D160: 1571 | E160: 3 | F160: 1784 | G160: 9 | H160: 254 | I160: No | J160: 0 | K160: Yes
B161: CZ15N | C161: Complex Major Nose Procedures with CC | D161: 1893 | E161: 3 | F161: 4129 | G161: 16 | H161: 254 | I161: No | J161: 0 | K161: Yes
B162: CZ15Q | C162: Complex Major Nose Procedures without CC | D162: 1677 | E162: 3 | F162: 3332 | G162: 12 | H162: 254 | I162: No | J162: 0 | K162: Yes
B163: CZ16N | C163: Minor Maxillo-facial Procedures with CC | D163: 1412 | E163: 3 | F163: 1760 | G163: 4 | H163: 254 | I163: No | J163: 0 | K163: Yes
B164: CZ16Q | C164: Minor Maxillo-facial Procedures without CC | D164: 1230 | E164: 3 | F164: 1628 | G164: 4 | H164: 254 | I164: No | J164: 0 | K164: Yes
B165: CZ17U | C165: Intermediate Maxillo-facial Procedures, 18 years and under | D165: 1573 | E165: 3 | F165: 2428 | G165: 4 | H165: 254 | I165: No | J165: 0 | K165: Yes
B166: CZ17V | C166: Intermediate Maxillo-facial Procedures, 19 years and over with CC | D166: 2373 | E166: 5 | F166: 2890 | G166: 9 | H166: 254 | I166: No | J166: 0 | K166: Yes
B167: CZ17Y | C167: Intermediate Maxillo-facial Procedures, 19 years and over without CC | D167: 1508 | E167: 3 | F167: 2258 | G167: 4 | H167: 254 | I167: No | J167: 0 | K167: Yes
B168: CZ18R | C168: Major Maxillo-facial Procedures, 19 years and over | D168: 3953 | E168: 4 | F168: 3899 | G168: 16 | H168: 254 | I168: No | J168: 0 | K168: Yes
B169: CZ18U | C169: Major Maxillo-facial Procedures, 18 years and under | D169: 3679 | E169: 4 | F169: 3343 | G169: 10 | H169: 254 | I169: No | J169: 0 | K169: Yes
B170: CZ19Z | C170: Complex Major Maxillo-facial Procedures | D170: 6869 | E170: 21 | F170: 6720 | G170: 35 | H170: 254 | I170: No | J170: 0 | K170: Yes
B171: CZ20Z | C171: Complex Major Head or Neck Procedures with Reconstruction | D171: 18548 | E171: 46 | F171: 18548 | G171: 46 | H171: 254 | I171: No | J171: 0 | K171: Yes
B172: CZ21V | C172: Minor Head, Neck and Ear Disorders, with CC | D172: 1029 | E172: 5 | F172: 766 | G172: 3 | H172: 254 | I172: Yes | J172: 498 | K172: Yes
B173: CZ21Y | C173: Minor Head, Neck and Ear Disorders, without CC | D173: 676 | E173: 1 | F173: 474 | G173: 3 | H173: 254 | I173: No | J173: 0 | K173: Yes
B174: CZ22W | C174: Intermediate Head, Neck and Ear Disorders, with Major CC | D174: 2038 | E174: 17 | F174: 2234 | G174: 15 | H174: 254 | I174: Yes | J174: 670 | K174: Yes
B175: CZ22X | C175: Intermediate Head, Neck and Ear Disorders, with Intermediate CC | D175: 1322 | E175: 8 | F175: 982 | G175: 5 | H175: 254 | I175: Yes | J175: 638 | K175: Yes
B176: CZ22Y | C176: Intermediate Head, Neck and Ear Disorders, without CC | D176: 775 | E176: 3 | F176: 667 | G176: 5 | H176: 254 | I176: No | J176: 0 | K176: Yes
B177: CZ23W | C177: Major Head, Neck and Ear Disorders, with Major CC | D177: 2968 | E177: 29 | F177: 2703 | G177: 21 | H177: 254 | I177: Yes | J177: 811 | K177: Yes
B178: CZ23X | C178: Major Head, Neck and Ear Disorders, with Intermediate CC | D178: 1328 | E178: 10 | F178: 1403 | G178: 8 | H178: 254 | I178: Yes | J178: 561 | K178: Yes
B179: CZ23Y | C179: Major Head, Neck and Ear Disorders, without CC | D179: 1010 | E179: 8 | F179: 627 | G179: 5 | H179: 254 | I179: No | J179: 0 | K179: Yes
B180: CZ24O | C180: Complex Major Head, Neck and Ear Disorders, with Major CC | D180: 5394 | E180: 42 | F180: 5175 | G180: 44 | H180: 254 | I180: Yes | J180: 1552 | K180: Yes
B181: CZ24P | C181: Complex Major Head, Neck and Ear Disorders, with Intermediate CC | D181: 1735 | E181: 11 | F181: 3016 | G181: 20 | H181: 254 | I181: Yes | J181: 905 | K181: Yes
B182: CZ24Q | C182: Complex Major Head, Neck and Ear Disorders, without CC | D182: 1578 | E182: 13 | F182: 2272 | G182: 14 | H182: 254 | I182: Yes | J182: 682 | K182: Yes
B183: CZ25N | C183: Cochlear Implants with CC | D183: 20164 | E183: 1 | F183: 17685 | G183: 32 | H183: 254 | I183: No | J183: 0 | K183: No
B184: CZ25Q | C184: Cochlear Implants without CC | D184: 20129 | E184: 1 | F184: 20129 | G184: 1 | H184: 254 | I184: No | J184: 0 | K184: No
B185: CZ27Z | C185: Fixture for Bone Anchored Hearing Aids | D185: 2577 | E185: 1 | F185: 2577 | G185: 1 | H185: 254 | I185: No | J185: 0 | K185: Yes
B186: CZ28Z | C186: Fitting of Bone Anchored Hearing Aids | D186: 2473 | E186: 3 | F186: 2891 | G186: 133 | H186: 254 | I186: No | J186: 0 | K186: Yes
B187: CZ30U | C187: Minor Extraction of Tooth, 18 years and under | D187: 475 | E187: 1 | F187: 885 | G187: 3 | H187: 254 | I187: No | J187: 0 | K187: Yes
B188: CZ30Y | C188: Minor Extraction of Tooth, 19 years and over | D188: 361 | E188: 1 | F188: 852 | G188: 5 | H188: 254 | I188: No | J188: 0 | K188: Yes
B189: CZ31U | C189: Minor Dental Biopsy, 18 years and under | D189: 554 | E189: 1 | F189: 785 | G189: 5 | H189: 254 | I189: No | J189: 0 | K189: Yes
B190: CZ31Y | C190: Minor Dental Biopsy, 19 years and over | D190: 390 | E190: 1 | F190: 650 | G190: 1 | H190: 254 | I190: No | J190: 0 | K190: Yes
B191: CZ32U | C191: Dental Fitting or Insertion Procedures, 18 years and under | D191: 983 | E191: 1 | F191: 650 | G191: 1 | H191: 254 | I191: No | J191: 0 | K191: Yes
B192: CZ32Y | C192: Dental Fitting or Insertion Procedures, 19 years and over | D192: 858 | E192: 1 | F192: 559 | G192: 5 | H192: 254 | I192: No | J192: 0 | K192: Yes
B193: CZ33U | C193: Minor Dental Restoration Procedures, 18 years and under | D193: 584 | E193: 1 | F193: 751 | G193: 3 | H193: 254 | I193: No | J193: 0 | K193: Yes
B194: CZ33Y | C194: Minor Dental Restoration Procedures, 19 years and over | D194: 446 | E194: 1 | F194: 1088 | G194: 1 | H194: 254 | I194: No | J194: 0 | K194: Yes
B195: CZ34U | C195: Minor Dental Procedures, 18 years and under | D195: 598 | E195: 1 | F195: 1020 | G195: 3 | H195: 254 | I195: No | J195: 0 | K195: Yes
B196: CZ34Y | C196: Minor Dental Procedures, 19 years and over | D196: 574 | E196: 1 | F196: 1140 | G196: 4 | H196: 254 | I196: No | J196: 0 | K196: Yes
B197: CZ35U | C197: Adjustment of Dental Device, 18 years and under | D197: 696 | E197: 1 | F197: 240 | G197: 1 | H197: 254 | I197: No | J197: 0 | K197: Yes
B198: CZ35Y | C198: Adjustment of Dental Device, 19 years and over | D198: 1608 | E198: 3 | F198: 1608 | G198: 3 | H198: 254 | I198: No | J198: 0 | K198: Yes
B199: CZ36U | C199: Dental Excision or Biopsy Procedures, 18 years and under | D199: 708 | E199: 1 | F199: 917 | G199: 5 | H199: 254 | I199: No | J199: 0 | K199: Yes
B200: CZ36Y | C200: Dental Excision or Biopsy Procedures, 19 years and over | D200: 585 | E200: 1 | F200: 754 | G200: 1 | H200: 254 | I200: No | J200: 0 | K200: Yes
B201: CZ37U | C201: Surgical Removal of Tooth, 18 years and under | D201: 817 | E201: 1 | F201: 1051 | G201: 3 | H201: 254 | I201: No | J201: 0 | K201: Yes
B202: CZ37Y | C202: Surgical Removal of Tooth, 19 years and over | D202: 517 | E202: 1 | F202: 1137 | G202: 4 | H202: 254 | I202: No | J202: 0 | K202: Yes
B203: CZ38U | C203: Creation of Dental Impression, 18 years and under | D203: 914 | E203: 1 | F203: 1347 | G203: 3 | H203: 254 | I203: No | J203: 0 | K203: Yes
B204: CZ38Y | C204: Creation of Dental Impression, 19 years and over | D204: 579 | E204: 1 | F204: 2333 | G204: 3 | H204: 254 | I204: No | J204: 0 | K204: Yes
B205: CZ39U | C205: Intermediate Dental Procedures, 18 years and under | D205: 931 | E205: 1 | F205: 1038 | G205: 3 | H205: 254 | I205: No | J205: 0 | K205: Yes
B206: CZ39Y | C206: Intermediate Dental Procedures, 19 years and over | D206: 841 | E206: 1 | F206: 977 | G206: 5 | H206: 254 | I206: No | J206: 0 | K206: Yes
B207: CZ40U | C207: Major Surgical Removal of Tooth, 18 years and under | D207: 916 | E207: 1 | F207: 1265 | G207: 5 | H207: 254 | I207: No | J207: 0 | K207: Yes
... 1130 more rows

Sheet 03_OPROC_RAW
A1: Home
B2: FROM [PbR1516_TED_35].[output].[OPROC_Final Tariff]
B10: HRG | C10: TOTAL ACT | D10: REVISED TC | E10: OPROC_Tariff
B11: AA33C | C11: 30120 | D11: 4320525.491 | E11: 143
B12: AB05Z | C12: 11496 | D12: 1965966.976 | E12: 171
B13: AB06Z | C13: 74463 | D13: 7673667.757 | E13: 103
B14: AB09Z | C14: 2806 | D14: 325436.6511 | E14: 116
B15: BZ04Z | C15: 32716 | D15: 3634802.165 | E15: 111
B16: BZ07A | C16: 25364 | D16: 3079639.299 | E16: 121
B17: BZ07B | C17: 669 | D17: 100819.4855 | E17: 151
B18: BZ10A | C18: 11664 | D18: 1294533.583 | E18: 111
B19: BZ10B | C19: 126 | D19: 16130.4457 | E19: 128
B20: BZ13Z | C20: 8199 | D20: 1255899.133 | E20: 153
B21: BZ18Z | C21: 24942 | D21: 2453118.472 | E21: 98
B22: BZ19Z | C22: 10556 | D22: 1128457.056 | E22: 107
B23: BZ22Z | C23: 58419 | D23: 9195063.107 | E23: 157
B24: BZ23Z | C24: 646155 | D24: 77237381.85 | E24: 120
B25: CZ01T | C25: 14283 | D25: 1691099.328 | E25: 118
B26: CZ01Y | C26: 113875 | D26: 16238669.55 | E26: 143
B27: CZ02T | C27: 4517 | D27: 532244.3037 | E27: 118
B28: CZ02Y | C28: 145662 | D28: 17665609.41 | E28: 121
B29: CZ08T | C29: 100444 | D29: 10989038.44 | E29: 109
B30: CZ08Y | C30: 429120 | D30: 50323880.31 | E30: 117
B31: CZ12U | C31: 6913 | D31: 828898.6767 | E31: 120
B32: CZ12Y | C32: 22848 | D32: 2858727.044 | E32: 125
B33: CZ13Y | C33: 12889 | D33: 1660964.253 | E33: 129
B34: CZ30Y | C34: 17665 | D34: 2077496.193 | E34: 118
B35: CZ31Y | C35: 13467 | D35: 2219215.694 | E35: 165
B36: CZ32U | C36: 41509 | D36: 4983474.42 | E36: 120
B37: CZ32Y | C37: 20985 | D37: 2735670.921 | E37: 130
B38: CZ33Y | C38: 6418 | D38: 927958.8033 | E38: 145
B39: CZ34U | C39: 132811 | D39: 14780233.14 | E39: 111
B40: CZ34Y | C40: 197280 | D40: 23630811.4 | E40: 120
B41: CZ35U | C41: 164689 | D41: 19276051.04 | E41: 117
B42: CZ35Y | C42: 44387 | D42: 5298503.47 | E42: 119
B43: CZ36Y | C43: 10723 | D43: 1898064.651 | E43: 177
B44: CZ37Y | C44: 30808 | D44: 3856026.253 | E44: 125
B45: CZ38U | C45: 35132 | D45: 4337149.052 | E45: 123
B46: CZ38Y | C46: 20454 | D46: 2799545.009 | E46: 137
B47: CZ39U | C47: 19556 | D47: 2582635.664 | E47: 132
B48: CZ39Y | C48: 6415 | D48: 907966.4957 | E48: 142
B49: CZ40Y | C49: 7757 | D49: 1017354.761 | E49: 131
B50: CZ41Y | C50: 7384 | D50: 1082937.242 | E50: 147
B51: CZ42Y | C51: 10677 | D51: 1359783.673 | E51: 127
B52: DZ31Z | C52: 17766 | D52: 3623948.545 | E52: 204
B53: DZ32Z | C53: 7429 | D53: 1318651.703 | E53: 178
B54: DZ37A | C54: 5639 | D54: 623416.5463 | E54: 111
B55: DZ42Z | C55: 12145 | D55: 1932179.62 | E55: 159
B56: DZ50Z | C56: 628 | D56: 131139.4429 | E56: 209
B57: DZ52Z | C57: 9552 | D57: 1339745.292 | E57: 140
B58: EA44Z | C58: 62874 | D58: 6708430.448 | E58: 107
B59: EA45Z | C59: 37280 | D59: 4274399.918 | E59: 115
B60: EA47Z | C60: 408246 | D60: 63766776.02 | E60: 156
B61: FZ22A | C61: 622 | D61: 221867.2115 | E61: 357
B62: FZ50Z | C62: 19420 | D62: 4368610.637 | E62: 225
B63: FZ51Z | C63: 2994 | D63: 855373.2193 | E63: 286
B64: FZ52Z | C64: 1907 | D64: 569616.383 | E64: 299
B65: FZ54Z | C65: 19017 | D65: 3397832.11 | E65: 179
B66: FZ55Z | C66: 3874 | D66: 726639.5064 | E66: 188
B67: FZ57Z | C67: 99851 | D67: 16651579.92 | E67: 167
B68: FZ59Z | C68: 4444 | D68: 615509.4032 | E68: 139
B69: FZ60Z | C69: 5791 | D69: 1402271.168 | E69: 242
B70: FZ61Z | C70: 6669 | D70: 1649840.619 | E70: 247
B71: FZ83B | C71: 2113 | D71: 173347.438 | E71: 82
B72: HB25F | C72: 734 | D72: 135569.6002 | E72: 185
B73: HB29Z | C73: 10052 | D73: 1712873.19 | E73: 170
B74: HB35C | C74: 3331 | D74: 1456033.091 | E74: 437
B75: HB56C | C75: 289 | D75: 56231.13003 | E75: 195
B76: HB69Z | C76: 9182 | D76: 1534209.221 | E76: 167
B77: HB79Z | C77: 4980 | D77: 1086890.792 | E77: 218
B78: JA18C | C78: 67937 | D78: 24027444.52 | E78: 354
B79: JC03C | C79: 4258 | D79: 515331.9291 | E79: 121
B80: JC04C | C80: 13873 | D80: 1798373.761 | E80: 130
B81: JC05C | C81: 19759 | D81: 2868953.078 | E81: 145
B82: JC09Z | C82: 28975 | D82: 2956139.528 | E82: 102
B83: JC10Z | C83: 23169 | D83: 3540061.022 | E83: 153
B84: JC11Z | C84: 20275 | D84: 3254258.53 | E84: 161
B85: JC14Z | C85: 142945 | D85: 18276585.88 | E85: 128
B86: JC15Z | C86: 223953 | D86: 31362959.37 | E86: 140
B87: JC18Z | C87: 124194 | D87: 14238037.05 | E87: 115
B88: JC19D | C88: 2606 | D88: 255695.4379 | E88: 98
B89: JC20Z | C89: 12794 | D89: 913035.1107 | E89: 71
B90: JC33Z | C90: 34795 | D90: 3454683.837 | E90: 99
B91: JC34Z | C91: 387003 | D91: 30130841.31 | E91: 78
B92: KB04Z | C92: 516 | D92: 118075.9496 | E92: 229
B93: LB14Z | C93: 780 | D93: 435865.0984 | E93: 559
B94: LB15E | C94: 19686 | D94: 4249682.71 | E94: 216
B95: LB17Z | C95: 27664 | D95: 3897653.131 | E95: 141
B96: LB27Z | C96: 17523 | D96: 3860748.45 | E96: 220
B97: LB42A | C97: 88706 | D97: 26895203.08 | E97: 303
B98: LB72A | C98: 47663 | D98: 7745035.372 | E98: 162
B99: MA10Z | C99: 859 | D99: 89094.27665 | E99: 104
B100: MA21Z | C100: 31685 | D100: 5812040.241 | E100: 183
B101: MA23Z | C101: 448453 | D101: 69220729.16 | E101: 154
B102: MA25Z | C102: 135733 | D102: 19482597.18 | E102: 144
B103: QZ05B | C103: 5734 | D103: 1208815.981 | E103: 211
B104: QZ14B | C104: 28250 | D104: 4161400.533 | E104: 147
B105: SA13A | C105: 21908 | D105: 3513028.296 | E105: 160
B106: SA13B | C106: 865 | D106: 165802.1512 | E106: 192
B107: UZ01Z | C107: 28890 | D107: 6530009.526 | E107: 0

Sheet 04_HES_Activity_RAW
A1: Home
B2: FROM [PbR1516_TED_35].[stage].[APC_Unit_Costs]
B10: SPELL HRG | C10: EL ACT | D10: NE ACT | E10: EL TC | F10: NE TC | G10: EL UC | H10: NE UC
B11: AA02A | C11: 21 | D11: 1895 | E11: 166806.6546 | F11: 13891419.38 | G11: 7943.174027 | H11: 7330.564319
B12: AA02B | C12: 3 | D12: 242 | E12: 15902.68671 | F12: 1346142.237 | G12: 5300.895572 | H12: 5562.571228
B13: AA03A | C13: 76 | D13: 1710 | E13: 639977.5185 | F13: 10940244.64 | G13: 8420.756822 | H13: 6397.803881
B14: AA03B | C14: 36 | D14: 178 | E14: 188020.6149 | F14: 885085.8105 | G14: 5222.794859 | H14: 4972.392194
B15: AA04A | C15: 28 | D15: 298 | E15: 299732.2574 | F15: 4305927.9 | G15: 10704.72348 | H15: 14449.42248
B16: AA04B | C16: 4 | D16: 37 | E16: 19600.86342 | F16: 398515.2612 | G16: 4900.215855 | H16: 10770.68274
B17: AA05A | C17: 270 | D17: 407 | E17: 1788890.54 | F17: 5281068.991 | G17: 6625.520518 | H17: 12975.59949
B18: AA05B | C18: 257 | D18: 40 | E18: 1102897.136 | F18: 372073.8494 | G18: 4291.428545 | H18: 9301.846234
B19: AA06A | C19: 2333 | D19: 1105 | E19: 18480322.68 | F19: 12696897.42 | G19: 7921.269899 | H19: 11490.4049
B20: AA06B | C20: 1175 | D20: 229 | E20: 5925132.433 | F20: 2054125.489 | G20: 5042.665901 | H20: 8969.980303
B21: AA07A | C21: 410 | D21: 325 | E21: 3100310.382 | F21: 2989449.758 | G21: 7561.732638 | H21: 9198.306949
B22: AA07B | C22: 293 | D22: 81 | E22: 1400960.829 | F22: 556175.379 | G22: 4781.436276 | H22: 6866.362704
B23: AA08A | C23: 462 | D23: 23 | E23: 3287299.807 | F23: 166503.4234 | G23: 7115.367548 | H23: 7239.279279
B24: AA08B | C24: 240 | D24: 2 | E24: 1951119.649 | F24: 11103.11393 | G24: 8129.665202 | H24: 5551.556963
B25: AA09A | C25: 890 | D25: 361 | E25: 2377074.119 | F25: 3744928.495 | G25: 2670.869797 | H25: 10373.76314
B26: AA09B | C26: 987 | D26: 66 | E26: 720712.0387 | F26: 492903.3092 | G26: 730.2046998 | H26: 7468.231957
B27: AA10A | C27: 22 | D27: 95 | E27: 162667.5633 | F27: 1374793.878 | G27: 7393.980152 | H27: 14471.5145
B28: AA10B | C28: 2 | D28: 10 | E28: 9774.048023 | F28: 66850.51844 | G28: 4887.024011 | H28: 6685.051844
B29: AA11A | C29: 25 | D29: 512 | E29: 260822.0411 | F29: 6721900.755 | G29: 10432.88164 | H29: 13128.71241
B30: AA11B | C30: 4 | D30: 45 | E30: 12032.58984 | F30: 406740.0233 | G30: 3008.147461 | H30: 9038.667184
B31: AA12A | C31: 1644 | D31: 1112 | E31: 10866758.86 | F31: 9823405.541 | G31: 6609.950643 | H31: 8833.997789
B32: AA12B | C32: 507 | D32: 258 | E32: 3120078.438 | F32: 2037422.621 | G32: 6154.000863 | H32: 7896.986903
B33: AA13A | C33: 523 | D33: 473 | E33: 2863555.594 | F33: 3621598.514 | G33: 5475.249701 | H33: 7656.656477
B34: AA13B | C34: 147 | D34: 156 | E34: 725984.3532 | F34: 898457.2804 | G34: 4938.66907 | H34: 5759.341541
B35: AA14A | C35: 286 | D35: 34 | E35: 868738.1239 | F35: 130730.9164 | G35: 3037.545888 | H35: 3845.026954
B36: AA14B | C36: 125 | D36: 2 | E36: 379639.4277 | F36: 10579.3276 | G36: 3037.115422 | H36: 5289.663802
B37: AA15A | C37: 370 | D37: 273 | E37: 1982647.859 | F37: 2722360.904 | G37: 5358.507727 | H37: 9972.017963
B38: AA15B | C38: 199 | D38: 57 | E38: 829244.8854 | F38: 440765.1092 | G38: 4167.059726 | H38: 7732.721215
B39: AA16A | C39: 14 | D39: 216 | E39: 97628.72232 | F39: 1852687.663 | G39: 6973.480166 | H39: 8577.2577
B40: AA16B | C40: 10 | D40: 32 | E40: 27535.54065 | F40: 234395.9694 | G40: 2753.554065 | H40: 7324.874044
B41: AA17A | C41: 48 | D41: 553 | E41: 381963.3028 | F41: 4758300.286 | G41: 7957.568809 | H41: 8604.521313
B42: AA17B | C42: 20 | D42: 50 | E42: 168538.6622 | F42: 280946.2634 | G42: 8426.933111 | H42: 5618.925269
B43: AA18A | C43: 441 | D43: 442 | E43: 2038493.087 | F43: 2959986.802 | G43: 4622.433305 | H43: 6696.802719
B44: AA18B | C44: 183 | D44: 107 | E44: 807444.4193 | F44: 640273.644 | G44: 4412.264586 | H44: 5983.865832
B45: AA19A | C45: 1057 | D45: 901 | E45: 2416226.216 | F45: 4514316.66 | G45: 2285.928303 | H45: 5010.340356
B46: AA19B | C46: 647 | D46: 206 | E46: 1157305.314 | F46: 737179.287 | G46: 1788.725369 | H46: 3578.540228
B47: AA20A | C47: 587 | D47: 85 | E47: 1130298.257 | F47: 313031.3529 | G47: 1925.550694 | H47: 3682.721799
B48: AA20B | C48: 462 | D48: 23 | E48: 658076.4448 | F48: 36840.04524 | G48: 1424.407889 | H48: 1601.741098
B49: AA21A | C49: 3950 | D49: 828 | E49: 6589523.135 | F49: 5205267.379 | G49: 1668.233705 | H49: 6286.554806
B50: AA21B | C50: 2679 | D50: 146 | E50: 2469730.048 | F50: 680918.4336 | G50: 921.8850498 | H50: 4663.824888
B51: AA22A | C51: 2391 | D51: 77013 | E51: 9074072.403 | F51: 293960501.1 | G51: 3795.095108 | H51: 3817.024413
B52: AA22B | C52: 829 | D52: 4378 | E52: 623105.8002 | F52: 8641368.345 | G52: 751.6354647 | H52: 1973.816433
B53: AA23A | C53: 531 | D53: 16811 | E53: 4203953.359 | F53: 63756977.5 | G53: 7917.04964 | H53: 3792.574951
B54: AA23B | C54: 70 | D54: 1470 | E54: 270559.0421 | F54: 2217831.649 | G54: 3865.129173 | H54: 1508.729013
B55: AA24A | C55: 2255 | D55: 9574 | E55: 2384231.867 | F55: 30842908.01 | G55: 1057.309032 | H55: 3221.527889
B56: AA24B | C56: 1636 | D56: 995 | E56: 1176763.124 | F56: 1671662.842 | G56: 719.2928628 | H56: 1680.063158
B57: AA25A | C57: 5488 | D57: 28435 | E57: 7799532.374 | F57: 60588039.04 | G57: 1421.19759 | H57: 2130.755725
B58: AA25B | C58: 4647 | D58: 2774 | E58: 2554706.563 | F58: 2983761.108 | G58: 549.7539408 | H58: 1075.616838
B59: AA26A | C59: 11595 | D59: 88746 | E59: 11050057.98 | F59: 119220574.3 | G59: 953.0019816 | H59: 1343.390962
B60: AA26B | C60: 11503 | D60: 15639 | E60: 7586932.205 | F60: 10395966.61 | G60: 659.5611758 | H60: 664.7462506
B61: AA27A | C61: 37 | D61: 2473 | E61: 130114.5477 | F61: 10780146.57 | G61: 3516.609397 | H61: 4359.137312
B62: AA27B | C62: 30 | D62: 84 | E62: 13054.22905 | F62: 83551.58345 | G62: 435.1409684 | H62: 994.6617078
B63: AA28A | C63: 754 | D63: 914 | E63: 1859921.933 | F63: 4400702.049 | G63: 2466.739965 | H63: 4814.772483
B64: AA28B | C64: 323 | D64: 90 | E64: 555766.5054 | F64: 229463.9645 | G64: 1720.639336 | H64: 2549.599605
B65: AA29A | C65: 647 | D65: 20953 | E65: 325202.1348 | F65: 20511901.93 | G65: 502.6308112 | H65: 978.9482139
B66: AA29B | C66: 61 | D66: 1701 | E66: 29148.03609 | F66: 966227.7284 | G66: 477.8366573 | H66: 568.0351137
B67: AA30A | C67: 5051 | D67: 2609 | E67: 2806104.975 | F67: 8526345.542 | G67: 555.5543407 | H67: 3268.051185
B68: AA30B | C68: 23807 | D68: 1040 | E68: 9021027.232 | F68: 1582977.533 | G68: 378.9233096 | H68: 1522.093782
B69: AA31A | C69: 1263 | D69: 42796 | E69: 1074303.563 | F69: 32773889.46 | G69: 850.5966451 | H69: 765.8166526
B70: AA31B | C70: 1093 | D70: 14634 | E70: 481902.7375 | F70: 8182936.475 | G70: 440.8991194 | H70: 559.1729175
B71: AA32Z | C71: 344 | D71: 4 | E71: 149408.3207 | F71: 1564.509226 | G71: 434.3265136 | H71: 391.1273065
B72: AA33C | C72: 1788 | D72: 370 | E72: 1231603.695 | F72: 456917.7477 | G72: 688.8163841 | H72: 1234.912832
B73: AA33D | C73: 1070 | D73: 467 | E73: 898197.4502 | F73: 634907.2625 | G73: 839.4368693 | H73: 1359.544459
B74: AA34C | C74: 6104 | D74: 673 | E74: 55906.48665 | F74: 417406.236 | G74: 9.158991915 | H74: 620.2172897
B75: AA34D | C75: 2743 | D75: 505 | E75: 21618.95586 | F75: 113598.4109 | G75: 7.881500496 | H75: 224.9473482
B76: AB02Z | C76: 831 | D76: 2 | E76: 638095.9458 | F76: 3134.6227 | G76: 767.8651574 | H76: 1567.31135
B77: AB03Z | C77: 14981 | D77: 114 | E77: 11436743.7 | F77: 498854.9075 | G77: 763.4165741 | H77: 4375.920241
B78: AB04Z | C78: 87110 | D78: 1482 | E78: 57102041.66 | F78: 3763720.25 | G78: 655.5164925 | H78: 2539.622301
B79: AB05Z | C79: 22079 | D79: 581 | E79: 11481658.3 | F79: 1912942.793 | G79: 520.0261923 | H79: 3292.500503
B80: AB06Z | C80: 19479 | D80: 194 | E80: 11484559.33 | F80: 681855.3012 | G80: 589.5867001 | H80: 3514.718047
B81: AB07Z | C81: 1787 | D81: 19 | E81: 7291470.614 | F81: 88505.90666 | G81: 4080.285738 | H81: 4658.205614
B82: AB08Z | C82: 16170 | D82: 74 | E82: 11437882.65 | F82: 230199.5666 | G82: 707.3520502 | H82: 3110.804955
B83: AB09Z | C83: 5129 | D83: 81 | E83: 3067845.126 | F83: 195304.0324 | G83: 598.1370883 | H83: 2411.160893
B84: AB10Z | C84: 388 | D84: 16 | E84: 156778.1605 | F84: 35540.05138 | G84: 404.067424 | H84: 2221.253211
B85: AB11Z | C85: 2537 | D85: 1 | E85: 187029.5253 | F85: 6745.387066 | G85: 73.72074312 | H85: 6745.387066
B86: BZ01Z | C86: 8194 | D86: 68 | E86: 8743012.047 | F86: 144210.6429 | G86: 1067.001714 | H86: 2120.744748
B87: BZ02Z | C87: 279506 | D87: 284 | E87: 222111347 | F87: 820857.2986 | G87: 794.6568122 | H87: 2890.342601
B88: BZ03Z | C88: 4245 | D88: 119 | E88: 4278725.528 | F88: 161966.6423 | G88: 1007.944765 | H88: 1361.064221
B89: BZ04Z | C89: 11514 | D89: 364 | E89: 3620066.784 | F89: 175908.3558 | G89: 314.4056613 | H89: 483.2647137
B90: BZ05Z | C90: 2485 | D90: 41 | E90: 3344718.266 | F90: 360032.2496 | G90: 1345.963085 | H90: 8781.27438
B91: BZ06A | C91: 17006 | D91: 212 | E91: 15879282.42 | F91: 278319.557 | G91: 933.745879 | H91: 1312.828099
B92: BZ06B | C92: 954 | D92: 41 | E92: 1007212.573 | F92: 63095.3385 | G92: 1055.778379 | H92: 1538.910695
B93: BZ07A | C93: 43712 | D93: 1599 | E93: 28345417.2 | F93: 1520147.766 | G93: 648.4584827 | H93: 950.686533
B94: BZ07B | C94: 3702 | D94: 954 | E94: 3013983.229 | F94: 972172.9836 | G94: 814.1499807 | H94: 1019.049249
B95: BZ08A | C95: 2131 | D95: 352 | E95: 4635011.292 | F95: 1189021.546 | G95: 2175.040494 | H95: 3377.902121
B96: BZ08B | C96: 265 | D96: 131 | E96: 538222.6499 | F96: 452903.7047 | G96: 2031.028868 | H96: 3457.280189
B97: BZ09A | C97: 5940 | D97: 182 | E97: 8910852.727 | F97: 546368.7041 | G97: 1500.143557 | H97: 3002.025847
B98: BZ09B | C98: 289 | D98: 29 | E98: 451892.7498 | F98: 73086.40612 | G98: 1563.642733 | H98: 2520.220901
B99: BZ10A | C99: 7372 | D99: 118 | E99: 4782163.307 | F99: 151517.4356 | G99: 648.6927981 | H99: 1284.046064
B100: BZ10B | C100: 1967 | D100: 43 | E100: 1642851.432 | F100: 56556.80005 | G100: 835.2066251 | H100: 1315.27442
B101: BZ11Z | C101: 934 | D101: 32 | E101: 2013606.251 | F101: 118979.485 | G101: 2155.895344 | H101: 3718.108906
B102: BZ12Z | C102: 2892 | D102: 437 | E102: 4717298.824 | F102: 1171108.341 | G102: 1631.154504 | H102: 2679.881788
B103: BZ13Z | C103: 3621 | D103: 739 | E103: 3307437.941 | F103: 1673943.024 | G103: 913.404568 | H103: 2265.146175
B104: BZ14A | C104: 1020 | D104: 1 | E104: 1361362.031 | F104: 925.4167359 | G104: 1334.668658 | H104: 925.4167359
B105: BZ14B | C105: 312 | D105: 1 | E105: 366679.0429 | F105: 2538.234451 | G105: 1175.253343 | H105: 2538.234451
B106: BZ15A | C106: 2746 | D106: 13 | E106: 3282003.876 | F106: 18046.30141 | G106: 1195.194419 | H106: 1388.177031
B107: BZ15B | C107: 4872 | D107: 4 | E107: 5959174.818 | F107: 4634.563948 | G107: 1223.147541 | H107: 1158.640987
B108: BZ16A | C108: 1342 | D108: 2 | E108: 1544796.441 | F108: 1975.47104 | G108: 1151.115083 | H108: 987.7355199
B109: BZ16B | C109: 1462 | D109: 2 | E109: 1634314.141 | F109: 1884.714012 | G109: 1117.861929 | H109: 942.357006
B110: BZ17Z | C110: 1918 | D110: 52 | E110: 2761368.221 | F110: 80952.00738 | G110: 1439.712315 | H110: 1556.769373
B111: BZ18Z | C111: 8546 | D111: 366 | E111: 8919621.203 | F111: 601774.1451 | G111: 1043.71884 | H111: 1644.191653
B112: BZ19Z | C112: 6014 | D112: 508 | E112: 2969290.041 | F112: 555098.0942 | G112: 493.7296376 | H112: 1092.712784
B113: BZ20Z | C113: 3738 | D113: 298 | E113: 7273201.799 | F113: 720142.6786 | G113: 1945.74687 | H113: 2416.58617
B114: BZ21Z | C114: 12530 | D114: 3244 | E114: 19155706.24 | F114: 5542248.748 | G114: 1528.78741 | H114: 1708.46139
B115: BZ22Z | C115: 4987 | D115: 1101 | E115: 6305736.123 | F115: 2306293.134 | G115: 1264.434755 | H115: 2094.725826
B116: BZ23Z | C116: 88418 | D116: 1691 | E116: 33952469.12 | F116: 1494421.86 | G116: 383.999515 | H116: 883.750361
B117: BZ24A | C117: 482 | D117: 5969 | E117: 1408334.932 | F117: 13412321.55 | G117: 2921.856706 | H117: 2246.996407
B118: BZ24C | C118: 7888 | D118: 9108 | E118: 2704029.833 | F118: 3964212.042 | G118: 342.8029707 | H118: 435.2450639
B119: CZ01S | C119: 154 | D119: 199 | E119: 137558.8036 | F119: 566304.8628 | G119: 893.2389843 | H119: 2845.753079
B120: CZ01T | C120: 464 | D120: 1740 | E120: 329849.1188 | F120: 1495995.396 | G120: 710.8817215 | H120: 859.7674689
B121: CZ01V | C121: 1528 | D121: 2473 | E121: 1087764.783 | F121: 4378021.354 | G121: 711.8879467 | H121: 1770.328085
B122: CZ01Y | C122: 2274 | D122: 1620 | E122: 1238550.301 | F122: 1210975.006 | G122: 544.6571246 | H122: 747.5154361
B123: CZ02S | C123: 774 | D123: 275 | E123: 1139457.457 | F123: 941960.9838 | G123: 1472.167257 | H123: 3425.312668
B124: CZ02T | C124: 2570 | D124: 724 | E124: 2829865.845 | F124: 956361.2084 | G124: 1101.115115 | H124: 1320.940896
B125: CZ02W | C125: 279 | D125: 374 | E125: 449797.3829 | F125: 2007585.211 | G125: 1612.177 | H125: 5367.874897
B126: CZ02X | C126: 10872 | D126: 1140 | E126: 11868260.38 | F126: 2116444.161 | G126: 1091.635428 | H126: 1856.529966
B127: CZ02Y | C127: 10332 | D127: 944 | E127: 9750844.62 | F127: 1127031.388 | G127: 943.7518989 | H127: 1193.889182
B128: CZ03U | C128: 2031 | D128: 122 | E128: 5981996.912 | F128: 385117.9866 | G128: 2945.345599 | H128: 3156.704808
B129: CZ03V | C129: 6171 | D129: 418 | E129: 17164796.44 | F129: 2258285.327 | G129: 2781.525918 | H129: 5402.596476
B130: CZ03Y | C130: 5596 | D130: 203 | E130: 11922732.82 | F130: 520665.0117 | G130: 2130.581276 | H130: 2564.852275
B131: CZ04O | C131: 295 | D131: 57 | E131: 5891341.282 | F131: 1331973.494 | G131: 19970.64841 | H131: 23367.95604
B132: CZ04P | C132: 716 | D132: 62 | E132: 8145708.807 | F132: 1121120.36 | G132: 11376.68828 | H132: 18082.58645
B133: CZ04Q | C133: 253 | D133: 13 | E133: 1879142.449 | F133: 106875.3358 | G133: 7427.440511 | H133: 8221.179678
B134: CZ05S | C134: 6519 | D134: 283 | E134: 9359063.755 | F134: 615772.6786 | G134: 1435.659419 | H134: 2175.875189
B135: CZ05T | C135: 32212 | D135: 782 | E135: 39284420.37 | F135: 896544.215 | G135: 1219.558561 | H135: 1146.475978
B136: CZ05V | C136: 5107 | D136: 1586 | E136: 6689305.619 | F136: 1660551.822 | G136: 1309.830746 | H136: 1047.006193
B137: CZ05Y | C137: 10199 | D137: 2556 | E137: 12396195.21 | F137: 2271952.648 | G137: 1215.432416 | H137: 888.8703632
B138: CZ07O | C138: 148 | D138: 3271 | E138: 1444015.413 | F138: 28747069.59 | G138: 9756.860896 | H138: 8788.465177
B139: CZ07P | C139: 312 | D139: 870 | E139: 1118895.932 | F139: 4626366.855 | G139: 3586.204909 | H139: 5317.663052
B140: CZ07Q | C140: 105 | D140: 111 | E140: 338637.3843 | F140: 398993.1052 | G140: 3225.117945 | H140: 3594.53248
B141: CZ08S | C141: 1767 | D141: 218 | E141: 1651225.896 | F141: 399277.8177 | G141: 934.4798508 | H141: 1831.549623
B142: CZ08T | C142: 24239 | D142: 1146 | E142: 19111423.88 | F142: 1077796.048 | G142: 788.4576047 | H142: 940.4852077
B143: CZ08V | C143: 8419 | D143: 1329 | E143: 6335393.393 | F143: 2582216.91 | G143: 752.5113901 | H143: 1942.977359
B144: CZ08Y | C144: 12943 | D144: 1109 | E144: 9195440.675 | F144: 891007.2373 | G144: 710.4566697 | H144: 803.4330363
B145: CZ09U | C145: 2586 | D145: 32 | E145: 4248097.691 | F145: 35624.55682 | G145: 1642.729192 | H145: 1113.267401
B146: CZ09V | C146: 1027 | D146: 52 | E146: 1188226.452 | F146: 106896.8019 | G146: 1156.987782 | H146: 2055.70773
B147: CZ09Y | C147: 1250 | D147: 40 | E147: 1448383.873 | F147: 42790.99907 | G147: 1158.707098 | H147: 1069.774977
B148: CZ10U | C148: 4150 | D148: 128 | E148: 9468058.271 | F148: 549264.9191 | G148: 2281.459824 | H148: 4291.132181
B149: CZ10V | C149: 4503 | D149: 106 | E149: 10802856.38 | F149: 664533.2932 | G149: 2399.035395 | H149: 6269.182011
B150: CZ10Y | C150: 7368 | D150: 48 | E150: 16721086.65 | F150: 133542.5206 | G150: 2269.420013 | H150: 2782.135845
B151: CZ11Z | C151: 105 | D151: 5 | E151: 316591.4446 | F151: 19906.88712 | G151: 3015.156615 | H151: 3981.377424
B152: CZ12U | C152: 6366 | D152: 1820 | E152: 4666315.342 | F152: 1514637.595 | G152: 733.0058658 | H152: 832.2184585
B153: CZ12V | C153: 9291 | D153: 8636 | E153: 7195744.778 | F153: 9498190.506 | G153: 774.4854998 | H153: 1099.836789
B154: CZ12Y | C154: 16292 | D154: 2382 | E154: 10759817.7 | F154: 1965216.627 | G154: 660.4356552 | H154: 825.027971
B155: CZ13U | C155: 1755 | D155: 215 | E155: 2253263.025 | F155: 339117.2756 | G155: 1283.910556 | H155: 1577.289654
B156: CZ13V | C156: 7654 | D156: 3318 | E156: 10219940.6 | F156: 4100809.941 | G156: 1335.241782 | H156: 1235.928252
B157: CZ13Y | C157: 14653 | D157: 849 | E157: 18731698.2 | F157: 874276.5167 | G157: 1278.352433 | H157: 1029.772104
B158: CZ14U | C158: 1217 | D158: 50 | E158: 2340077.75 | F158: 216403.23 | G158: 1922.824774 | H158: 4328.064599
B159: CZ14V | C159: 6249 | D159: 620 | E159: 10485972.36 | F159: 1390442.065 | G159: 1678.024062 | H159: 2242.648493
B160: CZ14Y | C160: 10520 | D160: 186 | E160: 16873551.26 | F160: 340213.0953 | G160: 1603.94974 | H160: 1829.102663
B161: CZ15N | C161: 971 | D161: 334 | E161: 1876120.555 | F161: 1413943.89 | G161: 1932.152992 | H161: 4233.364942
B162: CZ15Q | C162: 1092 | D162: 153 | E162: 1869064.177 | F162: 522597.3289 | G162: 1711.597232 | H162: 3415.668817
B163: CZ16N | C163: 1228 | D163: 373 | E163: 1769851.744 | F163: 673156.6725 | G163: 1441.247349 | H163: 1804.709578
B164: CZ16Q | C164: 2315 | D164: 475 | E164: 2907865.244 | F164: 792806.47 | G164: 1256.097297 | H164: 1669.066253
B165: CZ17U | C165: 933 | D165: 870 | E165: 1498383.819 | F165: 2165347.457 | G165: 1605.984801 | H165: 2488.905123
B166: CZ17V | C166: 4370 | D166: 3150 | E166: 10586993.69 | F166: 9331351.187 | G166: 2422.653018 | H166: 2962.33371
B167: CZ17Y | C167: 4624 | D167: 2716 | E167: 7117333.723 | F167: 6288286.548 | G167: 1539.215771 | H167: 2315.27487
B168: CZ18R | C168: 2618 | D168: 56 | E168: 10564509.48 | F168: 223844.6985 | G168: 4035.335935 | H168: 3997.226759
B169: CZ18U | C169: 730 | D169: 10 | E169: 2741757.121 | F169: 34275.97062 | G169: 3755.831673 | H169: 3427.597062
B170: CZ19Z | C170: 281 | D170: 19 | E170: 1970407.227 | F170: 130892.7283 | G170: 7012.125363 | H170: 6889.090965
B171: CZ20Z | C171: 16 | D171: NULL | E171: 302967.4224 | F171: NULL | G171: 18935.4639 | H171: NULL
B172: CZ21V | C172: 1190 | D172: 44220 | E172: 1249642.831 | F172: 25552474.02 | G172: 1050.120026 | H172: 577.8488019
B173: CZ21Y | C173: 2179 | D173: 12726 | E173: 1503000.712 | F173: 6184607.551 | G173: 689.7662744 | H173: 485.9820486
B174: CZ22W | C174: 112 | D174: 3958 | E174: 233039.7969 | F174: 6089683.83 | G174: 2080.712472 | H174: 1538.576006
B175: CZ22X | C175: 540 | D175: 16886 | E175: 729009.13 | F175: 13130427.43 | G175: 1350.016907 | H175: 777.5925284
B176: CZ22Y | C176: 464 | D176: 14193 | E176: 367112.8622 | F176: 9702414.418 | G176: 791.1915133 | H176: 683.6056097
B177: CZ23W | C177: 193 | D177: 2098 | E177: 584778.6692 | F177: 4491965.246 | G177: 3029.941291 | H177: 2141.070184
B178: CZ23X | C178: 1040 | D178: 7607 | E178: 1410355.39 | F178: 7077308.223 | G178: 1356.110952 | H178: 930.3678484
B179: CZ23Y | C179: 555 | D179: 3870 | E179: 572345.3984 | F179: 2486571.288 | G179: 1031.25297 | H179: 642.5248806
B180: CZ24O | C180: 433 | D180: 1098 | E180: 2384435.475 | F180: 5501652.44 | G180: 5506.779388 | H180: 5010.612423
B181: CZ24P | C181: 3004 | D181: 1105 | E181: 5319977.323 | F181: 2858208.349 | G181: 1770.964488 | H181: 2586.613891
B182: CZ24Q | C182: 806 | D182: 174 | E182: 1298166.755 | F182: 310684.9555 | G182: 1610.628728 | H182: 1785.545721
B183: CZ25N | C183: 352 | D183: 3 | E183: 7245723.787 | F183: 54391.06281 | G183: 20584.44258 | H183: 18130.35427
B184: CZ25Q | C184: 700 | D184: NULL | E184: 14384596.92 | F184: NULL | G184: 20549.42416 | H184: NULL
B185: CZ27Z | C185: 1223 | D185: NULL | E185: 3217401.995 | F185: NULL | G185: 2630.745703 | H185: NULL
B186: CZ28Z | C186: 123 | D186: 5 | E186: 310467.0108 | F186: 14816.81247 | G186: 2524.122039 | H186: 2963.362493
B187: CZ30U | C187: 5245 | D187: 201 | E187: 2540963.716 | F187: 182447.7411 | G187: 484.454474 | H187: 907.7002043
B188: CZ30Y | C188: 12173 | D188: 315 | E188: 4489618.62 | F188: 275286.5539 | G188: 368.8177622 | H188: 873.925568
B189: CZ31U | C189: 217 | D189: 3 | E189: 122632.2833 | F189: 2414.787029 | G189: 565.1257297 | H189: 804.9290097
B190: CZ31Y | C190: 8923 | D190: 82 | E190: 3556613.634 | F190: 54607.83086 | G190: 398.5894468 | H190: 665.9491568
B191: CZ32U | C191: 2208 | D191: 21 | E191: 2214816.226 | F191: 14001.30725 | G191: 1003.087059 | H191: 666.7289167
B192: CZ32Y | C192: 371 | D192: 16 | E192: 325150.219 | F192: 9175.931841 | G192: 876.4156847 | H192: 573.4957401
B193: CZ33U | C193: 2734 | D193: 11 | E193: 1629108.047 | F193: 8469.857007 | G193: 595.8698049 | H193: 769.9870007
B194: CZ33Y | C194: 3681 | D194: 6 | E194: 1676120.037 | F194: 6691.566425 | G194: 455.3436666 | H194: 1115.261071
B195: CZ34U | C195: 7602 | D195: 1221 | E195: 4638630.856 | F195: 1277085.599 | G195: 610.1855901 | H195: 1045.934152
B196: CZ34Y | C196: 5651 | D196: 1693 | E196: 3309975.509 | F196: 1979028.688 | G196: 585.7327037 | H196: 1168.947837
B197: CZ35U | C197: 21 | D197: 4 | E197: 14925.48535 | F197: 984.9175545 | G197: 710.7373977 | H197: 246.2293886
B198: CZ35Y | C198: 4 | D198: NULL | E198: 6565.861761 | F198: NULL | G198: 1641.46544 | H198: NULL
B199: CZ36U | C199: 1914 | D199: 25 | E199: 1383556.364 | F199: 23514.41869 | G199: 722.8612141 | H199: 940.5767475
B200: CZ36Y | C200: 20816 | D200: 114 | E200: 12439908.04 | F200: 88155.79003 | G200: 597.6127999 | H200: 773.2964038
B201: CZ37U | C201: 11794 | D201: 225 | E201: 9831755.053 | F201: 242345.6065 | G201: 833.6234571 | H201: 1077.091585
B202: CZ37Y | C202: 29793 | D202: 486 | E202: 15710125.21 | F202: 566388.207 | G202: 527.3092742 | H202: 1165.407833
B203: CZ38U | C203: 46 | D203: 5 | E203: 42918.84039 | F203: 6905.064181 | G203: 933.0182694 | H203: 1381.012836
B204: CZ38Y | C204: 234 | D204: 5 | E204: 138312.6015 | F204: 11959.72983 | G204: 591.0794935 | H204: 2391.945967
B205: CZ39U | C205: 320 | D205: 68 | E205: 304263.443 | F205: 72339.17273 | G205: 950.8232595 | H205: 1063.811364
B206: CZ39Y | C206: 3150 | D206: 169 | E206: 2705275.953 | F206: 169322.6035 | G206: 858.8177627 | H206: 1001.908897
B207: CZ40U | C207: 5278 | D207: 11 | E207: 4937399.539 | F207: 14262.76335 | G207: 935.467893 | H207: 1296.61485
... 1130 more rows

Sheet 04.1_HES_POD_Split
A1: Home
B2: FROM [PbR1516_TED_35].[input].[HES_Spell_Counts_Adm]
B8: HES POD Split
B10: SPELL HRG | C10: ADM | D10: SPELLFLAG
B11: HC20B | C11: UX | D11: 1
B12: CZ18R | C12: NE | D12: 56
B13: NZ19Z | C13: UX | D13: 5
B14: BZ16B | C14: NE | D14: 2
B15: PA56B | C15: NE | D15: 3429
B16: GC15B | C16: EL | D16: 73
B17: CZ01V | C17: EL | D17: 316
B18: LB37A | C18: EL | D18: 190
B19: JA27Z | C19: NE | D19: 9
B20: JC03A | C20: DC | D20: 419
B21: HB25J | C21: EL | D21: 303
B22: HC05B | C22: EL | D22: 201
B23: LB14Z | C23: NE | D23: 90
B24: LB15D | C24: UX | D24: 1
B25: DZ32Z | C25: DC | D25: 38
B26: MA29Z | C26: NE | D26: 258
B27: CZ08Y | C27: DC | D27: 12259
B28: FZ36F | C28: DC | D28: 209
B29: FZ45A | C29: UX | D29: 1
B30: CZ03V | C30: DC | D30: 1274
B31: FZ18C | C31: NE | D31: 1796
B32: GA05A | C32: DC | D32: 11
B33: JA12A | C33: DC | D33: 1603
B34: QZ13B | C34: NE | D34: 62
B35: HA34Z | C35: EL | D35: 479
B36: FZ84Z | C36: NE | D36: 8
B37: LB60B | C37: NE | D37: 947
B38: HA52Z | C38: NE | D38: 1004
B39: FZ77A | C39: NE | D39: 349
B40: SA17F | C40: EL | D40: 120
B41: HA83A | C41: DC | D41: 1
B42: HA79Z | C42: NE | D42: 1395
B43: SA26A | C43: DC | D43: 46
B44: RC02Z | C44: NE | D44: 4025
B45: JA13Z | C45: UX | D45: 1
B46: PA11Z | C46: NE | D46: 38904
B47: DZ30Z | C47: DC | D47: 2034
B48: LB29D | C48: NE | D48: 7
B49: GC16B | C49: EL | D49: 85
B50: FZ52Z | C50: UX | D50: 2
B51: QZ12Z | C51: UX | D51: 1
B52: HC05B | C52: NE | D52: 348
B53: WA18V | C53: EL | D53: 167
B54: DZ19B | C54: NE | D54: 20556
B55: HD23B | C55: DC | D55: 26871
B56: EA07Z | C56: DC | D56: 219
B57: VA12B | C57: DC | D57: 8
B58: NZ18Z | C58: DC | D58: 128
B59: CZ39Y | C59: NE | D59: 169
B60: CZ14U | C60: DC | D60: 535
B61: JC15Z | C61: DC | D61: 177509
B62: HB35B | C62: NE | D62: 570
B63: CZ02X | C63: EL | D63: 4010
B64: GB03A | C64: NE | D64: 3689
B65: FZ24C | C65: EL | D65: 722
B66: PA01B | C66: UX | D66: 3
B67: LB72A | C67: UX | D67: 2
B68: FZ41D | C68: EL | D68: 211
B69: FZ74A | C69: DC | D69: 1
B70: JC34Z | C70: DC | D70: 2512
B71: DZ04A | C71: NE | D71: 2344
B72: HD25C | C72: DC | D72: 158
B73: LB05D | C73: NE | D73: 99
B74: FZ45C | C74: EL | D74: 515
B75: PA52B | C75: EL | D75: 44
B76: MB07Z | C76: NE | D76: 265
B77: VA13B | C77: EL | D77: 9
B78: PA01B | C78: EL | D78: 809
B79: PA62Z | C79: NE | D79: 4626
B80: FZ87B | C80: DC | D80: 166
B81: FZ36E | C81: NE | D81: 6529
B82: CZ42Y | C82: EL | D82: 1711
B83: CZ07Q | C83: EL | D83: 96
B84: MA17D | C84: DC | D84: 327
B85: LB67B | C85: UX | D85: 1
B86: PA04B | C86: DC | D86: 314
B87: LB59Z | C87: DC | D87: 45
B88: NZ11A | C88: EL | D88: 31
B89: HA25B | C89: DC | D89: 10
B90: HA81B | C90: DC | D90: 22
B91: JB11B | C91: EL | D91: 6
B92: DZ10B | C92: NE | D92: 627
B93: KC05B | C93: DC | D93: 1157
B94: LB06E | C94: EL | D94: 1659
B95: FZ78A | C95: DC | D95: 5
B96: FZ83C | C96: NE | D96: 33
B97: PA53A | C97: DC | D97: 32
B98: BZ22Z | C98: DC | D98: 4030
B99: LB25B | C99: DC | D99: 236
B100: PA25B | C100: UX | D100: 1
B101: MC12Z | C101: DC | D101: 2606
B102: AA18A | C102: NE | D102: 442
B103: FZ12I | C103: EL | D103: 55
B104: HA56B | C104: UX | D104: 2
B105: FZ46C | C105: EL | D105: 821
B106: EA39Z | C106: EL | D106: 739
B107: CZ16N | C107: EL | D107: 729
B108: FZ75A | C108: NE | D108: 1734
B109: WA01Y | C109: NE | D109: 492
B110: PA57Z | C110: NE | D110: 15046
B111: GA10C | C111: NE | D111: 317
B112: FZ39F | C112: NE | D112: 5133
B113: HA96Z | C113: NE | D113: 1030
B114: LB64A | C114: DC | D114: 10
B115: LB66Z | C115: NE | D115: 42
B116: DZ04A | C116: DC | D116: 2250
B117: WA11X | C117: NE | D117: 63676
B118: PA04A | C118: EL | D118: 99
B119: HC27C | C119: DC | D119: 26324
B120: MC06Z | C120: DC | D120: 406
B121: WA15O | C121: NE | D121: 21
B122: PA31Z | C122: EL | D122: 16
B123: PA65C | C123: NE | D123: 2587
B124: QZ05B | C124: NE | D124: 1002
B125: BZ16B | C125: DC | D125: 1416
B126: PA38C | C126: NE | D126: 253
B127: JD01A | C127: NE | D127: 7802
B128: JC03C | C128: EL | D128: 1761
B129: PA02B | C129: EL | D129: 251
B130: PA45Z | C130: NE | D130: 1642
B131: LB37A | C131: NE | D131: 1593
B132: LB73Z | C132: DC | D132: 35
B133: CZ17V | C133: DC | D133: 1802
B134: CZ18R | C134: DC | D134: 171
B135: HB56C | C135: NE | D135: 343
B136: FZ46C | C136: NE | D136: 1781
B137: SA17F | C137: NE | D137: 160
B138: BZ16A | C138: EL | D138: 65
B139: LB25A | C139: UX | D139: 1
B140: FZ37J | C140: EL | D140: 550
B141: CZ22X | C141: EL | D141: 367
B142: LB40B | C142: NE | D142: 19514
B143: HB54C | C143: EL | D143: 2408
B144: PA17A | C144: DC | D144: 817
B145: FZ17C | C145: NE | D145: 423
B146: SA10F | C146: EL | D146: 23
B147: LB61A | C147: EL | D147: 622
B148: FZ37I | C148: NE | D148: 4667
B149: AA14B | C149: NE | D149: 2
B150: JD02B | C150: NE | D150: 140
B151: PA02B | C151: UX | D151: 1
B152: AA23A | C152: UX | D152: 3
B153: AA22B | C153: DC | D153: 641
B154: BZ07A | C154: EL | D154: 727
B155: MB03A | C155: NE | D155: 2769
B156: LA08F | C156: EL | D156: 472
B157: HD26C | C157: NE | D157: 4162
B158: BZ14B | C158: DC | D158: 292
B159: HB21C | C159: EL | D159: 47184
B160: HB25E | C160: NE | D160: 128
B161: FZ81B | C161: EL | D161: 2243
B162: QZ01B | C162: EL | D162: 901
B163: LB47Z | C163: EL | D163: 420
B164: LB42C | C164: DC | D164: 422
B165: HC28C | C165: EL | D165: 233
B166: FZ24B | C166: DC | D166: 2161
B167: HR06A | C167: NE | D167: 4427
B168: DZ27C | C168: NE | D168: 3
B169: LB50Z | C169: EL | D169: 268
B170: KB02F | C170: EL | D170: 29
B171: HR04C | C171: NE | D171: 540
B172: WA22Y | C172: UX | D172: 2
B173: CZ08T | C173: NE | D173: 1146
B174: EB03I | C174: NE | D174: 24903
B175: PA71Z | C175: EL | D175: 133
B176: BZ01Z | C176: UX | D176: 1
B177: EB10Z | C177: UX | D177: 2
B178: EA49Z | C178: DC | D178: 1546
B179: PA16B | C179: UX | D179: 2
B180: JC09Z | C180: DC | D180: 33
B181: FZ56Z | C181: DC | D181: 19453
B182: HC21C | C182: NE | D182: 198
B183: SA30Z | C183: EL | D183: 1596
B184: HC01Z | C184: NE | D184: 581
B185: FZ51Z | C185: UX | D185: 2
B186: HA24Z | C186: EL | D186: 140
B187: AA18A | C187: DC | D187: 33
B188: WA02W | C188: DC | D188: 7578
B189: AA08B | C189: DC | D189: 31
B190: PA70Z | C190: DC | D190: 1339
B191: AA23A | C191: NE | D191: 16811
B192: PA15B | C192: EL | D192: 107
B193: AA31B | C193: DC | D193: 858
B194: FZ76A | C194: EL | D194: 869
B195: NZ12D | C195: UX | D195: 1
B196: HB25E | C196: EL | D196: 247
B197: FZ36D | C197: EL | D197: 93
B198: FZ67B | C198: EL | D198: 1434
B199: JD06A | C199: EL | D199: 349
B200: HA56B | C200: NE | D200: 1455
B201: CZ23Y | C201: NE | D201: 3870
B202: WA10Z | C202: EL | D202: 44
B203: MB08Z | C203: NE | D203: 59435
B204: FZ83C | C204: EL | D204: 121
B205: HR04C | C205: UX | D205: 1
B206: DZ21K | C206: EL | D206: 139
... 4102 more rows

Sheet 05_Post_Spell_Conversion_RAW
A1: Home
B2: SQL Table from: [PbR1516_TED_35]
B8: Post-Spell Conversion
B10: SPELL HRG | C10: ADM | D10: FCE ACT | E10: SPELL INLIER | F10: HES FCE EBD
B11: AA02A | C11: EL | D11: 28 | E11: 164127.3886 | F11: 7499.19644
B12: AA02A | C12: NE | D12: 2745 | E12: 12822879.17 | F12: 2174587.839
B13: AA02B | C13: EL | D13: 3 | E13: 16079.86228 | F13: 0
B14: AA02B | C14: NE | D14: 311 | E14: 1283183.499 | F14: 101974.3638
B15: AA03A | C15: EL | D15: 99 | E15: 635959.3249 | F15: 64237.22408
B16: AA03A | C16: NE | D16: 2430 | E16: 10935522.32 | F16: 744431.3586
B17: AA03B | C17: DC | D17: 1 | E17: 1118.560705 | F17: 0
B18: AA03B | C18: EL | D18: 42 | E18: 186371.6392 | F18: 4464.467437
B19: AA03B | C19: NE | D19: 228 | E19: 879531.6342 | F19: 45023.47217
B20: AA04A | C20: EL | D20: 34 | E20: 298615.6644 | F20: 1293.768586
B21: AA04A | C21: NE | D21: 530 | E21: 4168387.435 | F21: 182907.4719
B22: AA04B | C22: DC | D22: 1 | E22: 1161.304888 | F22: 0
B23: AA04B | C23: EL | D23: 4 | E23: 18439.55853 | F23: 0
B24: AA04B | C24: NE | D24: 50 | E24: 384399.268 | F24: 15250.16832
B25: AA05A | C25: EL | D25: 296 | E25: 1852972.822 | F25: 30623.75096
B26: AA05A | C26: NE | D26: 686 | E26: 5085874.146 | F26: 679714.477
B27: AA05B | C27: DC | D27: 5 | E27: NULL | F27: 0
B28: AA05B | C28: EL | D28: 255 | E28: 1089028.252 | F28: 26344.81065
B29: AA05B | C29: NE | D29: 58 | E29: 312640.0016 | F29: 151528.8714
B30: AA06A | C30: DC | D30: 95 | E30: 316056.5731 | F30: 0
B31: AA06A | C31: EL | D31: 2621 | E31: 18378459.26 | F31: 993143.9311
B32: AA06A | C32: NE | D32: 1705 | E32: 12022215.14 | F32: 1207290.937
B33: AA06B | C33: DC | D33: 77 | E33: 111578.661 | F33: 0
B34: AA06B | C34: EL | D34: 1188 | E34: 5788709.429 | F34: 126374.3375
B35: AA06B | C35: NE | D35: 321 | E35: 1944390.181 | F35: 151019.2841
B36: AA07A | C36: DC | D36: 38 | E36: 11699.44158 | F36: 0
B37: AA07A | C37: EL | D37: 400 | E37: 4072514.563 | F37: 84361.57232
B38: AA07A | C38: NE | D38: 466 | E38: 2901135.095 | F38: 292012.5238
B39: AA07B | C39: DC | D39: 76 | E39: 42421.33275 | F39: 0
B40: AA07B | C40: EL | D40: 237 | E40: 2191610.057 | F40: 15113.87984
B41: AA07B | C41: NE | D41: 98 | E41: 519394.2574 | F41: 43586.17255
B42: AA08A | C42: DC | D42: 23 | E42: 16337.6613 | F42: 0
B43: AA08A | C43: EL | D43: 475 | E43: 3329751.907 | F43: 74992.93373
B44: AA08A | C44: NE | D44: 32 | E44: 161279.9896 | F44: 49229.43034
B45: AA08B | C45: DC | D45: 31 | E45: 43986.58171 | F45: 0
B46: AA08B | C46: EL | D46: 215 | E46: 1942857.224 | F46: 17329.2404
B47: AA08B | C47: NE | D47: 3 | E47: 11103.11393 | F47: 0
B48: AA09A | C48: DC | D48: 458 | E48: 449179.9106 | F48: 0
B49: AA09A | C49: EL | D49: 504 | E49: 2925319.158 | F49: 149633.7149
B50: AA09A | C50: NE | D50: 543 | E50: 3449897.506 | F50: 535249.2897
B51: AA09B | C51: DC | D51: 790 | E51: 548154.5394 | F51: 0
B52: AA09B | C52: EL | D52: 206 | E52: 876432.4029 | F52: 16837.13507
B53: AA09B | C53: NE | D53: 97 | E53: 454998.0488 | F53: 38132.09541
B54: AA10A | C54: EL | D54: 31 | E54: 160638.3484 | F54: 2560.741769
B55: AA10A | C55: NE | D55: 212 | E55: 1306791.314 | F55: 227240.7575
B56: AA10B | C56: EL | D56: 2 | E56: 9951.22359 | F56: 0
B57: AA10B | C57: NE | D57: 12 | E57: 67531.02354 | F57: 0
B58: AA11A | C58: EL | D58: 32 | E58: 277490.7379 | F58: 1506.337553
B59: AA11A | C59: NE | D59: 831 | E59: 6416313.993 | F59: 574839.9472
B60: AA11B | C60: EL | D60: 4 | E60: 22190.5069 | F60: 0
B61: AA11B | C61: NE | D61: 74 | E61: 379935.5081 | F61: 28165.52538
B62: AA12A | C62: DC | D62: 1 | E62: 4769.040186 | F62: 0
B63: AA12A | C63: EL | D63: 1862 | E63: 11005203.11 | F63: 410681.9314
B64: AA12A | C64: NE | D64: 1636 | E64: 9498062.308 | F64: 630890.0236
B65: AA12B | C65: DC | D65: 2 | E65: 13411.45606 | F65: 0
B66: AA12B | C66: EL | D66: 539 | E66: 3124396.952 | F66: 33180.9521
B67: AA12B | C67: NE | D67: 371 | E67: 2003246.628 | F67: 82265.01975
B68: AA13A | C68: DC | D68: 2 | E68: 5991.992494 | F68: 0
B69: AA13A | C69: EL | D69: 576 | E69: 3030289.812 | F69: 82364.99625
B70: AA13A | C70: NE | D70: 679 | E70: 3472248.773 | F70: 433120.3684
B71: AA13B | C71: DC | D71: 2 | E71: 4443.713933 | F71: 0
B72: AA13B | C72: EL | D72: 152 | E72: 823243.7982 | F72: 3475.82517
B73: AA13B | C73: NE | D73: 198 | E73: 888013.5689 | F73: 17021.92744
B74: AA14A | C74: DC | D74: 52 | E74: 75180.40201 | F74: 0
B75: AA14A | C75: EL | D75: 238 | E75: 816633.7642 | F75: 22449.40642
B76: AA14A | C76: NE | D76: 48 | E76: 139815.402 | F76: 12238.00762
B77: AA14B | C77: DC | D77: 49 | E77: 63611.1223 | F77: 0
B78: AA14B | C78: EL | D78: 77 | E78: 322374.689 | F78: 0
B79: AA14B | C79: NE | D79: 3 | E79: 11259.8327 | F79: 0
B80: AA15A | C80: DC | D80: 37 | E80: 99989.19342 | F80: 0
B81: AA15A | C81: EL | D81: 364 | E81: 2133311.829 | F81: 126466.4805
B82: AA15A | C82: NE | D82: 462 | E82: 2485220.931 | F82: 404317.3927
B83: AA15B | C83: DC | D83: 34 | E83: 42070.54916 | F83: 0
B84: AA15B | C84: EL | D84: 179 | E84: 928962.9487 | F84: 26238.86323
B85: AA15B | C85: NE | D85: 72 | E85: 382184.3897 | F85: 59261.22463
B86: AA16A | C86: DC | D86: 1 | E86: 289.3663123 | F86: 0
B87: AA16A | C87: EL | D87: 20 | E87: 100496.0755 | F87: 10304.40432
B88: AA16A | C88: NE | D88: 351 | E88: 1784555.61 | F88: 194479.1672
B89: AA16B | C89: DC | D89: 2 | E89: 2420.929441 | F89: 0
B90: AA16B | C90: EL | D90: 8 | E90: 50790.83625 | F90: 0
B91: AA16B | C91: NE | D91: 55 | E91: 217723.9414 | F91: 29828.46001
B92: AA17A | C92: DC | D92: 1 | E92: 482.2072137 | F92: 0
B93: AA17A | C93: EL | D93: 60 | E93: 384612.7088 | F93: 1279.263634
B94: AA17A | C94: NE | D94: 826 | E94: 4597426.857 | F94: 403360.0798
B95: AA17B | C95: EL | D95: 23 | E95: 168538.6622 | F95: 0
B96: AA17B | C96: NE | D96: 64 | E96: 256533.9366 | F96: 35754.07854
B97: AA18A | C97: DC | D97: 33 | E97: 68211.77102 | F97: 0
B98: AA18A | C98: EL | D98: 440 | E98: 2008632.248 | F98: 20534.50003
B99: AA18A | C99: NE | D99: 640 | E99: 2936971.652 | F99: 154352.6344
B100: AA18B | C100: DC | D100: 26 | E100: 46524.07604 | F100: 0
B101: AA18B | C101: EL | D101: 167 | E101: 764906.4262 | F101: 7660.360586
B102: AA18B | C102: NE | D102: 134 | E102: 603570.8462 | F102: 47137.20935
B103: AA19A | C103: DC | D103: 472 | E103: 287331.4119 | F103: 0
B104: AA19A | C104: EL | D104: 611 | E104: 2654504.555 | F104: 83117.74328
B105: AA19A | C105: NE | D105: 1151 | E105: 4414386.753 | F105: 338560.3628
B106: AA19B | C106: DC | D106: 433 | E106: 270285.9673 | F106: 0
B107: AA19B | C107: EL | D107: 220 | E107: 1103478.207 | F107: 71022.49361
B108: AA19B | C108: NE | D108: 233 | E108: 742814.3559 | F108: 46763.82384
B109: AA20A | C109: DC | D109: 277 | E109: 397208.7799 | F109: 0
B110: AA20A | C110: EL | D110: 330 | E110: 1528226.272 | F110: 62821.32744
B111: AA20A | C111: NE | D111: 110 | E111: 289377.912 | F111: 58586.03613
B112: AA20B | C112: DC | D112: 290 | E112: 382699.3837 | F112: 0
B113: AA20B | C113: EL | D113: 176 | E113: 896201.6501 | F113: 23499.80588
B114: AA20B | C114: NE | D114: 29 | E114: 35544.34474 | F114: 11049.60696
B115: AA21A | C115: DC | D115: 2332 | E115: 1760705.427 | F115: 0
B116: AA21A | C116: EL | D116: 1726 | E116: 8149886.511 | F116: 313435.8463
B117: AA21A | C117: NE | D117: 1159 | E117: 4679871.929 | F117: 910107.6678
B118: AA21B | C118: DC | D118: 2036 | E118: 1553571.932 | F118: 0
B119: AA21B | C119: EL | D119: 669 | E119: 2727041.928 | F119: 30655.36613
B120: AA21B | C120: NE | D120: 173 | E120: 628636.1314 | F120: 105361.7002
B121: AA22A | C121: DC | D121: 859 | E121: 411464.6279 | F121: 0
B122: AA22A | C122: EL | D122: 1914 | E122: 5468414.508 | F122: 4538938.234
B123: AA22A | C123: NE | D123: 131358 | E123: 275461420.5 | F123: 58441656.43
B124: AA22B | C124: DC | D124: 641 | E124: 233628.3552 | F124: 0
B125: AA22B | C125: EL | D125: 207 | E125: 527324.0031 | F125: 483684.2358
B126: AA22B | C126: NE | D126: 6307 | E126: 8242862.589 | F126: 2067784.77
B127: AA23A | C127: DC | D127: 53 | E127: 33372.62671 | F127: 0
B128: AA23A | C128: EL | D128: 621 | E128: 2157819.68 | F128: 2178944.028
B129: AA23A | C129: NE | D129: 27415 | E129: 57928177.59 | F129: 15058944.27
B130: AA23B | C130: DC | D130: 17 | E130: 11328.96376 | F130: 0
B131: AA23B | C131: EL | D131: 60 | E131: 144646.4217 | F131: 159950.6634
B132: AA23B | C132: NE | D132: 1869 | E132: 2166327.046 | F132: 631294.949
B133: AA24A | C133: DC | D133: 1471 | E133: 733468.0737 | F133: 0
B134: AA24A | C134: EL | D134: 862 | E134: 2431505.819 | F134: 753362.7801
B135: AA24A | C135: NE | D135: 15200 | E135: 29671257.8 | F135: 3416636.539
B136: AA24B | C136: DC | D136: 1426 | E136: 804942.3588 | F136: 0
B137: AA24B | C137: EL | D137: 216 | E137: 494449.8712 | F137: 202326.1781
B138: AA24B | C138: NE | D138: 1328 | E138: 1627994.987 | F138: 297042.5872
B139: AA25A | C139: DC | D139: 2697 | E139: 1555880.381 | F139: 0
B140: AA25A | C140: EL | D140: 3044 | E140: 7365347.979 | F140: 2833989.09
B141: AA25A | C141: NE | D141: 45190 | E141: 58538852.32 | F141: 16692295.49
B142: AA25B | C142: DC | D142: 3941 | E142: 1567942.769 | F142: 0
B143: AA25B | C143: EL | D143: 734 | E143: 1330680.9 | F143: 205978.8523
B144: AA25B | C144: NE | D144: 3391 | E144: 3200227.388 | F144: 579497.8534
B145: AA26A | C145: DC | D145: 8406 | E145: 5100483.665 | F145: 0
B146: AA26A | C146: EL | D146: 3449 | E146: 7327903.978 | F146: 5006580.952
B147: AA26A | C147: NE | D147: 127031 | E147: 117835599.1 | F147: 33752285.68
B148: AA26B | C148: DC | D148: 10203 | E148: 5224369.403 | F148: 0
B149: AA26B | C149: EL | D149: 1327 | E149: 2293408.021 | F149: 1234646.672
B150: AA26B | C150: NE | D150: 18145 | E150: 10437330.66 | F150: 2309327.413
B151: AA27A | C151: DC | D151: 10 | E151: 12099.64422 | F151: 0
B152: AA27A | C152: EL | D152: 32 | E152: 137954.1041 | F152: 1156.457527
B153: AA27A | C153: NE | D153: 4239 | E153: 11093773.92 | F153: 174067.9776
B154: AA27B | C154: DC | D154: 27 | E154: 8562.385756 | F154: 0
B155: AA27B | C155: EL | D155: 3 | E155: 17546.07235 | F155: 0
B156: AA27B | C156: NE | D156: 114 | E156: 146158.0528 | F156: 0
B157: AA28A | C157: DC | D157: 177 | E157: 61036.03373 | F157: 0
B158: AA28A | C158: EL | D158: 772 | E158: 1853449.046 | F158: 114633.5824
B159: AA28A | C159: NE | D159: 1667 | E159: 4047667.597 | F159: 596882.113
B160: AA28B | C160: DC | D160: 114 | E160: 46549.88123 | F160: 0
B161: AA28B | C161: EL | D161: 247 | E161: 523718.8088 | F161: 15666.87488
B162: AA28B | C162: NE | D162: 123 | E162: 218824.6694 | F162: 31054.44806
B163: AA29A | C163: DC | D163: 525 | E163: 229285.3501 | F163: 0
B164: AA29A | C164: EL | D164: 144 | E164: 137097.5588 | F164: 79824.61305
B165: AA29A | C165: NE | D165: 28612 | E165: 21189414.88 | F165: 3917484.329
B166: AA29B | C166: DC | D166: 54 | E166: 24418.78512 | F166: 0
B167: AA29B | C167: EL | D167: 7 | E167: 2876.183177 | F167: 8431.283782
B168: AA29B | C168: NE | D168: 1993 | E168: 978569.2139 | F168: 76351.01267
B169: AA30A | C169: DC | D169: 3985 | E169: 1847499.987 | F169: 0
B170: AA30A | C170: EL | D170: 1124 | E170: 2715861.051 | F170: 958604.4065
B171: AA30A | C171: NE | D171: 4355 | E171: 8031122.687 | F171: 2076716.71
B172: AA30B | C172: DC | D172: 22990 | E172: 9971650.809 | F172: 0
B173: AA30B | C173: EL | D173: 836 | E173: 1015116.699 | F173: 196678.9132
B174: AA30B | C174: NE | D174: 1292 | E174: 1458148.353 | F174: 355520.4101
B175: AA31A | C175: DC | D175: 774 | E175: 323416.3775 | F175: 0
B176: AA31A | C176: EL | D176: 526 | E176: 757859.9124 | F176: 148395.6397
B177: AA31A | C177: NE | D177: 55175 | E177: 33869424.84 | F177: 2373679.634
B178: AA31B | C178: DC | D178: 858 | E178: 298304.2284 | F178: 0
B179: AA31B | C179: EL | D179: 239 | E179: 242256.8485 | F179: 75628.00052
B180: AA31B | C180: NE | D180: 17009 | E180: 8308636.575 | F180: 414847.7855
B181: AA32Z | C181: DC | D181: 330 | E181: 120442.2896 | F181: 0
B182: AA32Z | C182: EL | D182: 14 | E182: 29873.37123 | F182: 0
B183: AA32Z | C183: NE | D183: 4 | E183: 1564.509226 | F183: 0
B184: AA33C | C184: DC | D184: 1364 | E184: 734051.2471 | F184: 0
B185: AA33C | C185: EL | D185: 426 | E185: 547909.8252 | F185: 0
B186: AA33C | C186: NE | D186: 477 | E186: 515868.8925 | F186: 252.7990642
B187: AA33D | C187: DC | D187: 874 | E187: 639847.4207 | F187: 0
B188: AA33D | C188: EL | D188: 202 | E188: 270599.1213 | F188: 0
B189: AA33D | C189: NE | D189: 506 | E189: 634907.2625 | F189: 0
B190: AA34C | C190: EL | D190: 59 | E190: 106004.7601 | F190: 5808.213165
B191: AA34C | C191: NE | D191: 537 | E191: 679017.0976 | F191: 155795.3744
B192: AA34D | C192: EL | D192: 25 | E192: 43237.91172 | F192: 0
B193: AA34D | C193: NE | D193: 108 | E193: 113222.5936 | F193: 113974.2281
B194: AB02Z | C194: DC | D194: 820 | E194: 622385.2121 | F194: 0
B195: AB02Z | C195: EL | D195: 11 | E195: 16164.40373 | F195: 0
B196: AB02Z | C196: NE | D196: 5 | E196: 6269.2454 | F196: 0
B197: AB03Z | C197: DC | D197: 14583 | E197: 10840765.44 | F197: 0
B198: AB03Z | C198: EL | D198: 422 | E198: 667097.5107 | F198: 111264.303
B199: AB03Z | C199: NE | D199: 186 | E199: 328986.647 | F199: 202986.1754
B200: AB04Z | C200: DC | D200: 84920 | E200: 54412221.31 | F200: 0
B201: AB04Z | C201: EL | D201: 2221 | E201: 3123266.424 | F201: 181863.3118
B202: AB04Z | C202: NE | D202: 2138 | E202: 3077223.777 | F202: 1010190.067
B203: AB05Z | C203: DC | D203: 20886 | E203: 11478214.36 | F203: 0
B204: AB05Z | C204: EL | D204: 1224 | E204: 3672319.466 | F204: 440794.0587
B205: AB05Z | C205: NE | D205: 940 | E205: 1524902.12 | F205: 661603.7228
B206: AB06Z | C206: DC | D206: 19002 | E206: 10888515.17 | F206: 0
... 3764 more rows

Sheet 06_Flagged_Activity_RAW
A1: Home
B2: Flagged Activity
B3: 2011/12 HES on 2015/16 Engagement Grouper
B10: RC1516_SpellHRG_Rev | C10: LP1516_BPT | D10: Adm_split | E10: Spell_flag_Cnt
A11: =B11&C11&D11 -> AA22ABP05EM | B11: AA22A | C11: BP05 | D11: EM | E11: 57817
A12: =B12&C12&D12 -> AA22ABP05NE | B12: AA22A | C12: BP05 | D12: NE | E12: 6085
A13: AA22BBP05EM | B13: AA22B | C13: BP05 | D13: EM | E13: 1998
A14: AA22BBP05NE | B14: AA22B | C14: BP05 | D14: NE | E14: 246
A15: AA23ABP01EM | B15: AA23A | C15: BP01 | D15: EM | E15: 1
A16: AA23ABP05EM | B16: AA23A | C16: BP05 | D16: EM | E16: 8147
A17: AA23ABP05NE | B17: AA23A | C17: BP05 | D17: NE | E17: 1261
A18: AA23BBP05EM | B18: AA23B | C18: BP05 | D18: EM | E18: 524
A19: AA23BBP05NE | B19: AA23B | C19: BP05 | D19: NE | E19: 72
A20: AA25ABP05EM | B20: AA25A | C20: BP05 | D20: EM | E20: 7
A21: AA26ABP05EM | B21: AA26A | C21: BP05 | D21: EM | E21: 9
A22: AA26ABP35EM | B22: AA26A | C22: BP35 | D22: EM | E22: 40840
A23: AA26ABP54EM | B23: AA26A | C23: BP54 | D23: EM | E23: 1
A24: AA26BBP35EM | B24: AA26B | C24: BP35 | D24: EM | E24: 7670
A25: AA29ABP05EM | B25: AA29A | C25: BP05 | D25: EM | E25: 1
A26: AA31ABP05EM | B26: AA31A | C26: BP05 | D26: EM | E26: 5
A27: AA31ABP49EM | B27: AA31A | C27: BP49 | D27: EM | E27: 41443
A28: AA31BBP49EM | B28: AA31B | C28: BP49 | D28: EM | E28: 14324
A29: CZ05TBP33DC | B29: CZ05T | C29: BP33 | D29: DC | E29: 10047
A30: CZ05TBP33EL | B30: CZ05T | C30: BP33 | D30: EL | E30: 14865
A31: CZ05VBP33DC | B31: CZ05V | C31: BP33 | D31: DC | E31: 1487
A32: CZ05VBP33EL | B32: CZ05V | C32: BP33 | D32: EL | E32: 2935
A33: CZ05YBP33DC | B33: CZ05Y | C33: BP33 | D33: DC | E33: 4302
A34: CZ05YBP33EL | B34: CZ05Y | C34: BP33 | D34: EL | E34: 5801
A35: CZ13VBP34DC | B35: CZ13V | C35: BP34 | D35: DC | E35: 2367
A36: CZ13VBP34EL | B36: CZ13V | C36: BP34 | D36: EL | E36: 2518
A37: CZ13YBP34DC | B37: CZ13Y | C37: BP34 | D37: DC | E37: 5878
A38: CZ13YBP34EL | B38: CZ13Y | C38: BP34 | D38: EL | E38: 4619
A39: CZ21YBP05EM | B39: CZ21Y | C39: BP05 | D39: EM | E39: 1
A40: DZ06ZBP51DC | B40: DZ06Z | C40: BP51 | D40: DC | E40: 873
A41: DZ06ZBP51EL | B41: DZ06Z | C41: BP51 | D41: EL | E41: 141
A42: DZ09BBP46EM | B42: DZ09B | C42: BP46 | D42: EM | E42: 8780
A43: DZ09CBP46EM | B43: DZ09C | C43: BP46 | D43: EM | E43: 3634
A44: DZ10ABP52EM | B44: DZ10A | C44: BP52 | D44: EM | E44: 1
A45: DZ11ABP01EM | B45: DZ11A | C45: BP01 | D45: EM | E45: 1
A46: DZ11ABP05EM | B46: DZ11A | C46: BP05 | D46: EM | E46: 2
A47: DZ11ABP35EM | B47: DZ11A | C47: BP35 | D47: EM | E47: 1
A48: DZ11ABP53EM | B48: DZ11A | C48: BP53 | D48: EM | E48: 1
A49: DZ11CBP56EM | B49: DZ11C | C49: BP56 | D49: EM | E49: 10161
A50: DZ15EBP44EM | B50: DZ15E | C50: BP44 | D50: EM | E50: 16316
A51: DZ15FBP44EM | B51: DZ15F | C51: BP44 | D51: EM | E51: 10244
A52: DZ19ABP05EM | B52: DZ19A | C52: BP05 | D52: EM | E52: 2
A53: DZ19BBP61EM | B53: DZ19B | C53: BP61 | D53: EM | E53: 1
A54: DZ19CBP45EM | B54: DZ19C | C54: BP45 | D54: EM | E54: 1
A55: DZ22ABP05EM | B55: DZ22A | C55: BP05 | D55: EM | E55: 1
A56: DZ22CBP45EM | B56: DZ22C | C56: BP45 | D56: EM | E56: 8780
A57: DZ37ABP05EM | B57: DZ37A | C57: BP05 | D57: EM | E57: 1
A58: DZ37ABP44EM | B58: DZ37A | C58: BP44 | D58: EM | E58: 1
A59: EA36ABP28EL | B59: EA36A | C59: BP28 | D59: EL | E59: 1
A60: EB01ZBP05EM | B60: EB01Z | C60: BP05 | D60: EM | E60: 1
A61: EB01ZBP40EM | B61: EB01Z | C61: BP40 | D61: EM | E61: 243180
A62: EB01ZBP46EM | B62: EB01Z | C62: BP46 | D62: EM | E62: 1
A63: EB01ZBP48EM | B63: EB01Z | C63: BP48 | D63: EM | E63: 2
A64: EB01ZBP59EM | B64: EB01Z | C64: BP59 | D64: EM | E64: 1
A65: EB06ZBP59EM | B65: EB06Z | C65: BP59 | D65: EM | E65: 1
A66: EB07HBP35EM | B66: EB07H | C66: BP35 | D66: EM | E66: 1
A67: EB07HBP59EM | B67: EB07H | C67: BP59 | D67: EM | E67: 25446
A68: EB07IBP05EM | B68: EB07I | C68: BP05 | D68: EM | E68: 1
A69: EB07IBP59EM | B69: EB07I | C69: BP59 | D69: EM | E69: 63303
A70: EB08HBP05EM | B70: EB08H | C70: BP05 | D70: EM | E70: 1
A71: EB08HBP52EM | B71: EB08H | C71: BP52 | D71: EM | E71: 1
A72: EB08IBP41EM | B72: EB08I | C72: BP41 | D72: EM | E72: 48275
A73: EB08IBP59EM | B73: EB08I | C73: BP59 | D73: EM | E73: 1
A74: EB10ZBP05EM | B74: EB10Z | C74: BP05 | D74: EM | E74: 3
A75: FZ13CBP61EM | B75: FZ13C | C75: BP61 | D75: EM | E75: 2
A76: =B76&C76&D76 -> FZ31EBP05EM | B76: FZ31E | C76: BP05 | D76: EM | E76: 1
A77: FZ37FBP42EM | B77: FZ37F | C77: BP42 | D77: EM | E77: 1
A78: FZ37HBP05EM | B78: FZ37H | C78: BP05 | D78: EM | E78: 1
A79: FZ38DBP35EM | B79: FZ38D | C79: BP35 | D79: EM | E79: 1
A80: FZ38EBP05EM | B80: FZ38E | C80: BP05 | D80: EM | E80: 1
A81: FZ41FBP05EM | B81: FZ41F | C81: BP05 | D81: EM | E81: 1
A82: FZ43BBP05EM | B82: FZ43B | C82: BP05 | D82: EM | E82: 1
A83: FZ47BBP61EM | B83: FZ47B | C83: BP61 | D83: EM | E83: 66167
A84: FZ47CBP41EM | B84: FZ47C | C84: BP41 | D84: EM | E84: 1
A85: FZ47CBP61EM | B85: FZ47C | C85: BP61 | D85: EM | E85: 112707
A86: FZ52ZBP54EM | B86: FZ52Z | C86: BP54 | D86: EM | E86: 1
A87: FZ54ZBP61EM | B87: FZ54Z | C87: BP61 | D87: EM | E87: 1
A88: FZ60ZBP54EM | B88: FZ60Z | C88: BP54 | D88: EM | E88: 1
A89: FZ61ZBP05EM | B89: FZ61Z | C89: BP05 | D89: EM | E89: 1
A90: FZ61ZBP54EM | B90: FZ61Z | C90: BP54 | D90: EM | E90: 2
A91: FZ64ABP61EM | B91: FZ64A | C91: BP61 | D91: EM | E91: 1
A92: FZ88ABP05EM | B92: FZ88A | C92: BP05 | D92: EM | E92: 6
A93: GB07ZBP61EM | B93: GB07Z | C93: BP61 | D93: EM | E93: 1
A94: GC15DBP61EM | B94: GC15D | C94: BP61 | D94: EM | E94: 1
A95: GC16BBP05NE | B95: GC16B | C95: BP05 | D95: NE | E95: 1
A96: HA11ABP01EM | B96: HA11A | C96: BP01 | D96: EM | E96: 466
A97: HA11ABP01NE | B97: HA11A | C97: BP01 | D97: NE | E97: 5
A98: HA11BBP01EM | B98: HA11B | C98: BP01 | D98: EM | E98: 114
A99: HA11BBP01NE | B99: HA11B | C99: BP01 | D99: NE | E99: 4
A100: HA11CBP01EM | B100: HA11C | C100: BP01 | D100: EM | E100: 431
A101: HA11CBP01NE | B101: HA11C | C101: BP01 | D101: NE | E101: 10
A102: HA12BBP01EM | B102: HA12B | C102: BP01 | D102: EM | E102: 13258
A103: HA12BBP01NE | B103: HA12B | C103: BP01 | D103: NE | E103: 39
A104: HA12CBP01EM | B104: HA12C | C104: BP01 | D104: EM | E104: 10926
A105: HA12CBP01NE | B105: HA12C | C105: BP01 | D105: NE | E105: 29
A106: HA13ABP01EM | B106: HA13A | C106: BP01 | D106: EM | E106: 8168
A107: HA13ABP01NE | B107: HA13A | C107: BP01 | D107: NE | E107: 32
A108: HA13BBP01EM | B108: HA13B | C108: BP01 | D108: EM | E108: 3229
A109: HA13BBP01NE | B109: HA13B | C109: BP01 | D109: NE | E109: 11
A110: HA13CBP01EM | B110: HA13C | C110: BP01 | D110: EM | E110: 9759
A111: HA13CBP01NE | B111: HA13C | C111: BP01 | D111: NE | E111: 23
A112: HA14ABP01EM | B112: HA14A | C112: BP01 | D112: EM | E112: 10
A113: HA14BBP01EM | B113: HA14B | C113: BP01 | D113: EM | E113: 9
A114: HA14CBP01EM | B114: HA14C | C114: BP01 | D114: EM | E114: 7
A115: HA29ZBP42EM | B115: HA29Z | C115: BP42 | D115: EM | E115: 2
A116: HA56ABP01EM | B116: HA56A | C116: BP01 | D116: EM | E116: 1
A117: HA69ZBP42EM | B117: HA69Z | C117: BP42 | D117: EM | E117: 1
A118: HA79ZBP42EM | B118: HA79Z | C118: BP42 | D118: EM | E118: 1
A119: HA81ABP05EM | B119: HA81A | C119: BP05 | D119: EM | E119: 1
A120: HA81ABP61EM | B120: HA81A | C120: BP61 | D120: EM | E120: 1
A121: HA81CBP05EM | B121: HA81C | C121: BP05 | D121: EM | E121: 1
A122: HA83BBP58EM | B122: HA83B | C122: BP58 | D122: EM | E122: 2396
A123: HA83CBP58EM | B123: HA83C | C123: BP58 | D123: EM | E123: 12416
A124: HA91ZBP01EM | B124: HA91Z | C124: BP01 | D124: EM | E124: 15
A125: HA91ZBP01NE | B125: HA91Z | C125: BP01 | D125: NE | E125: 1
A126: HA91ZBP05EM | B126: HA91Z | C126: BP05 | D126: EM | E126: 1
A127: HA91ZBP53EM | B127: HA91Z | C127: BP53 | D127: EM | E127: 6932
A128: HA92ZBP42EM | B128: HA92Z | C128: BP42 | D128: EM | E128: 2676
A129: HA93ZBP42EM | B129: HA93Z | C129: BP42 | D129: EM | E129: 6264
A130: HA94ZBP42EM | B130: HA94Z | C130: BP42 | D130: EM | E130: 15382
A131: HA95ZBP42EM | B131: HA95Z | C131: BP42 | D131: EM | E131: 251
A132: HB34EBP16DC | B132: HB34E | C132: BP16 | D132: DC | E132: 1424
A133: HB34EBP16EL | B133: HB34E | C133: BP16 | D133: EL | E133: 976
A134: HB35BBP16DC | B134: HB35B | C134: BP16 | D134: DC | E134: 32
A135: HB35BBP16EL | B135: HB35B | C135: BP16 | D135: EL | E135: 27
A136: HB35CBP16DC | B136: HB35C | C136: BP16 | D136: DC | E136: 663
A137: HB35CBP16EL | B137: HB35C | C137: BP16 | D137: EL | E137: 239
A138: HB53ZBP17DC | B138: HB53Z | C138: BP17 | D138: DC | E138: 1981
A139: HB53ZBP17EL | B139: HB53Z | C139: BP17 | D139: EL | E139: 402
A140: =B140&C140&D140 -> HB62CBP15DC | B140: HB62C | C140: BP15 | D140: DC | E140: 7122
A141: HB62CBP15EL | B141: HB62C | C141: BP15 | D141: EL | E141: 3905
A142: HC12ZBP35EM | B142: HC12Z | C142: BP35 | D142: EM | E142: 1
A143: HC32CBP53EM | B143: HC32C | C143: BP53 | D143: EM | E143: 1
A144: HD21BBP48EM | B144: HD21B | C144: BP48 | D144: EM | E144: 1
A145: HD23BBP61EM | B145: HD23B | C145: BP61 | D145: EM | E145: 2
A146: HD24ABP53EM | B146: HD24A | C146: BP53 | D146: EM | E146: 1
A147: HD26ABP42EM | B147: HD26A | C147: BP42 | D147: EM | E147: 1
A148: HD26ABP53EM | B148: HD26A | C148: BP53 | D148: EM | E148: 1
A149: HD26ABP54EM | B149: HD26A | C149: BP54 | D149: EM | E149: 1
A150: HD26BBP53EM | B150: HD26B | C150: BP53 | D150: EM | E150: 2
A151: HD40ABP48EM | B151: HD40A | C151: BP48 | D151: EM | E151: 1
A152: HD40ABP54EM | B152: HD40A | C152: BP54 | D152: EM | E152: 1
A153: HD40BBP55EM | B153: HD40B | C153: BP55 | D153: EM | E153: 1
A154: JA20BBP28DC | B154: JA20B | C154: BP28 | D154: DC | E154: 127
A155: JA20BBP28EL | B155: JA20B | C155: BP28 | D155: EL | E155: 3780
A156: JA20BBP29DC | B156: JA20B | C156: BP29 | D156: DC | E156: 2405
A157: JA20BBP29EL | B157: JA20B | C157: BP29 | D157: EL | E157: 3787
A158: JA20BBP32DC | B158: JA20B | C158: BP32 | D158: DC | E158: 236
A159: JA20BBP32EL | B159: JA20B | C159: BP32 | D159: EL | E159: 1721
A160: JA20CBP28DC | B160: JA20C | C160: BP28 | D160: DC | E160: 279
A161: JA20CBP28EL | B161: JA20C | C161: BP28 | D161: EL | E161: 3190
A162: JA20CBP29DC | B162: JA20C | C162: BP29 | D162: DC | E162: 3697
A163: JA20CBP29EL | B163: JA20C | C163: BP29 | D163: EL | E163: 3746
A164: JA20CBP32DC | B164: JA20C | C164: BP32 | D164: DC | E164: 84
A165: JA20CBP32EL | B165: JA20C | C165: BP32 | D165: EL | E165: 705
A166: JA24BBP31DC | B166: JA24B | C166: BP31 | D166: DC | E166: 605
A167: JA24BBP31EL | B167: JA24B | C167: BP31 | D167: EL | E167: 730
A168: JA24CBP27DC | B168: JA24C | C168: BP27 | D168: DC | E168: 1
A169: JA24CBP29DC | B169: JA24C | C169: BP29 | D169: DC | E169: 7180
A170: JA24CBP29EL | B170: JA24C | C170: BP29 | D170: EL | E170: 1490
A171: JA24CBP31DC | B171: JA24C | C171: BP31 | D171: DC | E171: 698
A172: JA24CBP31EL | B172: JA24C | C172: BP31 | D172: EL | E172: 553
A173: JA26ZBP28DC | B173: JA26Z | C173: BP28 | D173: DC | E173: 98
A174: JA26ZBP28EL | B174: JA26Z | C174: BP28 | D174: EL | E174: 4779
A175: JD03ABP48EM | B175: JD03A | C175: BP48 | D175: EM | E175: 1
A176: JD03BBP39EM | B176: JD03B | C176: BP39 | D176: EM | E176: 12621
A177: JD03CBP39EM | B177: JD03C | C177: BP39 | D177: EM | E177: 9640
A178: JD04BBP39EM | B178: JD04B | C178: BP39 | D178: EM | E178: 2208
A179: JD04CBP39EM | B179: JD04C | C179: BP39 | D179: EM | E179: 2521
A180: KB01ABP52EM | B180: KB01A | C180: BP52 | D180: EM | E180: 143
A181: KB01BBP52EM | B181: KB01B | C181: BP52 | D181: EM | E181: 183
A182: KB02ABP52EM | B182: KB02A | C182: BP52 | D182: EM | E182: 467
A183: KB02BBP52EM | B183: KB02B | C183: BP52 | D183: EM | E183: 722
A184: KB02CBP52EM | B184: KB02C | C184: BP52 | D184: EM | E184: 63
A185: KB02DBP52EM | B185: KB02D | C185: BP52 | D185: EM | E185: 902
A186: KB02EBP52EM | B186: KB02E | C186: BP52 | D186: EM | E186: 6304
A187: KB02FBP52EM | B187: KB02F | C187: BP52 | D187: EM | E187: 2097
A188: KC05ABP42EM | B188: KC05A | C188: BP42 | D188: EM | E188: 1
A189: KC05BBP05EM | B189: KC05B | C189: BP05 | D189: EM | E189: 1
A190: LA04DBP01EM | B190: LA04D | C190: BP01 | D190: EM | E190: 2
A191: LA04DBP05EM | B191: LA04D | C191: BP05 | D191: EM | E191: 1
A192: LA08EBP05EM | B192: LA08E | C192: BP05 | D192: EM | E192: 1
A193: LB16BBP55EM | B193: LB16B | C193: BP55 | D193: EM | E193: 7294
A194: LB16CBP55EM | B194: LB16C | C194: BP55 | D194: EM | E194: 4713
A195: LB36ZBP47EM | B195: LB36Z | C195: BP47 | D195: EM | E195: 1
A196: LB40ABP47EM | B196: LB40A | C196: BP47 | D196: EM | E196: 8944
A197: LB40BBP47EM | B197: LB40B | C197: BP47 | D197: EM | E197: 19343
A198: NZ18ZBP52EM | B198: NZ18Z | C198: BP52 | D198: EM | E198: 1
A199: PA65ABP33EL | B199: PA65A | C199: BP33 | D199: EL | E199: 1
A200: PA65BBP33EL | B200: PA65B | C200: BP33 | D200: EL | E200: 1
A201: QZ01ABP23EL | B201: QZ01A | C201: BP23 | D201: EL | E201: 16
A202: QZ01BBP23EL | B202: QZ01B | C202: BP23 | D202: EL | E202: 13
A203: QZ14ABP59EM | B203: QZ14A | C203: BP59 | D203: EM | E203: 1
A204: =B204&C204&D204 -> QZ15BBP24DC | B204: QZ15B | C204: BP24 | D204: DC | E204: 469
A205: QZ15BBP24EL | B205: QZ15B | C205: BP24 | D205: EL | E205: 1884
A206: QZ15BBP25DC | B206: QZ15B | C206: BP25 | D206: DC | E206: 17
... 50 more rows

Sheet 06_RENAL_RAW
A1: Home
B2: Renal
B10: DEPARTMENT | C10: CURRENCY | D10: TOTAL_ACTIVITY | E10: TOTAL_COST | F10: 0910 UC | G10: Tariff
B11: RENAL | C11: LD01A | D11: 401277 | E11: 57754436.96 | F11: 143.93 | G11: 158
B12: RENAL | C12: LD02A | D12: 692240 | E12: 104123216.1 | F12: 150.41 | G12: 165
B13: RENAL | C13: LD03A | D13: 13281 | E13: 2812592.899 | F13: 211.78 | G13: 232
B14: RENAL | C14: LD04A | D14: 25301 | E14: 4957202.356 | F14: 195.93 | G14: 215
B15: RENAL | C15: LD05A | D15: 483745 | E15: 61452148.89 | F15: 127.03 | G15: 139
B16: RENAL | C16: LD06A | D16: 979761 | E16: 130129980.3 | F16: 132.82 | G16: 146
B17: RENAL | C17: LD07A | D17: 21508 | E17: 5122106.663 | F17: 238.15 | G17: 261
B18: RENAL | C18: LD08A | D18: 48198 | E18: 8541672.956 | F18: 177.22 | G18: 194
B19: RENAL | C19: LD09A | D19: 36558 | E19: 4804270.313 | F19: 131.42 | G19: 144
B20: RENAL | C20: LD10A | D20: 84023 | E20: 10410415.74 | F20: 123.9 | G20: 136
B21: RENAL | C21: LD11A | D21: 454693 | E21: 23207393.23 | F21: 51.04 | G21: 56
B22: RENAL | C22: LD12A | D22: 608509 | E22: 35549201.25 | F22: 58.42 | G22: 64
B23: RENAL | C23: LD13A | D23: 8538 | E23: 543819.5157 | F23: 63.69 | G23: 70

Sheet NSRC OPROC
A1: Home | B1: National Schedule of Reference Costs - Year 2011-12 - NHS trusts and NHS foundation trusts
B2: Outpatient Procedures
A4: Currency Code | B4: Currency Description | C4: Procedures | D4: National Average Unit Cost | E4: Lower Quartile Unit Cost | F4: Upper Quartile Unit Cost | G4: Data Submissions
A5: AA03B | B5: Intracranial Procedures for Trauma with Diagnosis of Head Injury or Skull Fracture, without CC | C5: 1 | D5: 150.55 | E5: 150.55 | F5: 150.55 | G5: 1
A6: AA09B | B6: Major Intracranial Procedures Except Trauma with Other Diagnoses without CC | C6: 43 | D6: 159.5574419 | E6: 78.85 | F6: 162.91 | G6: 26
A7: AA15A | B7: Intermediate Intracranial Procedures Except Trauma with Other Diagnoses with CC | C7: 3 | D7: 127.72 | E7: 127.72 | F7: 127.72 | G7: 1
A8: AA15B | B8: Intermediate Intracranial Procedures Except Trauma with Other Diagnoses without CC | C8: 15 | D8: 168.8366667 | E8: 83.88 | F8: 275.12 | G8: 10
A9: AA20B | B9: Minor Intracranial Procedures Except Trauma with Muscular, Balance, Cranial or Peripheral Nerve Disorders or Epilepsy, without CC | C9: 1 | D9: 293.04 | E9: 293.04 | F9: 293.04 | G9: 1
A10: AA21A | B10: Minor Intracranial Procedures Except Trauma with Other Diagnoses with CC | C10: 2 | D10: 73.78 | E10: 73.78 | F10: 73.78 | G10: 1
A11: AA21B | B11: Minor Intracranial Procedures Except Trauma with Other Diagnoses without CC | C11: 2686 | D11: 156.8238347 | E11: 81.97 | F11: 182.58 | G11: 58
A12: AA26B | B12: Muscular, Balance, Cranial or Peripheral Nerve Disorders, Epilepsy or Head Injury, without CC | C12: 6 | D12: 237.125 | E12: 219.31 | F12: 246.0325 | G12: 2
A13: AA31A | B13: Headache, Migraine or Cerebrospinal Fluid Leak, with CC | C13: 3 | D13: 326.2 | E13: 326.2 | F13: 326.2 | G13: 1
A14: AA31B | B14: Headache, Migraine or Cerebrospinal Fluid Leak, without CC | C14: 15 | D14: 326.2 | E14: 326.2 | F14: 326.2 | G14: 1
A15: AA32Z | B15: Neuropsychology tests with length of stay 2 days or less | C15: 867 | D15: 232.2925375 | E15: 177.84 | F15: 292.92 | G15: 18
A16: AA33C | B16: Conventional EEG, EMG or Nerve Conduction Studies with length of stay 2 days or less, 19 years and over | C16: 30120 | D16: 150.9228629 | E16: 102.83 | F16: 187.28 | G16: 48
A17: AA33D | B17: Conventional EEG, EMG or Nerve Conduction Studies with length of stay 2 days or less, 18 years and under | C17: 3611 | D17: 163.0686486 | E17: 86.98 | F17: 170.22 | G17: 30
A18: AA34C | B18: Neurophysiological Operations, 19 years and over | C18: 6263 | D18: 166.4919927 | E18: 122.38 | F18: 168.88 | G18: 26
A19: AA34D | B19: Neurophysiological Operations, 18 years and under | C19: 163 | D19: 312.5333129 | E19: 145.51 | F19: 397.19 | G19: 18
A20: AB02Z | B20: Complex Major Pain Procedures | C20: 18 | D20: 174.2344444 | E20: 128.4 | F20: 227.01 | G20: 4
A21: AB03Z | B21: Complex Pain Procedures | C21: 433 | D21: 159.2714088 | E21: 135.35 | F21: 135.35 | G21: 22
A22: AB04Z | B22: Major Pain Procedures | C22: 2791 | D22: 145.4631458 | E22: 94.89 | F22: 182.75 | G22: 38
A23: AB05Z | B23: Intermediate Pain Procedures | C23: 11514 | D23: 189.0701424 | E23: 96.21 | F23: 208.3 | G23: 100
A24: AB06Z | B24: Minor Pain Procedures | C24: 74463 | D24: 111.4609023 | E24: 42.92 | F24: 155.67 | G24: 82
A25: AB07Z | B25: Insertion of neurostimulator or intrathecal drug delivery device | C25: 85 | D25: 76.24047059 | E25: 53.96 | F25: 91.75 | G25: 11
A26: AB08Z | B26: Pain Radiofrequency treatments | C26: 25 | D26: 495.46 | E26: 495.46 | F26: 495.46 | G26: 1
A27: AB09Z | B27: Other Specified Pain Procedures | C27: 2806 | D27: 123.8801426 | E27: 102.54 | F27: 140.85 | G27: 40
A28: AB10Z | B28: Unspecified Pain Procedures | C28: 140 | D28: 124.4444286 | E28: 122.87 | F28: 122.87 | G28: 3
A29: BZ01Z | B29: Enhanced cataract surgery | C29: 2 | D29: 124.115 | E29: 77.47 | F29: 170.76 | G29: 2
A30: BZ02Z | B30: Phacoemulsification cataract extraction and lens implant | C30: 16 | D30: 86.966875 | E30: 70.94 | F30: 82.24 | G30: 5
A31: BZ03Z | B31: Non-phacoemulsification cataract surgery | C31: 700 | D31: 129.3107571 | E31: 104.29 | F31: 164.18 | G31: 37
A32: BZ04Z | B32: Lens capsulotomy | C32: 32716 | D32: 115.0512239 | E32: 83.14 | F32: 134.95 | G32: 102
A33: BZ05Z | B33: Major Oculoplastics Procedures | C33: 23 | D33: 155.2595652 | E33: 68.54 | F33: 249.34 | G33: 12
A34: BZ06A | B34: Intermediate Oculoplastics Procedures, 19 years and over | C34: 1300 | D34: 154.6655538 | E34: 111.58 | F34: 186.53 | G34: 58
A35: BZ06B | B35: Intermediate Oculoplastics Procedures, 18 years and under | C35: 68 | D35: 171.1852941 | E35: 115.6075 | F35: 196.53 | G35: 20
A36: BZ07A | B36: Minor Oculoplastics Procedures, 19 years and over | C36: 25364 | D36: 129.7118846 | E36: 84.28 | F36: 143.87 | G36: 128
A37: BZ07B | B37: Minor Oculoplastics Procedures, 18 years and under | C37: 669 | D37: 165.6909118 | E37: 100.635 | F37: 184.7 | G37: 90
A38: BZ08A | B38: Major Orbits or Lacrimal Procedures, 19 years and over | C38: 49 | D38: 207.217551 | E38: 77.59 | F38: 144.98 | G38: 14
A39: BZ09A | B39: Intermediate Orbits or Lacrimal Procedures, 19 years and over | C39: 1636 | D39: 130.3390465 | E39: 127.78 | F39: 137 | G39: 42
A40: BZ09B | B40: Intermediate Orbits or Lacrimal Procedures, 18 years and under | C40: 111 | D40: 137.4461261 | E40: 137 | F40: 137 | G40: 8
A41: BZ10A | B41: Minor Orbits or Lacrimal Procedures, 19 years and over | C41: 11664 | D41: 119.4316984 | E41: 83.36 | F41: 137.21 | G41: 118
A42: BZ10B | B42: Minor Orbits or Lacrimal Procedures, 18 years and under | C42: 126 | D42: 135.8823016 | E42: 84.9 | F42: 174.11 | G42: 56
A43: BZ12Z | B43: Intermediate Cornea or Sclera Procedures | C43: 51 | D43: 112.7958824 | E43: 99.64 | F43: 114.43 | G43: 24
A44: BZ13Z | B44: Minor Cornea or Sclera Procedures | C44: 8199 | D44: 150.5633894 | E44: 86.6 | F44: 134.95 | G44: 93
A45: BZ14A | B45: Major Ocular Motility Procedures, 19 years and over | C45: 24 | D45: 103.6316667 | E45: 94.84 | F45: 94.84 | G45: 3
A46: BZ14B | B46: Major Ocular Motility Procedures, 18 years and under | C46: 34 | D46: 60.36 | E46: 60.36 | F46: 60.36 | G46: 1
A47: BZ15A | B47: Intermediate Ocular Motility Procedures, 19 years and over | C47: 285 | D47: 140.4357544 | E47: 74.74 | F47: 247.03 | G47: 26
A48: BZ15B | B48: Intermediate Ocular Motility Procedures, 18 years and under | C48: 13 | D48: 97.05384615 | E48: 63.34 | F48: 124.66 | G48: 7
A49: BZ16A | B49: Minor Ocular Motility Procedures, 19 years and over | C49: 27 | D49: 106.3233333 | E49: 102.33 | F49: 102.33 | G49: 7
A50: BZ16B | B50: Minor Ocular Motility Procedures, 18 years and under | C50: 3 | D50: 78.47333333 | E50: 67.89 | F50: 99.64 | G50: 2
A51: BZ17Z | B51: Major Glaucoma Procedures | C51: 294 | D51: 137.0630612 | E51: 84.57 | F51: 173.67 | G51: 23
A52: BZ18Z | B52: Intermediate Glaucoma Procedures | C52: 24942 | D52: 103.7138112 | E52: 101.93 | F52: 101.93 | G52: 57
A53: BZ19Z | B53: Minor Glaucoma Procedures | C53: 10556 | D53: 112.893472 | E53: 78.13 | F53: 135.4 | G53: 106
A54: BZ20Z | B54: Complex Vitreous Retinal Procedures | C54: 11 | D54: 97.24 | E54: 102.94 | F54: 102.94 | G54: 5
A55: BZ21Z | B55: Major Vitreous Retinal Procedures | C55: 4860 | D55: 121.8950514 | E55: 106.82 | F55: 106.82 | G55: 43
A56: BZ22Z | B56: Intermediate Vitreous Retinal Procedures | C56: 58419 | D56: 131.1299365 | E56: 81.44 | F56: 141.08 | G56: 113
A57: BZ23Z | B57: Minor Vitreous Retinal Procedures | C57: 646155 | D57: 117.2609186 | E57: 80.03 | F57: 139.28 | G57: 133
A58: BZ24A | B58: Non-Surgical Ophthalmology with length of stay 2 days or more | C58: 15 | D58: 224.3413333 | E58: 219.31 | F58: 219.31 | G58: 1
A59: BZ24C | B59: Non-Surgical Ophthalmology with length of stay 1 day or less | C59: 469 | D59: 143.35 | E59: 143.35 | F59: 143.35 | G59: 1
A60: CZ01T | B60: Minor Mouth or Throat Procedures, 18 years and under without CC | C60: 14283 | D60: 123.9278758 | E60: 99.88 | F60: 139.67 | G60: 128
A61: CZ01Y | B61: Minor Mouth or Throat Procedures, 19 years and over without CC | C61: 113875 | D61: 126.8298721 | E61: 100.13 | F61: 132.92 | G61: 142
A62: CZ02T | B62: Intermediate Mouth or Throat Procedures, 18 years and under without CC | C62: 4517 | D62: 125.2489528 | E62: 83.59 | F62: 137.74 | G62: 119
A63: CZ02X | B63: Intermediate Mouth or Throat Procedures, 19 years and over with Intermediate CC | C63: 1 | D63: 293.04 | E63: 293.04 | F63: 293.04 | G63: 1
A64: CZ02Y | B64: Intermediate Mouth or Throat Procedures, 19 years and over without CC | C64: 145662 | D64: 128.4005503 | E64: 97.09 | F64: 148.82 | G64: 134
A65: CZ03U | B65: Major Mouth or Throat Procedures, 18 years and under | C65: 103 | D65: 137.9216505 | E65: 79.94 | F65: 139.4 | G65: 19
A66: CZ03Y | B66: Major Mouth or Throat Procedures, 19 years and over without CC | C66: 1817 | D66: 130.4818547 | E66: 78.43 | F66: 129.31 | G66: 58
A67: CZ04Q | B67: Complex Major Mouth or Throat Procedures, without CC | C67: 58 | D67: 116.7946552 | E67: 49.46 | F67: 125.77 | G67: 19
A68: CZ05T | B68: Tonsillectomy, 18 years and under without CC | C68: 44 | D68: 125.8090909 | E68: 84.2 | F68: 176.65 | G68: 18
A69: CZ05Y | B69: Tonsillectomy, 19 years and over without CC | C69: 266 | D69: 118.7892481 | E69: 82.76 | F69: 126.73 | G69: 48
A70: CZ07P | B70: Exteriorisation of trachea with Intermediate CC | C70: 1 | D70: 249.72 | E70: 249.72 | F70: 249.72 | G70: 1
A71: CZ07Q | B71: Exteriorisation of trachea without CC | C71: 241 | D71: 192.6854357 | E71: 114.14 | F71: 189.3 | G71: 26
A72: CZ08T | B72: Minor Ear Procedures, 18 years and under without CC | C72: 100444 | D72: 110.0634047 | E72: 78.37 | F72: 123.14 | G72: 139
A73: CZ08V | B73: Minor Ear Procedures, 19 years and over with CC | C73: 48 | D73: 342.81 | E73: 342.81 | F73: 342.81 | G73: 1
A74: CZ08Y | B74: Minor Ear Procedures, 19 years and over without CC | C74: 429120 | D74: 110.6060038 | E74: 83.05 | F74: 124.17 | G74: 142
A75: CZ09U | B75: Intermediate Ear Procedures, 18 years and under | C75: 1088 | D75: 106.4850919 | E75: 108.52 | F75: 108.52 | G75: 28
A76: CZ09V | B76: Intermediate Ear Procedures, 19 years and over with CC | C76: 1 | D76: 350.62 | E76: 350.62 | F76: 350.62 | G76: 1
A77: CZ09Y | B77: Intermediate Ear Procedures, 19 years and over without CC | C77: 1481 | D77: 113.5450979 | E77: 58.84 | F77: 125.66 | G77: 44
A78: CZ10U | B78: Major Ear Procedures, 18 years and under | C78: 57 | D78: 147.6833333 | E78: 100.245 | F78: 162.36 | G78: 20
A79: CZ10Y | B79: Major Ear Procedures, 19 years and over without CC | C79: 556 | D79: 119.4261871 | E79: 98.81 | F79: 130.94 | G79: 46
A80: CZ11Z | B80: Complex Major ear Procedures | C80: 70 | D80: 126.7722857 | E80: 98.41 | F80: 134.79 | G80: 7
A81: CZ12U | B81: Minor Nose Procedures, 18 years and under | C81: 6913 | D81: 127.3813221 | E81: 83.4 | F81: 131.88 | G81: 122
A82: CZ12V | B82: Minor Nose Procedures, 19 years and over with CC | C82: 47 | D82: 280.023617 | E82: 279.47 | F82: 279.47 | G82: 1
A83: CZ12Y | B83: Minor Nose Procedures, 19 years and over without CC | C83: 22848 | D83: 132.3386301 | E83: 92.98 | F83: 161.53 | G83: 140
A84: CZ13U | B84: Intermediate Nose Procedures, 18 years and under | C84: 1106 | D84: 121.2455967 | E84: 84.48 | F84: 127.53 | G84: 65
A85: CZ13Y | B85: Intermediate Nose Procedures, 19 years and over without CC | C85: 12889 | D85: 141.5226744 | E85: 97.58 | F85: 147.98 | G85: 121
A86: CZ14U | B86: Major Nose Procedures, 18 years and under | C86: 27 | D86: 133.9822222 | E86: 100.88 | F86: 149.27 | G86: 11
A87: CZ14Y | B87: Major Nose Procedures, 19 years and over without CC | C87: 302 | D87: 127.5140728 | E87: 114.68 | F87: 135.3 | G87: 36
A88: CZ15Q | B88: Complex Major nose Procedures without CC | C88: 27 | D88: 154.172963 | E88: 58.23 | F88: 231.53 | G88: 16
A89: CZ16N | B89: Minor maxillo-facial Procedures with CC | C89: 1 | D89: 336.81 | E89: 336.81 | F89: 336.81 | G89: 1
A90: CZ16Q | B90: Minor maxillo-facial Procedures without CC | C90: 692 | D90: 187.3946821 | E90: 118.64 | F90: 214.53 | G90: 58
A91: CZ17U | B91: Intermediate Maxillo-facial Procedures, 18 years and under | C91: 79 | D91: 141.3606329 | E91: 87.61 | F91: 145.33 | G91: 27
A92: CZ17Y | B92: Intermediate Maxillo-facial Procedures, 19 years and over without CC | C92: 2428 | D92: 155.1437932 | E92: 94.29 | F92: 178.1275 | G92: 76
A93: CZ18R | B93: Major Maxillo-facial Procedures, 19 years and over | C93: 50 | D93: 165.3598 | E93: 98.5 | F93: 252.31 | G93: 8
A94: CZ19Z | B94: Complex Major maxillo-facial Procedures | C94: 4 | D94: 136.7675 | E94: 38.2275 | F94: 206.97 | G94: 3
A95: CZ21V | B95: Minor Head, Neck and Ear Disorders, with CC | C95: 2 | D95: 326.2 | E95: 326.2 | F95: 326.2 | G95: 1
A96: CZ21Y | B96: Minor Head, Neck and Ear Disorders, without CC | C96: 18 | D96: 320.2805556 | E96: 326.22 | F96: 326.22 | G96: 2
A97: CZ22Y | B97: Intermediate Head, Neck and Ear Disorders, without CC | C97: 1 | D97: 326.2 | E97: 326.2 | F97: 326.2 | G97: 1
A98: CZ23Y | B98: Major Head, Neck and Ear Disorders, without CC | C98: 43 | D98: 221.795814 | E98: 219.31 | F98: 219.31 | G98: 2
A99: CZ25Q | B99: Cochlear Implants without CC | C99: 14 | D99: 109.7814286 | E99: 73.6475 | F99: 155.02 | G99: 8
A100: CZ27Z | B100: Fixture for Bone Anchored Hearing Aids | C100: 169 | D100: 143.7507101 | E100: 83.71 | F100: 131.32 | G100: 15
A101: CZ28Z | B101: Fitting of Bone Anchored Hearing Aids | C101: 223 | D101: 2569.592556 | E101: 929.61 | F101: 2972.14 | G101: 11
A102: CZ30U | B102: Minor Extraction of Tooth, 18 years and under | C102: 1331 | D102: 134.3301878 | E102: 104.87 | F102: 156.52 | G102: 71
A103: CZ30Y | B103: Minor Extraction of Tooth, 19 years and over | C103: 18964 | D103: 121.1311184 | E103: 108.66 | F103: 136.15 | G103: 80
A104: CZ31U | B104: Minor Dental Biopsy, 18 years and under | C104: 444 | D104: 174.3344595 | E104: 128.69 | F104: 218.55 | G104: 67
A105: CZ31Y | B105: Minor Dental Biopsy, 19 years and over | C105: 13467 | D105: 177.971226 | E105: 127.61 | F105: 217.98 | G105: 102
A106: CZ32U | B106: Dental Fitting or Insertion Procedures, 18 years and under | C106: 41509 | D106: 130.9199316 | E106: 97.33 | F106: 159.74 | G106: 96
A107: CZ32Y | B107: Dental Fitting or Insertion Procedures, 19 years and over | C107: 20985 | D107: 143.2005575 | E107: 105.73 | F107: 175.8 | G107: 99
A108: CZ33U | B108: Minor Dental Restoration Procedures, 18 years and under | C108: 3064 | D108: 130.5925196 | E108: 98.42 | F108: 186 | G108: 34
A109: CZ33Y | B109: Minor Dental Restoration Procedures, 19 years and over | C109: 6418 | D109: 156.7641524 | E109: 131.16 | F109: 160.35 | G109: 40
A110: CZ34U | B110: Minor Dental Procedures, 18 years and under | C110: 132811 | D110: 125.2720331 | E110: 96.15 | F110: 154.96 | G110: 115
A111: CZ34Y | B111: Minor Dental Procedures, 19 years and over | C111: 197280 | D111: 137.6928276 | E111: 105.5 | F111: 154.54 | G111: 115
A112: CZ35U | B112: Adjustment of Dental Device, 18 years and under | C112: 164689 | D112: 126.6815227 | E112: 96.79 | F112: 160.73 | G112: 91
A113: CZ35Y | B113: Adjustment of Dental Device, 19 years and over | C113: 44387 | D113: 130.8695846 | E113: 95.66 | F113: 165.61 | G113: 91
A114: CZ36U | B114: Dental Excision or Biopsy Procedures, 18 years and under | C114: 550 | D114: 167.7988909 | E114: 125.25 | F114: 182.42 | G114: 72
A115: CZ36Y | B115: Dental Excision or Biopsy Procedures, 19 years and over | C115: 10723 | D115: 190.963486 | E115: 136.89 | F115: 230.45 | G115: 103
A116: CZ37U | B116: Surgical Removal of Tooth, 18 years and under | C116: 1290 | D116: 193.6563256 | E116: 101.53 | F116: 225.24 | G116: 86
A117: CZ37Y | B117: Surgical Removal of Tooth, 19 years and over | C117: 30808 | D117: 134.9568197 | E117: 86.88 | F117: 164.02 | G117: 94
A118: CZ38U | B118: Creation of Dental Impression, 18 years and under | C118: 35132 | D118: 130.5873625 | E118: 101.67 | F118: 160.09 | G118: 95
A119: CZ38Y | B119: Creation of Dental Impression, 19 years and over | C119: 20454 | D119: 149.7850865 | E119: 109.29 | F119: 175.8 | G119: 99
A120: CZ39U | B120: Intermediate Dental Procedures, 18 years and under | C120: 19556 | D120: 143.4913628 | E120: 103.11 | F120: 182.77 | G120: 100
A121: CZ39Y | B121: Intermediate Dental Procedures, 19 years and over | C121: 6415 | D121: 155.1723352 | E121: 109.19 | F121: 186.93 | G121: 107
A122: CZ40U | B122: Major Surgical Removal of Tooth, 18 years and under | C122: 111 | D122: 210.5156757 | E122: 130.92 | F122: 192.16 | G122: 42
A123: CZ40Y | B123: Major Surgical Removal of Tooth, 19 years and over | C123: 7757 | D123: 143.0902797 | E123: 118.12 | F123: 154.19 | G123: 67
A124: CZ41U | B124: Major Dental Procedures, 18 years and under | C124: 152 | D124: 326.8247368 | E124: 139.91 | F124: 762.85 | G124: 40
A125: CZ41Y | B125: Major Dental Procedures, 19 years and over | C125: 7387 | D125: 164.9815067 | E125: 126.22 | F125: 213.13 | G125: 73
A126: CZ42U | B126: Extraction of Multiple Teeth, 18 years and under | C126: 644 | D126: 151.3049689 | E126: 105.88 | F126: 148.45 | G126: 65
A127: CZ42Y | B127: Extraction of Multiple Teeth, 19 years and over | C127: 10677 | D127: 137.5680416 | E127: 106.31 | F127: 149.33 | G127: 81
A128: DZ01Z | B128: Lung Transplant | C128: 5 | D128: 139.76 | E128: 134.48 | F128: 143.28 | G128: 2
A129: DZ02C | B129: Complex Thoracic Procedures without CC | C129: 18 | D129: 136.2572222 | E129: 84.22 | F129: 176.02 | G129: 13
A130: DZ03B | B130: Major Thoracic Procedures without CC | C130: 306 | D130: 121.6154902 | E130: 100.17 | F130: 152.15 | G130: 26
A131: DZ04B | B131: Intermediate Thoracic Procedures without CC | C131: 31 | D131: 204.9954839 | E131: 120.2 | F131: 204.2 | G131: 19
A132: DZ06Z | B132: Minor Thoracic Procedures | C132: 2250 | D132: 133.8118267 | E132: 90.96 | F132: 112.36 | G132: 66
A133: DZ07A | B133: Fibre Optic Bronchoscopy, 19 years and over | C133: 774 | D133: 292.8543282 | E133: 182.61 | F133: 324.81 | G133: 25
A134: DZ07B | B134: Fibre Optic Bronchoscopy, 18 years and under | C134: 5 | D134: 112.386 | E134: 45.92 | F134: 205.785 | G134: 4
A135: DZ08Z | B135: Rigid Bronchoscopy | C135: 8 | D135: 228.36375 | E135: 83.3375 | F135: 506.9925 | G135: 4
A136: DZ30Z | B136: Chest Physiotherapy | C136: 1689 | D136: 117.7020663 | E136: 70.41 | F136: 142.52 | G136: 33
A137: DZ31Z | B137: Complex Lung Function Exercise Testing | C137: 17766 | D137: 244.5213835 | E137: 126.62 | F137: 389.36 | G137: 44
A138: DZ32Z | B138: Simple Lung Function Exercise Testing | C138: 7429 | D138: 182.2984076 | E138: 75.06 | F138: 268.88 | G138: 60
A139: DZ33Z | B139: Hyperbaric oxygen treatment | C139: 16 | D139: 150.533125 | E139: 88.415 | F139: 192.6 | G139: 6
A140: DZ34Z | B140: Complex Bronchodilator Studies | C140: 84 | D140: 177.9802381 | E140: 190.84 | F140: 199.19 | G140: 5
A141: DZ35Z | B141: Simple Bronchodilator Studies | C141: 1986 | D141: 108.6875478 | E141: 40.41 | F141: 204.5 | G141: 40
A142: DZ36Z | B142: Bronchial Reactivity Studies | C142: 210 | D142: 150.1535238 | E142: 53.36 | F142: 207.0225 | G142: 26
A143: DZ37A | B143: Non-Invasive Ventilation Support Assessment, 19 years and over | C143: 5639 | D143: 120.0717007 | E143: 80.18 | F143: 131.6 | G143: 40
A144: DZ37B | B144: Non-Invasive Ventilation Support Assessment, 18 years and under | C144: 236 | D144: 167.5169492 | E144: 64.06 | F144: 176.2 | G144: 18
A145: DZ38Z | B145: Oxygen Assessment and Monitoring | C145: 3474 | D145: 169.2037478 | E145: 107.78 | F145: 213.05 | G145: 44
A146: DZ39Z | B146: Complex Gas Exchange Studies | C146: 10181 | D146: 166.3069954 | E146: 116.9 | F146: 222.07 | G146: 48
A147: DZ40Z | B147: Simple Gas Exchange Studies | C147: 22343 | D147: 142.8379228 | E147: 80.08 | F147: 162.84 | G147: 72
A148: DZ41Z | B148: Smoking Cessation Support | C148: 43 | D148: 136.6016279 | E148: 88.97 | F148: 159 | G148: 13
A149: DZ42Z | B149: TB Nurse Support | C149: 12145 | D149: 172.2426348 | E149: 95.55 | F149: 214.91 | G149: 71
A150: DZ43Z | B150: Complex Airflow Studies | C150: 2548 | D150: 127.5773548 | E150: 88.67 | F150: 108.52 | G150: 27
A151: DZ44Z | B151: Simple Airflow Studies | C151: 109944 | D151: 166.2965824 | E151: 107.44 | F151: 180.74 | G151: 98
A152: DZ45Z | B152: Lung Volume Studies | C152: 9786 | D152: 97.61343143 | E152: 102.12 | F152: 102.12 | G152: 30
A153: DZ46Z | B153: Respiratory Muscle Strength Studies | C153: 57 | D153: 177.625614 | E153: 117.71 | F153: 206.28 | G153: 19
A154: DZ48Z | B154: Respiratory Drive Studies | C154: 29 | D154: 109.1265517 | E154: 86.21 | F154: 133.68 | G154: 2
A155: DZ49Z | B155: Respiratory Nurse and AHP Education or Support | C155: 10886 | D155: 158.6064744 | E155: 102.81 | F155: 178.96 | G155: 53
A156: DZ50Z | B156: Respiratory Sleep Study | C156: 628 | D156: 229.6079299 | E156: 158.64 | F156: 324.44 | G156: 9
A157: DZ52Z | B157: Full Pulmonary Function Testing | C157: 9552 | D157: 146.1548451 | E157: 113.48 | F157: 206.27 | G157: 36
A158: EA01Z | B158: Heart and Lung Transplant | C158: 1 | D158: 121.85 | E158: 121.85 | F158: 121.85 | G158: 1
A159: EA02Z | B159: Heart Transplant | C159: 10 | D159: 129.031 | E159: 95.52 | F159: 151.825 | G159: 2
A160: EA03Z | B160: Pace 1: Single Chamber or Implantable Diagnostic Device | C160: 2898 | D160: 165.5748171 | E160: 43.33 | F160: 145.66 | G160: 34
A161: EA05Z | B161: Pace 2: Dual Chamber | C161: 8 | D161: 207.9475 | E161: 129.3925 | F161: 251.44 | G161: 3
A162: EA10Z | B162: Percutaneous Interventions: Balloon valve intermediate interventions and arterial duct closure | C162: 2 | D162: 166.56 | E162: 166.56 | F162: 166.56 | G162: 1
A163: EA11Z | B163: Percutaneous Interventions: Other including Septostomy, Embolisations, Non-coronary Stents and Energy Moderated Perforation | C163: 7 | D163: 1089.19 | E163: 1089.19 | F163: 1089.19 | G163: 1
A164: EA12Z | B164: Implantation of Cardioverter; Defibrillator only | C164: 40 | D164: 250.5375 | E164: 99.98 | F164: 331.4 | G164: 6
A165: EA14Z | B165: Coronary Artery Bypass Graft (First Time) | C165: 13 | D165: 159.2992308 | E165: 84.845 | F165: 188.77 | G165: 6
A166: EA17Z | B166: Single Cardiac Valve Procedures | C166: 21 | D166: 152.1290476 | E166: 77.97 | F166: 188.77 | G166: 6
A167: EA20Z | B167: Other Complex Cardiac Surgery and Re-do's | C167: 1 | D167: 121.85 | E167: 121.85 | F167: 121.85 | G167: 1
A168: EA23Z | B168: Major Complex Congenital Surgery | C168: 1 | D168: 226.33 | E168: 226.33 | F168: 226.33 | G168: 1
A169: EA24Z | B169: Complex Congenital Surgery | C169: 425 | D169: 110.3519294 | E169: 93.17 | F169: 128.93 | G169: 7
A170: EA25Z | B170: Intermediate Congenital Surgery | C170: 5 | D170: 870.96 | E170: 175.245 | F170: 1877.455 | G170: 4
A171: EA26Z | B171: Standard Congenital Surgery | C171: 45 | D171: 119.6068889 | E171: 122.25 | F171: 122.25 | G171: 5
A172: EA31Z | B172: Percutaneous Coronary Intervention, 0 to 2 Stents | C172: 5 | D172: 291.418 | E172: 156.315 | F172: 493.74 | G172: 3
A173: EA35Z | B173: Other Percutaneous Interventions | C173: 2437 | D173: 166.1153303 | E173: 146.9 | F173: 153.12 | G173: 29
A174: EA36A | B174: Catheter, 19 years and over | C174: 124 | D174: 232.9425806 | E174: 147.04 | F174: 188.77 | G174: 11
A175: EA36B | B175: Catheter, 18 years and under | C175: 38 | D175: 509.7128947 | E175: 521.23 | F175: 521.23 | G175: 2
A176: EA39Z | B176: Pacemaker Procedure without Generator Implant, including Re-siting and Removal of Cardiac Pacemaker System | C176: 60 | D176: 146.6221667 | E176: 146.65 | F176: 146.65 | G176: 2
A177: EA40Z | B177: Other Non-Complex Cardiac Surgery | C177: 8 | D177: 131.99 | E177: 131.99 | F177: 131.99 | G177: 1
A178: EA44Z | B178: Minor Cardiac Procedures | C178: 62874 | D178: 118.0314154 | E178: 66.56 | F178: 141.14 | G178: 43
A179: EA45Z | B179: Complex Echocardiogram, including Congenital, Transoesophageal and Fetal Echocardiography | C179: 37280 | D179: 121.1465655 | E179: 69.59 | F179: 144.93 | G179: 78
A180: EA47Z | B180: Electrocardiogram Monitoring and stress testing | C180: 408246 | D180: 145.1538453 | E180: 98.34 | F180: 182.46 | G180: 117
A181: EA49Z | B181: Percutaneous Coronary Interventions with 3 or more Stents, Rotablation, IVUS or Pressure Wire | C181: 5 | D181: 111.2 | E181: 62.33 | F181: 143.78 | G181: 1
A182: FZ12F | B182: Major General Abdominal Procedures, 19 years and over without CC | C182: 74 | D182: 239.0395946 | E182: 104.9 | F182: 273.7275 | G182: 27
A183: FZ12I | B183: Major General Abdominal Procedures, between 2 and 18 years without CC | C183: 4 | D183: 306.465 | E183: 126.13 | F183: 438.68 | G183: 3
A184: FZ13C | B184: Minor Therapeutic or Diagnostic General Abdominal Procedures, 19 years and over | C184: 791 | D184: 153.4862453 | E184: 111.33 | F184: 179.15 | G184: 38
A185: FZ13D | B185: Minor Therapeutic or Diagnostic General Abdominal Procedures, 18 years and under | C185: 7 | D185: 295.1885714 | E185: 66.78 | F185: 733.8 | G185: 5
A186: FZ17C | B186: Abdominal Hernia Procedures, 19 years and over without CC | C186: 25 | D186: 140.2348 | E186: 99.04 | F186: 181.81 | G186: 9
A187: FZ17D | B187: Abdominal Hernia Procedures, 18 years and under | C187: 1 | D187: 270.49 | E187: 270.49 | F187: 270.49 | G187: 1
A188: FZ18A | B188: Inguinal, Umbilical or Femoral Hernia Procedures, 19 years and over with Major CC | C188: 252 | D188: 302.27 | E188: 302.27 | F188: 302.27 | G188: 1
A189: FZ18C | B189: Inguinal, Umbilical or Femoral Hernia Procedures, 19 years and over without CC | C189: 49 | D189: 139.8120408 | E189: 87.83 | F189: 185.685 | G189: 9
A190: FZ18E | B190: Inguinal, Umbilical or Femoral Hernia Procedures, between 2 and 18 years | C190: 6 | D190: 242.1966667 | E190: 228.05 | F190: 270.49 | G190: 2
A191: FZ18F | B191: Inguinal, Umbilical or Femoral Hernia Procedures, 1 year and under | C191: 5 | D191: 202.55 | E191: 100.64 | F191: 270.49 | G191: 2
A192: FZ19A | B192: Herniotomy Procedures, 2 years and over | C192: 4 | D192: 220.6975 | E192: 121.1125 | F192: 270.49 | G192: 1
A193: FZ19B | B193: Herniotomy Procedures, 1 year and under | C193: 5 | D193: 83.59 | E193: 35.9 | F193: 154.16 | G193: 1
A194: FZ20B | B194: Appendicectomy Procedures, 19 years and over without Major CC | C194: 6 | D194: 114.8616667 | E194: 92.1475 | F194: 126.875 | G194: 3
A195: FZ20E | B195: Appendicectomy Procedures, 18 years and under without Major CC | C195: 5 | D195: 172.834 | E195: 90.255 | F195: 270.49 | G195: 2
A196: FZ21A | B196: Major Anal Procedures, 19 years and over | C196: 50 | D196: 201.1292 | E196: 94.78 | F196: 259.87 | G196: 9
A197: FZ22A | B197: Intermediate Anal Procedures, 19 years and over | C197: 622 | D197: 209.2964791 | E197: 136.88 | F197: 244.09 | G197: 28
A198: FZ22B | B198: Intermediate Anal Procedures, 18 years and under | C198: 7 | D198: 187.2614286 | E198: 152.14 | F198: 263 | G198: 5
A199: FZ23A | B199: Minor Anal Procedures, 19 years and over | C199: 17214 | D199: 165.4124782 | E199: 94.25 | F199: 196 | G199: 121
A200: FZ23B | B200: Minor Anal Procedures, 18 years and under | C200: 62 | D200: 148.3785484 | E200: 85.925 | F200: 170.9625 | G200: 29
A201: FZ24C | B201: Major Therapeutic Endoscopic Upper or Lower GI Tract Procedures, 19 years and over without CC | C201: 47 | D201: 252.932766 | E201: 120.89 | F201: 419.06 | G201: 17
... 329 more rows

Sheet NSRC CLFUSFF
A1: Home | B1: National Schedule of Reference Costs - Year 2011-12 - NHS trusts and NHS foundation trusts
B2: Consultant Led: Follow up Attendance Non-Admitted Face to Face
A4: Service Code | B4: Service Description | C4: Attendances | D4: National Average Unit Cost | E4: Lower Quartile Unit Cost | F4: Upper Quartile Unit Cost | G4: Data Submissions
A5: 100 | B5: General Surgery | C5: 1029268 | D5: 110.0857022 | E5: 85.7 | F5: 126.81 | G5: 155
A6: 101 | B6: Urology | C6: 1032820 | D6: 93.95730297 | E6: 77.41 | F6: 104.61 | G6: 158
A7: 102 | B7: Transplantation Surgery | C7: 69012 | D7: 256.1024416 | E7: 183.93 | F7: 327.62 | G7: 21
A8: 103 | B8: Breast Surgery | C8: 391387 | D8: 120.2489773 | E8: 86.33 | F8: 148.71 | G8: 111
A9: 104 | B9: Colorectal Surgery | C9: 186239 | D9: 92.88243214 | E9: 60.87 | F9: 109.77 | G9: 86
A10: 105 | B10: Hepatobiliary & Pancreatic Surgery | C10: 24160 | D10: 155.3208829 | E10: 119.5 | F10: 189.56 | G10: 19
A11: 106 | B11: Upper Gastrointestinal Surgery | C11: 53191 | D11: 99.6225305 | E11: 58.83 | F11: 132.51 | G11: 50
A12: 107 | B12: Vascular Surgery | C12: 187649 | D12: 133.5965686 | E12: 90.8 | F12: 158.01 | G12: 94
A13: 120 | B13: ENT | C13: 909927 | D13: 82.67422664 | E13: 66.78 | F13: 90.89 | G13: 153
A14: 130 | B14: Ophthalmology | C14: 3408378 | D14: 79.73680776 | E14: 68.3 | F14: 86.45 | G14: 149
A15: 140 | B15: Oral Surgery | C15: 369439 | D15: 91.68065483 | E15: 71.5 | F15: 109.98 | G15: 120
A16: 141 | B16: Restorative Dentistry | C16: 170449 | D16: 108.2653408 | E16: 54.88 | F16: 141.93 | G16: 44
A17: 142 | B17: Paediatric Dentistry | C17: 48025 | D17: 105.2725787 | E17: 31.15 | F17: 137.4 | G17: 21
A18: 143 | B18: Orthodontics | C18: 244482 | D18: 97.60812469 | E18: 69.05 | F18: 117.33 | G18: 117
A19: 144 | B19: Maxillo-Facial Surgery | C19: 162075 | D19: 91.11526392 | E19: 59.29 | F19: 102.58 | G19: 53
A20: 150 | B20: Neurosurgery | C20: 141817 | D20: 152.3341446 | E20: 112.59 | F20: 164.81 | G20: 49
A21: 160 | B21: Plastic Surgery | C21: 500595 | D21: 80.74059018 | E21: 57.77 | F21: 92.82 | G21: 102
A22: 161 | B22: Burns Care | C22: 19715 | D22: 117.1835501 | E22: 59.61 | F22: 123.43 | G22: 10
A23: 170 | B23: Cardiothoracic Surgery | C23: 36058 | D23: 223.3176233 | E23: 116.94 | F23: 319.51 | G23: 64
A24: 171 | B24: Paediatric Surgery | C24: 73532 | D24: 135.5516998 | E24: 111.14 | F24: 148.11 | G24: 71
A25: 172 | B25: Cardiac Surgery | C25: 26085 | D25: 249.4452973 | E25: 140.41 | F25: 316.44 | G25: 20
A26: 173 | B26: Thoracic Surgery | C26: 22113 | D26: 217.2507606 | E26: 117.62 | F26: 290.26 | G26: 30
A27: 174 | B27: Cardiothoracic Transplantation | C27: 5844 | D27: 271.8608624 | E27: 281.39 | F27: 281.39 | G27: 3
A28: 180 | B28: Accident & Emergency | C28: 53286 | D28: 120.9157649 | E28: 65.73 | F28: 118.48 | G28: 94
A29: 190 | B29: Anaesthetics | C29: 142884 | D29: 77.48608235 | E29: 42.44 | F29: 88.93 | G29: 80
A30: 191 | B30: Pain Management | C30: 305527 | D30: 114.6294334 | E30: 79.54 | F30: 133.27 | G30: 131
A31: 192 | B31: Critical Care Medicine | C31: 839 | D31: 220.5975685 | E31: 71.45 | F31: 259.95 | G31: 14
A32: 211 | B32: Paediatric Urology | C32: 21762 | D32: 116.8389298 | E32: 58.8 | F32: 146.25 | G32: 42
A33: 212 | B33: Paediatric Transplantation Surgery | C33: 1007 | D33: 465.9403078 | E33: 279.79 | F33: 724.98 | G33: 4
A34: 213 | B34: Paediatric Gastrointestinal Surgery | C34: 22 | D34: 95 | E34: 95 | F34: 95 | G34: 1
A35: 214 | B35: Paediatric Trauma and Orthopaedics | C35: 108434 | D35: 118.3834768 | E35: 82.1 | F35: 147.59 | G35: 42
A36: 215 | B36: Paediatric Ear Nose and Throat | C36: 49667 | D36: 78.98563352 | E36: 42.15 | F36: 117.76 | G36: 37
A37: 216 | B37: Paediatric Ophthalmology | C37: 111253 | D37: 111.5418435 | E37: 70.18 | F37: 129.77 | G37: 40
A38: 217 | B38: Paediatric Maxillo-Facial Surgery | C38: 1634 | D38: 175.3180539 | E38: 93.95 | F38: 188.27 | G38: 9
A39: 218 | B39: Paediatric Neurosurgery | C39: 11775 | D39: 269.3822191 | E39: 156.67 | F39: 307.75 | G39: 10
A40: 219 | B40: Paediatric Plastic Surgery | C40: 40281 | D40: 136.4055619 | E40: 82.23 | F40: 161.03 | G40: 23
A41: 220 | B41: Paediatric Burns Care | C41: 6206 | D41: 140.7346133 | E41: 77.42 | F41: 125.94 | G41: 8
A42: 221 | B42: Paediatric Cardiac Surgery | C42: 630 | D42: 456.9290476 | E42: 223.04 | F42: 824.21 | G42: 6
A43: 222 | B43: Paediatric Thoracic Surgery | C43: 186 | D43: 62.89 | E43: 62.89 | F43: 62.89 | G43: 1
A44: 241 | B44: Paediatric Pain Management | C44: 496 | D44: 650.4422984 | E44: 586.68 | F44: 586.68 | G44: 7
A45: 242 | B45: Paediatric Intensive Care | C45: 32 | D45: 168.0290625 | E45: 50.7 | F45: 467.87 | G45: 2
A46: 251 | B46: Paediatric Gastroenterology | C46: 38643 | D46: 194.4001245 | E46: 131.75 | F46: 222.64 | G46: 46
A47: 252 | B47: Paediatric Endocrinology | C47: 33791 | D47: 238.0066825 | E47: 177.03 | F47: 266.54 | G47: 58
A48: 253 | B48: Paediatric Clinical Haematology | C48: 38293 | D48: 283.8440323 | E48: 203.09 | F48: 301.25 | G48: 36
A49: 254 | B49: Paediatric Audiological Medicine | C49: 20810 | D49: 214.7258174 | E49: 83.31 | F49: 458.1 | G49: 17
A50: 255 | B50: Paediatric Clinical Immunology and Allergy | C50: 12568 | D50: 248.735409 | E50: 149.15 | F50: 277.3 | G50: 27
A51: 256 | B51: Paediatric Infectious Diseases | C51: 4686 | D51: 354.7666837 | E51: 140.53 | F51: 469.37 | G51: 12
A52: 257 | B52: Paediatric Dermatology | C52: 32775 | D52: 125.9718374 | E52: 64.18 | F52: 141.47 | G52: 36
A53: 258 | B53: Paediatric Respiratory Medicine | C53: 28918 | D53: 198.244797 | E53: 152.79 | F53: 254.29 | G53: 45
A54: 259 | B54: Paediatric Nephrology | C54: 29545 | D54: 251.3255532 | E54: 151.76 | F54: 291.7 | G54: 41
A55: 260 | B55: Paediatric Medical Oncology | C55: 30801 | D55: 249.5750726 | E55: 196.59 | F55: 261.29 | G55: 35
A56: 261 | B56: Paediatric Metabolic Disease | C56: 5115 | D56: 818.4694174 | E56: 352.19 | F56: 917.52 | G56: 11
A57: 262 | B57: Paediatric Rheumatology | C57: 20949 | D57: 182.5745869 | E57: 1.02 | F57: 243.97 | G57: 35
A58: 263 | B58: Paediatric Diabetic Medicine | C58: 17682 | D58: 161.2494333 | E58: 109.21 | F58: 206.59 | G58: 40
A59: 264 | B59: Paediatric Cystic Fibrosis | C59: 53 | D59: 716.1207547 | E59: 369.57 | F59: 876.07 | G59: 3
A60: 291 | B60: Paediatric Neuro-Disability | C60: 34655 | D60: 313.7575649 | E60: 217.44 | F60: 399.59 | G60: 22
A61: 300 | B61: General Medicine | C61: 608574 | D61: 147.3527185 | E61: 102.53 | F61: 170.78 | G61: 149
A62: 301 | B62: Gastroenterology | C62: 664147 | D62: 115.483617 | E62: 79.34 | F62: 141.58 | G62: 145
A63: 302 | B63: Endocrinology | C63: 319108 | D63: 122.1499778 | E63: 83.35 | F63: 154.6 | G63: 115
A64: 303 | B64: Clinical Haematology | C64: 1028228 | D64: 152.0353412 | E64: 96.38 | F64: 178 | G64: 150
A65: 304 | B65: Clinical Physiology | C65: 13820 | D65: 65.17432996 | E65: 19.22 | F65: 95.03 | G65: 8
A66: 305 | B66: Clinical Pharmacology | C66: 10751 | D66: 129.904195 | E66: 110.32 | F66: 146.29 | G66: 6
A67: 306 | B67: Hepatology | C67: 102972 | D67: 187.0305937 | E67: 97.53 | F67: 270.54 | G67: 53
A68: 307 | B68: Diabetic Medicine | C68: 559918 | D68: 134.7933543 | E68: 92.5 | F68: 154 | G68: 131
A69: 308 | B69: Blood And Marrow Transplantation | C69: 12275 | D69: 370.6510436 | E69: 126.91 | F69: 304.65 | G69: 18
A70: 309 | B70: Haemophilia | C70: 18180 | D70: 707.3149466 | E70: 244.85 | F70: 1034.36 | G70: 21
A71: 310 | B71: Audiological Medicine | C71: 34939 | D71: 116.3151324 | E71: 62.17 | F71: 140.72 | G71: 19
A72: 311 | B72: Clinical Genetics | C72: 23708 | D72: 530.3235524 | E72: 288.06 | F72: 780.82 | G72: 46
A73: 313 | B73: Clinical Immunology & Allergy | C73: 20418 | D73: 162.8570702 | E73: 118.43 | F73: 191.38 | G73: 24
A74: 314 | B74: Rehabilitation | C74: 41756 | D74: 172.1595258 | E74: 114.12 | F74: 218.25 | G74: 56
A75: 315 | B75: Palliative Medicine | C75: 12640 | D75: 270.0473426 | E75: 92.13 | F75: 389.6 | G75: 52
A76: 316 | B76: Clinical Immunology | C76: 10460 | D76: 207.1390755 | E76: 110.28 | F76: 258.79 | G76: 18
A77: 317 | B77: Allergy | C77: 15385 | D77: 131.0692109 | E77: 96 | F77: 175.6 | G77: 18
A78: 319 | B78: Respite Care | C78: 2 | D78: 85 | E78: 85 | F78: 85 | G78: 1
A79: 320 | B79: Cardiology | C79: 981096 | D79: 121.5652656 | E79: 87.33 | F79: 147 | G79: 154
A80: 321 | B80: Paediatric Cardiology | C80: 65671 | D80: 165.4999357 | E80: 146.78 | F80: 190.8 | G80: 68
A81: 322 | B81: Clinical Microbiology | C81: 394 | D81: 129.9040102 | E81: 107.2 | F81: 141.93 | G81: 4
A82: 323 | B82: Spinal Injuries | C82: 14047 | D82: 342.6781384 | E82: 287.1 | F82: 443.74 | G82: 8
A83: 324 | B83: Anticoagulant Service | C83: 1404510 | D83: 23.25963458 | E83: 14.51 | F83: 24.95 | G83: 73
A84: 325 | B84: Sport And Exercise Medicine | C84: 6 | D84: 8.86 | E84: 8.86 | F84: 8.86 | G84: 1
A85: 327 | B85: Cardiac Rehabilitation | C85: 823 | D85: 44.40383961 | E85: 20.71 | F85: 20.71 | G85: 3
A86: 328 | B86: Stroke Medicine | C86: 3800 | D86: 154.2167605 | E86: 80.37 | F86: 196.42 | G86: 9
A87: 329 | B87: Transient Ischaemic Attack | C87: 3340 | D87: 180.2186527 | E87: 136.67 | F87: 193.05 | G87: 20
A88: 330 | B88: Dermatology | C88: 1221706 | D88: 87.95911804 | E88: 68.43 | F88: 99.5 | G88: 147
A89: 340 | B89: Respiratory Medicine | C89: 664905 | D89: 133.2620291 | E89: 102.15 | F89: 157 | G89: 145
A90: 341 | B90: Respiratory Physiology | C90: 49091 | D90: 174.2535365 | E90: 121.57 | F90: 176.8 | G90: 32
A91: 342 | B91: Programmed Pulmonary Rehabilitation | C91: 35 | D91: 70.81 | E91: 70.81 | F91: 70.81 | G91: 1
A92: 350 | B92: Infectious Diseases | C92: 58106 | D92: 260.6151712 | E92: 143.6 | F92: 262.31 | G92: 28
A93: 352 | B93: Tropical Medicine | C93: 1670 | D93: 242.2949401 | E93: 246.39 | F93: 246.39 | G93: 3
A94: 360 | B94: Genito-Urinary Medicine | C94: 687388 | D94: 140.6674769 | E94: 91.68 | F94: 140.78 | G94: 107
A95: 361 | B95: Nephrology | C95: 581036 | D95: 164.9027128 | E95: 118.7 | F95: 205.2 | G95: 107
A96: 370 | B96: Medical Oncology | C96: 604185 | D96: 123.713915 | E96: 87.65 | F96: 157.24 | G96: 111
A97: 371 | B97: Nuclear Medicine | C97: 4521 | D97: 78.13159257 | E97: 36.35 | F97: 105.75 | G97: 9
A98: 400 | B98: Neurology | C98: 572312 | D98: 147.5675034 | E98: 106.27 | F98: 177 | G98: 132
A99: 401 | B99: Clinical Neuro-Physiology | C99: 4560 | D99: 173.413568 | E99: 66.67 | F99: 342.12 | G99: 28
A100: 410 | B100: Rheumatology | C100: 1196206 | D100: 128.3459177 | E100: 100.97 | F100: 147.54 | G100: 154
A101: 420 | B101: Paediatrics | C101: 829976 | D101: 167.4099606 | E101: 115.36 | F101: 198.33 | G101: 158
A102: 421 | B102: Paediatric Neurology | C102: 37626 | D102: 290.2154146 | E102: 194 | F102: 472.18 | G102: 63
A103: 422 | B103: Neonatology | C103: 18607 | D103: 171.3264551 | E103: 72.01 | F103: 269.67 | G103: 37
A104: 430 | B104: Geriatric Medicine | C104: 253980 | D104: 171.216042 | E104: 111 | F104: 201.63 | G104: 147
A105: 450 | B105: Dental Medicine Specialties | C105: 23928 | D105: 97.33251463 | E105: 83.34 | F105: 104.85 | G105: 14
A106: 460 | B106: Medical Ophthalmology | C106: 18192 | D106: 77.64567557 | E106: 50.61 | F106: 78.16 | G106: 10
A107: 501 | B107: Obstetrics | C107: 1532114 | D107: 103.7401798 | E107: 70.9 | F107: 123.34 | G107: 143
A108: 502 | B108: Gynaecology | C108: 1029592 | D108: 111.9300008 | E108: 83.59 | F108: 130.02 | G108: 159
A109: 503 | B109: Gynaecological Oncology | C109: 53057 | D109: 121.3138255 | E109: 84.65 | F109: 150.68 | G109: 57
A110: 560 | B110: Midwife Episode | C110: 473035 | D110: 69.3969235 | E110: 48.81 | F110: 87.54 | G110: 47
A111: 650 | B111: Physiotherapy | C111: 505077 | D111: 42.80433605 | E111: 28.31 | F111: 57.72 | G111: 32
A112: 651 | B112: Occupational Therapy | C112: 49236 | D112: 47.65928203 | E112: 26.22 | F112: 45.84 | G112: 18
A113: 652 | B113: Speech and Language Therapy | C113: 13121 | D113: 67.47525112 | E113: 20.11 | F113: 111.42 | G113: 14
A114: 653 | B114: Podiatry | C114: 81161 | D114: 57.38820961 | E114: 33.4 | F114: 59.2 | G114: 17
A115: 654 | B115: Dietetics | C115: 19712 | D115: 92.99576451 | E115: 16.18 | F115: 118.9 | G115: 21
A116: 655 | B116: Orthoptics | C116: 103235 | D116: 59.06478191 | E116: 40.34 | F116: 82.69 | G116: 28
A117: 656 | B117: Clinical Psychology | C117: 14449 | D117: 313.0505405 | E117: 237.93 | F117: 513.14 | G117: 14
A118: 662 | B118: Optometry | C118: 959 | D118: 29.97 | E118: 29.97 | F118: 29.97 | G118: 1
A119: 710 | B119: Adult Mental Illness | C119: 3192 | D119: 162.9898183 | E119: 133.97 | F119: 133.97 | G119: 5
A120: 711 | B120: Child and Adolescent Psychiatry | C120: 14003 | D120: 264.1582947 | E120: 217.49 | F120: 400.53 | G120: 6
A121: 712 | B121: Forensic Psychiatry | C121: 5 | D121: 14.512 | E121: 7.58 | F121: 24.91 | G121: 2
A122: 713 | B122: Psychotherapy | C122: 83 | D122: 30.02951807 | E122: 18.04 | F122: 61.93 | G122: 3
A123: 720 | B123: Eating Disorders | C123: 5 | D123: 113.516 | E123: 73.79 | F123: 140 | G123: 2
A124: 721 | B124: Addiction Services | C124: 1 | D124: 27 | E124: 27 | F124: 27 | G124: 1
A125: 722 | B125: Liaison Psychiatry | C125: 503 | D125: 207.8062823 | E125: 172.57 | F125: 303.45 | G125: 3
A126: 800 | B126: Clinical Oncology (previously Radiotherapy) | C126: 818710 | D126: 113.1729931 | E126: 72 | F126: 136.86 | G126: 97
A127: 811 | B127: Interventional Radiology | C127: 2007 | D127: 978.0055705 | E127: 78.87 | F127: 695.05 | G127: 22
A128: 812 | B128: Diagnostic Imaging | C128: 43836 | D128: 44.58764509 | E128: 30.25 | F128: 35.74 | G128: 12
A129: 822 | B129: Chemical Pathology | C129: 40289 | D129: 61.36926978 | E129: 28.04 | F129: 80.5 | G129: 61
A130: 840 | B130: Audiology | C130: 22674 | D130: 70.0468497 | E130: 18.98 | F130: 96.31 | G130: 6
A131: 999 | B131: Global Trust Codes | C131: 23553 | D131: 77.63213561 | E131: 7.58 | F131: 111.79 | G131: 8
A132: FPC | B132: Family Planning Clinic | C132: 283589 | D132: 66.19543889 | E132: 52 | F132: 73.71 | G132: 28
A133: H/A | B133: HIV / AIDS | C133: 204575 | D133: 432.1540731 | E133: 232.34 | F133: 469.51 | G133: 69
A134: 110N | B134: Trauma & Orthopaedics: Non-Trauma | C134: 2457894 | D134: 95.13767617 | E134: 74.84 | F134: 110.95 | G134: 136
A135: 110T | B135: Trauma & Orthopaedics: Trauma | C135: 1270435 | D135: 91.82459144 | E135: 73.24 | F135: 101.78 | G135: 110

Sheet NSRC CLFASFF
A1: Home | B1: National Schedule of Reference Costs - Year 2011-12 - NHS trusts and NHS foundation trusts
B2: Consultant Led: First Attendance Non-Admitted Face to Face
A4: Service Code | B4: Service Description | C4: Attendances | D4: National Average Unit Cost | E4: Lower Quartile Unit Cost | F4: Upper Quartile Unit Cost | G4: Data Submissions
A5: 100 | B5: General Surgery | C5: 682101 | D5: 144.9772288 | E5: 115.43 | F5: 166.61 | G5: 154
A6: 101 | B6: Urology | C6: 488658 | D6: 128.9075596 | E6: 101.73 | F6: 149.59 | G6: 156
A7: 102 | B7: Transplantation Surgery | C7: 4595 | D7: 339.8493341 | E7: 203.08 | F7: 399.65 | G7: 19
A8: 103 | B8: Breast Surgery | C8: 263635 | D8: 171.0314979 | E8: 124.05 | F8: 211.72 | G8: 112
A9: 104 | B9: Colorectal Surgery | C9: 150702 | D9: 122.7534972 | E9: 93.21 | F9: 144.33 | G9: 86
A10: 105 | B10: Hepatobiliary & Pancreatic Surgery | C10: 10147 | D10: 179.0236011 | E10: 128.29 | F10: 233.39 | G10: 16
A11: 106 | B11: Upper Gastrointestinal Surgery | C11: 46012 | D11: 114.3966218 | E11: 89.95 | F11: 142.83 | G11: 51
A12: 107 | B12: Vascular Surgery | C12: 131886 | D12: 168.4789796 | E12: 121.1 | F12: 197.09 | G12: 92
A13: 120 | B13: ENT | C13: 606937 | D13: 109.1837036 | E13: 87.95 | F13: 123.65 | G13: 152
A14: 130 | B14: Ophthalmology | C14: 1313565 | D14: 106.1843817 | E14: 86.78 | F14: 120.52 | G14: 148
A15: 140 | B15: Oral Surgery | C15: 355766 | D15: 123.3051037 | E15: 89.14 | F15: 153.19 | G15: 121
A16: 141 | B16: Restorative Dentistry | C16: 67868 | D16: 107.8301082 | E16: 76.17 | F16: 141.86 | G16: 43
A17: 142 | B17: Paediatric Dentistry | C17: 20893 | D17: 112.6227521 | E17: 66.9 | F17: 170.94 | G17: 25
A18: 143 | B18: Orthodontics | C18: 65124 | D18: 136.7199985 | E18: 77.26 | F18: 168.2 | G18: 115
A19: 144 | B19: Maxillo-Facial Surgery | C19: 136672 | D19: 110.2149238 | E19: 78.92 | F19: 122.95 | G19: 53
A20: 150 | B20: Neurosurgery | C20: 87203 | D20: 166.9244282 | E20: 102.9 | F20: 200.57 | G20: 49
A21: 160 | B21: Plastic Surgery | C21: 196056 | D21: 107.2284554 | E21: 79.54 | F21: 121.44 | G21: 99
A22: 161 | B22: Burns Care | C22: 10208 | D22: 126.2421003 | E22: 60.93 | F22: 132.99 | G22: 8
A23: 170 | B23: Cardiothoracic Surgery | C23: 22583 | D23: 259.7291657 | E23: 156.6 | F23: 351.51 | G23: 64
A24: 171 | B24: Paediatric Surgery | C24: 48838 | D24: 171.7969274 | E24: 125.64 | F24: 203.63 | G24: 70
A25: 172 | B25: Cardiac Surgery | C25: 15259 | D25: 291.9913782 | E25: 207.17 | F25: 350.68 | G25: 20
A26: 173 | B26: Thoracic Surgery | C26: 9243 | D26: 275.8568506 | E26: 144.68 | F26: 313.67 | G26: 29
A27: 174 | B27: Cardiothoracic Transplantation | C27: 185 | D27: 468.0655135 | E27: 523.56 | F27: 523.56 | G27: 2
A28: 180 | B28: Accident & Emergency | C28: 150041 | D28: 121.9245212 | E28: 53.26 | F28: 167.48 | G28: 94
A29: 190 | B29: Anaesthetics | C29: 74544 | D29: 76.18778386 | E29: 28.61 | F29: 95.59 | G29: 63
A30: 191 | B30: Pain Management | C30: 165470 | D30: 164.4930654 | E30: 102.06 | F30: 201.97 | G30: 131
A31: 192 | B31: Critical Care Medicine | C31: 276 | D31: 375.9339855 | E31: 116.25 | F31: 686.22 | G31: 9
A32: 211 | B32: Paediatric Urology | C32: 11755 | D32: 139.2423105 | E32: 65.96 | F32: 181.37 | G32: 38
A33: 212 | B33: Paediatric Transplantation Surgery | C33: 83 | D33: 385.7444578 | E33: 253.31 | F33: 263.88 | G33: 4
A34: 213 | B34: Paediatric Gastrointestinal Surgery | C34: 22 | D34: 95 | E34: 95 | F34: 95 | G34: 1
A35: 214 | B35: Paediatric Trauma and Orthopaedics | C35: 67698 | D35: 145.8730382 | E35: 100.67 | F35: 186.33 | G35: 41
A36: 215 | B36: Paediatric Ear Nose and Throat | C36: 31498 | D36: 97.27017493 | E36: 67.17 | F36: 119.21 | G36: 36
A37: 216 | B37: Paediatric Ophthalmology | C37: 42307 | D37: 132.4102936 | E37: 86.68 | F37: 177.12 | G37: 38
A38: 217 | B38: Paediatric Maxillo-Facial Surgery | C38: 1774 | D38: 125.7172435 | E38: 81 | F38: 165.13 | G38: 10
A39: 218 | B39: Paediatric Neurosurgery | C39: 3396 | D39: 309.0004034 | E39: 200.84 | F39: 378.33 | G39: 11
A40: 219 | B40: Paediatric Plastic Surgery | C40: 15389 | D40: 121.8873994 | E40: 78.73 | F40: 149.18 | G40: 22
A41: 220 | B41: Paediatric Burns Care | C41: 1184 | D41: 166.7409459 | E41: 109.91 | F41: 266.63 | G41: 9
A42: 221 | B42: Paediatric Cardiac Surgery | C42: 790 | D42: 306.7798861 | E42: 251.27 | F42: 284 | G42: 5
A43: 222 | B43: Paediatric Thoracic Surgery | C43: 99 | D43: 74.68 | E43: 74.68 | F43: 74.68 | G43: 1
A44: 241 | B44: Paediatric Pain Management | C44: 221 | D44: 919.7273756 | E44: 632.71 | F44: 1334.63 | G44: 6
A45: 242 | B45: Paediatric Intensive Care | C45: 1 | D45: 701.81 | E45: 701.81 | F45: 701.81 | G45: 1
A46: 251 | B46: Paediatric Gastroenterology | C46: 12872 | D46: 237.3076546 | E46: 175.98 | F46: 277.22 | G46: 43
A47: 252 | B47: Paediatric Endocrinology | C47: 8532 | D47: 355.6082806 | E47: 212.92 | F47: 417.75 | G47: 53
A48: 253 | B48: Paediatric Clinical Haematology | C48: 5363 | D48: 343.6628622 | E48: 232.85 | F48: 396.33 | G48: 36
A49: 254 | B49: Paediatric Audiological Medicine | C49: 15577 | D49: 178.6667227 | E49: 95.5 | F49: 240.55 | G49: 18
A50: 255 | B50: Paediatric Clinical Immunology and Allergy | C50: 8962 | D50: 279.547322 | E50: 235.44 | F50: 309.16 | G50: 28
A51: 256 | B51: Paediatric Infectious Diseases | C51: 1328 | D51: 302.7183434 | E51: 146.2 | F51: 463.04 | G51: 11
A52: 257 | B52: Paediatric Dermatology | C52: 19723 | D52: 132.0560863 | E52: 69.28 | F52: 160.79 | G52: 37
A53: 258 | B53: Paediatric Respiratory Medicine | C53: 8371 | D53: 267.4935288 | E53: 181.85 | F53: 390.51 | G53: 43
A54: 259 | B54: Paediatric Nephrology | C54: 3992 | D54: 298.9134269 | E54: 225.27 | F54: 369.74 | G54: 41
A55: 260 | B55: Paediatric Medical Oncology | C55: 2134 | D55: 321.6082334 | E55: 270.14 | F55: 390.42 | G55: 31
A56: 261 | B56: Paediatric Metabolic Disease | C56: 985 | D56: 937.8155533 | E56: 504.61 | F56: 1029.31 | G56: 10
A57: 262 | B57: Paediatric Rheumatology | C57: 6766 | D57: 222.924162 | E57: 1.22 | F57: 370.985 | G57: 34
A58: 263 | B58: Paediatric Diabetic Medicine | C58: 2264 | D58: 227.0910027 | E58: 205.34 | F58: 275.01 | G58: 39
A59: 264 | B59: Paediatric Cystic Fibrosis | C59: 9 | D59: 502.0444444 | E59: 131.04 | F59: 696.67 | G59: 3
A60: 280 | B60: Paediatric Interventional Radiology | C60: 1 | D60: 1348.64 | E60: 1348.64 | F60: 1348.64 | G60: 1
A61: 291 | B61: Paediatric Neuro-Disability | C61: 17726 | D61: 461.3218318 | E61: 230.08 | F61: 575.1025 | G61: 24
A62: 300 | B62: General Medicine | C62: 352982 | D62: 193.2078245 | E62: 136.19 | F62: 229.26 | G62: 147
A63: 301 | B63: Gastroenterology | C63: 355575 | D63: 163.6178345 | E63: 113.02 | F63: 194 | G63: 144
A64: 302 | B64: Endocrinology | C64: 93414 | D64: 174.8325402 | E64: 125.72 | F64: 210.6 | G64: 116
A65: 303 | B65: Clinical Haematology | C65: 152570 | D65: 225.8964155 | E65: 138.36 | F65: 287.54 | G65: 152
A66: 304 | B66: Clinical Physiology | C66: 8425 | D66: 169.6784047 | E66: 188.3 | F66: 188.3 | G66: 8
A67: 305 | B67: Clinical Pharmacology | C67: 1914 | D67: 161.2967712 | E67: 151 | F67: 200.53 | G67: 6
A68: 306 | B68: Hepatology | C68: 22694 | D68: 215.8539288 | E68: 143.01 | F68: 251.1 | G68: 52
A69: 307 | B69: Diabetic Medicine | C69: 101012 | D69: 185.350682 | E69: 123.47 | F69: 220.85 | G69: 129
A70: 308 | B70: Blood And Marrow Transplantation | C70: 2210 | D70: 278.1053484 | E70: 129.04 | F70: 134.42 | G70: 16
A71: 309 | B71: Haemophilia | C71: 4128 | D71: 915.6914365 | E71: 313.52 | F71: 1114.96 | G71: 19
A72: 310 | B72: Audiological Medicine | C72: 40116 | D72: 86.00143284 | E72: 31.61 | F72: 100.86 | G72: 19
A73: 311 | B73: Clinical Genetics | C73: 43310 | D73: 654.0789287 | E73: 404.06 | F73: 731.76 | G73: 46
A74: 313 | B74: Clinical Immunology & Allergy | C74: 11705 | D74: 195.0707117 | E74: 146.1 | F74: 212.15 | G74: 21
A75: 314 | B75: Rehabilitation | C75: 23743 | D75: 189.1475214 | E75: 69.02 | F75: 199.39 | G75: 56
A76: 315 | B76: Palliative Medicine | C76: 5024 | D76: 259.5308519 | E76: 77.31 | F76: 264.17 | G76: 51
A77: 316 | B77: Clinical Immunology | C77: 4485 | D77: 263.1417748 | E77: 111.31 | F77: 302.43 | G77: 16
A78: 317 | B78: Allergy | C78: 13089 | D78: 156.3364283 | E78: 111.53 | F78: 198.13 | G78: 20
A79: 319 | B79: Respite Care | C79: 1 | D79: 33 | E79: 33 | F79: 33 | G79: 1
A80: 320 | B80: Cardiology | C80: 605181 | D80: 169.808959 | E80: 128.13 | F80: 203.88 | G80: 154
A81: 321 | B81: Paediatric Cardiology | C81: 24484 | D81: 225.9511481 | E81: 150.58 | F81: 288.23 | G81: 65
A82: 322 | B82: Clinical Microbiology | C82: 233 | D82: 227.0103863 | E82: 198.56 | F82: 236.2 | G82: 5
A83: 323 | B83: Spinal Injuries | C83: 1137 | D83: 441.3864028 | E83: 328.67 | F83: 586.91 | G83: 9
A84: 324 | B84: Anticoagulant Service | C84: 147296 | D84: 29.7795099 | E84: 7.64 | F84: 31.85 | G84: 68
A85: 325 | B85: Sport And Exercise Medicine | C85: 37 | D85: 8.86 | E85: 8.86 | F85: 8.86 | G85: 1
A86: 327 | B86: Cardiac Rehabilitation | C86: 317 | D86: 160.3320189 | E86: 143.41 | F86: 188.5 | G86: 3
A87: 328 | B87: Stroke Medicine | C87: 3079 | D87: 245.5246833 | E87: 161.76 | F87: 259.34 | G87: 9
A88: 329 | B88: Transient Ischaemic Attack | C88: 8772 | D88: 211.5838486 | E88: 141.52 | F88: 307.91 | G88: 23
A89: 330 | B89: Dermatology | C89: 686888 | D89: 105.3637467 | E89: 83.73 | F89: 121.69 | G89: 147
A90: 340 | B90: Respiratory Medicine | C90: 291606 | D90: 185.4090358 | E90: 132.63 | F90: 220.09 | G90: 143
A91: 341 | B91: Respiratory Physiology | C91: 19987 | D91: 149.5459218 | E91: 73.26 | F91: 184.64 | G91: 32
A92: 350 | B92: Infectious Diseases | C92: 18748 | D92: 279.9753307 | E92: 190.2 | F92: 313.35 | G92: 28
A93: 352 | B93: Tropical Medicine | C93: 2672 | D93: 288.8746594 | E93: 290.72 | F93: 290.72 | G93: 2
A94: 360 | B94: Genito-Urinary Medicine | C94: 1093998 | D94: 149.6347454 | E94: 116.76 | F94: 164.71 | G94: 102
A95: 361 | B95: Nephrology | C95: 70421 | D95: 203.8784373 | E95: 150.02 | F95: 234.73 | G95: 107
A96: 370 | B96: Medical Oncology | C96: 83819 | D96: 168.1993046 | E96: 127 | F96: 204.17 | G96: 107
A97: 371 | B97: Nuclear Medicine | C97: 2388 | D97: 228.706474 | E97: 204.81 | F97: 204.81 | G97: 8
A98: 400 | B98: Neurology | C98: 396494 | D98: 204.6193797 | E98: 163.09 | F98: 235.77 | G98: 129
A99: 401 | B99: Clinical Neuro-Physiology | C99: 61547 | D99: 172.9005401 | E99: 97.55 | F99: 215 | G99: 37
A100: 410 | B100: Rheumatology | C100: 283365 | D100: 199.3887145 | E100: 159.31 | F100: 229.45 | G100: 152
A101: 420 | B101: Paediatrics | C101: 544651 | D101: 224.5418056 | E101: 155.27 | F101: 265.22 | G101: 158
A102: 421 | B102: Paediatric Neurology | C102: 16459 | D102: 394.4093019 | E102: 313.21 | F102: 523.76 | G102: 62
A103: 422 | B103: Neonatology | C103: 10676 | D103: 210.1820026 | E103: 86.99 | F103: 296.29 | G103: 36
A104: 430 | B104: Geriatric Medicine | C104: 172195 | D104: 249.0044497 | E104: 161.53 | F104: 280.08 | G104: 146
A105: 450 | B105: Dental Medicine Specialties | C105: 21147 | D105: 111.0800274 | E105: 57.68 | F105: 140.89 | G105: 12
A106: 460 | B106: Medical Ophthalmology | C106: 5010 | D106: 106.3252754 | E106: 44.16 | F106: 149.15 | G106: 9
A107: 501 | B107: Obstetrics | C107: 599582 | D107: 157.3194679 | E107: 118.33 | F107: 193.46 | G107: 140
A108: 502 | B108: Gynaecology | C108: 792846 | D108: 145.8927456 | E108: 115.64 | F108: 162.34 | G108: 158
A109: 503 | B109: Gynaecological Oncology | C109: 26270 | D109: 156.435209 | E109: 109.92 | F109: 192.6 | G109: 55
A110: 560 | B110: Midwife Episode | C110: 138557 | D110: 96.42198871 | E110: 59.69 | F110: 115.59 | G110: 44
A111: 650 | B111: Physiotherapy | C111: 142328 | D111: 49.47310248 | E111: 36.89 | F111: 63.9 | G111: 31
A112: 651 | B112: Occupational Therapy | C112: 11998 | D112: 55.4377788 | E112: 30.52 | F112: 56.02 | G112: 16
A113: 652 | B113: Speech and Language Therapy | C113: 4204 | D113: 94.88020932 | E113: 32.25 | F113: 158.73 | G113: 16
A114: 653 | B114: Podiatry | C114: 13380 | D114: 133.0175149 | E114: 85.1 | F114: 230.64 | G114: 16
A115: 654 | B115: Dietetics | C115: 12111 | D115: 91.46880192 | E115: 15.23 | F115: 148.35 | G115: 22
A116: 655 | B116: Orthoptics | C116: 17668 | D116: 86.55472266 | E116: 56.53 | F116: 106.54 | G116: 27
A117: 656 | B117: Clinical Psychology | C117: 50932 | D117: 89.12113406 | E117: 65.67 | F117: 65.67 | G117: 15
A118: 662 | B118: Optometry | C118: 131 | D118: 29.38 | E118: 29.38 | F118: 29.38 | G118: 1
A119: 710 | B119: Adult Mental Illness | C119: 975 | D119: 223.4728103 | E119: 161.75 | F119: 186.88 | G119: 7
A120: 711 | B120: Child and Adolescent Psychiatry | C120: 1884 | D120: 351.8688217 | E120: 373.47 | F120: 373.47 | G120: 5
A121: 713 | B121: Psychotherapy | C121: 12 | D121: 56.25416667 | E121: 34.6075 | F121: 64.48 | G121: 4
A122: 715 | B122: Old Age Psychiatry | C122: 1 | D122: 69.24 | E122: 69.24 | F122: 69.24 | G122: 1
A123: 722 | B123: Liaison Psychiatry | C123: 852 | D123: 178.3593779 | E123: 172.57 | F123: 172.57 | G123: 3
A124: 800 | B124: Clinical Oncology (previously Radiotherapy) | C124: 132302 | D124: 159.4240676 | E124: 110.44 | F124: 191.46 | G124: 95
A125: 811 | B125: Interventional Radiology | C125: 17154 | D125: 43.3248187 | E125: 27.47 | F125: 27.47 | G125: 20
A126: 812 | B126: Diagnostic Imaging | C126: 52186 | D126: 26.88579178 | E126: 17.12 | F126: 23.35 | G126: 16
A127: 822 | B127: Chemical Pathology | C127: 16901 | D127: 69.68929827 | E127: 25.56 | F127: 90.07 | G127: 62
A128: 840 | B128: Audiology | C128: 5743 | D128: 94.14961867 | E128: 68.51 | F128: 128.87 | G128: 8
A129: 999 | B129: Global Trust Codes | C129: 34000 | D129: 50.40762882 | E129: 41.01 | F129: 41.01 | G129: 8
A130: FPC | B130: Family Planning Clinic | C130: 206911 | D130: 106.878594 | E130: 68 | F130: 98.77 | G130: 27
A131: H/A | B131: HIV / AIDS | C131: 40160 | D131: 385.7795722 | E131: 279.57 | F131: 504.43 | G131: 57
A132: 110N | B132: Trauma & Orthopaedics: Non-Trauma | C132: 1218593 | D132: 129.7186845 | E132: 103.55 | F132: 151.36 | G132: 133
A133: 110T | B133: Trauma & Orthopaedics: Trauma | C133: 810889 | D133: 124.7657228 | E133: 97.32 | F133: 146.47 | G133: 112

Sheet 00b_1112 HES Spells
A1: 2015-16 HES activity | C1: (Based on HES 11/12) | H1: Flagged Activity (APC only)
A2: Home
A3: SPELL HRG | B3: OPROC | C3: DC/EL | D3: DC | E3: EL | F3: NE | H3: LU | I3: RC1011_SpellHRG_Rev | J3: FLAG | L3: ADM_SPLIT | M3: Spell_Flag
A4: ='04_HES_Activity_RAW'!B11 -> AA02A | B4: =IF(NOT(ISNUMBER(VLOOKUP(A4,'03_OPROC_RAW'!$B:$C,2,FALSE))),0,VLOOKUP(A4,'03_OPROC_RAW'!$B:$C,2,FALSE)) -> 0 | C4: =D4+E4 -> 21 | D4: =SUMIFS('04.1_HES_POD_Split'!$D:$D,'04.1_HES_POD_Split'!$B:$B,'00b_1112 HES Spells'!$A4,'04.1_HES_POD_Split'!$C:$C,'00b_1112 HES Spells'!D$3) -> 0 | E4: =SUMIFS('04.1_HES_POD_Split'!$D:$D,'04.1_HES_POD_Split'!$B:$B,'00b_1112 HES Spells'!$A4,'04.1_HES_POD_Split'!$C:$C,'00b_1112 HES Spells'!E$3) -> 21 | F4: =SUMIFS('04.1_HES_POD_Split'!$D:$D,'04.1_HES_POD_Split'!$B:$B,'00b_1112 HES Spells'!$A4,'04.1_HES_POD_Split'!$C:$C,'00b_1112 HES Spells'!F$3) -> 1895 | G4: =IF(COUNTIF('Linked Sheet'!A:A,'00b_1112 HES Spells'!A4)>0,1,0) -> 0 | H4: =I4&L4&K4&J4 -> AA22AEMBP05 | I4: ='06_Flagged_Activity_RAW'!B11 -> AA22A | J4: ='06_Flagged_Activity_RAW'!C11 -> BP05 | L4: ='06_Flagged_Activity_RAW'!D11 -> EM | M4: ='06_Flagged_Activity_RAW'!E11 -> 57817
A5: ='04_HES_Activity_RAW'!B12 -> AA02B | B5: =IF(NOT(ISNUMBER(VLOOKUP(A5,'03_OPROC_RAW'!$B:$C,2,FALSE))),0,VLOOKUP(A5,'03_OPROC_RAW'!$B:$C,2,FALSE)) -> 0 | C5: =D5+E5 -> 3 | D5: =SUMIFS('04.1_HES_POD_Split'!$D:$D,'04.1_HES_POD_Split'!$B:$B,'00b_1112 HES Spells'!$A5,'04.1_HES_POD_Split'!$C:$C,'00b_1112 HES Spells'!D$3) -> 0 | E5: =SUMIFS('04.1_HES_POD_Split'!$D:$D,'04.1_HES_POD_Split'!$B:$B,'00b_1112 HES Spells'!$A5,'04.1_HES_POD_Split'!$C:$C,'00b_1112 HES Spells'!E$3) -> 3 | F5: =SUMIFS('04.1_HES_POD_Split'!$D:$D,'04.1_HES_POD_Split'!$B:$B,'00b_1112 HES Spells'!$A5,'04.1_HES_POD_Split'!$C:$C,'00b_1112 HES Spells'!F$3) -> 242 | G5: =IF(COUNTIF('Linked Sheet'!A:A,'00b_1112 HES Spells'!A5)>0,1,0) -> 0 | H5: AA22ANEBP05 | I5: ='06_Flagged_Activity_RAW'!B12 -> AA22A | J5: ='06_Flagged_Activity_RAW'!C12 -> BP05 | L5: ='06_Flagged_Activity_RAW'!D12 -> NE | M5: ='06_Flagged_Activity_RAW'!E12 -> 6085
A6: ='04_HES_Activity_RAW'!B13 -> AA03A | B6: =IF(NOT(ISNUMBER(VLOOKUP(A6,'03_OPROC_RAW'!$B:$C,2,FALSE))),0,VLOOKUP(A6,'03_OPROC_RAW'!$B:$C,2,FALSE)) -> 0 | C6: 76 | D6: =SUMIFS('04.1_HES_POD_Split'!$D:$D,'04.1_HES_POD_Split'!$B:$B,'00b_1112 HES Spells'!$A6,'04.1_HES_POD_Split'!$C:$C,'00b_1112 HES Spells'!D$3) -> 0 | E6: =SUMIFS('04.1_HES_POD_Split'!$D:$D,'04.1_HES_POD_Split'!$B:$B,'00b_1112 HES Spells'!$A6,'04.1_HES_POD_Split'!$C:$C,'00b_1112 HES Spells'!E$3) -> 76 | F6: =SUMIFS('04.1_HES_POD_Split'!$D:$D,'04.1_HES_POD_Split'!$B:$B,'00b_1112 HES Spells'!$A6,'04.1_HES_POD_Split'!$C:$C,'00b_1112 HES Spells'!F$3) -> 1710 | G6: =IF(COUNTIF('Linked Sheet'!A:A,'00b_1112 HES Spells'!A6)>0,1,0) -> 0 | H6: AA22BEMBP05 | I6: ='06_Flagged_Activity_RAW'!B13 -> AA22B | J6: ='06_Flagged_Activity_RAW'!C13 -> BP05 | L6: ='06_Flagged_Activity_RAW'!D13 -> EM | M6: ='06_Flagged_Activity_RAW'!E13 -> 1998
A7: ='04_HES_Activity_RAW'!B14 -> AA03B | B7: =IF(NOT(ISNUMBER(VLOOKUP(A7,'03_OPROC_RAW'!$B:$C,2,FALSE))),0,VLOOKUP(A7,'03_OPROC_RAW'!$B:$C,2,FALSE)) -> 0 | C7: 36 | D7: =SUMIFS('04.1_HES_POD_Split'!$D:$D,'04.1_HES_POD_Split'!$B:$B,'00b_1112 HES Spells'!$A7,'04.1_HES_POD_Split'!$C:$C,'00b_1112 HES Spells'!D$3) -> 1 | E7: =SUMIFS('04.1_HES_POD_Split'!$D:$D,'04.1_HES_POD_Split'!$B:$B,'00b_1112 HES Spells'!$A7,'04.1_HES_POD_Split'!$C:$C,'00b_1112 HES Spells'!E$3) -> 35 | F7: =SUMIFS('04.1_HES_POD_Split'!$D:$D,'04.1_HES_POD_Split'!$B:$B,'00b_1112 HES Spells'!$A7,'04.1_HES_POD_Split'!$C:$C,'00b_1112 HES Spells'!F$3) -> 178 | G7: =IF(COUNTIF('Linked Sheet'!A:A,'00b_1112 HES Spells'!A7)>0,1,0) -> 0 | H7: AA22BNEBP05 | I7: ='06_Flagged_Activity_RAW'!B14 -> AA22B | J7: ='06_Flagged_Activity_RAW'!C14 -> BP05 | L7: ='06_Flagged_Activity_RAW'!D14 -> NE | M7: ='06_Flagged_Activity_RAW'!E14 -> 246
A8: ='04_HES_Activity_RAW'!B15 -> AA04A | B8: =IF(NOT(ISNUMBER(VLOOKUP(A8,'03_OPROC_RAW'!$B:$C,2,FALSE))),0,VLOOKUP(A8,'03_OPROC_RAW'!$B:$C,2,FALSE)) -> 0 | C8: 28 | D8: =SUMIFS('04.1_HES_POD_Split'!$D:$D,'04.1_HES_POD_Split'!$B:$B,'00b_1112 HES Spells'!$A8,'04.1_HES_POD_Split'!$C:$C,'00b_1112 HES Spells'!D$3) -> 0 | E8: =SUMIFS('04.1_HES_POD_Split'!$D:$D,'04.1_HES_POD_Split'!$B:$B,'00b_1112 HES Spells'!$A8,'04.1_HES_POD_Split'!$C:$C,'00b_1112 HES Spells'!E$3) -> 28 | F8: =SUMIFS('04.1_HES_POD_Split'!$D:$D,'04.1_HES_POD_Split'!$B:$B,'00b_1112 HES Spells'!$A8,'04.1_HES_POD_Split'!$C:$C,'00b_1112 HES Spells'!F$3) -> 298 | G8: =IF(COUNTIF('Linked Sheet'!A:A,'00b_1112 HES Spells'!A8)>0,1,0) -> 0 | H8: AA23AEMBP01 | I8: ='06_Flagged_Activity_RAW'!B15 -> AA23A | J8: ='06_Flagged_Activity_RAW'!C15 -> BP01 | L8: ='06_Flagged_Activity_RAW'!D15 -> EM | M8: ='06_Flagged_Activity_RAW'!E15 -> 1
A9: ='04_HES_Activity_RAW'!B16 -> AA04B | B9: =IF(NOT(ISNUMBER(VLOOKUP(A9,'03_OPROC_RAW'!$B:$C,2,FALSE))),0,VLOOKUP(A9,'03_OPROC_RAW'!$B:$C,2,FALSE)) -> 0 | C9: 4 | D9: =SUMIFS('04.1_HES_POD_Split'!$D:$D,'04.1_HES_POD_Split'!$B:$B,'00b_1112 HES Spells'!$A9,'04.1_HES_POD_Split'!$C:$C,'00b_1112 HES Spells'!D$3) -> 1 | E9: =SUMIFS('04.1_HES_POD_Split'!$D:$D,'04.1_HES_POD_Split'!$B:$B,'00b_1112 HES Spells'!$A9,'04.1_HES_POD_Split'!$C:$C,'00b_1112 HES Spells'!E$3) -> 3 | F9: =SUMIFS('04.1_HES_POD_Split'!$D:$D,'04.1_HES_POD_Split'!$B:$B,'00b_1112 HES Spells'!$A9,'04.1_HES_POD_Split'!$C:$C,'00b_1112 HES Spells'!F$3) -> 37 | G9: =IF(COUNTIF('Linked Sheet'!A:A,'00b_1112 HES Spells'!A9)>0,1,0) -> 0 | H9: AA23AEMBP05 | I9: ='06_Flagged_Activity_RAW'!B16 -> AA23A | J9: ='06_Flagged_Activity_RAW'!C16 -> BP05 | L9: ='06_Flagged_Activity_RAW'!D16 -> EM | M9: ='06_Flagged_Activity_RAW'!E16 -> 8147
A10: ='04_HES_Activity_RAW'!B17 -> AA05A | B10: =IF(NOT(ISNUMBER(VLOOKUP(A10,'03_OPROC_RAW'!$B:$C,2,FALSE))),0,VLOOKUP(A10,'03_OPROC_RAW'!$B:$C,2,FALSE)) -> 0 | C10: 270 | D10: =SUMIFS('04.1_HES_POD_Split'!$D:$D,'04.1_HES_POD_Split'!$B:$B,'00b_1112 HES Spells'!$A10,'04.1_HES_POD_Split'!$C:$C,'00b_1112 HES Spells'!D$3) -> 0 | E10: =SUMIFS('04.1_HES_POD_Split'!$D:$D,'04.1_HES_POD_Split'!$B:$B,'00b_1112 HES Spells'!$A10,'04.1_HES_POD_Split'!$C:$C,'00b_1112 HES Spells'!E$3) -> 270 | F10: =SUMIFS('04.1_HES_POD_Split'!$D:$D,'04.1_HES_POD_Split'!$B:$B,'00b_1112 HES Spells'!$A10,'04.1_HES_POD_Split'!$C:$C,'00b_1112 HES Spells'!F$3) -> 407 | G10: =IF(COUNTIF('Linked Sheet'!A:A,'00b_1112 HES Spells'!A10)>0,1,0) -> 0 | H10: AA23ANEBP05 | I10: ='06_Flagged_Activity_RAW'!B17 -> AA23A | J10: ='06_Flagged_Activity_RAW'!C17 -> BP05 | L10: ='06_Flagged_Activity_RAW'!D17 -> NE | M10: ='06_Flagged_Activity_RAW'!E17 -> 1261
A11: ='04_HES_Activity_RAW'!B18 -> AA05B | B11: =IF(NOT(ISNUMBER(VLOOKUP(A11,'03_OPROC_RAW'!$B:$C,2,FALSE))),0,VLOOKUP(A11,'03_OPROC_RAW'!$B:$C,2,FALSE)) -> 0 | C11: 257 | D11: =SUMIFS('04.1_HES_POD_Split'!$D:$D,'04.1_HES_POD_Split'!$B:$B,'00b_1112 HES Spells'!$A11,'04.1_HES_POD_Split'!$C:$C,'00b_1112 HES Spells'!D$3) -> 5 | E11: =SUMIFS('04.1_HES_POD_Split'!$D:$D,'04.1_HES_POD_Split'!$B:$B,'00b_1112 HES Spells'!$A11,'04.1_HES_POD_Split'!$C:$C,'00b_1112 HES Spells'!E$3) -> 252 | F11: =SUMIFS('04.1_HES_POD_Split'!$D:$D,'04.1_HES_POD_Split'!$B:$B,'00b_1112 HES Spells'!$A11,'04.1_HES_POD_Split'!$C:$C,'00b_1112 HES Spells'!F$3) -> 40 | G11: =IF(COUNTIF('Linked Sheet'!A:A,'00b_1112 HES Spells'!A11)>0,1,0) -> 0 | H11: AA23BEMBP05 | I11: ='06_Flagged_Activity_RAW'!B18 -> AA23B | J11: ='06_Flagged_Activity_RAW'!C18 -> BP05 | L11: ='06_Flagged_Activity_RAW'!D18 -> EM | M11: ='06_Flagged_Activity_RAW'!E18 -> 524
A12: ='04_HES_Activity_RAW'!B19 -> AA06A | B12: =IF(NOT(ISNUMBER(VLOOKUP(A12,'03_OPROC_RAW'!$B:$C,2,FALSE))),0,VLOOKUP(A12,'03_OPROC_RAW'!$B:$C,2,FALSE)) -> 0 | C12: 2333 | D12: =SUMIFS('04.1_HES_POD_Split'!$D:$D,'04.1_HES_POD_Split'!$B:$B,'00b_1112 HES Spells'!$A12,'04.1_HES_POD_Split'!$C:$C,'00b_1112 HES Spells'!D$3) -> 95 | E12: =SUMIFS('04.1_HES_POD_Split'!$D:$D,'04.1_HES_POD_Split'!$B:$B,'00b_1112 HES Spells'!$A12,'04.1_HES_POD_Split'!$C:$C,'00b_1112 HES Spells'!E$3) -> 2238 | F12: =SUMIFS('04.1_HES_POD_Split'!$D:$D,'04.1_HES_POD_Split'!$B:$B,'00b_1112 HES Spells'!$A12,'04.1_HES_POD_Split'!$C:$C,'00b_1112 HES Spells'!F$3) -> 1105 | G12: =IF(COUNTIF('Linked Sheet'!A:A,'00b_1112 HES Spells'!A12)>0,1,0) -> 0 | H12: AA23BNEBP05 | I12: ='06_Flagged_Activity_RAW'!B19 -> AA23B | J12: ='06_Flagged_Activity_RAW'!C19 -> BP05 | L12: ='06_Flagged_Activity_RAW'!D19 -> NE | M12: ='06_Flagged_Activity_RAW'!E19 -> 72
A13: ='04_HES_Activity_RAW'!B20 -> AA06B | B13: =IF(NOT(ISNUMBER(VLOOKUP(A13,'03_OPROC_RAW'!$B:$C,2,FALSE))),0,VLOOKUP(A13,'03_OPROC_RAW'!$B:$C,2,FALSE)) -> 0 | C13: 1175 | D13: =SUMIFS('04.1_HES_POD_Split'!$D:$D,'04.1_HES_POD_Split'!$B:$B,'00b_1112 HES Spells'!$A13,'04.1_HES_POD_Split'!$C:$C,'00b_1112 HES Spells'!D$3) -> 77 | E13: =SUMIFS('04.1_HES_POD_Split'!$D:$D,'04.1_HES_POD_Split'!$B:$B,'00b_1112 HES Spells'!$A13,'04.1_HES_POD_Split'!$C:$C,'00b_1112 HES Spells'!E$3) -> 1098 | F13: =SUMIFS('04.1_HES_POD_Split'!$D:$D,'04.1_HES_POD_Split'!$B:$B,'00b_1112 HES Spells'!$A13,'04.1_HES_POD_Split'!$C:$C,'00b_1112 HES Spells'!F$3) -> 229 | G13: =IF(COUNTIF('Linked Sheet'!A:A,'00b_1112 HES Spells'!A13)>0,1,0) -> 0 | H13: AA25AEMBP05 | I13: ='06_Flagged_Activity_RAW'!B20 -> AA25A | J13: ='06_Flagged_Activity_RAW'!C20 -> BP05 | L13: ='06_Flagged_Activity_RAW'!D20 -> EM | M13: ='06_Flagged_Activity_RAW'!E20 -> 7
A14: ='04_HES_Activity_RAW'!B21 -> AA07A | B14: =IF(NOT(ISNUMBER(VLOOKUP(A14,'03_OPROC_RAW'!$B:$C,2,FALSE))),0,VLOOKUP(A14,'03_OPROC_RAW'!$B:$C,2,FALSE)) -> 0 | C14: 410 | D14: =SUMIFS('04.1_HES_POD_Split'!$D:$D,'04.1_HES_POD_Split'!$B:$B,'00b_1112 HES Spells'!$A14,'04.1_HES_POD_Split'!$C:$C,'00b_1112 HES Spells'!D$3) -> 38 | E14: =SUMIFS('04.1_HES_POD_Split'!$D:$D,'04.1_HES_POD_Split'!$B:$B,'00b_1112 HES Spells'!$A14,'04.1_HES_POD_Split'!$C:$C,'00b_1112 HES Spells'!E$3) -> 372 | F14: =SUMIFS('04.1_HES_POD_Split'!$D:$D,'04.1_HES_POD_Split'!$B:$B,'00b_1112 HES Spells'!$A14,'04.1_HES_POD_Split'!$C:$C,'00b_1112 HES Spells'!F$3) -> 325 | G14: =IF(COUNTIF('Linked Sheet'!A:A,'00b_1112 HES Spells'!A14)>0,1,0) -> 0 | H14: AA26AEMBP05 | I14: ='06_Flagged_Activity_RAW'!B21 -> AA26A | J14: ='06_Flagged_Activity_RAW'!C21 -> BP05 | L14: ='06_Flagged_Activity_RAW'!D21 -> EM | M14: ='06_Flagged_Activity_RAW'!E21 -> 9
A15: ='04_HES_Activity_RAW'!B22 -> AA07B | B15: =IF(NOT(ISNUMBER(VLOOKUP(A15,'03_OPROC_RAW'!$B:$C,2,FALSE))),0,VLOOKUP(A15,'03_OPROC_RAW'!$B:$C,2,FALSE)) -> 0 | C15: 293 | D15: =SUMIFS('04.1_HES_POD_Split'!$D:$D,'04.1_HES_POD_Split'!$B:$B,'00b_1112 HES Spells'!$A15,'04.1_HES_POD_Split'!$C:$C,'00b_1112 HES Spells'!D$3) -> 76 | E15: =SUMIFS('04.1_HES_POD_Split'!$D:$D,'04.1_HES_POD_Split'!$B:$B,'00b_1112 HES Spells'!$A15,'04.1_HES_POD_Split'!$C:$C,'00b_1112 HES Spells'!E$3) -> 217 | F15: =SUMIFS('04.1_HES_POD_Split'!$D:$D,'04.1_HES_POD_Split'!$B:$B,'00b_1112 HES Spells'!$A15,'04.1_HES_POD_Split'!$C:$C,'00b_1112 HES Spells'!F$3) -> 81 | G15: =IF(COUNTIF('Linked Sheet'!A:A,'00b_1112 HES Spells'!A15)>0,1,0) -> 0 | H15: AA26AEMBP35 | I15: ='06_Flagged_Activity_RAW'!B22 -> AA26A | J15: ='06_Flagged_Activity_RAW'!C22 -> BP35 | L15: ='06_Flagged_Activity_RAW'!D22 -> EM | M15: ='06_Flagged_Activity_RAW'!E22 -> 40840
A16: ='04_HES_Activity_RAW'!B23 -> AA08A | B16: =IF(NOT(ISNUMBER(VLOOKUP(A16,'03_OPROC_RAW'!$B:$C,2,FALSE))),0,VLOOKUP(A16,'03_OPROC_RAW'!$B:$C,2,FALSE)) -> 0 | C16: 462 | D16: =SUMIFS('04.1_HES_POD_Split'!$D:$D,'04.1_HES_POD_Split'!$B:$B,'00b_1112 HES Spells'!$A16,'04.1_HES_POD_Split'!$C:$C,'00b_1112 HES Spells'!D$3) -> 23 | E16: =SUMIFS('04.1_HES_POD_Split'!$D:$D,'04.1_HES_POD_Split'!$B:$B,'00b_1112 HES Spells'!$A16,'04.1_HES_POD_Split'!$C:$C,'00b_1112 HES Spells'!E$3) -> 439 | F16: =SUMIFS('04.1_HES_POD_Split'!$D:$D,'04.1_HES_POD_Split'!$B:$B,'00b_1112 HES Spells'!$A16,'04.1_HES_POD_Split'!$C:$C,'00b_1112 HES Spells'!F$3) -> 23 | G16: =IF(COUNTIF('Linked Sheet'!A:A,'00b_1112 HES Spells'!A16)>0,1,0) -> 0 | H16: AA26AEMBP54 | I16: ='06_Flagged_Activity_RAW'!B23 -> AA26A | J16: ='06_Flagged_Activity_RAW'!C23 -> BP54 | L16: ='06_Flagged_Activity_RAW'!D23 -> EM | M16: ='06_Flagged_Activity_RAW'!E23 -> 1
A17: ='04_HES_Activity_RAW'!B24 -> AA08B | B17: =IF(NOT(ISNUMBER(VLOOKUP(A17,'03_OPROC_RAW'!$B:$C,2,FALSE))),0,VLOOKUP(A17,'03_OPROC_RAW'!$B:$C,2,FALSE)) -> 0 | C17: 240 | D17: =SUMIFS('04.1_HES_POD_Split'!$D:$D,'04.1_HES_POD_Split'!$B:$B,'00b_1112 HES Spells'!$A17,'04.1_HES_POD_Split'!$C:$C,'00b_1112 HES Spells'!D$3) -> 31 | E17: =SUMIFS('04.1_HES_POD_Split'!$D:$D,'04.1_HES_POD_Split'!$B:$B,'00b_1112 HES Spells'!$A17,'04.1_HES_POD_Split'!$C:$C,'00b_1112 HES Spells'!E$3) -> 209 | F17: =SUMIFS('04.1_HES_POD_Split'!$D:$D,'04.1_HES_POD_Split'!$B:$B,'00b_1112 HES Spells'!$A17,'04.1_HES_POD_Split'!$C:$C,'00b_1112 HES Spells'!F$3) -> 2 | G17: =IF(COUNTIF('Linked Sheet'!A:A,'00b_1112 HES Spells'!A17)>0,1,0) -> 0 | H17: AA26BEMBP35 | I17: ='06_Flagged_Activity_RAW'!B24 -> AA26B | J17: ='06_Flagged_Activity_RAW'!C24 -> BP35 | L17: ='06_Flagged_Activity_RAW'!D24 -> EM | M17: ='06_Flagged_Activity_RAW'!E24 -> 7670
A18: ='04_HES_Activity_RAW'!B25 -> AA09A | B18: =IF(NOT(ISNUMBER(VLOOKUP(A18,'03_OPROC_RAW'!$B:$C,2,FALSE))),0,VLOOKUP(A18,'03_OPROC_RAW'!$B:$C,2,FALSE)) -> 0 | C18: 890 | D18: =SUMIFS('04.1_HES_POD_Split'!$D:$D,'04.1_HES_POD_Split'!$B:$B,'00b_1112 HES Spells'!$A18,'04.1_HES_POD_Split'!$C:$C,'00b_1112 HES Spells'!D$3) -> 458 | E18: =SUMIFS('04.1_HES_POD_Split'!$D:$D,'04.1_HES_POD_Split'!$B:$B,'00b_1112 HES Spells'!$A18,'04.1_HES_POD_Split'!$C:$C,'00b_1112 HES Spells'!E$3) -> 432 | F18: =SUMIFS('04.1_HES_POD_Split'!$D:$D,'04.1_HES_POD_Split'!$B:$B,'00b_1112 HES Spells'!$A18,'04.1_HES_POD_Split'!$C:$C,'00b_1112 HES Spells'!F$3) -> 361 | G18: =IF(COUNTIF('Linked Sheet'!A:A,'00b_1112 HES Spells'!A18)>0,1,0) -> 0 | H18: AA29AEMBP05 | I18: ='06_Flagged_Activity_RAW'!B25 -> AA29A | J18: ='06_Flagged_Activity_RAW'!C25 -> BP05 | L18: ='06_Flagged_Activity_RAW'!D25 -> EM | M18: ='06_Flagged_Activity_RAW'!E25 -> 1
A19: ='04_HES_Activity_RAW'!B26 -> AA09B | B19: =IF(NOT(ISNUMBER(VLOOKUP(A19,'03_OPROC_RAW'!$B:$C,2,FALSE))),0,VLOOKUP(A19,'03_OPROC_RAW'!$B:$C,2,FALSE)) -> 0 | C19: 987 | D19: =SUMIFS('04.1_HES_POD_Split'!$D:$D,'04.1_HES_POD_Split'!$B:$B,'00b_1112 HES Spells'!$A19,'04.1_HES_POD_Split'!$C:$C,'00b_1112 HES Spells'!D$3) -> 790 | E19: =SUMIFS('04.1_HES_POD_Split'!$D:$D,'04.1_HES_POD_Split'!$B:$B,'00b_1112 HES Spells'!$A19,'04.1_HES_POD_Split'!$C:$C,'00b_1112 HES Spells'!E$3) -> 197 | F19: =SUMIFS('04.1_HES_POD_Split'!$D:$D,'04.1_HES_POD_Split'!$B:$B,'00b_1112 HES Spells'!$A19,'04.1_HES_POD_Split'!$C:$C,'00b_1112 HES Spells'!F$3) -> 66 | G19: =IF(COUNTIF('Linked Sheet'!A:A,'00b_1112 HES Spells'!A19)>0,1,0) -> 0 | H19: AA31AEMBP05 | I19: ='06_Flagged_Activity_RAW'!B26 -> AA31A | J19: ='06_Flagged_Activity_RAW'!C26 -> BP05 | L19: ='06_Flagged_Activity_RAW'!D26 -> EM | M19: ='06_Flagged_Activity_RAW'!E26 -> 5
A20: ='04_HES_Activity_RAW'!B27 -> AA10A | B20: =IF(NOT(ISNUMBER(VLOOKUP(A20,'03_OPROC_RAW'!$B:$C,2,FALSE))),0,VLOOKUP(A20,'03_OPROC_RAW'!$B:$C,2,FALSE)) -> 0 | C20: 22 | D20: =SUMIFS('04.1_HES_POD_Split'!$D:$D,'04.1_HES_POD_Split'!$B:$B,'00b_1112 HES Spells'!$A20,'04.1_HES_POD_Split'!$C:$C,'00b_1112 HES Spells'!D$3) -> 0 | E20: =SUMIFS('04.1_HES_POD_Split'!$D:$D,'04.1_HES_POD_Split'!$B:$B,'00b_1112 HES Spells'!$A20,'04.1_HES_POD_Split'!$C:$C,'00b_1112 HES Spells'!E$3) -> 22 | F20: =SUMIFS('04.1_HES_POD_Split'!$D:$D,'04.1_HES_POD_Split'!$B:$B,'00b_1112 HES Spells'!$A20,'04.1_HES_POD_Split'!$C:$C,'00b_1112 HES Spells'!F$3) -> 95 | G20: =IF(COUNTIF('Linked Sheet'!A:A,'00b_1112 HES Spells'!A20)>0,1,0) -> 0 | H20: AA31AEMBP49 | I20: ='06_Flagged_Activity_RAW'!B27 -> AA31A | J20: ='06_Flagged_Activity_RAW'!C27 -> BP49 | L20: ='06_Flagged_Activity_RAW'!D27 -> EM | M20: ='06_Flagged_Activity_RAW'!E27 -> 41443
A21: ='04_HES_Activity_RAW'!B28 -> AA10B | B21: =IF(NOT(ISNUMBER(VLOOKUP(A21,'03_OPROC_RAW'!$B:$C,2,FALSE))),0,VLOOKUP(A21,'03_OPROC_RAW'!$B:$C,2,FALSE)) -> 0 | C21: 2 | D21: =SUMIFS('04.1_HES_POD_Split'!$D:$D,'04.1_HES_POD_Split'!$B:$B,'00b_1112 HES Spells'!$A21,'04.1_HES_POD_Split'!$C:$C,'00b_1112 HES Spells'!D$3) -> 0 | E21: =SUMIFS('04.1_HES_POD_Split'!$D:$D,'04.1_HES_POD_Split'!$B:$B,'00b_1112 HES Spells'!$A21,'04.1_HES_POD_Split'!$C:$C,'00b_1112 HES Spells'!E$3) -> 2 | F21: =SUMIFS('04.1_HES_POD_Split'!$D:$D,'04.1_HES_POD_Split'!$B:$B,'00b_1112 HES Spells'!$A21,'04.1_HES_POD_Split'!$C:$C,'00b_1112 HES Spells'!F$3) -> 10 | G21: =IF(COUNTIF('Linked Sheet'!A:A,'00b_1112 HES Spells'!A21)>0,1,0) -> 0 | H21: AA31BEMBP49 | I21: ='06_Flagged_Activity_RAW'!B28 -> AA31B | J21: ='06_Flagged_Activity_RAW'!C28 -> BP49 | L21: ='06_Flagged_Activity_RAW'!D28 -> EM | M21: ='06_Flagged_Activity_RAW'!E28 -> 14324
A22: ='04_HES_Activity_RAW'!B29 -> AA11A | B22: =IF(NOT(ISNUMBER(VLOOKUP(A22,'03_OPROC_RAW'!$B:$C,2,FALSE))),0,VLOOKUP(A22,'03_OPROC_RAW'!$B:$C,2,FALSE)) -> 0 | C22: 25 | D22: =SUMIFS('04.1_HES_POD_Split'!$D:$D,'04.1_HES_POD_Split'!$B:$B,'00b_1112 HES Spells'!$A22,'04.1_HES_POD_Split'!$C:$C,'00b_1112 HES Spells'!D$3) -> 0 | E22: =SUMIFS('04.1_HES_POD_Split'!$D:$D,'04.1_HES_POD_Split'!$B:$B,'00b_1112 HES Spells'!$A22,'04.1_HES_POD_Split'!$C:$C,'00b_1112 HES Spells'!E$3) -> 25 | F22: =SUMIFS('04.1_HES_POD_Split'!$D:$D,'04.1_HES_POD_Split'!$B:$B,'00b_1112 HES Spells'!$A22,'04.1_HES_POD_Split'!$C:$C,'00b_1112 HES Spells'!F$3) -> 512 | G22: =IF(COUNTIF('Linked Sheet'!A:A,'00b_1112 HES Spells'!A22)>0,1,0) -> 0 | H22: CZ05TDCBP33 | I22: ='06_Flagged_Activity_RAW'!B29 -> CZ05T | J22: ='06_Flagged_Activity_RAW'!C29 -> BP33 | L22: ='06_Flagged_Activity_RAW'!D29 -> DC | M22: ='06_Flagged_Activity_RAW'!E29 -> 10047
A23: ='04_HES_Activity_RAW'!B30 -> AA11B | B23: =IF(NOT(ISNUMBER(VLOOKUP(A23,'03_OPROC_RAW'!$B:$C,2,FALSE))),0,VLOOKUP(A23,'03_OPROC_RAW'!$B:$C,2,FALSE)) -> 0 | C23: 4 | D23: =SUMIFS('04.1_HES_POD_Split'!$D:$D,'04.1_HES_POD_Split'!$B:$B,'00b_1112 HES Spells'!$A23,'04.1_HES_POD_Split'!$C:$C,'00b_1112 HES Spells'!D$3) -> 0 | E23: =SUMIFS('04.1_HES_POD_Split'!$D:$D,'04.1_HES_POD_Split'!$B:$B,'00b_1112 HES Spells'!$A23,'04.1_HES_POD_Split'!$C:$C,'00b_1112 HES Spells'!E$3) -> 4 | F23: =SUMIFS('04.1_HES_POD_Split'!$D:$D,'04.1_HES_POD_Split'!$B:$B,'00b_1112 HES Spells'!$A23,'04.1_HES_POD_Split'!$C:$C,'00b_1112 HES Spells'!F$3) -> 45 | G23: =IF(COUNTIF('Linked Sheet'!A:A,'00b_1112 HES Spells'!A23)>0,1,0) -> 0 | H23: CZ05TELBP33 | I23: ='06_Flagged_Activity_RAW'!B30 -> CZ05T | J23: ='06_Flagged_Activity_RAW'!C30 -> BP33 | L23: ='06_Flagged_Activity_RAW'!D30 -> EL | M23: ='06_Flagged_Activity_RAW'!E30 -> 14865
A24: ='04_HES_Activity_RAW'!B31 -> AA12A | B24: =IF(NOT(ISNUMBER(VLOOKUP(A24,'03_OPROC_RAW'!$B:$C,2,FALSE))),0,VLOOKUP(A24,'03_OPROC_RAW'!$B:$C,2,FALSE)) -> 0 | C24: 1644 | D24: =SUMIFS('04.1_HES_POD_Split'!$D:$D,'04.1_HES_POD_Split'!$B:$B,'00b_1112 HES Spells'!$A24,'04.1_HES_POD_Split'!$C:$C,'00b_1112 HES Spells'!D$3) -> 1 | E24: =SUMIFS('04.1_HES_POD_Split'!$D:$D,'04.1_HES_POD_Split'!$B:$B,'00b_1112 HES Spells'!$A24,'04.1_HES_POD_Split'!$C:$C,'00b_1112 HES Spells'!E$3) -> 1643 | F24: =SUMIFS('04.1_HES_POD_Split'!$D:$D,'04.1_HES_POD_Split'!$B:$B,'00b_1112 HES Spells'!$A24,'04.1_HES_POD_Split'!$C:$C,'00b_1112 HES Spells'!F$3) -> 1112 | G24: =IF(COUNTIF('Linked Sheet'!A:A,'00b_1112 HES Spells'!A24)>0,1,0) -> 0 | H24: CZ05VDCBP33 | I24: ='06_Flagged_Activity_RAW'!B31 -> CZ05V | J24: ='06_Flagged_Activity_RAW'!C31 -> BP33 | L24: ='06_Flagged_Activity_RAW'!D31 -> DC | M24: ='06_Flagged_Activity_RAW'!E31 -> 1487
A25: ='04_HES_Activity_RAW'!B32 -> AA12B | B25: =IF(NOT(ISNUMBER(VLOOKUP(A25,'03_OPROC_RAW'!$B:$C,2,FALSE))),0,VLOOKUP(A25,'03_OPROC_RAW'!$B:$C,2,FALSE)) -> 0 | C25: 507 | D25: =SUMIFS('04.1_HES_POD_Split'!$D:$D,'04.1_HES_POD_Split'!$B:$B,'00b_1112 HES Spells'!$A25,'04.1_HES_POD_Split'!$C:$C,'00b_1112 HES Spells'!D$3) -> 2 | E25: =SUMIFS('04.1_HES_POD_Split'!$D:$D,'04.1_HES_POD_Split'!$B:$B,'00b_1112 HES Spells'!$A25,'04.1_HES_POD_Split'!$C:$C,'00b_1112 HES Spells'!E$3) -> 505 | F25: =SUMIFS('04.1_HES_POD_Split'!$D:$D,'04.1_HES_POD_Split'!$B:$B,'00b_1112 HES Spells'!$A25,'04.1_HES_POD_Split'!$C:$C,'00b_1112 HES Spells'!F$3) -> 258 | G25: =IF(COUNTIF('Linked Sheet'!A:A,'00b_1112 HES Spells'!A25)>0,1,0) -> 0 | H25: CZ05VELBP33 | I25: ='06_Flagged_Activity_RAW'!B32 -> CZ05V | J25: ='06_Flagged_Activity_RAW'!C32 -> BP33 | L25: ='06_Flagged_Activity_RAW'!D32 -> EL | M25: ='06_Flagged_Activity_RAW'!E32 -> 2935
A26: ='04_HES_Activity_RAW'!B33 -> AA13A | B26: =IF(NOT(ISNUMBER(VLOOKUP(A26,'03_OPROC_RAW'!$B:$C,2,FALSE))),0,VLOOKUP(A26,'03_OPROC_RAW'!$B:$C,2,FALSE)) -> 0 | C26: 523 | D26: =SUMIFS('04.1_HES_POD_Split'!$D:$D,'04.1_HES_POD_Split'!$B:$B,'00b_1112 HES Spells'!$A26,'04.1_HES_POD_Split'!$C:$C,'00b_1112 HES Spells'!D$3) -> 2 | E26: =SUMIFS('04.1_HES_POD_Split'!$D:$D,'04.1_HES_POD_Split'!$B:$B,'00b_1112 HES Spells'!$A26,'04.1_HES_POD_Split'!$C:$C,'00b_1112 HES Spells'!E$3) -> 521 | F26: =SUMIFS('04.1_HES_POD_Split'!$D:$D,'04.1_HES_POD_Split'!$B:$B,'00b_1112 HES Spells'!$A26,'04.1_HES_POD_Split'!$C:$C,'00b_1112 HES Spells'!F$3) -> 473 | G26: =IF(COUNTIF('Linked Sheet'!A:A,'00b_1112 HES Spells'!A26)>0,1,0) -> 0 | H26: CZ05YDCBP33 | I26: ='06_Flagged_Activity_RAW'!B33 -> CZ05Y | J26: ='06_Flagged_Activity_RAW'!C33 -> BP33 | L26: ='06_Flagged_Activity_RAW'!D33 -> DC | M26: ='06_Flagged_Activity_RAW'!E33 -> 4302
A27: ='04_HES_Activity_RAW'!B34 -> AA13B | B27: =IF(NOT(ISNUMBER(VLOOKUP(A27,'03_OPROC_RAW'!$B:$C,2,FALSE))),0,VLOOKUP(A27,'03_OPROC_RAW'!$B:$C,2,FALSE)) -> 0 | C27: 147 | D27: =SUMIFS('04.1_HES_POD_Split'!$D:$D,'04.1_HES_POD_Split'!$B:$B,'00b_1112 HES Spells'!$A27,'04.1_HES_POD_Split'!$C:$C,'00b_1112 HES Spells'!D$3) -> 2 | E27: =SUMIFS('04.1_HES_POD_Split'!$D:$D,'04.1_HES_POD_Split'!$B:$B,'00b_1112 HES Spells'!$A27,'04.1_HES_POD_Split'!$C:$C,'00b_1112 HES Spells'!E$3) -> 145 | F27: =SUMIFS('04.1_HES_POD_Split'!$D:$D,'04.1_HES_POD_Split'!$B:$B,'00b_1112 HES Spells'!$A27,'04.1_HES_POD_Split'!$C:$C,'00b_1112 HES Spells'!F$3) -> 156 | G27: =IF(COUNTIF('Linked Sheet'!A:A,'00b_1112 HES Spells'!A27)>0,1,0) -> 0 | H27: CZ05YELBP33 | I27: ='06_Flagged_Activity_RAW'!B34 -> CZ05Y | J27: ='06_Flagged_Activity_RAW'!C34 -> BP33 | L27: ='06_Flagged_Activity_RAW'!D34 -> EL | M27: ='06_Flagged_Activity_RAW'!E34 -> 5801
A28: ='04_HES_Activity_RAW'!B35 -> AA14A | B28: =IF(NOT(ISNUMBER(VLOOKUP(A28,'03_OPROC_RAW'!$B:$C,2,FALSE))),0,VLOOKUP(A28,'03_OPROC_RAW'!$B:$C,2,FALSE)) -> 0 | C28: 286 | D28: =SUMIFS('04.1_HES_POD_Split'!$D:$D,'04.1_HES_POD_Split'!$B:$B,'00b_1112 HES Spells'!$A28,'04.1_HES_POD_Split'!$C:$C,'00b_1112 HES Spells'!D$3) -> 52 | E28: =SUMIFS('04.1_HES_POD_Split'!$D:$D,'04.1_HES_POD_Split'!$B:$B,'00b_1112 HES Spells'!$A28,'04.1_HES_POD_Split'!$C:$C,'00b_1112 HES Spells'!E$3) -> 234 | F28: =SUMIFS('04.1_HES_POD_Split'!$D:$D,'04.1_HES_POD_Split'!$B:$B,'00b_1112 HES Spells'!$A28,'04.1_HES_POD_Split'!$C:$C,'00b_1112 HES Spells'!F$3) -> 34 | G28: =IF(COUNTIF('Linked Sheet'!A:A,'00b_1112 HES Spells'!A28)>0,1,0) -> 0 | H28: CZ13VDCBP34 | I28: ='06_Flagged_Activity_RAW'!B35 -> CZ13V | J28: ='06_Flagged_Activity_RAW'!C35 -> BP34 | L28: ='06_Flagged_Activity_RAW'!D35 -> DC | M28: ='06_Flagged_Activity_RAW'!E35 -> 2367
A29: ='04_HES_Activity_RAW'!B36 -> AA14B | B29: =IF(NOT(ISNUMBER(VLOOKUP(A29,'03_OPROC_RAW'!$B:$C,2,FALSE))),0,VLOOKUP(A29,'03_OPROC_RAW'!$B:$C,2,FALSE)) -> 0 | C29: 125 | D29: =SUMIFS('04.1_HES_POD_Split'!$D:$D,'04.1_HES_POD_Split'!$B:$B,'00b_1112 HES Spells'!$A29,'04.1_HES_POD_Split'!$C:$C,'00b_1112 HES Spells'!D$3) -> 49 | E29: =SUMIFS('04.1_HES_POD_Split'!$D:$D,'04.1_HES_POD_Split'!$B:$B,'00b_1112 HES Spells'!$A29,'04.1_HES_POD_Split'!$C:$C,'00b_1112 HES Spells'!E$3) -> 76 | F29: =SUMIFS('04.1_HES_POD_Split'!$D:$D,'04.1_HES_POD_Split'!$B:$B,'00b_1112 HES Spells'!$A29,'04.1_HES_POD_Split'!$C:$C,'00b_1112 HES Spells'!F$3) -> 2 | G29: =IF(COUNTIF('Linked Sheet'!A:A,'00b_1112 HES Spells'!A29)>0,1,0) -> 0 | H29: CZ13VELBP34 | I29: ='06_Flagged_Activity_RAW'!B36 -> CZ13V | J29: ='06_Flagged_Activity_RAW'!C36 -> BP34 | L29: ='06_Flagged_Activity_RAW'!D36 -> EL | M29: ='06_Flagged_Activity_RAW'!E36 -> 2518
A30: ='04_HES_Activity_RAW'!B37 -> AA15A | B30: =IF(NOT(ISNUMBER(VLOOKUP(A30,'03_OPROC_RAW'!$B:$C,2,FALSE))),0,VLOOKUP(A30,'03_OPROC_RAW'!$B:$C,2,FALSE)) -> 0 | C30: 370 | D30: =SUMIFS('04.1_HES_POD_Split'!$D:$D,'04.1_HES_POD_Split'!$B:$B,'00b_1112 HES Spells'!$A30,'04.1_HES_POD_Split'!$C:$C,'00b_1112 HES Spells'!D$3) -> 37 | E30: =SUMIFS('04.1_HES_POD_Split'!$D:$D,'04.1_HES_POD_Split'!$B:$B,'00b_1112 HES Spells'!$A30,'04.1_HES_POD_Split'!$C:$C,'00b_1112 HES Spells'!E$3) -> 333 | F30: =SUMIFS('04.1_HES_POD_Split'!$D:$D,'04.1_HES_POD_Split'!$B:$B,'00b_1112 HES Spells'!$A30,'04.1_HES_POD_Split'!$C:$C,'00b_1112 HES Spells'!F$3) -> 273 | G30: =IF(COUNTIF('Linked Sheet'!A:A,'00b_1112 HES Spells'!A30)>0,1,0) -> 0 | H30: CZ13YDCBP34 | I30: ='06_Flagged_Activity_RAW'!B37 -> CZ13Y | J30: ='06_Flagged_Activity_RAW'!C37 -> BP34 | L30: ='06_Flagged_Activity_RAW'!D37 -> DC | M30: ='06_Flagged_Activity_RAW'!E37 -> 5878
A31: ='04_HES_Activity_RAW'!B38 -> AA15B | B31: =IF(NOT(ISNUMBER(VLOOKUP(A31,'03_OPROC_RAW'!$B:$C,2,FALSE))),0,VLOOKUP(A31,'03_OPROC_RAW'!$B:$C,2,FALSE)) -> 0 | C31: 199 | D31: =SUMIFS('04.1_HES_POD_Split'!$D:$D,'04.1_HES_POD_Split'!$B:$B,'00b_1112 HES Spells'!$A31,'04.1_HES_POD_Split'!$C:$C,'00b_1112 HES Spells'!D$3) -> 34 | E31: =SUMIFS('04.1_HES_POD_Split'!$D:$D,'04.1_HES_POD_Split'!$B:$B,'00b_1112 HES Spells'!$A31,'04.1_HES_POD_Split'!$C:$C,'00b_1112 HES Spells'!E$3) -> 165 | F31: =SUMIFS('04.1_HES_POD_Split'!$D:$D,'04.1_HES_POD_Split'!$B:$B,'00b_1112 HES Spells'!$A31,'04.1_HES_POD_Split'!$C:$C,'00b_1112 HES Spells'!F$3) -> 57 | G31: =IF(COUNTIF('Linked Sheet'!A:A,'00b_1112 HES Spells'!A31)>0,1,0) -> 0 | H31: CZ13YELBP34 | I31: ='06_Flagged_Activity_RAW'!B38 -> CZ13Y | J31: ='06_Flagged_Activity_RAW'!C38 -> BP34 | L31: ='06_Flagged_Activity_RAW'!D38 -> EL | M31: ='06_Flagged_Activity_RAW'!E38 -> 4619
A32: ='04_HES_Activity_RAW'!B39 -> AA16A | B32: =IF(NOT(ISNUMBER(VLOOKUP(A32,'03_OPROC_RAW'!$B:$C,2,FALSE))),0,VLOOKUP(A32,'03_OPROC_RAW'!$B:$C,2,FALSE)) -> 0 | C32: 14 | D32: =SUMIFS('04.1_HES_POD_Split'!$D:$D,'04.1_HES_POD_Split'!$B:$B,'00b_1112 HES Spells'!$A32,'04.1_HES_POD_Split'!$C:$C,'00b_1112 HES Spells'!D$3) -> 1 | E32: =SUMIFS('04.1_HES_POD_Split'!$D:$D,'04.1_HES_POD_Split'!$B:$B,'00b_1112 HES Spells'!$A32,'04.1_HES_POD_Split'!$C:$C,'00b_1112 HES Spells'!E$3) -> 13 | F32: =SUMIFS('04.1_HES_POD_Split'!$D:$D,'04.1_HES_POD_Split'!$B:$B,'00b_1112 HES Spells'!$A32,'04.1_HES_POD_Split'!$C:$C,'00b_1112 HES Spells'!F$3) -> 216 | G32: =IF(COUNTIF('Linked Sheet'!A:A,'00b_1112 HES Spells'!A32)>0,1,0) -> 0 | H32: CZ21YEMBP05 | I32: ='06_Flagged_Activity_RAW'!B39 -> CZ21Y | J32: ='06_Flagged_Activity_RAW'!C39 -> BP05 | L32: ='06_Flagged_Activity_RAW'!D39 -> EM | M32: ='06_Flagged_Activity_RAW'!E39 -> 1
A33: ='04_HES_Activity_RAW'!B40 -> AA16B | B33: =IF(NOT(ISNUMBER(VLOOKUP(A33,'03_OPROC_RAW'!$B:$C,2,FALSE))),0,VLOOKUP(A33,'03_OPROC_RAW'!$B:$C,2,FALSE)) -> 0 | C33: 10 | D33: =SUMIFS('04.1_HES_POD_Split'!$D:$D,'04.1_HES_POD_Split'!$B:$B,'00b_1112 HES Spells'!$A33,'04.1_HES_POD_Split'!$C:$C,'00b_1112 HES Spells'!D$3) -> 2 | E33: =SUMIFS('04.1_HES_POD_Split'!$D:$D,'04.1_HES_POD_Split'!$B:$B,'00b_1112 HES Spells'!$A33,'04.1_HES_POD_Split'!$C:$C,'00b_1112 HES Spells'!E$3) -> 8 | F33: =SUMIFS('04.1_HES_POD_Split'!$D:$D,'04.1_HES_POD_Split'!$B:$B,'00b_1112 HES Spells'!$A33,'04.1_HES_POD_Split'!$C:$C,'00b_1112 HES Spells'!F$3) -> 32 | G33: =IF(COUNTIF('Linked Sheet'!A:A,'00b_1112 HES Spells'!A33)>0,1,0) -> 0 | H33: DZ06ZDCBP51 | I33: ='06_Flagged_Activity_RAW'!B40 -> DZ06Z | J33: ='06_Flagged_Activity_RAW'!C40 -> BP51 | L33: ='06_Flagged_Activity_RAW'!D40 -> DC | M33: ='06_Flagged_Activity_RAW'!E40 -> 873
A34: ='04_HES_Activity_RAW'!B41 -> AA17A | B34: =IF(NOT(ISNUMBER(VLOOKUP(A34,'03_OPROC_RAW'!$B:$C,2,FALSE))),0,VLOOKUP(A34,'03_OPROC_RAW'!$B:$C,2,FALSE)) -> 0 | C34: 48 | D34: =SUMIFS('04.1_HES_POD_Split'!$D:$D,'04.1_HES_POD_Split'!$B:$B,'00b_1112 HES Spells'!$A34,'04.1_HES_POD_Split'!$C:$C,'00b_1112 HES Spells'!D$3) -> 1 | E34: =SUMIFS('04.1_HES_POD_Split'!$D:$D,'04.1_HES_POD_Split'!$B:$B,'00b_1112 HES Spells'!$A34,'04.1_HES_POD_Split'!$C:$C,'00b_1112 HES Spells'!E$3) -> 47 | F34: =SUMIFS('04.1_HES_POD_Split'!$D:$D,'04.1_HES_POD_Split'!$B:$B,'00b_1112 HES Spells'!$A34,'04.1_HES_POD_Split'!$C:$C,'00b_1112 HES Spells'!F$3) -> 553 | G34: =IF(COUNTIF('Linked Sheet'!A:A,'00b_1112 HES Spells'!A34)>0,1,0) -> 0 | H34: DZ06ZELBP51 | I34: ='06_Flagged_Activity_RAW'!B41 -> DZ06Z | J34: ='06_Flagged_Activity_RAW'!C41 -> BP51 | L34: ='06_Flagged_Activity_RAW'!D41 -> EL | M34: ='06_Flagged_Activity_RAW'!E41 -> 141
A35: ='04_HES_Activity_RAW'!B42 -> AA17B | B35: =IF(NOT(ISNUMBER(VLOOKUP(A35,'03_OPROC_RAW'!$B:$C,2,FALSE))),0,VLOOKUP(A35,'03_OPROC_RAW'!$B:$C,2,FALSE)) -> 0 | C35: 20 | D35: =SUMIFS('04.1_HES_POD_Split'!$D:$D,'04.1_HES_POD_Split'!$B:$B,'00b_1112 HES Spells'!$A35,'04.1_HES_POD_Split'!$C:$C,'00b_1112 HES Spells'!D$3) -> 0 | E35: =SUMIFS('04.1_HES_POD_Split'!$D:$D,'04.1_HES_POD_Split'!$B:$B,'00b_1112 HES Spells'!$A35,'04.1_HES_POD_Split'!$C:$C,'00b_1112 HES Spells'!E$3) -> 20 | F35: =SUMIFS('04.1_HES_POD_Split'!$D:$D,'04.1_HES_POD_Split'!$B:$B,'00b_1112 HES Spells'!$A35,'04.1_HES_POD_Split'!$C:$C,'00b_1112 HES Spells'!F$3) -> 50 | G35: =IF(COUNTIF('Linked Sheet'!A:A,'00b_1112 HES Spells'!A35)>0,1,0) -> 0 | H35: DZ09BEMBP46 | I35: ='06_Flagged_Activity_RAW'!B42 -> DZ09B | J35: ='06_Flagged_Activity_RAW'!C42 -> BP46 | L35: ='06_Flagged_Activity_RAW'!D42 -> EM | M35: ='06_Flagged_Activity_RAW'!E42 -> 8780
A36: ='04_HES_Activity_RAW'!B43 -> AA18A | B36: =IF(NOT(ISNUMBER(VLOOKUP(A36,'03_OPROC_RAW'!$B:$C,2,FALSE))),0,VLOOKUP(A36,'03_OPROC_RAW'!$B:$C,2,FALSE)) -> 0 | C36: 441 | D36: =SUMIFS('04.1_HES_POD_Split'!$D:$D,'04.1_HES_POD_Split'!$B:$B,'00b_1112 HES Spells'!$A36,'04.1_HES_POD_Split'!$C:$C,'00b_1112 HES Spells'!D$3) -> 33 | E36: =SUMIFS('04.1_HES_POD_Split'!$D:$D,'04.1_HES_POD_Split'!$B:$B,'00b_1112 HES Spells'!$A36,'04.1_HES_POD_Split'!$C:$C,'00b_1112 HES Spells'!E$3) -> 408 | F36: =SUMIFS('04.1_HES_POD_Split'!$D:$D,'04.1_HES_POD_Split'!$B:$B,'00b_1112 HES Spells'!$A36,'04.1_HES_POD_Split'!$C:$C,'00b_1112 HES Spells'!F$3) -> 442 | G36: =IF(COUNTIF('Linked Sheet'!A:A,'00b_1112 HES Spells'!A36)>0,1,0) -> 0 | H36: DZ09CEMBP46 | I36: ='06_Flagged_Activity_RAW'!B43 -> DZ09C | J36: ='06_Flagged_Activity_RAW'!C43 -> BP46 | L36: ='06_Flagged_Activity_RAW'!D43 -> EM | M36: ='06_Flagged_Activity_RAW'!E43 -> 3634
A37: ='04_HES_Activity_RAW'!B44 -> AA18B | B37: =IF(NOT(ISNUMBER(VLOOKUP(A37,'03_OPROC_RAW'!$B:$C,2,FALSE))),0,VLOOKUP(A37,'03_OPROC_RAW'!$B:$C,2,FALSE)) -> 0 | C37: 183 | D37: =SUMIFS('04.1_HES_POD_Split'!$D:$D,'04.1_HES_POD_Split'!$B:$B,'00b_1112 HES Spells'!$A37,'04.1_HES_POD_Split'!$C:$C,'00b_1112 HES Spells'!D$3) -> 26 | E37: =SUMIFS('04.1_HES_POD_Split'!$D:$D,'04.1_HES_POD_Split'!$B:$B,'00b_1112 HES Spells'!$A37,'04.1_HES_POD_Split'!$C:$C,'00b_1112 HES Spells'!E$3) -> 157 | F37: =SUMIFS('04.1_HES_POD_Split'!$D:$D,'04.1_HES_POD_Split'!$B:$B,'00b_1112 HES Spells'!$A37,'04.1_HES_POD_Split'!$C:$C,'00b_1112 HES Spells'!F$3) -> 107 | G37: =IF(COUNTIF('Linked Sheet'!A:A,'00b_1112 HES Spells'!A37)>0,1,0) -> 0 | H37: DZ10AEMBP52 | I37: ='06_Flagged_Activity_RAW'!B44 -> DZ10A | J37: ='06_Flagged_Activity_RAW'!C44 -> BP52 | L37: ='06_Flagged_Activity_RAW'!D44 -> EM | M37: ='06_Flagged_Activity_RAW'!E44 -> 1
A38: ='04_HES_Activity_RAW'!B45 -> AA19A | B38: =IF(NOT(ISNUMBER(VLOOKUP(A38,'03_OPROC_RAW'!$B:$C,2,FALSE))),0,VLOOKUP(A38,'03_OPROC_RAW'!$B:$C,2,FALSE)) -> 0 | C38: 1057 | D38: =SUMIFS('04.1_HES_POD_Split'!$D:$D,'04.1_HES_POD_Split'!$B:$B,'00b_1112 HES Spells'!$A38,'04.1_HES_POD_Split'!$C:$C,'00b_1112 HES Spells'!D$3) -> 472 | E38: =SUMIFS('04.1_HES_POD_Split'!$D:$D,'04.1_HES_POD_Split'!$B:$B,'00b_1112 HES Spells'!$A38,'04.1_HES_POD_Split'!$C:$C,'00b_1112 HES Spells'!E$3) -> 585 | F38: =SUMIFS('04.1_HES_POD_Split'!$D:$D,'04.1_HES_POD_Split'!$B:$B,'00b_1112 HES Spells'!$A38,'04.1_HES_POD_Split'!$C:$C,'00b_1112 HES Spells'!F$3) -> 901 | G38: =IF(COUNTIF('Linked Sheet'!A:A,'00b_1112 HES Spells'!A38)>0,1,0) -> 0 | H38: DZ11AEMBP01 | I38: ='06_Flagged_Activity_RAW'!B45 -> DZ11A | J38: ='06_Flagged_Activity_RAW'!C45 -> BP01 | L38: ='06_Flagged_Activity_RAW'!D45 -> EM | M38: ='06_Flagged_Activity_RAW'!E45 -> 1
A39: ='04_HES_Activity_RAW'!B46 -> AA19B | B39: =IF(NOT(ISNUMBER(VLOOKUP(A39,'03_OPROC_RAW'!$B:$C,2,FALSE))),0,VLOOKUP(A39,'03_OPROC_RAW'!$B:$C,2,FALSE)) -> 0 | C39: 647 | D39: =SUMIFS('04.1_HES_POD_Split'!$D:$D,'04.1_HES_POD_Split'!$B:$B,'00b_1112 HES Spells'!$A39,'04.1_HES_POD_Split'!$C:$C,'00b_1112 HES Spells'!D$3) -> 433 | E39: =SUMIFS('04.1_HES_POD_Split'!$D:$D,'04.1_HES_POD_Split'!$B:$B,'00b_1112 HES Spells'!$A39,'04.1_HES_POD_Split'!$C:$C,'00b_1112 HES Spells'!E$3) -> 214 | F39: =SUMIFS('04.1_HES_POD_Split'!$D:$D,'04.1_HES_POD_Split'!$B:$B,'00b_1112 HES Spells'!$A39,'04.1_HES_POD_Split'!$C:$C,'00b_1112 HES Spells'!F$3) -> 206 | G39: =IF(COUNTIF('Linked Sheet'!A:A,'00b_1112 HES Spells'!A39)>0,1,0) -> 0 | H39: DZ11AEMBP05 | I39: ='06_Flagged_Activity_RAW'!B46 -> DZ11A | J39: ='06_Flagged_Activity_RAW'!C46 -> BP05 | L39: ='06_Flagged_Activity_RAW'!D46 -> EM | M39: ='06_Flagged_Activity_RAW'!E46 -> 2
A40: ='04_HES_Activity_RAW'!B47 -> AA20A | B40: =IF(NOT(ISNUMBER(VLOOKUP(A40,'03_OPROC_RAW'!$B:$C,2,FALSE))),0,VLOOKUP(A40,'03_OPROC_RAW'!$B:$C,2,FALSE)) -> 0 | C40: 587 | D40: =SUMIFS('04.1_HES_POD_Split'!$D:$D,'04.1_HES_POD_Split'!$B:$B,'00b_1112 HES Spells'!$A40,'04.1_HES_POD_Split'!$C:$C,'00b_1112 HES Spells'!D$3) -> 277 | E40: =SUMIFS('04.1_HES_POD_Split'!$D:$D,'04.1_HES_POD_Split'!$B:$B,'00b_1112 HES Spells'!$A40,'04.1_HES_POD_Split'!$C:$C,'00b_1112 HES Spells'!E$3) -> 310 | F40: =SUMIFS('04.1_HES_POD_Split'!$D:$D,'04.1_HES_POD_Split'!$B:$B,'00b_1112 HES Spells'!$A40,'04.1_HES_POD_Split'!$C:$C,'00b_1112 HES Spells'!F$3) -> 85 | G40: =IF(COUNTIF('Linked Sheet'!A:A,'00b_1112 HES Spells'!A40)>0,1,0) -> 0 | H40: DZ11AEMBP35 | I40: ='06_Flagged_Activity_RAW'!B47 -> DZ11A | J40: ='06_Flagged_Activity_RAW'!C47 -> BP35 | L40: ='06_Flagged_Activity_RAW'!D47 -> EM | M40: ='06_Flagged_Activity_RAW'!E47 -> 1
A41: ='04_HES_Activity_RAW'!B48 -> AA20B | B41: =IF(NOT(ISNUMBER(VLOOKUP(A41,'03_OPROC_RAW'!$B:$C,2,FALSE))),0,VLOOKUP(A41,'03_OPROC_RAW'!$B:$C,2,FALSE)) -> 0 | C41: 462 | D41: =SUMIFS('04.1_HES_POD_Split'!$D:$D,'04.1_HES_POD_Split'!$B:$B,'00b_1112 HES Spells'!$A41,'04.1_HES_POD_Split'!$C:$C,'00b_1112 HES Spells'!D$3) -> 290 | E41: =SUMIFS('04.1_HES_POD_Split'!$D:$D,'04.1_HES_POD_Split'!$B:$B,'00b_1112 HES Spells'!$A41,'04.1_HES_POD_Split'!$C:$C,'00b_1112 HES Spells'!E$3) -> 172 | F41: =SUMIFS('04.1_HES_POD_Split'!$D:$D,'04.1_HES_POD_Split'!$B:$B,'00b_1112 HES Spells'!$A41,'04.1_HES_POD_Split'!$C:$C,'00b_1112 HES Spells'!F$3) -> 23 | G41: =IF(COUNTIF('Linked Sheet'!A:A,'00b_1112 HES Spells'!A41)>0,1,0) -> 0 | H41: DZ11AEMBP53 | I41: ='06_Flagged_Activity_RAW'!B48 -> DZ11A | J41: ='06_Flagged_Activity_RAW'!C48 -> BP53 | L41: ='06_Flagged_Activity_RAW'!D48 -> EM | M41: ='06_Flagged_Activity_RAW'!E48 -> 1
A42: ='04_HES_Activity_RAW'!B49 -> AA21A | B42: =IF(NOT(ISNUMBER(VLOOKUP(A42,'03_OPROC_RAW'!$B:$C,2,FALSE))),0,VLOOKUP(A42,'03_OPROC_RAW'!$B:$C,2,FALSE)) -> 0 | C42: 3950 | D42: =SUMIFS('04.1_HES_POD_Split'!$D:$D,'04.1_HES_POD_Split'!$B:$B,'00b_1112 HES Spells'!$A42,'04.1_HES_POD_Split'!$C:$C,'00b_1112 HES Spells'!D$3) -> 2332 | E42: =SUMIFS('04.1_HES_POD_Split'!$D:$D,'04.1_HES_POD_Split'!$B:$B,'00b_1112 HES Spells'!$A42,'04.1_HES_POD_Split'!$C:$C,'00b_1112 HES Spells'!E$3) -> 1618 | F42: =SUMIFS('04.1_HES_POD_Split'!$D:$D,'04.1_HES_POD_Split'!$B:$B,'00b_1112 HES Spells'!$A42,'04.1_HES_POD_Split'!$C:$C,'00b_1112 HES Spells'!F$3) -> 828 | G42: =IF(COUNTIF('Linked Sheet'!A:A,'00b_1112 HES Spells'!A42)>0,1,0) -> 0 | H42: DZ11CEMBP56 | I42: ='06_Flagged_Activity_RAW'!B49 -> DZ11C | J42: ='06_Flagged_Activity_RAW'!C49 -> BP56 | L42: ='06_Flagged_Activity_RAW'!D49 -> EM | M42: ='06_Flagged_Activity_RAW'!E49 -> 10161
A43: ='04_HES_Activity_RAW'!B50 -> AA21B | B43: =IF(NOT(ISNUMBER(VLOOKUP(A43,'03_OPROC_RAW'!$B:$C,2,FALSE))),0,VLOOKUP(A43,'03_OPROC_RAW'!$B:$C,2,FALSE)) -> 0 | C43: 2679 | D43: =SUMIFS('04.1_HES_POD_Split'!$D:$D,'04.1_HES_POD_Split'!$B:$B,'00b_1112 HES Spells'!$A43,'04.1_HES_POD_Split'!$C:$C,'00b_1112 HES Spells'!D$3) -> 2036 | E43: =SUMIFS('04.1_HES_POD_Split'!$D:$D,'04.1_HES_POD_Split'!$B:$B,'00b_1112 HES Spells'!$A43,'04.1_HES_POD_Split'!$C:$C,'00b_1112 HES Spells'!E$3) -> 643 | F43: =SUMIFS('04.1_HES_POD_Split'!$D:$D,'04.1_HES_POD_Split'!$B:$B,'00b_1112 HES Spells'!$A43,'04.1_HES_POD_Split'!$C:$C,'00b_1112 HES Spells'!F$3) -> 146 | G43: =IF(COUNTIF('Linked Sheet'!A:A,'00b_1112 HES Spells'!A43)>0,1,0) -> 0 | H43: DZ15EEMBP44 | I43: ='06_Flagged_Activity_RAW'!B50 -> DZ15E | J43: ='06_Flagged_Activity_RAW'!C50 -> BP44 | L43: ='06_Flagged_Activity_RAW'!D50 -> EM | M43: ='06_Flagged_Activity_RAW'!E50 -> 16316
A44: ='04_HES_Activity_RAW'!B51 -> AA22A | B44: =IF(NOT(ISNUMBER(VLOOKUP(A44,'03_OPROC_RAW'!$B:$C,2,FALSE))),0,VLOOKUP(A44,'03_OPROC_RAW'!$B:$C,2,FALSE)) -> 0 | C44: 2391 | D44: =SUMIFS('04.1_HES_POD_Split'!$D:$D,'04.1_HES_POD_Split'!$B:$B,'00b_1112 HES Spells'!$A44,'04.1_HES_POD_Split'!$C:$C,'00b_1112 HES Spells'!D$3) -> 859 | E44: =SUMIFS('04.1_HES_POD_Split'!$D:$D,'04.1_HES_POD_Split'!$B:$B,'00b_1112 HES Spells'!$A44,'04.1_HES_POD_Split'!$C:$C,'00b_1112 HES Spells'!E$3) -> 1532 | F44: =SUMIFS('04.1_HES_POD_Split'!$D:$D,'04.1_HES_POD_Split'!$B:$B,'00b_1112 HES Spells'!$A44,'04.1_HES_POD_Split'!$C:$C,'00b_1112 HES Spells'!F$3) -> 77012 | H44: DZ15FEMBP44 | I44: ='06_Flagged_Activity_RAW'!B51 -> DZ15F | J44: ='06_Flagged_Activity_RAW'!C51 -> BP44 | L44: ='06_Flagged_Activity_RAW'!D51 -> EM | M44: ='06_Flagged_Activity_RAW'!E51 -> 10244
A45: ='04_HES_Activity_RAW'!B52 -> AA22B | B45: =IF(NOT(ISNUMBER(VLOOKUP(A45,'03_OPROC_RAW'!$B:$C,2,FALSE))),0,VLOOKUP(A45,'03_OPROC_RAW'!$B:$C,2,FALSE)) -> 0 | C45: 829 | D45: =SUMIFS('04.1_HES_POD_Split'!$D:$D,'04.1_HES_POD_Split'!$B:$B,'00b_1112 HES Spells'!$A45,'04.1_HES_POD_Split'!$C:$C,'00b_1112 HES Spells'!D$3) -> 641 | E45: =SUMIFS('04.1_HES_POD_Split'!$D:$D,'04.1_HES_POD_Split'!$B:$B,'00b_1112 HES Spells'!$A45,'04.1_HES_POD_Split'!$C:$C,'00b_1112 HES Spells'!E$3) -> 188 | F45: =SUMIFS('04.1_HES_POD_Split'!$D:$D,'04.1_HES_POD_Split'!$B:$B,'00b_1112 HES Spells'!$A45,'04.1_HES_POD_Split'!$C:$C,'00b_1112 HES Spells'!F$3) -> 4378 | H45: DZ19AEMBP05 | I45: ='06_Flagged_Activity_RAW'!B52 -> DZ19A | J45: ='06_Flagged_Activity_RAW'!C52 -> BP05 | L45: ='06_Flagged_Activity_RAW'!D52 -> EM | M45: ='06_Flagged_Activity_RAW'!E52 -> 2
A46: ='04_HES_Activity_RAW'!B53 -> AA23A | B46: =IF(NOT(ISNUMBER(VLOOKUP(A46,'03_OPROC_RAW'!$B:$C,2,FALSE))),0,VLOOKUP(A46,'03_OPROC_RAW'!$B:$C,2,FALSE)) -> 0 | C46: 531 | D46: =SUMIFS('04.1_HES_POD_Split'!$D:$D,'04.1_HES_POD_Split'!$B:$B,'00b_1112 HES Spells'!$A46,'04.1_HES_POD_Split'!$C:$C,'00b_1112 HES Spells'!D$3) -> 53 | E46: =SUMIFS('04.1_HES_POD_Split'!$D:$D,'04.1_HES_POD_Split'!$B:$B,'00b_1112 HES Spells'!$A46,'04.1_HES_POD_Split'!$C:$C,'00b_1112 HES Spells'!E$3) -> 478 | F46: =SUMIFS('04.1_HES_POD_Split'!$D:$D,'04.1_HES_POD_Split'!$B:$B,'00b_1112 HES Spells'!$A46,'04.1_HES_POD_Split'!$C:$C,'00b_1112 HES Spells'!F$3) -> 16811 | H46: DZ19BEMBP61 | I46: ='06_Flagged_Activity_RAW'!B53 -> DZ19B | J46: ='06_Flagged_Activity_RAW'!C53 -> BP61 | L46: ='06_Flagged_Activity_RAW'!D53 -> EM | M46: ='06_Flagged_Activity_RAW'!E53 -> 1
A47: ='04_HES_Activity_RAW'!B54 -> AA23B | B47: =IF(NOT(ISNUMBER(VLOOKUP(A47,'03_OPROC_RAW'!$B:$C,2,FALSE))),0,VLOOKUP(A47,'03_OPROC_RAW'!$B:$C,2,FALSE)) -> 0 | C47: 70 | D47: =SUMIFS('04.1_HES_POD_Split'!$D:$D,'04.1_HES_POD_Split'!$B:$B,'00b_1112 HES Spells'!$A47,'04.1_HES_POD_Split'!$C:$C,'00b_1112 HES Spells'!D$3) -> 17 | E47: =SUMIFS('04.1_HES_POD_Split'!$D:$D,'04.1_HES_POD_Split'!$B:$B,'00b_1112 HES Spells'!$A47,'04.1_HES_POD_Split'!$C:$C,'00b_1112 HES Spells'!E$3) -> 53 | F47: =SUMIFS('04.1_HES_POD_Split'!$D:$D,'04.1_HES_POD_Split'!$B:$B,'00b_1112 HES Spells'!$A47,'04.1_HES_POD_Split'!$C:$C,'00b_1112 HES Spells'!F$3) -> 1470 | H47: DZ19CEMBP45 | I47: ='06_Flagged_Activity_RAW'!B54 -> DZ19C | J47: ='06_Flagged_Activity_RAW'!C54 -> BP45 | L47: ='06_Flagged_Activity_RAW'!D54 -> EM | M47: ='06_Flagged_Activity_RAW'!E54 -> 1
A48: ='04_HES_Activity_RAW'!B55 -> AA24A | B48: =IF(NOT(ISNUMBER(VLOOKUP(A48,'03_OPROC_RAW'!$B:$C,2,FALSE))),0,VLOOKUP(A48,'03_OPROC_RAW'!$B:$C,2,FALSE)) -> 0 | C48: 2255 | D48: =SUMIFS('04.1_HES_POD_Split'!$D:$D,'04.1_HES_POD_Split'!$B:$B,'00b_1112 HES Spells'!$A48,'04.1_HES_POD_Split'!$C:$C,'00b_1112 HES Spells'!D$3) -> 1471 | E48: =SUMIFS('04.1_HES_POD_Split'!$D:$D,'04.1_HES_POD_Split'!$B:$B,'00b_1112 HES Spells'!$A48,'04.1_HES_POD_Split'!$C:$C,'00b_1112 HES Spells'!E$3) -> 784 | F48: =SUMIFS('04.1_HES_POD_Split'!$D:$D,'04.1_HES_POD_Split'!$B:$B,'00b_1112 HES Spells'!$A48,'04.1_HES_POD_Split'!$C:$C,'00b_1112 HES Spells'!F$3) -> 9574 | G48: =IF(COUNTIF('Linked Sheet'!A:A,'00b_1112 HES Spells'!A48)>0,1,0) -> 0 | H48: DZ22AEMBP05 | I48: ='06_Flagged_Activity_RAW'!B55 -> DZ22A | J48: ='06_Flagged_Activity_RAW'!C55 -> BP05 | L48: ='06_Flagged_Activity_RAW'!D55 -> EM | M48: ='06_Flagged_Activity_RAW'!E55 -> 1
A49: ='04_HES_Activity_RAW'!B56 -> AA24B | B49: =IF(NOT(ISNUMBER(VLOOKUP(A49,'03_OPROC_RAW'!$B:$C,2,FALSE))),0,VLOOKUP(A49,'03_OPROC_RAW'!$B:$C,2,FALSE)) -> 0 | C49: 1636 | D49: =SUMIFS('04.1_HES_POD_Split'!$D:$D,'04.1_HES_POD_Split'!$B:$B,'00b_1112 HES Spells'!$A49,'04.1_HES_POD_Split'!$C:$C,'00b_1112 HES Spells'!D$3) -> 1426 | E49: =SUMIFS('04.1_HES_POD_Split'!$D:$D,'04.1_HES_POD_Split'!$B:$B,'00b_1112 HES Spells'!$A49,'04.1_HES_POD_Split'!$C:$C,'00b_1112 HES Spells'!E$3) -> 210 | F49: =SUMIFS('04.1_HES_POD_Split'!$D:$D,'04.1_HES_POD_Split'!$B:$B,'00b_1112 HES Spells'!$A49,'04.1_HES_POD_Split'!$C:$C,'00b_1112 HES Spells'!F$3) -> 995 | G49: =IF(COUNTIF('Linked Sheet'!A:A,'00b_1112 HES Spells'!A49)>0,1,0) -> 0 | H49: DZ22CEMBP45 | I49: ='06_Flagged_Activity_RAW'!B56 -> DZ22C | J49: ='06_Flagged_Activity_RAW'!C56 -> BP45 | L49: ='06_Flagged_Activity_RAW'!D56 -> EM | M49: ='06_Flagged_Activity_RAW'!E56 -> 8780
A50: ='04_HES_Activity_RAW'!B57 -> AA25A | B50: =IF(NOT(ISNUMBER(VLOOKUP(A50,'03_OPROC_RAW'!$B:$C,2,FALSE))),0,VLOOKUP(A50,'03_OPROC_RAW'!$B:$C,2,FALSE)) -> 0 | C50: 5488 | D50: =SUMIFS('04.1_HES_POD_Split'!$D:$D,'04.1_HES_POD_Split'!$B:$B,'00b_1112 HES Spells'!$A50,'04.1_HES_POD_Split'!$C:$C,'00b_1112 HES Spells'!D$3) -> 2697 | E50: =SUMIFS('04.1_HES_POD_Split'!$D:$D,'04.1_HES_POD_Split'!$B:$B,'00b_1112 HES Spells'!$A50,'04.1_HES_POD_Split'!$C:$C,'00b_1112 HES Spells'!E$3) -> 2791 | F50: =SUMIFS('04.1_HES_POD_Split'!$D:$D,'04.1_HES_POD_Split'!$B:$B,'00b_1112 HES Spells'!$A50,'04.1_HES_POD_Split'!$C:$C,'00b_1112 HES Spells'!F$3) -> 28435 | G50: =IF(COUNTIF('Linked Sheet'!A:A,'00b_1112 HES Spells'!A50)>0,1,0) -> 0 | H50: DZ37AEMBP05 | I50: ='06_Flagged_Activity_RAW'!B57 -> DZ37A | J50: ='06_Flagged_Activity_RAW'!C57 -> BP05 | L50: ='06_Flagged_Activity_RAW'!D57 -> EM | M50: ='06_Flagged_Activity_RAW'!E57 -> 1
A51: ='04_HES_Activity_RAW'!B58 -> AA25B | B51: =IF(NOT(ISNUMBER(VLOOKUP(A51,'03_OPROC_RAW'!$B:$C,2,FALSE))),0,VLOOKUP(A51,'03_OPROC_RAW'!$B:$C,2,FALSE)) -> 0 | C51: 4647 | D51: =SUMIFS('04.1_HES_POD_Split'!$D:$D,'04.1_HES_POD_Split'!$B:$B,'00b_1112 HES Spells'!$A51,'04.1_HES_POD_Split'!$C:$C,'00b_1112 HES Spells'!D$3) -> 3941 | E51: =SUMIFS('04.1_HES_POD_Split'!$D:$D,'04.1_HES_POD_Split'!$B:$B,'00b_1112 HES Spells'!$A51,'04.1_HES_POD_Split'!$C:$C,'00b_1112 HES Spells'!E$3) -> 706 | F51: =SUMIFS('04.1_HES_POD_Split'!$D:$D,'04.1_HES_POD_Split'!$B:$B,'00b_1112 HES Spells'!$A51,'04.1_HES_POD_Split'!$C:$C,'00b_1112 HES Spells'!F$3) -> 2774 | G51: =IF(COUNTIF('Linked Sheet'!A:A,'00b_1112 HES Spells'!A51)>0,1,0) -> 0 | H51: DZ37AEMBP44 | I51: ='06_Flagged_Activity_RAW'!B58 -> DZ37A | J51: ='06_Flagged_Activity_RAW'!C58 -> BP44 | L51: ='06_Flagged_Activity_RAW'!D58 -> EM | M51: ='06_Flagged_Activity_RAW'!E58 -> 1
A52: ='04_HES_Activity_RAW'!B59 -> AA26A | B52: =IF(NOT(ISNUMBER(VLOOKUP(A52,'03_OPROC_RAW'!$B:$C,2,FALSE))),0,VLOOKUP(A52,'03_OPROC_RAW'!$B:$C,2,FALSE)) -> 0 | C52: 11595 | D52: =SUMIFS('04.1_HES_POD_Split'!$D:$D,'04.1_HES_POD_Split'!$B:$B,'00b_1112 HES Spells'!$A52,'04.1_HES_POD_Split'!$C:$C,'00b_1112 HES Spells'!D$3) -> 8406 | E52: =SUMIFS('04.1_HES_POD_Split'!$D:$D,'04.1_HES_POD_Split'!$B:$B,'00b_1112 HES Spells'!$A52,'04.1_HES_POD_Split'!$C:$C,'00b_1112 HES Spells'!E$3) -> 3189 | F52: =SUMIFS('04.1_HES_POD_Split'!$D:$D,'04.1_HES_POD_Split'!$B:$B,'00b_1112 HES Spells'!$A52,'04.1_HES_POD_Split'!$C:$C,'00b_1112 HES Spells'!F$3) -> 88747 | H52: EA36AELBP28 | I52: ='06_Flagged_Activity_RAW'!B59 -> EA36A | J52: ='06_Flagged_Activity_RAW'!C59 -> BP28 | L52: ='06_Flagged_Activity_RAW'!D59 -> EL | M52: ='06_Flagged_Activity_RAW'!E59 -> 1
A53: ='04_HES_Activity_RAW'!B60 -> AA26B | B53: =IF(NOT(ISNUMBER(VLOOKUP(A53,'03_OPROC_RAW'!$B:$C,2,FALSE))),0,VLOOKUP(A53,'03_OPROC_RAW'!$B:$C,2,FALSE)) -> 0 | C53: 11503 | D53: =SUMIFS('04.1_HES_POD_Split'!$D:$D,'04.1_HES_POD_Split'!$B:$B,'00b_1112 HES Spells'!$A53,'04.1_HES_POD_Split'!$C:$C,'00b_1112 HES Spells'!D$3) -> 10203 | E53: =SUMIFS('04.1_HES_POD_Split'!$D:$D,'04.1_HES_POD_Split'!$B:$B,'00b_1112 HES Spells'!$A53,'04.1_HES_POD_Split'!$C:$C,'00b_1112 HES Spells'!E$3) -> 1300 | F53: =SUMIFS('04.1_HES_POD_Split'!$D:$D,'04.1_HES_POD_Split'!$B:$B,'00b_1112 HES Spells'!$A53,'04.1_HES_POD_Split'!$C:$C,'00b_1112 HES Spells'!F$3) -> 15639 | H53: EB01ZEMBP05 | I53: ='06_Flagged_Activity_RAW'!B60 -> EB01Z | J53: ='06_Flagged_Activity_RAW'!C60 -> BP05 | L53: ='06_Flagged_Activity_RAW'!D60 -> EM | M53: ='06_Flagged_Activity_RAW'!E60 -> 1
A54: ='04_HES_Activity_RAW'!B61 -> AA27A | B54: =IF(NOT(ISNUMBER(VLOOKUP(A54,'03_OPROC_RAW'!$B:$C,2,FALSE))),0,VLOOKUP(A54,'03_OPROC_RAW'!$B:$C,2,FALSE)) -> 0 | C54: 37 | D54: =SUMIFS('04.1_HES_POD_Split'!$D:$D,'04.1_HES_POD_Split'!$B:$B,'00b_1112 HES Spells'!$A54,'04.1_HES_POD_Split'!$C:$C,'00b_1112 HES Spells'!D$3) -> 10 | E54: =SUMIFS('04.1_HES_POD_Split'!$D:$D,'04.1_HES_POD_Split'!$B:$B,'00b_1112 HES Spells'!$A54,'04.1_HES_POD_Split'!$C:$C,'00b_1112 HES Spells'!E$3) -> 27 | F54: =SUMIFS('04.1_HES_POD_Split'!$D:$D,'04.1_HES_POD_Split'!$B:$B,'00b_1112 HES Spells'!$A54,'04.1_HES_POD_Split'!$C:$C,'00b_1112 HES Spells'!F$3) -> 2473 | G54: =IF(COUNTIF('Linked Sheet'!A:A,'00b_1112 HES Spells'!A54)>0,1,0) -> 0 | H54: EB01ZEMBP40 | I54: ='06_Flagged_Activity_RAW'!B61 -> EB01Z | J54: ='06_Flagged_Activity_RAW'!C61 -> BP40 | L54: ='06_Flagged_Activity_RAW'!D61 -> EM | M54: ='06_Flagged_Activity_RAW'!E61 -> 243180
A55: ='04_HES_Activity_RAW'!B62 -> AA27B | B55: =IF(NOT(ISNUMBER(VLOOKUP(A55,'03_OPROC_RAW'!$B:$C,2,FALSE))),0,VLOOKUP(A55,'03_OPROC_RAW'!$B:$C,2,FALSE)) -> 0 | C55: 30 | D55: =SUMIFS('04.1_HES_POD_Split'!$D:$D,'04.1_HES_POD_Split'!$B:$B,'00b_1112 HES Spells'!$A55,'04.1_HES_POD_Split'!$C:$C,'00b_1112 HES Spells'!D$3) -> 27 | E55: =SUMIFS('04.1_HES_POD_Split'!$D:$D,'04.1_HES_POD_Split'!$B:$B,'00b_1112 HES Spells'!$A55,'04.1_HES_POD_Split'!$C:$C,'00b_1112 HES Spells'!E$3) -> 3 | F55: =SUMIFS('04.1_HES_POD_Split'!$D:$D,'04.1_HES_POD_Split'!$B:$B,'00b_1112 HES Spells'!$A55,'04.1_HES_POD_Split'!$C:$C,'00b_1112 HES Spells'!F$3) -> 84 | G55: =IF(COUNTIF('Linked Sheet'!A:A,'00b_1112 HES Spells'!A55)>0,1,0) -> 0 | H55: EB01ZEMBP46 | I55: ='06_Flagged_Activity_RAW'!B62 -> EB01Z | J55: ='06_Flagged_Activity_RAW'!C62 -> BP46 | L55: ='06_Flagged_Activity_RAW'!D62 -> EM | M55: ='06_Flagged_Activity_RAW'!E62 -> 1
A56: ='04_HES_Activity_RAW'!B63 -> AA28A | B56: =IF(NOT(ISNUMBER(VLOOKUP(A56,'03_OPROC_RAW'!$B:$C,2,FALSE))),0,VLOOKUP(A56,'03_OPROC_RAW'!$B:$C,2,FALSE)) -> 0 | C56: 754 | D56: =SUMIFS('04.1_HES_POD_Split'!$D:$D,'04.1_HES_POD_Split'!$B:$B,'00b_1112 HES Spells'!$A56,'04.1_HES_POD_Split'!$C:$C,'00b_1112 HES Spells'!D$3) -> 177 | E56: =SUMIFS('04.1_HES_POD_Split'!$D:$D,'04.1_HES_POD_Split'!$B:$B,'00b_1112 HES Spells'!$A56,'04.1_HES_POD_Split'!$C:$C,'00b_1112 HES Spells'!E$3) -> 577 | F56: =SUMIFS('04.1_HES_POD_Split'!$D:$D,'04.1_HES_POD_Split'!$B:$B,'00b_1112 HES Spells'!$A56,'04.1_HES_POD_Split'!$C:$C,'00b_1112 HES Spells'!F$3) -> 914 | G56: =IF(COUNTIF('Linked Sheet'!A:A,'00b_1112 HES Spells'!A56)>0,1,0) -> 0 | H56: EB01ZEMBP48 | I56: ='06_Flagged_Activity_RAW'!B63 -> EB01Z | J56: ='06_Flagged_Activity_RAW'!C63 -> BP48 | L56: ='06_Flagged_Activity_RAW'!D63 -> EM | M56: ='06_Flagged_Activity_RAW'!E63 -> 2
A57: ='04_HES_Activity_RAW'!B64 -> AA28B | B57: =IF(NOT(ISNUMBER(VLOOKUP(A57,'03_OPROC_RAW'!$B:$C,2,FALSE))),0,VLOOKUP(A57,'03_OPROC_RAW'!$B:$C,2,FALSE)) -> 0 | C57: 323 | D57: =SUMIFS('04.1_HES_POD_Split'!$D:$D,'04.1_HES_POD_Split'!$B:$B,'00b_1112 HES Spells'!$A57,'04.1_HES_POD_Split'!$C:$C,'00b_1112 HES Spells'!D$3) -> 114 | E57: =SUMIFS('04.1_HES_POD_Split'!$D:$D,'04.1_HES_POD_Split'!$B:$B,'00b_1112 HES Spells'!$A57,'04.1_HES_POD_Split'!$C:$C,'00b_1112 HES Spells'!E$3) -> 209 | F57: =SUMIFS('04.1_HES_POD_Split'!$D:$D,'04.1_HES_POD_Split'!$B:$B,'00b_1112 HES Spells'!$A57,'04.1_HES_POD_Split'!$C:$C,'00b_1112 HES Spells'!F$3) -> 90 | G57: =IF(COUNTIF('Linked Sheet'!A:A,'00b_1112 HES Spells'!A57)>0,1,0) -> 0 | H57: EB01ZEMBP59 | I57: ='06_Flagged_Activity_RAW'!B64 -> EB01Z | J57: ='06_Flagged_Activity_RAW'!C64 -> BP59 | L57: ='06_Flagged_Activity_RAW'!D64 -> EM | M57: ='06_Flagged_Activity_RAW'!E64 -> 1
A58: ='04_HES_Activity_RAW'!B65 -> AA29A | B58: =IF(NOT(ISNUMBER(VLOOKUP(A58,'03_OPROC_RAW'!$B:$C,2,FALSE))),0,VLOOKUP(A58,'03_OPROC_RAW'!$B:$C,2,FALSE)) -> 0 | C58: 647 | D58: =SUMIFS('04.1_HES_POD_Split'!$D:$D,'04.1_HES_POD_Split'!$B:$B,'00b_1112 HES Spells'!$A58,'04.1_HES_POD_Split'!$C:$C,'00b_1112 HES Spells'!D$3) -> 525 | E58: =SUMIFS('04.1_HES_POD_Split'!$D:$D,'04.1_HES_POD_Split'!$B:$B,'00b_1112 HES Spells'!$A58,'04.1_HES_POD_Split'!$C:$C,'00b_1112 HES Spells'!E$3) -> 122 | F58: =SUMIFS('04.1_HES_POD_Split'!$D:$D,'04.1_HES_POD_Split'!$B:$B,'00b_1112 HES Spells'!$A58,'04.1_HES_POD_Split'!$C:$C,'00b_1112 HES Spells'!F$3) -> 20953 | G58: =IF(COUNTIF('Linked Sheet'!A:A,'00b_1112 HES Spells'!A58)>0,1,0) -> 0 | H58: EB06ZEMBP59 | I58: ='06_Flagged_Activity_RAW'!B65 -> EB06Z | J58: ='06_Flagged_Activity_RAW'!C65 -> BP59 | L58: ='06_Flagged_Activity_RAW'!D65 -> EM | M58: ='06_Flagged_Activity_RAW'!E65 -> 1
A59: ='04_HES_Activity_RAW'!B66 -> AA29B | B59: =IF(NOT(ISNUMBER(VLOOKUP(A59,'03_OPROC_RAW'!$B:$C,2,FALSE))),0,VLOOKUP(A59,'03_OPROC_RAW'!$B:$C,2,FALSE)) -> 0 | C59: 61 | D59: =SUMIFS('04.1_HES_POD_Split'!$D:$D,'04.1_HES_POD_Split'!$B:$B,'00b_1112 HES Spells'!$A59,'04.1_HES_POD_Split'!$C:$C,'00b_1112 HES Spells'!D$3) -> 54 | E59: =SUMIFS('04.1_HES_POD_Split'!$D:$D,'04.1_HES_POD_Split'!$B:$B,'00b_1112 HES Spells'!$A59,'04.1_HES_POD_Split'!$C:$C,'00b_1112 HES Spells'!E$3) -> 7 | F59: =SUMIFS('04.1_HES_POD_Split'!$D:$D,'04.1_HES_POD_Split'!$B:$B,'00b_1112 HES Spells'!$A59,'04.1_HES_POD_Split'!$C:$C,'00b_1112 HES Spells'!F$3) -> 1701 | G59: =IF(COUNTIF('Linked Sheet'!A:A,'00b_1112 HES Spells'!A59)>0,1,0) -> 0 | H59: EB07HEMBP35 | I59: ='06_Flagged_Activity_RAW'!B66 -> EB07H | J59: ='06_Flagged_Activity_RAW'!C66 -> BP35 | L59: ='06_Flagged_Activity_RAW'!D66 -> EM | M59: ='06_Flagged_Activity_RAW'!E66 -> 1
A60: ='04_HES_Activity_RAW'!B67 -> AA30A | B60: =IF(NOT(ISNUMBER(VLOOKUP(A60,'03_OPROC_RAW'!$B:$C,2,FALSE))),0,VLOOKUP(A60,'03_OPROC_RAW'!$B:$C,2,FALSE)) -> 0 | C60: 5051 | D60: =SUMIFS('04.1_HES_POD_Split'!$D:$D,'04.1_HES_POD_Split'!$B:$B,'00b_1112 HES Spells'!$A60,'04.1_HES_POD_Split'!$C:$C,'00b_1112 HES Spells'!D$3) -> 3985 | E60: =SUMIFS('04.1_HES_POD_Split'!$D:$D,'04.1_HES_POD_Split'!$B:$B,'00b_1112 HES Spells'!$A60,'04.1_HES_POD_Split'!$C:$C,'00b_1112 HES Spells'!E$3) -> 1066 | F60: =SUMIFS('04.1_HES_POD_Split'!$D:$D,'04.1_HES_POD_Split'!$B:$B,'00b_1112 HES Spells'!$A60,'04.1_HES_POD_Split'!$C:$C,'00b_1112 HES Spells'!F$3) -> 2609 | G60: =IF(COUNTIF('Linked Sheet'!A:A,'00b_1112 HES Spells'!A60)>0,1,0) -> 0 | H60: EB07HEMBP59 | I60: ='06_Flagged_Activity_RAW'!B67 -> EB07H | J60: ='06_Flagged_Activity_RAW'!C67 -> BP59 | L60: ='06_Flagged_Activity_RAW'!D67 -> EM | M60: ='06_Flagged_Activity_RAW'!E67 -> 25446
A61: ='04_HES_Activity_RAW'!B68 -> AA30B | B61: =IF(NOT(ISNUMBER(VLOOKUP(A61,'03_OPROC_RAW'!$B:$C,2,FALSE))),0,VLOOKUP(A61,'03_OPROC_RAW'!$B:$C,2,FALSE)) -> 0 | C61: 23807 | D61: =SUMIFS('04.1_HES_POD_Split'!$D:$D,'04.1_HES_POD_Split'!$B:$B,'00b_1112 HES Spells'!$A61,'04.1_HES_POD_Split'!$C:$C,'00b_1112 HES Spells'!D$3) -> 22990 | E61: =SUMIFS('04.1_HES_POD_Split'!$D:$D,'04.1_HES_POD_Split'!$B:$B,'00b_1112 HES Spells'!$A61,'04.1_HES_POD_Split'!$C:$C,'00b_1112 HES Spells'!E$3) -> 817 | F61: =SUMIFS('04.1_HES_POD_Split'!$D:$D,'04.1_HES_POD_Split'!$B:$B,'00b_1112 HES Spells'!$A61,'04.1_HES_POD_Split'!$C:$C,'00b_1112 HES Spells'!F$3) -> 1040 | G61: =IF(COUNTIF('Linked Sheet'!A:A,'00b_1112 HES Spells'!A61)>0,1,0) -> 0 | H61: EB07IEMBP05 | I61: ='06_Flagged_Activity_RAW'!B68 -> EB07I | J61: ='06_Flagged_Activity_RAW'!C68 -> BP05 | L61: ='06_Flagged_Activity_RAW'!D68 -> EM | M61: ='06_Flagged_Activity_RAW'!E68 -> 1
A62: ='04_HES_Activity_RAW'!B69 -> AA31A | B62: =IF(NOT(ISNUMBER(VLOOKUP(A62,'03_OPROC_RAW'!$B:$C,2,FALSE))),0,VLOOKUP(A62,'03_OPROC_RAW'!$B:$C,2,FALSE)) -> 0 | C62: 1263 | D62: =SUMIFS('04.1_HES_POD_Split'!$D:$D,'04.1_HES_POD_Split'!$B:$B,'00b_1112 HES Spells'!$A62,'04.1_HES_POD_Split'!$C:$C,'00b_1112 HES Spells'!D$3) -> 774 | E62: =SUMIFS('04.1_HES_POD_Split'!$D:$D,'04.1_HES_POD_Split'!$B:$B,'00b_1112 HES Spells'!$A62,'04.1_HES_POD_Split'!$C:$C,'00b_1112 HES Spells'!E$3) -> 489 | F62: =SUMIFS('04.1_HES_POD_Split'!$D:$D,'04.1_HES_POD_Split'!$B:$B,'00b_1112 HES Spells'!$A62,'04.1_HES_POD_Split'!$C:$C,'00b_1112 HES Spells'!F$3) -> 42796 | H62: EB07IEMBP59 | I62: ='06_Flagged_Activity_RAW'!B69 -> EB07I | J62: ='06_Flagged_Activity_RAW'!C69 -> BP59 | L62: ='06_Flagged_Activity_RAW'!D69 -> EM | M62: ='06_Flagged_Activity_RAW'!E69 -> 63303
A63: ='04_HES_Activity_RAW'!B70 -> AA31B | B63: =IF(NOT(ISNUMBER(VLOOKUP(A63,'03_OPROC_RAW'!$B:$C,2,FALSE))),0,VLOOKUP(A63,'03_OPROC_RAW'!$B:$C,2,FALSE)) -> 0 | C63: 1093 | D63: =SUMIFS('04.1_HES_POD_Split'!$D:$D,'04.1_HES_POD_Split'!$B:$B,'00b_1112 HES Spells'!$A63,'04.1_HES_POD_Split'!$C:$C,'00b_1112 HES Spells'!D$3) -> 858 | E63: =SUMIFS('04.1_HES_POD_Split'!$D:$D,'04.1_HES_POD_Split'!$B:$B,'00b_1112 HES Spells'!$A63,'04.1_HES_POD_Split'!$C:$C,'00b_1112 HES Spells'!E$3) -> 235 | F63: =SUMIFS('04.1_HES_POD_Split'!$D:$D,'04.1_HES_POD_Split'!$B:$B,'00b_1112 HES Spells'!$A63,'04.1_HES_POD_Split'!$C:$C,'00b_1112 HES Spells'!F$3) -> 14634 | H63: EB08HEMBP05 | I63: ='06_Flagged_Activity_RAW'!B70 -> EB08H | J63: ='06_Flagged_Activity_RAW'!C70 -> BP05 | L63: ='06_Flagged_Activity_RAW'!D70 -> EM | M63: ='06_Flagged_Activity_RAW'!E70 -> 1
A64: ='04_HES_Activity_RAW'!B71 -> AA32Z | B64: =IF(NOT(ISNUMBER(VLOOKUP(A64,'03_OPROC_RAW'!$B:$C,2,FALSE))),0,VLOOKUP(A64,'03_OPROC_RAW'!$B:$C,2,FALSE)) -> 0 | C64: 344 | D64: =SUMIFS('04.1_HES_POD_Split'!$D:$D,'04.1_HES_POD_Split'!$B:$B,'00b_1112 HES Spells'!$A64,'04.1_HES_POD_Split'!$C:$C,'00b_1112 HES Spells'!D$3) -> 330 | E64: =SUMIFS('04.1_HES_POD_Split'!$D:$D,'04.1_HES_POD_Split'!$B:$B,'00b_1112 HES Spells'!$A64,'04.1_HES_POD_Split'!$C:$C,'00b_1112 HES Spells'!E$3) -> 14 | F64: =SUMIFS('04.1_HES_POD_Split'!$D:$D,'04.1_HES_POD_Split'!$B:$B,'00b_1112 HES Spells'!$A64,'04.1_HES_POD_Split'!$C:$C,'00b_1112 HES Spells'!F$3) -> 4 | G64: =IF(COUNTIF('Linked Sheet'!A:A,'00b_1112 HES Spells'!A64)>0,1,0) -> 0 | H64: EB08HEMBP52 | I64: ='06_Flagged_Activity_RAW'!B71 -> EB08H | J64: ='06_Flagged_Activity_RAW'!C71 -> BP52 | L64: ='06_Flagged_Activity_RAW'!D71 -> EM | M64: ='06_Flagged_Activity_RAW'!E71 -> 1
A65: ='04_HES_Activity_RAW'!B72 -> AA33C | B65: =IF(NOT(ISNUMBER(VLOOKUP(A65,'03_OPROC_RAW'!$B:$C,2,FALSE))),0,VLOOKUP(A65,'03_OPROC_RAW'!$B:$C,2,FALSE)) -> 30120 | C65: 1788 | D65: =SUMIFS('04.1_HES_POD_Split'!$D:$D,'04.1_HES_POD_Split'!$B:$B,'00b_1112 HES Spells'!$A65,'04.1_HES_POD_Split'!$C:$C,'00b_1112 HES Spells'!D$3) -> 1364 | E65: =SUMIFS('04.1_HES_POD_Split'!$D:$D,'04.1_HES_POD_Split'!$B:$B,'00b_1112 HES Spells'!$A65,'04.1_HES_POD_Split'!$C:$C,'00b_1112 HES Spells'!E$3) -> 424 | F65: =SUMIFS('04.1_HES_POD_Split'!$D:$D,'04.1_HES_POD_Split'!$B:$B,'00b_1112 HES Spells'!$A65,'04.1_HES_POD_Split'!$C:$C,'00b_1112 HES Spells'!F$3) -> 370 | G65: =IF(COUNTIF('Linked Sheet'!A:A,'00b_1112 HES Spells'!A65)>0,1,0) -> 0 | H65: EB08IEMBP41 | I65: ='06_Flagged_Activity_RAW'!B72 -> EB08I | J65: ='06_Flagged_Activity_RAW'!C72 -> BP41 | L65: ='06_Flagged_Activity_RAW'!D72 -> EM | M65: ='06_Flagged_Activity_RAW'!E72 -> 48275
A66: ='04_HES_Activity_RAW'!B73 -> AA33D | B66: =IF(NOT(ISNUMBER(VLOOKUP(A66,'03_OPROC_RAW'!$B:$C,2,FALSE))),0,VLOOKUP(A66,'03_OPROC_RAW'!$B:$C,2,FALSE)) -> 0 | C66: 1070 | D66: =SUMIFS('04.1_HES_POD_Split'!$D:$D,'04.1_HES_POD_Split'!$B:$B,'00b_1112 HES Spells'!$A66,'04.1_HES_POD_Split'!$C:$C,'00b_1112 HES Spells'!D$3) -> 874 | E66: =SUMIFS('04.1_HES_POD_Split'!$D:$D,'04.1_HES_POD_Split'!$B:$B,'00b_1112 HES Spells'!$A66,'04.1_HES_POD_Split'!$C:$C,'00b_1112 HES Spells'!E$3) -> 196 | F66: =SUMIFS('04.1_HES_POD_Split'!$D:$D,'04.1_HES_POD_Split'!$B:$B,'00b_1112 HES Spells'!$A66,'04.1_HES_POD_Split'!$C:$C,'00b_1112 HES Spells'!F$3) -> 467 | G66: =IF(COUNTIF('Linked Sheet'!A:A,'00b_1112 HES Spells'!A66)>0,1,0) -> 0 | H66: EB08IEMBP59 | I66: ='06_Flagged_Activity_RAW'!B73 -> EB08I | J66: ='06_Flagged_Activity_RAW'!C73 -> BP59 | L66: ='06_Flagged_Activity_RAW'!D73 -> EM | M66: ='06_Flagged_Activity_RAW'!E73 -> 1
A67: ='04_HES_Activity_RAW'!B74 -> AA34C | B67: =IF(NOT(ISNUMBER(VLOOKUP(A67,'03_OPROC_RAW'!$B:$C,2,FALSE))),0,VLOOKUP(A67,'03_OPROC_RAW'!$B:$C,2,FALSE)) -> 0 | C67: 8048 | D67: =SUMIFS('04.1_HES_POD_Split'!$D:$D,'04.1_HES_POD_Split'!$B:$B,'00b_1112 HES Spells'!$A67,'04.1_HES_POD_Split'!$C:$C,'00b_1112 HES Spells'!D$3) -> 1944 | E67: =SUMIFS('04.1_HES_POD_Split'!$D:$D,'04.1_HES_POD_Split'!$B:$B,'00b_1112 HES Spells'!$A67,'04.1_HES_POD_Split'!$C:$C,'00b_1112 HES Spells'!E$3) -> 6104 | F67: =SUMIFS('04.1_HES_POD_Split'!$D:$D,'04.1_HES_POD_Split'!$B:$B,'00b_1112 HES Spells'!$A67,'04.1_HES_POD_Split'!$C:$C,'00b_1112 HES Spells'!F$3) -> 673 | G67: =IF(COUNTIF('Linked Sheet'!A:A,'00b_1112 HES Spells'!A67)>0,1,0) -> 0 | H67: EB10ZEMBP05 | I67: ='06_Flagged_Activity_RAW'!B74 -> EB10Z | J67: ='06_Flagged_Activity_RAW'!C74 -> BP05 | L67: ='06_Flagged_Activity_RAW'!D74 -> EM | M67: ='06_Flagged_Activity_RAW'!E74 -> 3
A68: ='04_HES_Activity_RAW'!B75 -> AA34D | B68: =IF(NOT(ISNUMBER(VLOOKUP(A68,'03_OPROC_RAW'!$B:$C,2,FALSE))),0,VLOOKUP(A68,'03_OPROC_RAW'!$B:$C,2,FALSE)) -> 0 | C68: 3041 | D68: =SUMIFS('04.1_HES_POD_Split'!$D:$D,'04.1_HES_POD_Split'!$B:$B,'00b_1112 HES Spells'!$A68,'04.1_HES_POD_Split'!$C:$C,'00b_1112 HES Spells'!D$3) -> 298 | E68: =SUMIFS('04.1_HES_POD_Split'!$D:$D,'04.1_HES_POD_Split'!$B:$B,'00b_1112 HES Spells'!$A68,'04.1_HES_POD_Split'!$C:$C,'00b_1112 HES Spells'!E$3) -> 2743 | F68: =SUMIFS('04.1_HES_POD_Split'!$D:$D,'04.1_HES_POD_Split'!$B:$B,'00b_1112 HES Spells'!$A68,'04.1_HES_POD_Split'!$C:$C,'00b_1112 HES Spells'!F$3) -> 505 | G68: =IF(COUNTIF('Linked Sheet'!A:A,'00b_1112 HES Spells'!A68)>0,1,0) -> 0 | H68: =I68&L68&K68&J68 -> FZ13CEMBP61 | I68: ='06_Flagged_Activity_RAW'!B75 -> FZ13C | J68: ='06_Flagged_Activity_RAW'!C75 -> BP61 | L68: ='06_Flagged_Activity_RAW'!D75 -> EM | M68: ='06_Flagged_Activity_RAW'!E75 -> 2
A69: ='04_HES_Activity_RAW'!B76 -> AB02Z | B69: =IF(NOT(ISNUMBER(VLOOKUP(A69,'03_OPROC_RAW'!$B:$C,2,FALSE))),0,VLOOKUP(A69,'03_OPROC_RAW'!$B:$C,2,FALSE)) -> 0 | C69: =D69+E69 -> 831 | D69: =SUMIFS('04.1_HES_POD_Split'!$D:$D,'04.1_HES_POD_Split'!$B:$B,'00b_1112 HES Spells'!$A69,'04.1_HES_POD_Split'!$C:$C,'00b_1112 HES Spells'!D$3) -> 820 | E69: =SUMIFS('04.1_HES_POD_Split'!$D:$D,'04.1_HES_POD_Split'!$B:$B,'00b_1112 HES Spells'!$A69,'04.1_HES_POD_Split'!$C:$C,'00b_1112 HES Spells'!E$3) -> 11 | F69: =SUMIFS('04.1_HES_POD_Split'!$D:$D,'04.1_HES_POD_Split'!$B:$B,'00b_1112 HES Spells'!$A69,'04.1_HES_POD_Split'!$C:$C,'00b_1112 HES Spells'!F$3) -> 2 | G69: =IF(COUNTIF('Linked Sheet'!A:A,'00b_1112 HES Spells'!A69)>0,1,0) -> 0 | H69: FZ31EEMBP05 | I69: ='06_Flagged_Activity_RAW'!B76 -> FZ31E | J69: ='06_Flagged_Activity_RAW'!C76 -> BP05 | L69: ='06_Flagged_Activity_RAW'!D76 -> EM | M69: ='06_Flagged_Activity_RAW'!E76 -> 1
A70: ='04_HES_Activity_RAW'!B77 -> AB03Z | B70: =IF(NOT(ISNUMBER(VLOOKUP(A70,'03_OPROC_RAW'!$B:$C,2,FALSE))),0,VLOOKUP(A70,'03_OPROC_RAW'!$B:$C,2,FALSE)) -> 0 | C70: 14981 | D70: =SUMIFS('04.1_HES_POD_Split'!$D:$D,'04.1_HES_POD_Split'!$B:$B,'00b_1112 HES Spells'!$A70,'04.1_HES_POD_Split'!$C:$C,'00b_1112 HES Spells'!D$3) -> 14583 | E70: =SUMIFS('04.1_HES_POD_Split'!$D:$D,'04.1_HES_POD_Split'!$B:$B,'00b_1112 HES Spells'!$A70,'04.1_HES_POD_Split'!$C:$C,'00b_1112 HES Spells'!E$3) -> 398 | F70: =SUMIFS('04.1_HES_POD_Split'!$D:$D,'04.1_HES_POD_Split'!$B:$B,'00b_1112 HES Spells'!$A70,'04.1_HES_POD_Split'!$C:$C,'00b_1112 HES Spells'!F$3) -> 114 | G70: =IF(COUNTIF('Linked Sheet'!A:A,'00b_1112 HES Spells'!A70)>0,1,0) -> 0 | H70: FZ37FEMBP42 | I70: ='06_Flagged_Activity_RAW'!B77 -> FZ37F | J70: ='06_Flagged_Activity_RAW'!C77 -> BP42 | L70: ='06_Flagged_Activity_RAW'!D77 -> EM | M70: ='06_Flagged_Activity_RAW'!E77 -> 1
A71: ='04_HES_Activity_RAW'!B78 -> AB04Z | B71: =IF(NOT(ISNUMBER(VLOOKUP(A71,'03_OPROC_RAW'!$B:$C,2,FALSE))),0,VLOOKUP(A71,'03_OPROC_RAW'!$B:$C,2,FALSE)) -> 0 | C71: 87110 | D71: =SUMIFS('04.1_HES_POD_Split'!$D:$D,'04.1_HES_POD_Split'!$B:$B,'00b_1112 HES Spells'!$A71,'04.1_HES_POD_Split'!$C:$C,'00b_1112 HES Spells'!D$3) -> 84920 | E71: =SUMIFS('04.1_HES_POD_Split'!$D:$D,'04.1_HES_POD_Split'!$B:$B,'00b_1112 HES Spells'!$A71,'04.1_HES_POD_Split'!$C:$C,'00b_1112 HES Spells'!E$3) -> 2190 | F71: =SUMIFS('04.1_HES_POD_Split'!$D:$D,'04.1_HES_POD_Split'!$B:$B,'00b_1112 HES Spells'!$A71,'04.1_HES_POD_Split'!$C:$C,'00b_1112 HES Spells'!F$3) -> 1482 | G71: =IF(COUNTIF('Linked Sheet'!A:A,'00b_1112 HES Spells'!A71)>0,1,0) -> 0 | H71: FZ37HEMBP05 | I71: ='06_Flagged_Activity_RAW'!B78 -> FZ37H | J71: ='06_Flagged_Activity_RAW'!C78 -> BP05 | L71: ='06_Flagged_Activity_RAW'!D78 -> EM | M71: ='06_Flagged_Activity_RAW'!E78 -> 1
A72: ='04_HES_Activity_RAW'!B79 -> AB05Z | B72: =IF(NOT(ISNUMBER(VLOOKUP(A72,'03_OPROC_RAW'!$B:$C,2,FALSE))),0,VLOOKUP(A72,'03_OPROC_RAW'!$B:$C,2,FALSE)) -> 11496 | C72: 22079 | D72: =SUMIFS('04.1_HES_POD_Split'!$D:$D,'04.1_HES_POD_Split'!$B:$B,'00b_1112 HES Spells'!$A72,'04.1_HES_POD_Split'!$C:$C,'00b_1112 HES Spells'!D$3) -> 20886 | E72: =SUMIFS('04.1_HES_POD_Split'!$D:$D,'04.1_HES_POD_Split'!$B:$B,'00b_1112 HES Spells'!$A72,'04.1_HES_POD_Split'!$C:$C,'00b_1112 HES Spells'!E$3) -> 1193 | F72: =SUMIFS('04.1_HES_POD_Split'!$D:$D,'04.1_HES_POD_Split'!$B:$B,'00b_1112 HES Spells'!$A72,'04.1_HES_POD_Split'!$C:$C,'00b_1112 HES Spells'!F$3) -> 581 | G72: =IF(COUNTIF('Linked Sheet'!A:A,'00b_1112 HES Spells'!A72)>0,1,0) -> 0 | H72: FZ38DEMBP35 | I72: ='06_Flagged_Activity_RAW'!B79 -> FZ38D | J72: ='06_Flagged_Activity_RAW'!C79 -> BP35 | L72: ='06_Flagged_Activity_RAW'!D79 -> EM | M72: ='06_Flagged_Activity_RAW'!E79 -> 1
A73: ='04_HES_Activity_RAW'!B80 -> AB06Z | B73: =IF(NOT(ISNUMBER(VLOOKUP(A73,'03_OPROC_RAW'!$B:$C,2,FALSE))),0,VLOOKUP(A73,'03_OPROC_RAW'!$B:$C,2,FALSE)) -> 74463 | C73: 19479 | D73: =SUMIFS('04.1_HES_POD_Split'!$D:$D,'04.1_HES_POD_Split'!$B:$B,'00b_1112 HES Spells'!$A73,'04.1_HES_POD_Split'!$C:$C,'00b_1112 HES Spells'!D$3) -> 19002 | E73: =SUMIFS('04.1_HES_POD_Split'!$D:$D,'04.1_HES_POD_Split'!$B:$B,'00b_1112 HES Spells'!$A73,'04.1_HES_POD_Split'!$C:$C,'00b_1112 HES Spells'!E$3) -> 477 | F73: =SUMIFS('04.1_HES_POD_Split'!$D:$D,'04.1_HES_POD_Split'!$B:$B,'00b_1112 HES Spells'!$A73,'04.1_HES_POD_Split'!$C:$C,'00b_1112 HES Spells'!F$3) -> 194 | G73: =IF(COUNTIF('Linked Sheet'!A:A,'00b_1112 HES Spells'!A73)>0,1,0) -> 0 | H73: FZ38EEMBP05 | I73: ='06_Flagged_Activity_RAW'!B80 -> FZ38E | J73: ='06_Flagged_Activity_RAW'!C80 -> BP05 | L73: ='06_Flagged_Activity_RAW'!D80 -> EM | M73: ='06_Flagged_Activity_RAW'!E80 -> 1
A74: ='04_HES_Activity_RAW'!B81 -> AB07Z | B74: =IF(NOT(ISNUMBER(VLOOKUP(A74,'03_OPROC_RAW'!$B:$C,2,FALSE))),0,VLOOKUP(A74,'03_OPROC_RAW'!$B:$C,2,FALSE)) -> 0 | C74: 1787 | D74: =SUMIFS('04.1_HES_POD_Split'!$D:$D,'04.1_HES_POD_Split'!$B:$B,'00b_1112 HES Spells'!$A74,'04.1_HES_POD_Split'!$C:$C,'00b_1112 HES Spells'!D$3) -> 765 | E74: =SUMIFS('04.1_HES_POD_Split'!$D:$D,'04.1_HES_POD_Split'!$B:$B,'00b_1112 HES Spells'!$A74,'04.1_HES_POD_Split'!$C:$C,'00b_1112 HES Spells'!E$3) -> 1022 | F74: =SUMIFS('04.1_HES_POD_Split'!$D:$D,'04.1_HES_POD_Split'!$B:$B,'00b_1112 HES Spells'!$A74,'04.1_HES_POD_Split'!$C:$C,'00b_1112 HES Spells'!F$3) -> 19 | G74: =IF(COUNTIF('Linked Sheet'!A:A,'00b_1112 HES Spells'!A74)>0,1,0) -> 0 | H74: FZ41FEMBP05 | I74: ='06_Flagged_Activity_RAW'!B81 -> FZ41F | J74: ='06_Flagged_Activity_RAW'!C81 -> BP05 | L74: ='06_Flagged_Activity_RAW'!D81 -> EM | M74: ='06_Flagged_Activity_RAW'!E81 -> 1
A75: ='04_HES_Activity_RAW'!B82 -> AB08Z | B75: =IF(NOT(ISNUMBER(VLOOKUP(A75,'03_OPROC_RAW'!$B:$C,2,FALSE))),0,VLOOKUP(A75,'03_OPROC_RAW'!$B:$C,2,FALSE)) -> 0 | C75: 16170 | D75: =SUMIFS('04.1_HES_POD_Split'!$D:$D,'04.1_HES_POD_Split'!$B:$B,'00b_1112 HES Spells'!$A75,'04.1_HES_POD_Split'!$C:$C,'00b_1112 HES Spells'!D$3) -> 15944 | E75: =SUMIFS('04.1_HES_POD_Split'!$D:$D,'04.1_HES_POD_Split'!$B:$B,'00b_1112 HES Spells'!$A75,'04.1_HES_POD_Split'!$C:$C,'00b_1112 HES Spells'!E$3) -> 226 | F75: =SUMIFS('04.1_HES_POD_Split'!$D:$D,'04.1_HES_POD_Split'!$B:$B,'00b_1112 HES Spells'!$A75,'04.1_HES_POD_Split'!$C:$C,'00b_1112 HES Spells'!F$3) -> 74 | G75: =IF(COUNTIF('Linked Sheet'!A:A,'00b_1112 HES Spells'!A75)>0,1,0) -> 0 | H75: FZ43BEMBP05 | I75: ='06_Flagged_Activity_RAW'!B82 -> FZ43B | J75: ='06_Flagged_Activity_RAW'!C82 -> BP05 | L75: ='06_Flagged_Activity_RAW'!D82 -> EM | M75: ='06_Flagged_Activity_RAW'!E82 -> 1
A76: ='04_HES_Activity_RAW'!B83 -> AB09Z | B76: =IF(NOT(ISNUMBER(VLOOKUP(A76,'03_OPROC_RAW'!$B:$C,2,FALSE))),0,VLOOKUP(A76,'03_OPROC_RAW'!$B:$C,2,FALSE)) -> 2806 | C76: 5129 | D76: =SUMIFS('04.1_HES_POD_Split'!$D:$D,'04.1_HES_POD_Split'!$B:$B,'00b_1112 HES Spells'!$A76,'04.1_HES_POD_Split'!$C:$C,'00b_1112 HES Spells'!D$3) -> 4961 | E76: =SUMIFS('04.1_HES_POD_Split'!$D:$D,'04.1_HES_POD_Split'!$B:$B,'00b_1112 HES Spells'!$A76,'04.1_HES_POD_Split'!$C:$C,'00b_1112 HES Spells'!E$3) -> 168 | F76: =SUMIFS('04.1_HES_POD_Split'!$D:$D,'04.1_HES_POD_Split'!$B:$B,'00b_1112 HES Spells'!$A76,'04.1_HES_POD_Split'!$C:$C,'00b_1112 HES Spells'!F$3) -> 81 | G76: =IF(COUNTIF('Linked Sheet'!A:A,'00b_1112 HES Spells'!A76)>0,1,0) -> 0 | H76: FZ47BEMBP61 | I76: ='06_Flagged_Activity_RAW'!B83 -> FZ47B | J76: ='06_Flagged_Activity_RAW'!C83 -> BP61 | L76: ='06_Flagged_Activity_RAW'!D83 -> EM | M76: ='06_Flagged_Activity_RAW'!E83 -> 66167
A77: ='04_HES_Activity_RAW'!B84 -> AB10Z | B77: =IF(NOT(ISNUMBER(VLOOKUP(A77,'03_OPROC_RAW'!$B:$C,2,FALSE))),0,VLOOKUP(A77,'03_OPROC_RAW'!$B:$C,2,FALSE)) -> 0 | C77: 388 | D77: =SUMIFS('04.1_HES_POD_Split'!$D:$D,'04.1_HES_POD_Split'!$B:$B,'00b_1112 HES Spells'!$A77,'04.1_HES_POD_Split'!$C:$C,'00b_1112 HES Spells'!D$3) -> 378 | E77: =SUMIFS('04.1_HES_POD_Split'!$D:$D,'04.1_HES_POD_Split'!$B:$B,'00b_1112 HES Spells'!$A77,'04.1_HES_POD_Split'!$C:$C,'00b_1112 HES Spells'!E$3) -> 10 | F77: =SUMIFS('04.1_HES_POD_Split'!$D:$D,'04.1_HES_POD_Split'!$B:$B,'00b_1112 HES Spells'!$A77,'04.1_HES_POD_Split'!$C:$C,'00b_1112 HES Spells'!F$3) -> 16 | G77: =IF(COUNTIF('Linked Sheet'!A:A,'00b_1112 HES Spells'!A77)>0,1,0) -> 0 | H77: FZ47CEMBP41 | I77: ='06_Flagged_Activity_RAW'!B84 -> FZ47C | J77: ='06_Flagged_Activity_RAW'!C84 -> BP41 | L77: ='06_Flagged_Activity_RAW'!D84 -> EM | M77: ='06_Flagged_Activity_RAW'!E84 -> 1
A78: ='04_HES_Activity_RAW'!B85 -> AB11Z | B78: =IF(NOT(ISNUMBER(VLOOKUP(A78,'03_OPROC_RAW'!$B:$C,2,FALSE))),0,VLOOKUP(A78,'03_OPROC_RAW'!$B:$C,2,FALSE)) -> 0 | C78: 2537 | D78: =SUMIFS('04.1_HES_POD_Split'!$D:$D,'04.1_HES_POD_Split'!$B:$B,'00b_1112 HES Spells'!$A78,'04.1_HES_POD_Split'!$C:$C,'00b_1112 HES Spells'!D$3) -> 2457 | E78: =SUMIFS('04.1_HES_POD_Split'!$D:$D,'04.1_HES_POD_Split'!$B:$B,'00b_1112 HES Spells'!$A78,'04.1_HES_POD_Split'!$C:$C,'00b_1112 HES Spells'!E$3) -> 80 | F78: =SUMIFS('04.1_HES_POD_Split'!$D:$D,'04.1_HES_POD_Split'!$B:$B,'00b_1112 HES Spells'!$A78,'04.1_HES_POD_Split'!$C:$C,'00b_1112 HES Spells'!F$3) -> 1 | G78: =IF(COUNTIF('Linked Sheet'!A:A,'00b_1112 HES Spells'!A78)>0,1,0) -> 0 | H78: FZ47CEMBP61 | I78: ='06_Flagged_Activity_RAW'!B85 -> FZ47C | J78: ='06_Flagged_Activity_RAW'!C85 -> BP61 | L78: ='06_Flagged_Activity_RAW'!D85 -> EM | M78: ='06_Flagged_Activity_RAW'!E85 -> 112707
A79: ='04_HES_Activity_RAW'!B86 -> BZ01Z | B79: =IF(NOT(ISNUMBER(VLOOKUP(A79,'03_OPROC_RAW'!$B:$C,2,FALSE))),0,VLOOKUP(A79,'03_OPROC_RAW'!$B:$C,2,FALSE)) -> 0 | C79: 8194 | D79: =SUMIFS('04.1_HES_POD_Split'!$D:$D,'04.1_HES_POD_Split'!$B:$B,'00b_1112 HES Spells'!$A79,'04.1_HES_POD_Split'!$C:$C,'00b_1112 HES Spells'!D$3) -> 7667 | E79: =SUMIFS('04.1_HES_POD_Split'!$D:$D,'04.1_HES_POD_Split'!$B:$B,'00b_1112 HES Spells'!$A79,'04.1_HES_POD_Split'!$C:$C,'00b_1112 HES Spells'!E$3) -> 527 | F79: =SUMIFS('04.1_HES_POD_Split'!$D:$D,'04.1_HES_POD_Split'!$B:$B,'00b_1112 HES Spells'!$A79,'04.1_HES_POD_Split'!$C:$C,'00b_1112 HES Spells'!F$3) -> 68 | G79: =IF(COUNTIF('Linked Sheet'!A:A,'00b_1112 HES Spells'!A79)>0,1,0) -> 0 | H79: FZ52ZEMBP54 | I79: ='06_Flagged_Activity_RAW'!B86 -> FZ52Z | J79: ='06_Flagged_Activity_RAW'!C86 -> BP54 | L79: ='06_Flagged_Activity_RAW'!D86 -> EM | M79: ='06_Flagged_Activity_RAW'!E86 -> 1
A80: ='04_HES_Activity_RAW'!B87 -> BZ02Z | B80: =IF(NOT(ISNUMBER(VLOOKUP(A80,'03_OPROC_RAW'!$B:$C,2,FALSE))),0,VLOOKUP(A80,'03_OPROC_RAW'!$B:$C,2,FALSE)) -> 0 | C80: 279506 | D80: =SUMIFS('04.1_HES_POD_Split'!$D:$D,'04.1_HES_POD_Split'!$B:$B,'00b_1112 HES Spells'!$A80,'04.1_HES_POD_Split'!$C:$C,'00b_1112 HES Spells'!D$3) -> 275958 | E80: =SUMIFS('04.1_HES_POD_Split'!$D:$D,'04.1_HES_POD_Split'!$B:$B,'00b_1112 HES Spells'!$A80,'04.1_HES_POD_Split'!$C:$C,'00b_1112 HES Spells'!E$3) -> 3548 | F80: =SUMIFS('04.1_HES_POD_Split'!$D:$D,'04.1_HES_POD_Split'!$B:$B,'00b_1112 HES Spells'!$A80,'04.1_HES_POD_Split'!$C:$C,'00b_1112 HES Spells'!F$3) -> 284 | G80: =IF(COUNTIF('Linked Sheet'!A:A,'00b_1112 HES Spells'!A80)>0,1,0) -> 0 | H80: FZ54ZEMBP61 | I80: ='06_Flagged_Activity_RAW'!B87 -> FZ54Z | J80: ='06_Flagged_Activity_RAW'!C87 -> BP61 | L80: ='06_Flagged_Activity_RAW'!D87 -> EM | M80: ='06_Flagged_Activity_RAW'!E87 -> 1
A81: ='04_HES_Activity_RAW'!B88 -> BZ03Z | B81: =IF(NOT(ISNUMBER(VLOOKUP(A81,'03_OPROC_RAW'!$B:$C,2,FALSE))),0,VLOOKUP(A81,'03_OPROC_RAW'!$B:$C,2,FALSE)) -> 0 | C81: 4245 | D81: =SUMIFS('04.1_HES_POD_Split'!$D:$D,'04.1_HES_POD_Split'!$B:$B,'00b_1112 HES Spells'!$A81,'04.1_HES_POD_Split'!$C:$C,'00b_1112 HES Spells'!D$3) -> 3844 | E81: =SUMIFS('04.1_HES_POD_Split'!$D:$D,'04.1_HES_POD_Split'!$B:$B,'00b_1112 HES Spells'!$A81,'04.1_HES_POD_Split'!$C:$C,'00b_1112 HES Spells'!E$3) -> 401 | F81: =SUMIFS('04.1_HES_POD_Split'!$D:$D,'04.1_HES_POD_Split'!$B:$B,'00b_1112 HES Spells'!$A81,'04.1_HES_POD_Split'!$C:$C,'00b_1112 HES Spells'!F$3) -> 119 | G81: =IF(COUNTIF('Linked Sheet'!A:A,'00b_1112 HES Spells'!A81)>0,1,0) -> 0 | H81: FZ60ZEMBP54 | I81: ='06_Flagged_Activity_RAW'!B88 -> FZ60Z | J81: ='06_Flagged_Activity_RAW'!C88 -> BP54 | L81: ='06_Flagged_Activity_RAW'!D88 -> EM | M81: ='06_Flagged_Activity_RAW'!E88 -> 1
A82: ='04_HES_Activity_RAW'!B89 -> BZ04Z | B82: =IF(NOT(ISNUMBER(VLOOKUP(A82,'03_OPROC_RAW'!$B:$C,2,FALSE))),0,VLOOKUP(A82,'03_OPROC_RAW'!$B:$C,2,FALSE)) -> 32716 | C82: 11514 | D82: =SUMIFS('04.1_HES_POD_Split'!$D:$D,'04.1_HES_POD_Split'!$B:$B,'00b_1112 HES Spells'!$A82,'04.1_HES_POD_Split'!$C:$C,'00b_1112 HES Spells'!D$3) -> 11258 | E82: =SUMIFS('04.1_HES_POD_Split'!$D:$D,'04.1_HES_POD_Split'!$B:$B,'00b_1112 HES Spells'!$A82,'04.1_HES_POD_Split'!$C:$C,'00b_1112 HES Spells'!E$3) -> 256 | F82: =SUMIFS('04.1_HES_POD_Split'!$D:$D,'04.1_HES_POD_Split'!$B:$B,'00b_1112 HES Spells'!$A82,'04.1_HES_POD_Split'!$C:$C,'00b_1112 HES Spells'!F$3) -> 364 | G82: =IF(COUNTIF('Linked Sheet'!A:A,'00b_1112 HES Spells'!A82)>0,1,0) -> 0 | H82: FZ61ZEMBP05 | I82: ='06_Flagged_Activity_RAW'!B89 -> FZ61Z | J82: ='06_Flagged_Activity_RAW'!C89 -> BP05 | L82: ='06_Flagged_Activity_RAW'!D89 -> EM | M82: ='06_Flagged_Activity_RAW'!E89 -> 1
A83: ='04_HES_Activity_RAW'!B90 -> BZ05Z | B83: =IF(NOT(ISNUMBER(VLOOKUP(A83,'03_OPROC_RAW'!$B:$C,2,FALSE))),0,VLOOKUP(A83,'03_OPROC_RAW'!$B:$C,2,FALSE)) -> 0 | C83: 2485 | D83: =SUMIFS('04.1_HES_POD_Split'!$D:$D,'04.1_HES_POD_Split'!$B:$B,'00b_1112 HES Spells'!$A83,'04.1_HES_POD_Split'!$C:$C,'00b_1112 HES Spells'!D$3) -> 2122 | E83: =SUMIFS('04.1_HES_POD_Split'!$D:$D,'04.1_HES_POD_Split'!$B:$B,'00b_1112 HES Spells'!$A83,'04.1_HES_POD_Split'!$C:$C,'00b_1112 HES Spells'!E$3) -> 363 | F83: =SUMIFS('04.1_HES_POD_Split'!$D:$D,'04.1_HES_POD_Split'!$B:$B,'00b_1112 HES Spells'!$A83,'04.1_HES_POD_Split'!$C:$C,'00b_1112 HES Spells'!F$3) -> 41 | G83: =IF(COUNTIF('Linked Sheet'!A:A,'00b_1112 HES Spells'!A83)>0,1,0) -> 0 | H83: FZ61ZEMBP54 | I83: ='06_Flagged_Activity_RAW'!B90 -> FZ61Z | J83: ='06_Flagged_Activity_RAW'!C90 -> BP54 | L83: ='06_Flagged_Activity_RAW'!D90 -> EM | M83: ='06_Flagged_Activity_RAW'!E90 -> 2
A84: ='04_HES_Activity_RAW'!B91 -> BZ06A | B84: =IF(NOT(ISNUMBER(VLOOKUP(A84,'03_OPROC_RAW'!$B:$C,2,FALSE))),0,VLOOKUP(A84,'03_OPROC_RAW'!$B:$C,2,FALSE)) -> 0 | C84: 17006 | D84: =SUMIFS('04.1_HES_POD_Split'!$D:$D,'04.1_HES_POD_Split'!$B:$B,'00b_1112 HES Spells'!$A84,'04.1_HES_POD_Split'!$C:$C,'00b_1112 HES Spells'!D$3) -> 16118 | E84: =SUMIFS('04.1_HES_POD_Split'!$D:$D,'04.1_HES_POD_Split'!$B:$B,'00b_1112 HES Spells'!$A84,'04.1_HES_POD_Split'!$C:$C,'00b_1112 HES Spells'!E$3) -> 888 | F84: =SUMIFS('04.1_HES_POD_Split'!$D:$D,'04.1_HES_POD_Split'!$B:$B,'00b_1112 HES Spells'!$A84,'04.1_HES_POD_Split'!$C:$C,'00b_1112 HES Spells'!F$3) -> 212 | G84: =IF(COUNTIF('Linked Sheet'!A:A,'00b_1112 HES Spells'!A84)>0,1,0) -> 0 | H84: FZ64AEMBP61 | I84: ='06_Flagged_Activity_RAW'!B91 -> FZ64A | J84: ='06_Flagged_Activity_RAW'!C91 -> BP61 | L84: ='06_Flagged_Activity_RAW'!D91 -> EM | M84: ='06_Flagged_Activity_RAW'!E91 -> 1
A85: ='04_HES_Activity_RAW'!B92 -> BZ06B | B85: =IF(NOT(ISNUMBER(VLOOKUP(A85,'03_OPROC_RAW'!$B:$C,2,FALSE))),0,VLOOKUP(A85,'03_OPROC_RAW'!$B:$C,2,FALSE)) -> 0 | C85: 954 | D85: =SUMIFS('04.1_HES_POD_Split'!$D:$D,'04.1_HES_POD_Split'!$B:$B,'00b_1112 HES Spells'!$A85,'04.1_HES_POD_Split'!$C:$C,'00b_1112 HES Spells'!D$3) -> 863 | E85: =SUMIFS('04.1_HES_POD_Split'!$D:$D,'04.1_HES_POD_Split'!$B:$B,'00b_1112 HES Spells'!$A85,'04.1_HES_POD_Split'!$C:$C,'00b_1112 HES Spells'!E$3) -> 91 | F85: =SUMIFS('04.1_HES_POD_Split'!$D:$D,'04.1_HES_POD_Split'!$B:$B,'00b_1112 HES Spells'!$A85,'04.1_HES_POD_Split'!$C:$C,'00b_1112 HES Spells'!F$3) -> 41 | G85: =IF(COUNTIF('Linked Sheet'!A:A,'00b_1112 HES Spells'!A85)>0,1,0) -> 0 | H85: FZ88AEMBP05 | I85: ='06_Flagged_Activity_RAW'!B92 -> FZ88A | J85: ='06_Flagged_Activity_RAW'!C92 -> BP05 | L85: ='06_Flagged_Activity_RAW'!D92 -> EM | M85: ='06_Flagged_Activity_RAW'!E92 -> 6
